Workbook

Sheet Guidance (hidden)
A2: Guidance
B4: Tab Name | C4: Instructions
A5: Intro | B5: Purpose of CBA | C5: Describe the aim of the investment decision
A6: Inputs | B6: Flexibility Requirements | C6: Enter flexibility requirements across scenarios (and scenario names)
B7: Reinforcement Deferral | C7: Enter reinforcement costs and site capacity (current, projections by scenario). The Baseline option is the reinforcement option in this tool
B8: Fixed Inputs | C8: Enter pre-tax WACC and societal impact prices consistent with your business plan
B9: Societal Impacts | C9: Enter societal impacts for each scenario i.e. losses, emissions, CIs, CMLs
B10: Workings | C10: Show calculations used to derive flexibility requirements and/or societal impacts
A11: Results and Insight | B11: Flexibility Ceiling Price | C11: CBA results where flexibility price is determined according to optimal deferral
B12: Benefit at Ex-Ante Flexibility Price | C12: CBA results where flexibility price is pre-determined by the user
B13: Summary CBA | C13: Detailed CBA results for a given number of deferral years for a given scenario
B14: Insights and Reporting | C14: Insights on optimal deferral years and maximum flexibility value across scenarios Weighted average results based on scenario probabilities input by the user
A15: NPVs | B15: Baseline | C15: Tabs with no user input required. The NPV of each option (Baseline, and up to 5 flexibility requirements scenarios) is calculated, following the standard Ofgem CBA methodology. The NPV results are linked through and presented in the Results and Insight tabs.
B16: Scn1
B17: Scn2
B18: Scn3
B19: Scn4
B20: Scn5
B22: Colour code:
B23: User populated cells
B24: Formula/Calculation
B25: VBA populated cells
B26: Timeframe
B27: Description
B28: Prepopulated
B29: The user should populate the yellow cells. All other cells are either fixed or auto-populated. Enter costs / benefits in 2018/19 prices (£). Costs should be entered as positive values. In turn, Benefits (i.e. avoided costs) should be entered as negative values. Costs entered should correspond to values set out in company business plans (i.e. should exclude RPEs and include ongoing efficiencies consistent with assumptions contained in your business plan submission).

Sheet General info-Scenarios
B3: GUIDANCE
B4: - This tab allows the user to determine if this tool is useful for their needs. - It will help the user to enter their general data, and transformer information.
B6: Please select the type of user
B11: If you don't fall under one of the three categories please do not use the tool and contact OPSS via Enquiry Service
B14: General data
B15: Name of company
B16: Contact name
B17: Email address
B19: Transformer information
B20: Type of transformer
B21: Transformer size
B22: Number of transformers
B25: Please choose one of the following scenarios
B26: Ground mounted
B27: 1. Replace existing Glass Reinforced Plastic (GRP) enclosure with a new larger one (includes base modification)
B28: 2. Extend or replace brick enclosure with a brick-built construction
B29: 3. Replace brick enclosure with GRP
B30: 4. Limited space – cannot extend enclosure or acquire additional space (e.g. underground location, areas of natural beauty)
B31: 5. Leasing of additional or new space due to additional size
B32: 6. Other
B34: Pole mounted transformer scenarios:
B35: 1. Strengthening single-bolt arrangement
B36: 2. Single-bolt platform replacement
B37: 3. Strengthening single-pole platform
B38: 4. Upgrade single-pole platform to an H-pole platform
B39: 5. Other
B41: If ‘Other' option is selected please complete the ‘Losses Derogation Input’ tab or contact OPSS via Enquiry Service
B44: Additional information on chosen scenario:
B54: Once completed please contact OPSS via Enquiry Service

Sheet Version control
A2: Date | B2: Version | C2: Comments
A3: 2021-06-28 | B3: V1.2 | C3: Currently released version

Sheet Derogation calculation guidance
A2: Notes:
A3: A | B3: The purpose of this tool is to help implement the disproportionate costs provision of the Ecodesign regulation for transformers 548_2014 updated 2019, which requires authorities to determine Tier 2 to Tier 1 derogations in certain circumstances. According to the regulation, “installation costs are disproportionate if the costs of the replacement of the complete substation housing the transformer and/or the acquisition or rental of additional floor space are higher than the net present value of the additional avoided electricity losses (tariffs, taxes and levies excluded) of Tier 2 compliant replacement transformer over its normally expected service life. The net present value shall be calculated based on capitalised loss values using widely accepted social discount rates" According to the regulation "if the cost of installing a replacement transformer complying with Tier 1 requirements are also disproportionate, or where no technically feasible solutions exist, no minimum requirements shall apply to the replacement transformer". The same tool can be used to calculate whether the cost of installing a Tier 1 transformer are also disproportionate.
A4: B | B4: The tool compares any additional building and civils costs required to accommodate a new, more efficient transformer (e.g. Tier 2) against the losses savings to determine whether any additional expenditure is justifyable.
A5: C | B5: The tool uses ENA Open Networks CEM methodology (which adopted and adapted Ofgem CBA methodology) to calculate the net present value (NPV) of an investment, taking into consideration expenses and losses benefits associated with an investment . Losses benefits (£) are derived based on: Reduced Losses achieved through the installation of a new more efficient transformer (e.g. Tier 2) using standard values in the "Losses Derogation inputs" tab (MWh) converted to £ using the CEM methodology.
A6: D | B6: All the relevant Input Data are inserted using the "Losses Derogation Inputs" tab.
A7: E | B7: The tool feeds all the relevant data to the "Reinforcement Deferral", "Societal Impacts", "Fixed Inputs" and "Derogation calculation" tabs.
A8: F | B8: The NPV after 45 years is presented in "NPV Derogation results" tab. A negative value suggests that a derogation might be appropriate as the cost are disproportionate.
A9: G | B9: The button in the "NPV Derogation results" tab calculates the additional spending that is proportionate to the losses benefits (i.e. zero NPV in Year 45)
A10: H | B10: This version of the model only assesses distribution transformers
A11: Instructions:
A12: Calculate NPV
A13: 1 | B13: Clear all user populated cells in tab "Losses Derogation Inputs"
A14: 2 | B14: Fill in the following cells: D5, D6, D10-D12, D14, D15, D19, D21, D22, D24, E21, E22, E24. This automatically populates the rest of the model
A16: View results and Calculate additional amount that can be spent by setting NPV to zero in year 45
A17: 1 | B17: Go to "NPV Derogation results" tab to view NPV after 45 years in cell G6
A18: 2 | B18: To calculate additional amount that can be spent by setting NPV to zero in 45 years go to "NPV Derogation results" tab and press the button

Sheet Losses formulae
B2: Losses Dergoation Inputs tab uses the following formulae | F2: (Northern Powergrid Code of Practice for the Methodology of Assessing Losses)
B4: Losses calculation:
B6: Fixed losses:
B8: Variable loss at any moment in time is:
B10: The total variable losses over a year are a function of the dynamic behaviour of the load.
B11: As such, the total variable loss over one year can be calculated by summating the variable loss of each half-hour during that year:
B15: A factor can be applied to simplify this computationally complex calculation of variable losses.
B16: This factor considers the cyclic nature of load (i.e. load is not constant and varies in a time period) and
B17: is the ratio between the average loss over a period and the peak loss during that period.
B18: This is the same relationship as that of the ‘Load Factor’ and is referred to as Load Loss Factor (LLF).
B19: So:
B24: Transformers:
F26: +
B28: Ecodesign Reg tables define the MAX permitted Variable and Fixed losses
B29: These values can be used to calculate the MAX losses for Tier 1 and Tier 2 transformers.
B30: The difference between the two are the losses savings of a more efficient transformer (e.g. Tier 2 over Tier 1)
B31: The losses savings are converted to £ using Ofgem's model
B33: Notes:
B34: - A less efficient Tier 1 is NOT an option as it won’t meet Ecodesign 2015 regulation
B35: - A less efficient Tier 2 is NOT an option as it won’t meet Ecodesign 2021 regulation
B36: - A more efficient Tier 2 IS an option and will lead to more savings. However, it may cost more

Sheet Purpose of CBA (hidden)
A2: Purpose of CBA
A4: Purpose of CBA: describe the stated aim of the investment decision
A7: If investment is to replace an existing asset / asset class, please state the condition of the asset / asset class (HI / CI etc.)

Sheet Blank (hidden)

Sheet Inputs>>>

Sheet Losses Derogation Inputs
B1: Losses Derogation Calculation
B3: Input Data | C3: Units | D3: Values
B4: FINANCIAL DATA | J4: Colour code:
B5: WACC | E5: e.g. 4% | J5: User populated cells
B6: Capitalisation Rate | E6: e.g. 74% (DNO agreed cap range of 68-80%) | J6: Formula/Calculation
B7: Depreciation period/Assumed Asset Life | D7: 45 | E7: CEM Model Assumes 45 year asset life | J7: Timeframe
J8: Description
B9: NETWORK DATA | J9: Pre-populated
B10: Load growth factor | E10: e.g. 0.5%
B11: Loss Load Factor (LLF) | E11: e.g. PM: 0.15, GM: 0.225
B12: Site demand | C12: MVA
B14: Reference calendar year | D14: 2020/21
B15: Year of Instalaltion (≤ 2027)
D17: Baseline Option - Less efficient transformer (e.g Tier 1) | E17: Proposed Option - More efficient transformer (e.g. Tier 2)
B18: Type of transformer (GM/PM) | C18: GM/PM
B19: Transformer rating ( ≥ site demand) | C19: MVA | E19: =D19 -> 0 | F19: Size should be like for like
B20: Transformer utilisation ( ≤ 1) | D20: =D12/D19 ->  | E20: =D12/E19 -> 
B21: Copper losses (variable losses) | C21: kW | F21: Example values in rows 70 to 100
B22: Iron losses (fixed losses) | C22: kW
B23: Transformer cost | C23: £k | D23: 0 | E23: 0 | F23: Tx cost is not considered
B24: Building and civils costs | C24: £k
B25: Total cost | C25: £k | D25: =(D23+D24) -> 0 | E25: =(E23+E24) -> 0
B26: Total cost | C26: £m | D26: =D25*-1 -> 0 | E26: =E25*-1 -> 0
B27: Total copper losses per year | C27: MWh/yr | D27: =D21*D20^2*D11*D36/1000 ->  | E27: =E21*E20^2*D11*D36/1000 -> 
B28: Total iron losses per year | C28: MWh/yr | D28: =D22*D36/1000 -> 0 | E28: =E22*D36/1000 -> 0
B29: Total losses per year | C29: MWh/yr | D29: =D27+D28 ->  | E29: =E27+E28 -> 
B31: Total BASELINE minus total PROPOSED copper losses per year | C31: MWh/yr | D31: =D27-E27 -> 
B32: Total BASELINE minus total PROPOSED iron losses per year | C32: MWh/yr | D32: =D28-E28 -> 0
B33: Total BASELINE losses minus total PROPOSED losses | C33: MWh/yr | D33: =D29-E29 -> 
B34: Cost delta: Baseline cost minus Proposed cost | C34: £ | D34: =(D25-E25) -> 0
B36: Hours per year | C36: hours | D36: =365*24 -> 8760
B40: Year Number | C40: 1 | D40: =C40+1 -> 2 | E40: 3 | F40: 4 | G40: 5 | H40: 6 | I40: 7 | J40: 8 | K40: 9 | L40: 10 | M40: 11 | N40: 12 | O40: 13 | P40: 14 | Q40: 15 | R40: 16 | S40: 17 | T40: =S40+1 -> 18 | U40: 19 | V40: 20 | W40: 21 | X40: 22 | Y40: 23 | Z40: 24 | AA40: 25 | AB40: 26 | AC40: 27 | AD40: 28 | AE40: 29 | AF40: 30 | AG40: 31 | AH40: 32 | AI40: 33 | AJ40: =AI40+1 -> 34 | AK40: 35 | AL40: 36 | AM40: 37 | AN40: 38 | AO40: 39 | AP40: 40 | AQ40: 41 | AR40: 42 | AS40: 43 | AT40: 44 | AU40: 45 | AV40: 46 | AW40: 47 | AX40: 48 | AY40: 49 | AZ40: =AY40+1 -> 50 | BA40: 51 | BB40: 52 | BC40: 53
B41: Year | C41: 2020 | D41: 2021 | E41: 2022 | F41: 2023 | G41: 2024 | H41: 2025 | I41: 2026 | J41: 2027 | K41: 2028 | L41: 2029 | M41: 2030 | N41: 2031 | O41: 2032 | P41: 2033 | Q41: 2034 | R41: 2035 | S41: 2036 | T41: 2037 | U41: 2038 | V41: 2039 | W41: 2040 | X41: 2041 | Y41: 2042 | Z41: 2043 | AA41: 2044 | AB41: 2045 | AC41: 2046 | AD41: 2047 | AE41: 2048 | AF41: 2049 | AG41: 2050 | AH41: 2051 | AI41: 2052 | AJ41: 2053 | AK41: 2054 | AL41: 2055 | AM41: 2056 | AN41: 2057 | AO41: 2058 | AP41: 2059 | AQ41: 2060 | AR41: 2061 | AS41: 2062 | AT41: 2063 | AU41: 2064 | AV41: 2065 | AW41: 2066 | AX41: 2067 | AY41: 2068 | AZ41: 2069 | BA41: 2070 | BB41: 2071 | BC41: 2072
A42: Rows 42 to 49 are for validation purposes | B42: Copper losses baseline (MWh) | C42: 0 | D42: =IF(D15=C41,D27,0) -> 0 | E42: =IF($D$15=D41,$D$27,D42*(1+$D$10)^2) -> 0 | F42: 0 | G42: 0 | H42: 0 | I42: 0 | J42: 0 | K42: 0 | L42: 0 | M42: 0 | N42: 0 | O42: 0 | P42: 0 | Q42: 0 | R42: 0 | S42: 0 | T42: 0 | U42: 0 | V42: 0 | W42: 0 | X42: 0 | Y42: 0 | Z42: 0 | AA42: 0 | AB42: 0 | AC42: 0 | AD42: 0 | AE42: 0 | AF42: 0 | AG42: 0 | AH42: 0 | AI42: 0 | AJ42: 0 | AK42: =IF($D$15=AJ41,$D$27,AJ42*(1+$D$10)^2) -> 0 | AL42: 0 | AM42: 0 | AN42: 0 | AO42: 0 | AP42: 0 | AQ42: 0 | AR42: 0 | AS42: 0 | AT42: 0 | AU42: 0 | AV42: 0 | AW42: 0 | AX42: 0 | AY42: 0 | AZ42: 0 | BA42: 0 | BB42: 0 | BC42: 0
B43: Copper losses proposed (MWh) | C43: 0 | D43: =IF(D15=C41,E27,0) -> 0 | E43: =IF($D$15=D41,$E$27,D43*(1+$D$10)^2) -> 0 | F43: 0 | G43: 0 | H43: 0 | I43: 0 | J43: 0 | K43: 0 | L43: 0 | M43: 0 | N43: 0 | O43: 0 | P43: 0 | Q43: 0 | R43: 0 | S43: 0 | T43: 0 | U43: 0 | V43: 0 | W43: 0 | X43: 0 | Y43: 0 | Z43: 0 | AA43: 0 | AB43: 0 | AC43: 0 | AD43: 0 | AE43: 0 | AF43: 0 | AG43: 0 | AH43: 0 | AI43: 0 | AJ43: 0 | AK43: =IF($D$15=AJ41,$E$27,AJ43*(1+$D$10)^2) -> 0 | AL43: 0 | AM43: 0 | AN43: 0 | AO43: 0 | AP43: 0 | AQ43: 0 | AR43: 0 | AS43: 0 | AT43: 0 | AU43: 0 | AV43: 0 | AW43: 0 | AX43: 0 | AY43: 0 | AZ43: 0 | BA43: 0 | BB43: 0 | BC43: 0
B44: Iron losses baseline (MWh) | C44: 0 | D44: =IF($D$15<=C41,$E$28,0) -> 0 | E44: =IF($D$15<=D41,$D$28,0) -> 0 | F44: 0 | G44: 0 | H44: 0 | I44: 0 | J44: 0 | K44: 0 | L44: 0 | M44: 0 | N44: 0 | O44: 0 | P44: 0 | Q44: 0 | R44: 0 | S44: 0 | T44: 0 | U44: 0 | V44: 0 | W44: 0 | X44: 0 | Y44: 0 | Z44: 0 | AA44: 0 | AB44: 0 | AC44: 0 | AD44: 0 | AE44: 0 | AF44: 0 | AG44: 0 | AH44: 0 | AI44: 0 | AJ44: 0 | AK44: =IF($D$15<=AJ41,$D$28,0) -> 0 | AL44: 0 | AM44: 0 | AN44: 0 | AO44: 0 | AP44: 0 | AQ44: 0 | AR44: 0 | AS44: 0 | AT44: 0 | AU44: 0 | AV44: 0 | AW44: 0 | AX44: 0 | AY44: 0 | AZ44: 0 | BA44: 0 | BB44: 0 | BC44: 0
B45: Iron losses proposed (MWh) | C45: 0 | D45: =IF($D$15<=C41,$E$28,0) -> 0 | E45: 0 | F45: 0 | G45: 0 | H45: 0 | I45: 0 | J45: 0 | K45: 0 | L45: 0 | M45: 0 | N45: 0 | O45: 0 | P45: 0 | Q45: 0 | R45: 0 | S45: 0 | T45: 0 | U45: 0 | V45: 0 | W45: 0 | X45: 0 | Y45: 0 | Z45: 0 | AA45: 0 | AB45: 0 | AC45: 0 | AD45: 0 | AE45: 0 | AF45: 0 | AG45: 0 | AH45: 0 | AI45: 0 | AJ45: =IF($D$15<=AI41,$E$28,0) -> 0 | AK45: 0 | AL45: 0 | AM45: 0 | AN45: 0 | AO45: 0 | AP45: 0 | AQ45: 0 | AR45: 0 | AS45: 0 | AT45: 0 | AU45: 0 | AV45: 0 | AW45: 0 | AX45: 0 | AY45: 0 | AZ45: 0 | BA45: 0 | BB45: 0 | BC45: 0
B46: Total Losses baseline (MWh) | C46: 0 | D46: =D42+D44 -> 0 | E46: 0 | F46: 0 | G46: 0 | H46: 0 | I46: 0 | J46: 0 | K46: 0 | L46: 0 | M46: 0 | N46: 0 | O46: 0 | P46: 0 | Q46: 0 | R46: 0 | S46: 0 | T46: 0 | U46: 0 | V46: 0 | W46: 0 | X46: 0 | Y46: 0 | Z46: 0 | AA46: 0 | AB46: 0 | AC46: 0 | AD46: 0 | AE46: 0 | AF46: 0 | AG46: 0 | AH46: 0 | AI46: 0 | AJ46: 0 | AK46: 0 | AL46: 0 | AM46: 0 | AN46: 0 | AO46: 0 | AP46: 0 | AQ46: 0 | AR46: 0 | AS46: 0 | AT46: 0 | AU46: 0 | AV46: 0 | AW46: 0 | AX46: 0 | AY46: 0 | AZ46: 0 | BA46: 0 | BB46: 0 | BC46: =BC42+BC44 -> 0
B47: Total Losses proposed (MWh) | C47: 0 | D47: 0 | E47: 0 | F47: 0 | G47: 0 | H47: 0 | I47: 0 | J47: 0 | K47: 0 | L47: 0 | M47: 0 | N47: 0 | O47: 0 | P47: 0 | Q47: 0 | R47: 0 | S47: 0 | T47: 0 | U47: 0 | V47: 0 | W47: 0 | X47: 0 | Y47: 0 | Z47: 0 | AA47: 0 | AB47: 0 | AC47: 0 | AD47: 0 | AE47: 0 | AF47: 0 | AG47: 0 | AH47: 0 | AI47: 0 | AJ47: 0 | AK47: 0 | AL47: 0 | AM47: 0 | AN47: 0 | AO47: 0 | AP47: 0 | AQ47: 0 | AR47: 0 | AS47: 0 | AT47: 0 | AU47: 0 | AV47: 0 | AW47: 0 | AX47: 0 | AY47: 0 | AZ47: 0 | BA47: 0 | BB47: 0 | BC47: =BC43+BC45 -> 0
B48: Cost baseline (£m) | C48: =IF($D$15=C41,$D$26,0) -> 0 | D48: 0 | E48: 0 | F48: 0 | G48: 0 | H48: 0 | I48: 0 | J48: 0 | K48: 0 | L48: 0 | M48: 0 | N48: 0 | O48: 0 | P48: 0 | Q48: 0 | R48: 0 | S48: 0 | T48: 0 | U48: 0 | V48: 0 | W48: 0 | X48: 0 | Y48: 0 | Z48: 0 | AA48: 0 | AB48: 0 | AC48: 0 | AD48: 0 | AE48: 0 | AF48: 0 | AG48: 0 | AH48: 0 | AI48: =IF($D$15=AI41,$D$26,0) -> 0 | AJ48: 0 | AK48: 0 | AL48: 0 | AM48: 0 | AN48: 0 | AO48: 0 | AP48: 0 | AQ48: 0 | AR48: 0 | AS48: 0 | AT48: 0 | AU48: 0 | AV48: 0 | AW48: 0 | AX48: 0 | AY48: 0 | AZ48: 0 | BA48: 0 | BB48: 0 | BC48: 0
B49: Cost proposed (£m) | C49: =IF($D$15=C41,$E$26,0) -> 0 | D49: 0 | E49: 0 | F49: 0 | G49: 0 | H49: 0 | I49: 0 | J49: 0 | K49: 0 | L49: 0 | M49: 0 | N49: 0 | O49: 0 | P49: 0 | Q49: 0 | R49: 0 | S49: 0 | T49: 0 | U49: 0 | V49: 0 | W49: 0 | X49: 0 | Y49: 0 | Z49: 0 | AA49: 0 | AB49: 0 | AC49: 0 | AD49: 0 | AE49: 0 | AF49: 0 | AG49: 0 | AH49: 0 | AI49: =IF($D$15=AI41,$E$26,0) -> 0 | AJ49: 0 | AK49: 0 | AL49: 0 | AM49: 0 | AN49: 0 | AO49: 0 | AP49: 0 | AQ49: 0 | AR49: 0 | AS49: 0 | AT49: 0 | AU49: 0 | AV49: 0 | AW49: 0 | AX49: 0 | AY49: 0 | AZ49: 0 | BA49: 0 | BB49: 0 | BC49: 0
B50: Copper Losses | C50: 0 | D50: =IF(D15=C41,D31,0) -> 0 | E50: =IF($D$15=D41,$D$31,D50*(1+$D$10)^2) -> 0 | F50: 0 | G50: 0 | H50: 0 | I50: 0 | J50: 0 | K50: 0 | L50: 0 | M50: 0 | N50: 0 | O50: 0 | P50: 0 | Q50: 0 | R50: 0 | S50: 0 | T50: 0 | U50: 0 | V50: 0 | W50: 0 | X50: 0 | Y50: 0 | Z50: 0 | AA50: 0 | AB50: 0 | AC50: 0 | AD50: 0 | AE50: 0 | AF50: 0 | AG50: 0 | AH50: 0 | AI50: 0 | AJ50: 0 | AK50: =IF($D$15=AJ41,$D$31,AJ50*(1+$D$10)^2) -> 0 | AL50: 0 | AM50: 0 | AN50: 0 | AO50: 0 | AP50: 0 | AQ50: 0 | AR50: 0 | AS50: 0 | AT50: 0 | AU50: 0 | AV50: 0 | AW50: 0 | AX50: 0 | AY50: 0 | AZ50: 0 | BA50: 0 | BB50: 0 | BC50: 0
B51: Iron Losses | C51: 0 | D51: =IF($D$15<=C41,$D$32,0) -> 0 | E51: 0 | F51: 0 | G51: 0 | H51: 0 | I51: 0 | J51: 0 | K51: 0 | L51: 0 | M51: 0 | N51: 0 | O51: 0 | P51: 0 | Q51: 0 | R51: 0 | S51: 0 | T51: 0 | U51: 0 | V51: 0 | W51: 0 | X51: 0 | Y51: 0 | Z51: 0 | AA51: 0 | AB51: 0 | AC51: 0 | AD51: 0 | AE51: 0 | AF51: 0 | AG51: 0 | AH51: 0 | AI51: 0 | AJ51: =IF($D$15<=AI41,$D$32,0) -> 0 | AK51: 0 | AL51: 0 | AM51: 0 | AN51: 0 | AO51: 0 | AP51: 0 | AQ51: 0 | AR51: 0 | AS51: 0 | AT51: 0 | AU51: 0 | AV51: 0 | AW51: 0 | AX51: 0 | AY51: 0 | AZ51: 0 | BA51: 0 | BB51: 0 | BC51: 0
B52: Losses | C52: 0 | D52: =D50+D51 -> 0 | E52: =E50+E51 -> 0 | F52: =F50+F51 -> 0 | G52: 0 | H52: 0 | I52: 0 | J52: 0 | K52: 0 | L52: 0 | M52: 0 | N52: 0 | O52: 0 | P52: 0 | Q52: 0 | R52: 0 | S52: 0 | T52: 0 | U52: 0 | V52: 0 | W52: 0 | X52: 0 | Y52: 0 | Z52: 0 | AA52: 0 | AB52: 0 | AC52: 0 | AD52: 0 | AE52: 0 | AF52: 0 | AG52: 0 | AH52: 0 | AI52: 0 | AJ52: 0 | AK52: 0 | AL52: 0 | AM52: 0 | AN52: 0 | AO52: 0 | AP52: 0 | AQ52: 0 | AR52: 0 | AS52: 0 | AT52: 0 | AU52: 0 | AV52: 0 | AW52: 0 | AX52: 0 | AY52: 0 | AZ52: 0 | BA52: 0 | BB52: 0 | BC52: =BC50+BC51 -> 0
B53: Cost | C53: =IF($D$15=C41,$D$34,0) -> 0 | D53: 0 | E53: 0 | F53: 0 | G53: 0 | H53: 0 | I53: 0 | J53: 0 | K53: 0 | L53: 0 | M53: 0 | N53: 0 | O53: 0 | P53: 0 | Q53: 0 | R53: 0 | S53: 0 | T53: 0 | U53: 0 | V53: 0 | W53: 0 | X53: 0 | Y53: 0 | Z53: 0 | AA53: 0 | AB53: 0 | AC53: 0 | AD53: 0 | AE53: 0 | AF53: 0 | AG53: 0 | AH53: 0 | AI53: =IF($D$15=AI41,$D$34,0) -> 0 | AJ53: 0 | AK53: 0 | AL53: 0 | AM53: 0 | AN53: 0 | AO53: 0 | AP53: 0 | AQ53: 0 | AR53: 0 | AS53: 0 | AT53: 0 | AU53: 0 | AV53: 0 | AW53: 0 | AX53: 0 | AY53: 0 | AZ53: 0 | BA53: 0 | BB53: 0 | BC53: 0
B63: Typical LLF Values
B64: Asset | C64: LLF | E64: Column1 | F64: Growth factor
E65: PM | F65: 0
B66: HV PM Tx | C66: 0.15 | E66: GM | F66: 0.005
B67: HV GM Tx | C67: 0.225 | F67: 0.01
F68: 0.015
F69: 0.02
B70: Requirements for three-phase medium power transformers ≤ 3.15 MVA from Ecodesign regulation 548/2014
C71: Tier 1 | E71: Tier 2
B72: GM | C72: Max Variable (load) Losses | D72: Max Fixed (no-load) losses | E72: Max Variable (load) Losses | F72: Max Fixed (no-load) losses
B73: Rated Power (MVA) | C73: kW | D73: kW | E73: kW | F73: kW
B74: 0.025 | C74: 0.9 | D74: 0.07 | E74: 0.6 | F74: 0.063
B75: 0.05 | C75: 1.1 | D75: 0.09 | E75: 0.75 | F75: 0.081
B76: 0.1 | C76: 1.75 | D76: 0.145 | E76: 1.25 | F76: 0.13
B77: 0.16 | C77: 2.35 | D77: 0.21 | E77: 1.75 | F77: 0.189
B78: 0.25 | C78: 3.25 | D78: 0.3 | E78: 2.35 | F78: 0.27
B79: 0.315 | C79: 3.9 | D79: 0.36 | E79: 2.8 | F79: 0.324
B80: 0.4 | C80: 4.6 | D80: 0.43 | E80: 3.25 | F80: 0.387
B81: 0.5 | C81: 5.5 | D81: 0.51 | E81: 3.9 | F81: 0.459
B82: 0.63 | C82: 6.5 | D82: 0.6 | E82: 4.6 | F82: 0.54
B83: 0.8 | C83: 8.4 | D83: 0.65 | E83: 6 | F83: 0.585
B84: 1 | C84: 10.5 | D84: 0.77 | E84: 7.6 | F84: 0.693
B85: 1.25 | C85: 11 | D85: 0.95 | E85: 9.5 | F85: 0.855
B86: 1.6 | C86: 14 | D86: 1.2 | E86: 12 | F86: 1.08
B87: 2 | C87: 18 | D87: 1.45 | E87: 15 | F87: 1.305
B88: 2.5 | C88: 22 | D88: 1.75 | E88: 18.5 | F88: 1.575
B89: 3.15 | C89: 27.5 | D89: 2.2 | E89: 23 | F89: 1.98
B90: Maximum load and no-load losses (in W) for medium power liquid immersed pole-mounted transformers from Ecodesign regulation 548/2014
C91: Tier 1 | E91: Tier 2
B92: PM | C92: Max Variable (load) Losses | D92: Max Fixed (no-load) losses | E92: Max Variable (load) Losses | F92: Max Fixed (no-load) losses
B93: Rated Power (MVA) | C93: kW | D93: kW | E93: kW | F93: kW
B94: 0.025 | C94: 0.9 | D94: 0.07 | E94: 0.725 | F94: 0.07
B95: 0.05 | C95: 1.1 | D95: 0.09 | E95: 0.875 | F95: 0.09
B96: 0.1 | C96: 1.75 | D96: 0.145 | E96: 1.475 | F96: 0.145
B97: 0.16 | C97: 3.102 | D97: 0.3 | E97: 3.102 | F97: 0.27
B98: 0.2 | C98: 2.75 | D98: 0.356 | E98: 2.333 | F98: 0.31
B99: 0.25 | C99: 3.25 | D99: 0.425 | E99: 2.75 | F99: 0.36
B100: 0.315 | C100: 3.9 | D100: 0.52 | E100: 3.25 | F100: 0.44

Sheet Flexibility Requirements (hidden)
A2: Flexibility Requirements
B4: GUIDANCE
B5: - The tool has the capability to present two sets of results depending on whether the flexibility price is specified by the user ex-ante, or the ceiling value of flexibility is determined by considering a range of deferral years - The user can specify the ex-ante availability and utilisation prices as well as annual procurement costs - To determine the flexibility ceiling value, the user can specify the share of availability costs and the expected annual procurement costs. For example, if 60% is inserted the utilisation ceiling value will be calculated such that utilisation costs account for 40% of the total ceiling value of Flexibility - Each set of results will be calculated once the user clicks on the respective blue buttons. The results are displayed in the "Benefit at Ex-Ante Flexibility Price" and "Flexibility Ceiling Price" tabs. - The user can specify the scenario names for up to five scenarios of capacity growth and flexibility requirements - The annual flexibility requirements (MVA) can either be manually entered or determined within the tool based on a fixed factor of overprocurement of flexibility over exceedance. - For manual entry, choose "Manual" in cell D37 and manually enter the annual flexibility requirements for each scenario in rows 49 to 53. These can be manually entered in this tab or the user can provide background workings in the Workings tab. - To determine the flexibility requirements within the tool, choose "Automatic" in cell D37. The over-procurement factor can be entered in cell D38 as a percentage i.e. if 10% is entered, the annual flexibility requirement will be calculated as 10% over and above the annual exceedance profile. The user can further distinguish how much of the flexibility requirement is utilised in cell D39. The annual flexibility requirements are calculated in rows 57 to 61. - The availability (Hrs/day required and Day/yr required) and utilisation (No. Dispatch/yr and Dispatch Duration) should then be added by the user for each scenario in rows 65 to 88. These can be manually entered in this tab or the user can provide background workings in the Workings tab. - The annual total availability and utilisation hours are then calculated for each scenario, as well as the annual flexibility costs according to the specified, ex-ante flexibiity price in cells D21 to D23.
B8: PRIMARY PURPOSE OF FLEXIBILITY
B10: SCENARIO NAMING
B11: Scn1
B12: Scn2
B13: Scn3
B14: Scn4
B15: Scn5
B17: CHOICE OF APPROACH:
B19: 1) CALCULATE THE FLEXIBILITY CEILING VALUE AND PRICE
C21: Max Flexibility price justified by gross deferral benefit
C22: Share of Availability Costs (%)
B26: 2) CALCULATE THE NET BENEFIT FOR A RANGE OF DEFERRAL YEARS BASED ON EX-ANTE FLEXIBILITY PRICES
C28: Net Deferral Benefit at specified Flexibility Price
C29: Availability Cost (£/MVA/hr)
C30: Utilisation Cost (£/MVA/hr)
E33: =Current_year -> 2021 | F33: =E33+1 -> 2022 | G33: =F33+1 -> 2023 | H33: 2024 | I33: 2025 | J33: 2026 | K33: 2027 | L33: 2028 | M33: 2029 | N33: 2030 | O33: 2031 | P33: 2032 | Q33: 2033 | R33: 2034 | S33: 2035 | T33: 2036 | U33: 2037 | V33: 2038 | W33: 2039 | X33: 2040 | Y33: 2041 | Z33: 2042 | AA33: 2043 | AB33: 2044 | AC33: 2045 | AD33: 2046 | AE33: 2047 | AF33: 2048 | AG33: 2049 | AH33: 2050 | AI33: 2051 | AJ33: 2052 | AK33: 2053 | AL33: 2054 | AM33: 2055 | AN33: 2056 | AO33: 2057 | AP33: 2058 | AQ33: 2059 | AR33: 2060 | AS33: 2061 | AT33: 2062 | AU33: 2063 | AV33: 2064 | AW33: 2065 | AX33: 2066 | AY33: 2067 | AZ33: 2068 | BA33: 2069 | BB33: 2070 | BC33: 2071 | BD33: 2072 | BE33: 2073 | BF33: 2074 | BG33: 2075 | BH33: 2076 | BI33: 2077 | BJ33: 2078 | BK33: 2079 | BL33: 2080 | BM33: 2081 | BN33: 2082 | BO33: 2083 | BP33: 2084 | BQ33: 2085 | BR33: 2086 | BS33: =BR33+1 -> 2087
B35: FLEXIBILITY REQUIREMENTS
C37: Peak flexibility requirement entry type
C38: Overprocurement factor
C39: Proportion of available flexibility that is utilised
C41: Annual peak flexibility requirement (MVA) - manual entry
D42: =Scn1_name -> 0
D43: =Scn2_name -> 0
D44: =Scn3_name -> 0
D45: =Scn4_name -> 0
D46: =Scn5_name -> 0
C48: Annual peak flexibility requirement (MVA) - automatic entry
D49: =Scn1_name -> 0 | E49: =IF($D$37="Manual","",IFERROR(MAX('Reinforcement Deferral'!E28*(1+Overprocurement_factor),0),"")) ->  | F49: =IF($D$37="Manual","",IFERROR(MAX('Reinforcement Deferral'!F28*(1+Overprocurement_factor),0),"")) ->  | G49: =IF($D$37="Manual","",IFERROR(MAX('Reinforcement Deferral'!G28*(1+Overprocurement_factor),0),"")) ->  | H49: =IF($D$37="Manual","",IFERROR(MAX('Reinforcement Deferral'!H28*(1+Overprocurement_factor),0),"")) ->  | I49: =IF($D$37="Manual","",IFERROR(MAX('Reinforcement Deferral'!I28*(1+Overprocurement_factor),0),"")) ->  | J49: =IF($D$37="Manual","",IFERROR(MAX('Reinforcement Deferral'!J28*(1+Overprocurement_factor),0),"")) ->  | K49: =IF($D$37="Manual","",IFERROR(MAX('Reinforcement Deferral'!K28*(1+Overprocurement_factor),0),"")) ->  | L49: =IF($D$37="Manual","",IFERROR(MAX('Reinforcement Deferral'!L28*(1+Overprocurement_factor),0),"")) ->  | M49: =IF($D$37="Manual","",IFERROR(MAX('Reinforcement Deferral'!M28*(1+Overprocurement_factor),0),"")) ->  | N49: =IF($D$37="Manual","",IFERROR(MAX('Reinforcement Deferral'!N28*(1+Overprocurement_factor),0),"")) ->  | O49: =IF($D$37="Manual","",IFERROR(MAX('Reinforcement Deferral'!O28*(1+Overprocurement_factor),0),"")) ->  | P49: =IF($D$37="Manual","",IFERROR(MAX('Reinforcement Deferral'!P28*(1+Overprocurement_factor),0),"")) ->  | Q49: =IF($D$37="Manual","",IFERROR(MAX('Reinforcement Deferral'!Q28*(1+Overprocurement_factor),0),"")) ->  | R49: =IF($D$37="Manual","",IFERROR(MAX('Reinforcement Deferral'!R28*(1+Overprocurement_factor),0),"")) ->  | S49: =IF($D$37="Manual","",IFERROR(MAX('Reinforcement Deferral'!S28*(1+Overprocurement_factor),0),"")) ->  | T49: =IF($D$37="Manual","",IFERROR(MAX('Reinforcement Deferral'!T28*(1+Overprocurement_factor),0),"")) ->  | U49: =IF($D$37="Manual","",IFERROR(MAX('Reinforcement Deferral'!U28*(1+Overprocurement_factor),0),"")) ->  | V49: =IF($D$37="Manual","",IFERROR(MAX('Reinforcement Deferral'!V28*(1+Overprocurement_factor),0),"")) ->  | W49: =IF($D$37="Manual","",IFERROR(MAX('Reinforcement Deferral'!W28*(1+Overprocurement_factor),0),"")) ->  | X49: =IF($D$37="Manual","",IFERROR(MAX('Reinforcement Deferral'!X28*(1+Overprocurement_factor),0),"")) ->  | Y49: =IF($D$37="Manual","",IFERROR(MAX('Reinforcement Deferral'!Y28*(1+Overprocurement_factor),0),"")) ->  | Z49: =IF($D$37="Manual","",IFERROR(MAX('Reinforcement Deferral'!Z28*(1+Overprocurement_factor),0),"")) ->  | AA49: =IF($D$37="Manual","",IFERROR(MAX('Reinforcement Deferral'!AA28*(1+Overprocurement_factor),0),"")) ->  | AB49: =IF($D$37="Manual","",IFERROR(MAX('Reinforcement Deferral'!AB28*(1+Overprocurement_factor),0),"")) ->  | AC49: =IF($D$37="Manual","",IFERROR(MAX('Reinforcement Deferral'!AC28*(1+Overprocurement_factor),0),"")) ->  | AD49: =IF($D$37="Manual","",IFERROR(MAX('Reinforcement Deferral'!AD28*(1+Overprocurement_factor),0),"")) ->  | AE49: =IF($D$37="Manual","",IFERROR(MAX('Reinforcement Deferral'!AE28*(1+Overprocurement_factor),0),"")) ->  | AF49: =IF($D$37="Manual","",IFERROR(MAX('Reinforcement Deferral'!AF28*(1+Overprocurement_factor),0),"")) ->  | AG49: =IF($D$37="Manual","",IFERROR(MAX('Reinforcement Deferral'!AG28*(1+Overprocurement_factor),0),"")) ->  | AH49: =IF($D$37="Manual","",IFERROR(MAX('Reinforcement Deferral'!AH28*(1+Overprocurement_factor),0),"")) ->  | AI49: =IF($D$37="Manual","",IFERROR(MAX('Reinforcement Deferral'!AI28*(1+Overprocurement_factor),0),"")) ->  | AJ49: =IF($D$37="Manual","",IFERROR(MAX('Reinforcement Deferral'!AJ28*(1+Overprocurement_factor),0),"")) ->  | AK49: =IF($D$37="Manual","",IFERROR(MAX('Reinforcement Deferral'!AK28*(1+Overprocurement_factor),0),"")) ->  | AL49: =IF($D$37="Manual","",IFERROR(MAX('Reinforcement Deferral'!AL28*(1+Overprocurement_factor),0),"")) ->  | AM49: =IF($D$37="Manual","",IFERROR(MAX('Reinforcement Deferral'!AM28*(1+Overprocurement_factor),0),"")) ->  | AN49: =IF($D$37="Manual","",IFERROR(MAX('Reinforcement Deferral'!AN28*(1+Overprocurement_factor),0),"")) ->  | AO49: =IF($D$37="Manual","",IFERROR(MAX('Reinforcement Deferral'!AO28*(1+Overprocurement_factor),0),"")) ->  | AP49: =IF($D$37="Manual","",IFERROR(MAX('Reinforcement Deferral'!AP28*(1+Overprocurement_factor),0),"")) ->  | AQ49: =IF($D$37="Manual","",IFERROR(MAX('Reinforcement Deferral'!AQ28*(1+Overprocurement_factor),0),"")) ->  | AR49: =IF($D$37="Manual","",IFERROR(MAX('Reinforcement Deferral'!AR28*(1+Overprocurement_factor),0),"")) ->  | AS49: =IF($D$37="Manual","",IFERROR(MAX('Reinforcement Deferral'!AS28*(1+Overprocurement_factor),0),"")) ->  | AT49: =IF($D$37="Manual","",IFERROR(MAX('Reinforcement Deferral'!AT28*(1+Overprocurement_factor),0),"")) ->  | AU49: =IF($D$37="Manual","",IFERROR(MAX('Reinforcement Deferral'!AU28*(1+Overprocurement_factor),0),"")) ->  | AV49: =IF($D$37="Manual","",IFERROR(MAX('Reinforcement Deferral'!AV28*(1+Overprocurement_factor),0),"")) ->  | AW49: =IF($D$37="Manual","",IFERROR(MAX('Reinforcement Deferral'!AW28*(1+Overprocurement_factor),0),"")) ->  | AX49: =IF($D$37="Manual","",IFERROR(MAX('Reinforcement Deferral'!AX28*(1+Overprocurement_factor),0),"")) ->  | AY49: =IF($D$37="Manual","",IFERROR(MAX('Reinforcement Deferral'!AY28*(1+Overprocurement_factor),0),"")) ->  | AZ49: =IF($D$37="Manual","",IFERROR(MAX('Reinforcement Deferral'!AZ28*(1+Overprocurement_factor),0),"")) ->  | BA49: =IF($D$37="Manual","",IFERROR(MAX('Reinforcement Deferral'!BA28*(1+Overprocurement_factor),0),"")) ->  | BB49: =IF($D$37="Manual","",IFERROR(MAX('Reinforcement Deferral'!BB28*(1+Overprocurement_factor),0),"")) ->  | BC49: =IF($D$37="Manual","",IFERROR(MAX('Reinforcement Deferral'!BC28*(1+Overprocurement_factor),0),"")) ->  | BD49: =IF($D$37="Manual","",IFERROR(MAX('Reinforcement Deferral'!BD28*(1+Overprocurement_factor),0),"")) ->  | BE49: =IF($D$37="Manual","",IFERROR(MAX('Reinforcement Deferral'!BE28*(1+Overprocurement_factor),0),"")) ->  | BF49: =IF($D$37="Manual","",IFERROR(MAX('Reinforcement Deferral'!BF28*(1+Overprocurement_factor),0),"")) ->  | BG49: =IF($D$37="Manual","",IFERROR(MAX('Reinforcement Deferral'!BG28*(1+Overprocurement_factor),0),"")) ->  | BH49: =IF($D$37="Manual","",IFERROR(MAX('Reinforcement Deferral'!BH28*(1+Overprocurement_factor),0),"")) ->  | BI49: =IF($D$37="Manual","",IFERROR(MAX('Reinforcement Deferral'!BI28*(1+Overprocurement_factor),0),"")) ->  | BJ49: =IF($D$37="Manual","",IFERROR(MAX('Reinforcement Deferral'!BJ28*(1+Overprocurement_factor),0),"")) ->  | BK49: =IF($D$37="Manual","",IFERROR(MAX('Reinforcement Deferral'!BK28*(1+Overprocurement_factor),0),"")) ->  | BL49: =IF($D$37="Manual","",IFERROR(MAX('Reinforcement Deferral'!BL28*(1+Overprocurement_factor),0),"")) ->  | BM49: =IF($D$37="Manual","",IFERROR(MAX('Reinforcement Deferral'!BM28*(1+Overprocurement_factor),0),"")) ->  | BN49: =IF($D$37="Manual","",IFERROR(MAX('Reinforcement Deferral'!BN28*(1+Overprocurement_factor),0),"")) ->  | BO49: =IF($D$37="Manual","",IFERROR(MAX('Reinforcement Deferral'!BO28*(1+Overprocurement_factor),0),"")) ->  | BP49: =IF($D$37="Manual","",IFERROR(MAX('Reinforcement Deferral'!BP28*(1+Overprocurement_factor),0),"")) ->  | BQ49: =IF($D$37="Manual","",IFERROR(MAX('Reinforcement Deferral'!BQ28*(1+Overprocurement_factor),0),"")) ->  | BR49: =IF($D$37="Manual","",IFERROR(MAX('Reinforcement Deferral'!BR28*(1+Overprocurement_factor),0),"")) ->  | BS49: =IF($D$37="Manual","",IFERROR(MAX('Reinforcement Deferral'!BS28*(1+Overprocurement_factor),0),"")) -> 
D50: =Scn2_name -> 0 | E50: =IF($D$37="Manual","",IFERROR(MAX('Reinforcement Deferral'!E29*(1+Overprocurement_factor),0),"")) ->  | F50: =IF($D$37="Manual","",IFERROR(MAX('Reinforcement Deferral'!F29*(1+Overprocurement_factor),0),"")) ->  | G50: =IF($D$37="Manual","",IFERROR(MAX('Reinforcement Deferral'!G29*(1+Overprocurement_factor),0),"")) ->  | H50: =IF($D$37="Manual","",IFERROR(MAX('Reinforcement Deferral'!H29*(1+Overprocurement_factor),0),"")) ->  | I50: =IF($D$37="Manual","",IFERROR(MAX('Reinforcement Deferral'!I29*(1+Overprocurement_factor),0),"")) ->  | J50: =IF($D$37="Manual","",IFERROR(MAX('Reinforcement Deferral'!J29*(1+Overprocurement_factor),0),"")) ->  | K50: =IF($D$37="Manual","",IFERROR(MAX('Reinforcement Deferral'!K29*(1+Overprocurement_factor),0),"")) ->  | L50: =IF($D$37="Manual","",IFERROR(MAX('Reinforcement Deferral'!L29*(1+Overprocurement_factor),0),"")) ->  | M50: =IF($D$37="Manual","",IFERROR(MAX('Reinforcement Deferral'!M29*(1+Overprocurement_factor),0),"")) ->  | N50: =IF($D$37="Manual","",IFERROR(MAX('Reinforcement Deferral'!N29*(1+Overprocurement_factor),0),"")) ->  | O50: =IF($D$37="Manual","",IFERROR(MAX('Reinforcement Deferral'!O29*(1+Overprocurement_factor),0),"")) ->  | P50: =IF($D$37="Manual","",IFERROR(MAX('Reinforcement Deferral'!P29*(1+Overprocurement_factor),0),"")) ->  | Q50: =IF($D$37="Manual","",IFERROR(MAX('Reinforcement Deferral'!Q29*(1+Overprocurement_factor),0),"")) ->  | R50: =IF($D$37="Manual","",IFERROR(MAX('Reinforcement Deferral'!R29*(1+Overprocurement_factor),0),"")) ->  | S50: =IF($D$37="Manual","",IFERROR(MAX('Reinforcement Deferral'!S29*(1+Overprocurement_factor),0),"")) ->  | T50: =IF($D$37="Manual","",IFERROR(MAX('Reinforcement Deferral'!T29*(1+Overprocurement_factor),0),"")) ->  | U50: =IF($D$37="Manual","",IFERROR(MAX('Reinforcement Deferral'!U29*(1+Overprocurement_factor),0),"")) ->  | V50: =IF($D$37="Manual","",IFERROR(MAX('Reinforcement Deferral'!V29*(1+Overprocurement_factor),0),"")) ->  | W50: =IF($D$37="Manual","",IFERROR(MAX('Reinforcement Deferral'!W29*(1+Overprocurement_factor),0),"")) ->  | X50: =IF($D$37="Manual","",IFERROR(MAX('Reinforcement Deferral'!X29*(1+Overprocurement_factor),0),"")) ->  | Y50: =IF($D$37="Manual","",IFERROR(MAX('Reinforcement Deferral'!Y29*(1+Overprocurement_factor),0),"")) ->  | Z50: =IF($D$37="Manual","",IFERROR(MAX('Reinforcement Deferral'!Z29*(1+Overprocurement_factor),0),"")) ->  | AA50: =IF($D$37="Manual","",IFERROR(MAX('Reinforcement Deferral'!AA29*(1+Overprocurement_factor),0),"")) ->  | AB50: =IF($D$37="Manual","",IFERROR(MAX('Reinforcement Deferral'!AB29*(1+Overprocurement_factor),0),"")) ->  | AC50: =IF($D$37="Manual","",IFERROR(MAX('Reinforcement Deferral'!AC29*(1+Overprocurement_factor),0),"")) ->  | AD50: =IF($D$37="Manual","",IFERROR(MAX('Reinforcement Deferral'!AD29*(1+Overprocurement_factor),0),"")) ->  | AE50: =IF($D$37="Manual","",IFERROR(MAX('Reinforcement Deferral'!AE29*(1+Overprocurement_factor),0),"")) ->  | AF50: =IF($D$37="Manual","",IFERROR(MAX('Reinforcement Deferral'!AF29*(1+Overprocurement_factor),0),"")) ->  | AG50: =IF($D$37="Manual","",IFERROR(MAX('Reinforcement Deferral'!AG29*(1+Overprocurement_factor),0),"")) ->  | AH50: =IF($D$37="Manual","",IFERROR(MAX('Reinforcement Deferral'!AH29*(1+Overprocurement_factor),0),"")) ->  | AI50: =IF($D$37="Manual","",IFERROR(MAX('Reinforcement Deferral'!AI29*(1+Overprocurement_factor),0),"")) ->  | AJ50: =IF($D$37="Manual","",IFERROR(MAX('Reinforcement Deferral'!AJ29*(1+Overprocurement_factor),0),"")) ->  | AK50: =IF($D$37="Manual","",IFERROR(MAX('Reinforcement Deferral'!AK29*(1+Overprocurement_factor),0),"")) ->  | AL50: =IF($D$37="Manual","",IFERROR(MAX('Reinforcement Deferral'!AL29*(1+Overprocurement_factor),0),"")) ->  | AM50: =IF($D$37="Manual","",IFERROR(MAX('Reinforcement Deferral'!AM29*(1+Overprocurement_factor),0),"")) ->  | AN50: =IF($D$37="Manual","",IFERROR(MAX('Reinforcement Deferral'!AN29*(1+Overprocurement_factor),0),"")) ->  | AO50: =IF($D$37="Manual","",IFERROR(MAX('Reinforcement Deferral'!AO29*(1+Overprocurement_factor),0),"")) ->  | AP50: =IF($D$37="Manual","",IFERROR(MAX('Reinforcement Deferral'!AP29*(1+Overprocurement_factor),0),"")) ->  | AQ50: =IF($D$37="Manual","",IFERROR(MAX('Reinforcement Deferral'!AQ29*(1+Overprocurement_factor),0),"")) ->  | AR50: =IF($D$37="Manual","",IFERROR(MAX('Reinforcement Deferral'!AR29*(1+Overprocurement_factor),0),"")) ->  | AS50: =IF($D$37="Manual","",IFERROR(MAX('Reinforcement Deferral'!AS29*(1+Overprocurement_factor),0),"")) ->  | AT50: =IF($D$37="Manual","",IFERROR(MAX('Reinforcement Deferral'!AT29*(1+Overprocurement_factor),0),"")) ->  | AU50: =IF($D$37="Manual","",IFERROR(MAX('Reinforcement Deferral'!AU29*(1+Overprocurement_factor),0),"")) ->  | AV50: =IF($D$37="Manual","",IFERROR(MAX('Reinforcement Deferral'!AV29*(1+Overprocurement_factor),0),"")) ->  | AW50: =IF($D$37="Manual","",IFERROR(MAX('Reinforcement Deferral'!AW29*(1+Overprocurement_factor),0),"")) ->  | AX50: =IF($D$37="Manual","",IFERROR(MAX('Reinforcement Deferral'!AX29*(1+Overprocurement_factor),0),"")) ->  | AY50: =IF($D$37="Manual","",IFERROR(MAX('Reinforcement Deferral'!AY29*(1+Overprocurement_factor),0),"")) ->  | AZ50: =IF($D$37="Manual","",IFERROR(MAX('Reinforcement Deferral'!AZ29*(1+Overprocurement_factor),0),"")) ->  | BA50: =IF($D$37="Manual","",IFERROR(MAX('Reinforcement Deferral'!BA29*(1+Overprocurement_factor),0),"")) ->  | BB50: =IF($D$37="Manual","",IFERROR(MAX('Reinforcement Deferral'!BB29*(1+Overprocurement_factor),0),"")) ->  | BC50: =IF($D$37="Manual","",IFERROR(MAX('Reinforcement Deferral'!BC29*(1+Overprocurement_factor),0),"")) ->  | BD50: =IF($D$37="Manual","",IFERROR(MAX('Reinforcement Deferral'!BD29*(1+Overprocurement_factor),0),"")) ->  | BE50: =IF($D$37="Manual","",IFERROR(MAX('Reinforcement Deferral'!BE29*(1+Overprocurement_factor),0),"")) ->  | BF50: =IF($D$37="Manual","",IFERROR(MAX('Reinforcement Deferral'!BF29*(1+Overprocurement_factor),0),"")) ->  | BG50: =IF($D$37="Manual","",IFERROR(MAX('Reinforcement Deferral'!BG29*(1+Overprocurement_factor),0),"")) ->  | BH50: =IF($D$37="Manual","",IFERROR(MAX('Reinforcement Deferral'!BH29*(1+Overprocurement_factor),0),"")) ->  | BI50: =IF($D$37="Manual","",IFERROR(MAX('Reinforcement Deferral'!BI29*(1+Overprocurement_factor),0),"")) ->  | BJ50: =IF($D$37="Manual","",IFERROR(MAX('Reinforcement Deferral'!BJ29*(1+Overprocurement_factor),0),"")) ->  | BK50: =IF($D$37="Manual","",IFERROR(MAX('Reinforcement Deferral'!BK29*(1+Overprocurement_factor),0),"")) ->  | BL50: =IF($D$37="Manual","",IFERROR(MAX('Reinforcement Deferral'!BL29*(1+Overprocurement_factor),0),"")) ->  | BM50: =IF($D$37="Manual","",IFERROR(MAX('Reinforcement Deferral'!BM29*(1+Overprocurement_factor),0),"")) ->  | BN50: =IF($D$37="Manual","",IFERROR(MAX('Reinforcement Deferral'!BN29*(1+Overprocurement_factor),0),"")) ->  | BO50: =IF($D$37="Manual","",IFERROR(MAX('Reinforcement Deferral'!BO29*(1+Overprocurement_factor),0),"")) ->  | BP50: =IF($D$37="Manual","",IFERROR(MAX('Reinforcement Deferral'!BP29*(1+Overprocurement_factor),0),"")) ->  | BQ50: =IF($D$37="Manual","",IFERROR(MAX('Reinforcement Deferral'!BQ29*(1+Overprocurement_factor),0),"")) ->  | BR50: =IF($D$37="Manual","",IFERROR(MAX('Reinforcement Deferral'!BR29*(1+Overprocurement_factor),0),"")) ->  | BS50: =IF($D$37="Manual","",IFERROR(MAX('Reinforcement Deferral'!BS29*(1+Overprocurement_factor),0),"")) -> 
D51: =Scn3_name -> 0 | E51: =IF($D$37="Manual","",IFERROR(MAX('Reinforcement Deferral'!E30*(1+Overprocurement_factor),0),"")) ->  | F51: =IF($D$37="Manual","",IFERROR(MAX('Reinforcement Deferral'!F30*(1+Overprocurement_factor),0),"")) ->  | G51: =IF($D$37="Manual","",IFERROR(MAX('Reinforcement Deferral'!G30*(1+Overprocurement_factor),0),"")) ->  | H51: =IF($D$37="Manual","",IFERROR(MAX('Reinforcement Deferral'!H30*(1+Overprocurement_factor),0),"")) ->  | I51: =IF($D$37="Manual","",IFERROR(MAX('Reinforcement Deferral'!I30*(1+Overprocurement_factor),0),"")) ->  | J51: =IF($D$37="Manual","",IFERROR(MAX('Reinforcement Deferral'!J30*(1+Overprocurement_factor),0),"")) ->  | K51: =IF($D$37="Manual","",IFERROR(MAX('Reinforcement Deferral'!K30*(1+Overprocurement_factor),0),"")) ->  | L51: =IF($D$37="Manual","",IFERROR(MAX('Reinforcement Deferral'!L30*(1+Overprocurement_factor),0),"")) ->  | M51: =IF($D$37="Manual","",IFERROR(MAX('Reinforcement Deferral'!M30*(1+Overprocurement_factor),0),"")) ->  | N51: =IF($D$37="Manual","",IFERROR(MAX('Reinforcement Deferral'!N30*(1+Overprocurement_factor),0),"")) ->  | O51: =IF($D$37="Manual","",IFERROR(MAX('Reinforcement Deferral'!O30*(1+Overprocurement_factor),0),"")) ->  | P51: =IF($D$37="Manual","",IFERROR(MAX('Reinforcement Deferral'!P30*(1+Overprocurement_factor),0),"")) ->  | Q51: =IF($D$37="Manual","",IFERROR(MAX('Reinforcement Deferral'!Q30*(1+Overprocurement_factor),0),"")) ->  | R51: =IF($D$37="Manual","",IFERROR(MAX('Reinforcement Deferral'!R30*(1+Overprocurement_factor),0),"")) ->  | S51: =IF($D$37="Manual","",IFERROR(MAX('Reinforcement Deferral'!S30*(1+Overprocurement_factor),0),"")) ->  | T51: =IF($D$37="Manual","",IFERROR(MAX('Reinforcement Deferral'!T30*(1+Overprocurement_factor),0),"")) ->  | U51: =IF($D$37="Manual","",IFERROR(MAX('Reinforcement Deferral'!U30*(1+Overprocurement_factor),0),"")) ->  | V51: =IF($D$37="Manual","",IFERROR(MAX('Reinforcement Deferral'!V30*(1+Overprocurement_factor),0),"")) ->  | W51: =IF($D$37="Manual","",IFERROR(MAX('Reinforcement Deferral'!W30*(1+Overprocurement_factor),0),"")) ->  | X51: =IF($D$37="Manual","",IFERROR(MAX('Reinforcement Deferral'!X30*(1+Overprocurement_factor),0),"")) ->  | Y51: =IF($D$37="Manual","",IFERROR(MAX('Reinforcement Deferral'!Y30*(1+Overprocurement_factor),0),"")) ->  | Z51: =IF($D$37="Manual","",IFERROR(MAX('Reinforcement Deferral'!Z30*(1+Overprocurement_factor),0),"")) ->  | AA51: =IF($D$37="Manual","",IFERROR(MAX('Reinforcement Deferral'!AA30*(1+Overprocurement_factor),0),"")) ->  | AB51: =IF($D$37="Manual","",IFERROR(MAX('Reinforcement Deferral'!AB30*(1+Overprocurement_factor),0),"")) ->  | AC51: =IF($D$37="Manual","",IFERROR(MAX('Reinforcement Deferral'!AC30*(1+Overprocurement_factor),0),"")) ->  | AD51: =IF($D$37="Manual","",IFERROR(MAX('Reinforcement Deferral'!AD30*(1+Overprocurement_factor),0),"")) ->  | AE51: =IF($D$37="Manual","",IFERROR(MAX('Reinforcement Deferral'!AE30*(1+Overprocurement_factor),0),"")) ->  | AF51: =IF($D$37="Manual","",IFERROR(MAX('Reinforcement Deferral'!AF30*(1+Overprocurement_factor),0),"")) ->  | AG51: =IF($D$37="Manual","",IFERROR(MAX('Reinforcement Deferral'!AG30*(1+Overprocurement_factor),0),"")) ->  | AH51: =IF($D$37="Manual","",IFERROR(MAX('Reinforcement Deferral'!AH30*(1+Overprocurement_factor),0),"")) ->  | AI51: =IF($D$37="Manual","",IFERROR(MAX('Reinforcement Deferral'!AI30*(1+Overprocurement_factor),0),"")) ->  | AJ51: =IF($D$37="Manual","",IFERROR(MAX('Reinforcement Deferral'!AJ30*(1+Overprocurement_factor),0),"")) ->  | AK51: =IF($D$37="Manual","",IFERROR(MAX('Reinforcement Deferral'!AK30*(1+Overprocurement_factor),0),"")) ->  | AL51: =IF($D$37="Manual","",IFERROR(MAX('Reinforcement Deferral'!AL30*(1+Overprocurement_factor),0),"")) ->  | AM51: =IF($D$37="Manual","",IFERROR(MAX('Reinforcement Deferral'!AM30*(1+Overprocurement_factor),0),"")) ->  | AN51: =IF($D$37="Manual","",IFERROR(MAX('Reinforcement Deferral'!AN30*(1+Overprocurement_factor),0),"")) ->  | AO51: =IF($D$37="Manual","",IFERROR(MAX('Reinforcement Deferral'!AO30*(1+Overprocurement_factor),0),"")) ->  | AP51: =IF($D$37="Manual","",IFERROR(MAX('Reinforcement Deferral'!AP30*(1+Overprocurement_factor),0),"")) ->  | AQ51: =IF($D$37="Manual","",IFERROR(MAX('Reinforcement Deferral'!AQ30*(1+Overprocurement_factor),0),"")) ->  | AR51: =IF($D$37="Manual","",IFERROR(MAX('Reinforcement Deferral'!AR30*(1+Overprocurement_factor),0),"")) ->  | AS51: =IF($D$37="Manual","",IFERROR(MAX('Reinforcement Deferral'!AS30*(1+Overprocurement_factor),0),"")) ->  | AT51: =IF($D$37="Manual","",IFERROR(MAX('Reinforcement Deferral'!AT30*(1+Overprocurement_factor),0),"")) ->  | AU51: =IF($D$37="Manual","",IFERROR(MAX('Reinforcement Deferral'!AU30*(1+Overprocurement_factor),0),"")) ->  | AV51: =IF($D$37="Manual","",IFERROR(MAX('Reinforcement Deferral'!AV30*(1+Overprocurement_factor),0),"")) ->  | AW51: =IF($D$37="Manual","",IFERROR(MAX('Reinforcement Deferral'!AW30*(1+Overprocurement_factor),0),"")) ->  | AX51: =IF($D$37="Manual","",IFERROR(MAX('Reinforcement Deferral'!AX30*(1+Overprocurement_factor),0),"")) ->  | AY51: =IF($D$37="Manual","",IFERROR(MAX('Reinforcement Deferral'!AY30*(1+Overprocurement_factor),0),"")) ->  | AZ51: =IF($D$37="Manual","",IFERROR(MAX('Reinforcement Deferral'!AZ30*(1+Overprocurement_factor),0),"")) ->  | BA51: =IF($D$37="Manual","",IFERROR(MAX('Reinforcement Deferral'!BA30*(1+Overprocurement_factor),0),"")) ->  | BB51: =IF($D$37="Manual","",IFERROR(MAX('Reinforcement Deferral'!BB30*(1+Overprocurement_factor),0),"")) ->  | BC51: =IF($D$37="Manual","",IFERROR(MAX('Reinforcement Deferral'!BC30*(1+Overprocurement_factor),0),"")) ->  | BD51: =IF($D$37="Manual","",IFERROR(MAX('Reinforcement Deferral'!BD30*(1+Overprocurement_factor),0),"")) ->  | BE51: =IF($D$37="Manual","",IFERROR(MAX('Reinforcement Deferral'!BE30*(1+Overprocurement_factor),0),"")) ->  | BF51: =IF($D$37="Manual","",IFERROR(MAX('Reinforcement Deferral'!BF30*(1+Overprocurement_factor),0),"")) ->  | BG51: =IF($D$37="Manual","",IFERROR(MAX('Reinforcement Deferral'!BG30*(1+Overprocurement_factor),0),"")) ->  | BH51: =IF($D$37="Manual","",IFERROR(MAX('Reinforcement Deferral'!BH30*(1+Overprocurement_factor),0),"")) ->  | BI51: =IF($D$37="Manual","",IFERROR(MAX('Reinforcement Deferral'!BI30*(1+Overprocurement_factor),0),"")) ->  | BJ51: =IF($D$37="Manual","",IFERROR(MAX('Reinforcement Deferral'!BJ30*(1+Overprocurement_factor),0),"")) ->  | BK51: =IF($D$37="Manual","",IFERROR(MAX('Reinforcement Deferral'!BK30*(1+Overprocurement_factor),0),"")) ->  | BL51: =IF($D$37="Manual","",IFERROR(MAX('Reinforcement Deferral'!BL30*(1+Overprocurement_factor),0),"")) ->  | BM51: =IF($D$37="Manual","",IFERROR(MAX('Reinforcement Deferral'!BM30*(1+Overprocurement_factor),0),"")) ->  | BN51: =IF($D$37="Manual","",IFERROR(MAX('Reinforcement Deferral'!BN30*(1+Overprocurement_factor),0),"")) ->  | BO51: =IF($D$37="Manual","",IFERROR(MAX('Reinforcement Deferral'!BO30*(1+Overprocurement_factor),0),"")) ->  | BP51: =IF($D$37="Manual","",IFERROR(MAX('Reinforcement Deferral'!BP30*(1+Overprocurement_factor),0),"")) ->  | BQ51: =IF($D$37="Manual","",IFERROR(MAX('Reinforcement Deferral'!BQ30*(1+Overprocurement_factor),0),"")) ->  | BR51: =IF($D$37="Manual","",IFERROR(MAX('Reinforcement Deferral'!BR30*(1+Overprocurement_factor),0),"")) ->  | BS51: =IF($D$37="Manual","",IFERROR(MAX('Reinforcement Deferral'!BS30*(1+Overprocurement_factor),0),"")) -> 
D52: =Scn4_name -> 0 | E52: =IF($D$37="Manual","",IFERROR(MAX('Reinforcement Deferral'!E31*(1+Overprocurement_factor),0),"")) ->  | F52: =IF($D$37="Manual","",IFERROR(MAX('Reinforcement Deferral'!F31*(1+Overprocurement_factor),0),"")) ->  | G52: =IF($D$37="Manual","",IFERROR(MAX('Reinforcement Deferral'!G31*(1+Overprocurement_factor),0),"")) ->  | H52: =IF($D$37="Manual","",IFERROR(MAX('Reinforcement Deferral'!H31*(1+Overprocurement_factor),0),"")) ->  | I52: =IF($D$37="Manual","",IFERROR(MAX('Reinforcement Deferral'!I31*(1+Overprocurement_factor),0),"")) ->  | J52: =IF($D$37="Manual","",IFERROR(MAX('Reinforcement Deferral'!J31*(1+Overprocurement_factor),0),"")) ->  | K52: =IF($D$37="Manual","",IFERROR(MAX('Reinforcement Deferral'!K31*(1+Overprocurement_factor),0),"")) ->  | L52: =IF($D$37="Manual","",IFERROR(MAX('Reinforcement Deferral'!L31*(1+Overprocurement_factor),0),"")) ->  | M52: =IF($D$37="Manual","",IFERROR(MAX('Reinforcement Deferral'!M31*(1+Overprocurement_factor),0),"")) ->  | N52: =IF($D$37="Manual","",IFERROR(MAX('Reinforcement Deferral'!N31*(1+Overprocurement_factor),0),"")) ->  | O52: =IF($D$37="Manual","",IFERROR(MAX('Reinforcement Deferral'!O31*(1+Overprocurement_factor),0),"")) ->  | P52: =IF($D$37="Manual","",IFERROR(MAX('Reinforcement Deferral'!P31*(1+Overprocurement_factor),0),"")) ->  | Q52: =IF($D$37="Manual","",IFERROR(MAX('Reinforcement Deferral'!Q31*(1+Overprocurement_factor),0),"")) ->  | R52: =IF($D$37="Manual","",IFERROR(MAX('Reinforcement Deferral'!R31*(1+Overprocurement_factor),0),"")) ->  | S52: =IF($D$37="Manual","",IFERROR(MAX('Reinforcement Deferral'!S31*(1+Overprocurement_factor),0),"")) ->  | T52: =IF($D$37="Manual","",IFERROR(MAX('Reinforcement Deferral'!T31*(1+Overprocurement_factor),0),"")) ->  | U52: =IF($D$37="Manual","",IFERROR(MAX('Reinforcement Deferral'!U31*(1+Overprocurement_factor),0),"")) ->  | V52: =IF($D$37="Manual","",IFERROR(MAX('Reinforcement Deferral'!V31*(1+Overprocurement_factor),0),"")) ->  | W52: =IF($D$37="Manual","",IFERROR(MAX('Reinforcement Deferral'!W31*(1+Overprocurement_factor),0),"")) ->  | X52: =IF($D$37="Manual","",IFERROR(MAX('Reinforcement Deferral'!X31*(1+Overprocurement_factor),0),"")) ->  | Y52: =IF($D$37="Manual","",IFERROR(MAX('Reinforcement Deferral'!Y31*(1+Overprocurement_factor),0),"")) ->  | Z52: =IF($D$37="Manual","",IFERROR(MAX('Reinforcement Deferral'!Z31*(1+Overprocurement_factor),0),"")) ->  | AA52: =IF($D$37="Manual","",IFERROR(MAX('Reinforcement Deferral'!AA31*(1+Overprocurement_factor),0),"")) ->  | AB52: =IF($D$37="Manual","",IFERROR(MAX('Reinforcement Deferral'!AB31*(1+Overprocurement_factor),0),"")) ->  | AC52: =IF($D$37="Manual","",IFERROR(MAX('Reinforcement Deferral'!AC31*(1+Overprocurement_factor),0),"")) ->  | AD52: =IF($D$37="Manual","",IFERROR(MAX('Reinforcement Deferral'!AD31*(1+Overprocurement_factor),0),"")) ->  | AE52: =IF($D$37="Manual","",IFERROR(MAX('Reinforcement Deferral'!AE31*(1+Overprocurement_factor),0),"")) ->  | AF52: =IF($D$37="Manual","",IFERROR(MAX('Reinforcement Deferral'!AF31*(1+Overprocurement_factor),0),"")) ->  | AG52: =IF($D$37="Manual","",IFERROR(MAX('Reinforcement Deferral'!AG31*(1+Overprocurement_factor),0),"")) ->  | AH52: =IF($D$37="Manual","",IFERROR(MAX('Reinforcement Deferral'!AH31*(1+Overprocurement_factor),0),"")) ->  | AI52: =IF($D$37="Manual","",IFERROR(MAX('Reinforcement Deferral'!AI31*(1+Overprocurement_factor),0),"")) ->  | AJ52: =IF($D$37="Manual","",IFERROR(MAX('Reinforcement Deferral'!AJ31*(1+Overprocurement_factor),0),"")) ->  | AK52: =IF($D$37="Manual","",IFERROR(MAX('Reinforcement Deferral'!AK31*(1+Overprocurement_factor),0),"")) ->  | AL52: =IF($D$37="Manual","",IFERROR(MAX('Reinforcement Deferral'!AL31*(1+Overprocurement_factor),0),"")) ->  | AM52: =IF($D$37="Manual","",IFERROR(MAX('Reinforcement Deferral'!AM31*(1+Overprocurement_factor),0),"")) ->  | AN52: =IF($D$37="Manual","",IFERROR(MAX('Reinforcement Deferral'!AN31*(1+Overprocurement_factor),0),"")) ->  | AO52: =IF($D$37="Manual","",IFERROR(MAX('Reinforcement Deferral'!AO31*(1+Overprocurement_factor),0),"")) ->  | AP52: =IF($D$37="Manual","",IFERROR(MAX('Reinforcement Deferral'!AP31*(1+Overprocurement_factor),0),"")) ->  | AQ52: =IF($D$37="Manual","",IFERROR(MAX('Reinforcement Deferral'!AQ31*(1+Overprocurement_factor),0),"")) ->  | AR52: =IF($D$37="Manual","",IFERROR(MAX('Reinforcement Deferral'!AR31*(1+Overprocurement_factor),0),"")) ->  | AS52: =IF($D$37="Manual","",IFERROR(MAX('Reinforcement Deferral'!AS31*(1+Overprocurement_factor),0),"")) ->  | AT52: =IF($D$37="Manual","",IFERROR(MAX('Reinforcement Deferral'!AT31*(1+Overprocurement_factor),0),"")) ->  | AU52: =IF($D$37="Manual","",IFERROR(MAX('Reinforcement Deferral'!AU31*(1+Overprocurement_factor),0),"")) ->  | AV52: =IF($D$37="Manual","",IFERROR(MAX('Reinforcement Deferral'!AV31*(1+Overprocurement_factor),0),"")) ->  | AW52: =IF($D$37="Manual","",IFERROR(MAX('Reinforcement Deferral'!AW31*(1+Overprocurement_factor),0),"")) ->  | AX52: =IF($D$37="Manual","",IFERROR(MAX('Reinforcement Deferral'!AX31*(1+Overprocurement_factor),0),"")) ->  | AY52: =IF($D$37="Manual","",IFERROR(MAX('Reinforcement Deferral'!AY31*(1+Overprocurement_factor),0),"")) ->  | AZ52: =IF($D$37="Manual","",IFERROR(MAX('Reinforcement Deferral'!AZ31*(1+Overprocurement_factor),0),"")) ->  | BA52: =IF($D$37="Manual","",IFERROR(MAX('Reinforcement Deferral'!BA31*(1+Overprocurement_factor),0),"")) ->  | BB52: =IF($D$37="Manual","",IFERROR(MAX('Reinforcement Deferral'!BB31*(1+Overprocurement_factor),0),"")) ->  | BC52: =IF($D$37="Manual","",IFERROR(MAX('Reinforcement Deferral'!BC31*(1+Overprocurement_factor),0),"")) ->  | BD52: =IF($D$37="Manual","",IFERROR(MAX('Reinforcement Deferral'!BD31*(1+Overprocurement_factor),0),"")) ->  | BE52: =IF($D$37="Manual","",IFERROR(MAX('Reinforcement Deferral'!BE31*(1+Overprocurement_factor),0),"")) ->  | BF52: =IF($D$37="Manual","",IFERROR(MAX('Reinforcement Deferral'!BF31*(1+Overprocurement_factor),0),"")) ->  | BG52: =IF($D$37="Manual","",IFERROR(MAX('Reinforcement Deferral'!BG31*(1+Overprocurement_factor),0),"")) ->  | BH52: =IF($D$37="Manual","",IFERROR(MAX('Reinforcement Deferral'!BH31*(1+Overprocurement_factor),0),"")) ->  | BI52: =IF($D$37="Manual","",IFERROR(MAX('Reinforcement Deferral'!BI31*(1+Overprocurement_factor),0),"")) ->  | BJ52: =IF($D$37="Manual","",IFERROR(MAX('Reinforcement Deferral'!BJ31*(1+Overprocurement_factor),0),"")) ->  | BK52: =IF($D$37="Manual","",IFERROR(MAX('Reinforcement Deferral'!BK31*(1+Overprocurement_factor),0),"")) ->  | BL52: =IF($D$37="Manual","",IFERROR(MAX('Reinforcement Deferral'!BL31*(1+Overprocurement_factor),0),"")) ->  | BM52: =IF($D$37="Manual","",IFERROR(MAX('Reinforcement Deferral'!BM31*(1+Overprocurement_factor),0),"")) ->  | BN52: =IF($D$37="Manual","",IFERROR(MAX('Reinforcement Deferral'!BN31*(1+Overprocurement_factor),0),"")) ->  | BO52: =IF($D$37="Manual","",IFERROR(MAX('Reinforcement Deferral'!BO31*(1+Overprocurement_factor),0),"")) ->  | BP52: =IF($D$37="Manual","",IFERROR(MAX('Reinforcement Deferral'!BP31*(1+Overprocurement_factor),0),"")) ->  | BQ52: =IF($D$37="Manual","",IFERROR(MAX('Reinforcement Deferral'!BQ31*(1+Overprocurement_factor),0),"")) ->  | BR52: =IF($D$37="Manual","",IFERROR(MAX('Reinforcement Deferral'!BR31*(1+Overprocurement_factor),0),"")) ->  | BS52: =IF($D$37="Manual","",IFERROR(MAX('Reinforcement Deferral'!BS31*(1+Overprocurement_factor),0),"")) -> 
D53: =Scn5_name -> 0 | E53: =IF($D$37="Manual","",IFERROR(MAX('Reinforcement Deferral'!E32*(1+Overprocurement_factor),0),"")) ->  | F53: =IF($D$37="Manual","",IFERROR(MAX('Reinforcement Deferral'!F32*(1+Overprocurement_factor),0),"")) ->  | G53: =IF($D$37="Manual","",IFERROR(MAX('Reinforcement Deferral'!G32*(1+Overprocurement_factor),0),"")) ->  | H53: =IF($D$37="Manual","",IFERROR(MAX('Reinforcement Deferral'!H32*(1+Overprocurement_factor),0),"")) ->  | I53: =IF($D$37="Manual","",IFERROR(MAX('Reinforcement Deferral'!I32*(1+Overprocurement_factor),0),"")) ->  | J53: =IF($D$37="Manual","",IFERROR(MAX('Reinforcement Deferral'!J32*(1+Overprocurement_factor),0),"")) ->  | K53: =IF($D$37="Manual","",IFERROR(MAX('Reinforcement Deferral'!K32*(1+Overprocurement_factor),0),"")) ->  | L53: =IF($D$37="Manual","",IFERROR(MAX('Reinforcement Deferral'!L32*(1+Overprocurement_factor),0),"")) ->  | M53: =IF($D$37="Manual","",IFERROR(MAX('Reinforcement Deferral'!M32*(1+Overprocurement_factor),0),"")) ->  | N53: =IF($D$37="Manual","",IFERROR(MAX('Reinforcement Deferral'!N32*(1+Overprocurement_factor),0),"")) ->  | O53: =IF($D$37="Manual","",IFERROR(MAX('Reinforcement Deferral'!O32*(1+Overprocurement_factor),0),"")) ->  | P53: =IF($D$37="Manual","",IFERROR(MAX('Reinforcement Deferral'!P32*(1+Overprocurement_factor),0),"")) ->  | Q53: =IF($D$37="Manual","",IFERROR(MAX('Reinforcement Deferral'!Q32*(1+Overprocurement_factor),0),"")) ->  | R53: =IF($D$37="Manual","",IFERROR(MAX('Reinforcement Deferral'!R32*(1+Overprocurement_factor),0),"")) ->  | S53: =IF($D$37="Manual","",IFERROR(MAX('Reinforcement Deferral'!S32*(1+Overprocurement_factor),0),"")) ->  | T53: =IF($D$37="Manual","",IFERROR(MAX('Reinforcement Deferral'!T32*(1+Overprocurement_factor),0),"")) ->  | U53: =IF($D$37="Manual","",IFERROR(MAX('Reinforcement Deferral'!U32*(1+Overprocurement_factor),0),"")) ->  | V53: =IF($D$37="Manual","",IFERROR(MAX('Reinforcement Deferral'!V32*(1+Overprocurement_factor),0),"")) ->  | W53: =IF($D$37="Manual","",IFERROR(MAX('Reinforcement Deferral'!W32*(1+Overprocurement_factor),0),"")) ->  | X53: =IF($D$37="Manual","",IFERROR(MAX('Reinforcement Deferral'!X32*(1+Overprocurement_factor),0),"")) ->  | Y53: =IF($D$37="Manual","",IFERROR(MAX('Reinforcement Deferral'!Y32*(1+Overprocurement_factor),0),"")) ->  | Z53: =IF($D$37="Manual","",IFERROR(MAX('Reinforcement Deferral'!Z32*(1+Overprocurement_factor),0),"")) ->  | AA53: =IF($D$37="Manual","",IFERROR(MAX('Reinforcement Deferral'!AA32*(1+Overprocurement_factor),0),"")) ->  | AB53: =IF($D$37="Manual","",IFERROR(MAX('Reinforcement Deferral'!AB32*(1+Overprocurement_factor),0),"")) ->  | AC53: =IF($D$37="Manual","",IFERROR(MAX('Reinforcement Deferral'!AC32*(1+Overprocurement_factor),0),"")) ->  | AD53: =IF($D$37="Manual","",IFERROR(MAX('Reinforcement Deferral'!AD32*(1+Overprocurement_factor),0),"")) ->  | AE53: =IF($D$37="Manual","",IFERROR(MAX('Reinforcement Deferral'!AE32*(1+Overprocurement_factor),0),"")) ->  | AF53: =IF($D$37="Manual","",IFERROR(MAX('Reinforcement Deferral'!AF32*(1+Overprocurement_factor),0),"")) ->  | AG53: =IF($D$37="Manual","",IFERROR(MAX('Reinforcement Deferral'!AG32*(1+Overprocurement_factor),0),"")) ->  | AH53: =IF($D$37="Manual","",IFERROR(MAX('Reinforcement Deferral'!AH32*(1+Overprocurement_factor),0),"")) ->  | AI53: =IF($D$37="Manual","",IFERROR(MAX('Reinforcement Deferral'!AI32*(1+Overprocurement_factor),0),"")) ->  | AJ53: =IF($D$37="Manual","",IFERROR(MAX('Reinforcement Deferral'!AJ32*(1+Overprocurement_factor),0),"")) ->  | AK53: =IF($D$37="Manual","",IFERROR(MAX('Reinforcement Deferral'!AK32*(1+Overprocurement_factor),0),"")) ->  | AL53: =IF($D$37="Manual","",IFERROR(MAX('Reinforcement Deferral'!AL32*(1+Overprocurement_factor),0),"")) ->  | AM53: =IF($D$37="Manual","",IFERROR(MAX('Reinforcement Deferral'!AM32*(1+Overprocurement_factor),0),"")) ->  | AN53: =IF($D$37="Manual","",IFERROR(MAX('Reinforcement Deferral'!AN32*(1+Overprocurement_factor),0),"")) ->  | AO53: =IF($D$37="Manual","",IFERROR(MAX('Reinforcement Deferral'!AO32*(1+Overprocurement_factor),0),"")) ->  | AP53: =IF($D$37="Manual","",IFERROR(MAX('Reinforcement Deferral'!AP32*(1+Overprocurement_factor),0),"")) ->  | AQ53: =IF($D$37="Manual","",IFERROR(MAX('Reinforcement Deferral'!AQ32*(1+Overprocurement_factor),0),"")) ->  | AR53: =IF($D$37="Manual","",IFERROR(MAX('Reinforcement Deferral'!AR32*(1+Overprocurement_factor),0),"")) ->  | AS53: =IF($D$37="Manual","",IFERROR(MAX('Reinforcement Deferral'!AS32*(1+Overprocurement_factor),0),"")) ->  | AT53: =IF($D$37="Manual","",IFERROR(MAX('Reinforcement Deferral'!AT32*(1+Overprocurement_factor),0),"")) ->  | AU53: =IF($D$37="Manual","",IFERROR(MAX('Reinforcement Deferral'!AU32*(1+Overprocurement_factor),0),"")) ->  | AV53: =IF($D$37="Manual","",IFERROR(MAX('Reinforcement Deferral'!AV32*(1+Overprocurement_factor),0),"")) ->  | AW53: =IF($D$37="Manual","",IFERROR(MAX('Reinforcement Deferral'!AW32*(1+Overprocurement_factor),0),"")) ->  | AX53: =IF($D$37="Manual","",IFERROR(MAX('Reinforcement Deferral'!AX32*(1+Overprocurement_factor),0),"")) ->  | AY53: =IF($D$37="Manual","",IFERROR(MAX('Reinforcement Deferral'!AY32*(1+Overprocurement_factor),0),"")) ->  | AZ53: =IF($D$37="Manual","",IFERROR(MAX('Reinforcement Deferral'!AZ32*(1+Overprocurement_factor),0),"")) ->  | BA53: =IF($D$37="Manual","",IFERROR(MAX('Reinforcement Deferral'!BA32*(1+Overprocurement_factor),0),"")) ->  | BB53: =IF($D$37="Manual","",IFERROR(MAX('Reinforcement Deferral'!BB32*(1+Overprocurement_factor),0),"")) ->  | BC53: =IF($D$37="Manual","",IFERROR(MAX('Reinforcement Deferral'!BC32*(1+Overprocurement_factor),0),"")) ->  | BD53: =IF($D$37="Manual","",IFERROR(MAX('Reinforcement Deferral'!BD32*(1+Overprocurement_factor),0),"")) ->  | BE53: =IF($D$37="Manual","",IFERROR(MAX('Reinforcement Deferral'!BE32*(1+Overprocurement_factor),0),"")) ->  | BF53: =IF($D$37="Manual","",IFERROR(MAX('Reinforcement Deferral'!BF32*(1+Overprocurement_factor),0),"")) ->  | BG53: =IF($D$37="Manual","",IFERROR(MAX('Reinforcement Deferral'!BG32*(1+Overprocurement_factor),0),"")) ->  | BH53: =IF($D$37="Manual","",IFERROR(MAX('Reinforcement Deferral'!BH32*(1+Overprocurement_factor),0),"")) ->  | BI53: =IF($D$37="Manual","",IFERROR(MAX('Reinforcement Deferral'!BI32*(1+Overprocurement_factor),0),"")) ->  | BJ53: =IF($D$37="Manual","",IFERROR(MAX('Reinforcement Deferral'!BJ32*(1+Overprocurement_factor),0),"")) ->  | BK53: =IF($D$37="Manual","",IFERROR(MAX('Reinforcement Deferral'!BK32*(1+Overprocurement_factor),0),"")) ->  | BL53: =IF($D$37="Manual","",IFERROR(MAX('Reinforcement Deferral'!BL32*(1+Overprocurement_factor),0),"")) ->  | BM53: =IF($D$37="Manual","",IFERROR(MAX('Reinforcement Deferral'!BM32*(1+Overprocurement_factor),0),"")) ->  | BN53: =IF($D$37="Manual","",IFERROR(MAX('Reinforcement Deferral'!BN32*(1+Overprocurement_factor),0),"")) ->  | BO53: =IF($D$37="Manual","",IFERROR(MAX('Reinforcement Deferral'!BO32*(1+Overprocurement_factor),0),"")) ->  | BP53: =IF($D$37="Manual","",IFERROR(MAX('Reinforcement Deferral'!BP32*(1+Overprocurement_factor),0),"")) ->  | BQ53: =IF($D$37="Manual","",IFERROR(MAX('Reinforcement Deferral'!BQ32*(1+Overprocurement_factor),0),"")) ->  | BR53: =IF($D$37="Manual","",IFERROR(MAX('Reinforcement Deferral'!BR32*(1+Overprocurement_factor),0),"")) ->  | BS53: =IF($D$37="Manual","",IFERROR(MAX('Reinforcement Deferral'!BS32*(1+Overprocurement_factor),0),"")) -> 
C55: Annual peak flexibility requirement (MVA)
D56: =Scn1_name -> 0 | E56: =IF($D$37="Manual",IF(E42="","",E42),IF(E49="","",E49)) ->  | F56: =IF($D$37="Manual",IF(F42="","",F42),IF(F49="","",F49)) ->  | BR56: =IF($D$37="Manual",IF(BR42="","",BR42),IF(BR49="","",BR49)) -> 
D57: =Scn2_name -> 0 | E57: =IF($D$37="Manual",IF(E43="","",E43),IF(E50="","",E50)) ->  | BQ57: =IF($D$37="Manual",IF(BQ43="","",BQ43),IF(BQ50="","",BQ50)) -> 
D58: =Scn3_name -> 0 | E58: =IF($D$37="Manual",IF(E44="","",E44),IF(E51="","",E51)) ->  | BQ58: =IF($D$37="Manual",IF(BQ44="","",BQ44),IF(BQ51="","",BQ51)) -> 
D59: =Scn4_name -> 0 | E59: =IF($D$37="Manual",IF(E45="","",E45),IF(E52="","",E52)) ->  | BQ59: =IF($D$37="Manual",IF(BQ45="","",BQ45),IF(BQ52="","",BQ52)) -> 
D60: =Scn5_name -> 0 | E60: =IF($D$37="Manual",IF(E46="","",E46),IF(E53="","",E53)) ->  | BQ60: =IF($D$37="Manual",IF(BQ46="","",BQ46),IF(BQ53="","",BQ53)) -> 
C62: =Scn1_name -> 0
D63: Hrs/day required
D64: Days/yr required
D65: No. Dispatch/yr
D66: Dispatch duration (hrs)
C67: =Scn2_name -> 0
D68: Hrs/day required
D69: Days/yr required
D70: No. Dispatch/yr
D71: Dispatch duration
C72: =Scn3_name -> 0
D73: Hrs/day required
D74: Days/yr required
D75: No. Dispatch/yr
D76: Dispatch duration
C77: =Scn4_name -> 0
D78: Hrs/day required
D79: Days/yr required
D80: No. Dispatch/yr
D81: Dispatch duration
C82: =Scn5_name -> 0
D83: Hrs/day required
D84: Days/yr required
D85: No. Dispatch/yr
D86: Dispatch duration
B88: FLEXIBILITY COSTS
C89: Fixed Flex Procurement Costs
D90: =Scn1_name -> 0
D91: =Scn2_name -> 0
D92: =Scn3_name -> 0
D93: =Scn4_name -> 0
D94: =Scn5_name -> 0
C97: Annual cost of flexibility
C98: =Scn1_name -> 0 | D98: Annual cost (£) | E98: =IF(E56<>"",E63*E64*E56*$D$29+E65*E66*E56*$D$39*$D$30+E90,E90) -> 0 | F98: =IF(F56<>"",F63*F64*F56*$D$29+F65*F66*F56*$D$39*$D$30+F90,F90) -> 0 | G98: 0 | H98: 0 | I98: 0 | J98: 0 | K98: 0 | L98: 0 | M98: 0 | N98: 0 | O98: 0 | P98: 0 | Q98: 0 | R98: 0 | S98: 0 | T98: 0 | U98: 0 | V98: 0 | W98: 0 | X98: 0 | Y98: 0 | Z98: 0 | AA98: 0 | AB98: 0 | AC98: 0 | AD98: 0 | AE98: 0 | AF98: 0 | AG98: 0 | AH98: 0 | AI98: 0 | AJ98: 0 | AK98: 0 | AL98: 0 | AM98: 0 | AN98: 0 | AO98: 0 | AP98: 0 | AQ98: 0 | AR98: 0 | AS98: 0 | AT98: 0 | AU98: 0 | AV98: 0 | AW98: 0 | AX98: 0 | AY98: 0 | AZ98: 0 | BA98: 0 | BB98: 0 | BC98: 0 | BD98: 0 | BE98: 0 | BF98: 0 | BG98: 0 | BH98: 0 | BI98: 0 | BJ98: 0 | BK98: 0 | BL98: 0 | BM98: 0 | BN98: 0 | BO98: 0 | BP98: 0 | BQ98: 0 | BR98: =IF(BR56<>"",BR63*BR64*BR56*$D$29+BR65*BR66*BR56*$D$39*$D$30+BR90,BR90) -> 0 | BS98: 0
C99: =Scn2_name -> 0 | D99: Annual cost (£) | E99: =IF(E57<>"",E68*E69*E57*$D$29+E70*E71*E57*$D$39*$D$30+E91,E91) -> 0 | F99: =IF(F57<>"",F68*F69*F57*$D$29+F70*F71*F57*$D$39*$D$30+F91,F91) -> 0 | G99: 0 | H99: 0 | I99: 0 | J99: 0 | K99: 0 | L99: 0 | M99: 0 | N99: 0 | O99: 0 | P99: 0 | Q99: 0 | R99: 0 | S99: 0 | T99: 0 | U99: 0 | V99: 0 | W99: 0 | X99: 0 | Y99: 0 | Z99: 0 | AA99: 0 | AB99: 0 | AC99: 0 | AD99: 0 | AE99: 0 | AF99: 0 | AG99: 0 | AH99: 0 | AI99: 0 | AJ99: 0 | AK99: 0 | AL99: 0 | AM99: 0 | AN99: 0 | AO99: 0 | AP99: 0 | AQ99: 0 | AR99: 0 | AS99: 0 | AT99: 0 | AU99: 0 | AV99: 0 | AW99: 0 | AX99: 0 | AY99: 0 | AZ99: 0 | BA99: 0 | BB99: 0 | BC99: 0 | BD99: 0 | BE99: 0 | BF99: 0 | BG99: 0 | BH99: 0 | BI99: 0 | BJ99: 0 | BK99: 0 | BL99: 0 | BM99: 0 | BN99: 0 | BO99: 0 | BP99: 0 | BQ99: 0 | BR99: =IF(BR57<>"",BR68*BR69*BR57*$D$29+BR70*BR71*BR57*$D$39*$D$30+BR91,BR91) -> 0 | BS99: 0
C100: =Scn3_name -> 0 | D100: Annual cost (£) | E100: =IF(E58<>"",E73*E74*E58*$D$29+E75*E76*E58*$D$39*$D$30+E92,E92) -> 0 | F100: =IF(F58<>"",F73*F74*F58*$D$29+F75*F76*F58*$D$39*$D$30+F92,F92) -> 0 | G100: 0 | H100: 0 | I100: 0 | J100: 0 | K100: 0 | L100: 0 | M100: 0 | N100: 0 | O100: 0 | P100: 0 | Q100: 0 | R100: 0 | S100: 0 | T100: 0 | U100: 0 | V100: 0 | W100: 0 | X100: 0 | Y100: 0 | Z100: 0 | AA100: 0 | AB100: 0 | AC100: 0 | AD100: 0 | AE100: 0 | AF100: 0 | AG100: 0 | AH100: 0 | AI100: 0 | AJ100: 0 | AK100: 0 | AL100: 0 | AM100: 0 | AN100: 0 | AO100: 0 | AP100: 0 | AQ100: 0 | AR100: 0 | AS100: 0 | AT100: 0 | AU100: 0 | AV100: 0 | AW100: 0 | AX100: 0 | AY100: 0 | AZ100: 0 | BA100: 0 | BB100: 0 | BC100: 0 | BD100: 0 | BE100: 0 | BF100: 0 | BG100: 0 | BH100: 0 | BI100: 0 | BJ100: 0 | BK100: 0 | BL100: 0 | BM100: 0 | BN100: 0 | BO100: 0 | BP100: 0 | BQ100: 0 | BR100: =IF(BR58<>"",BR73*BR74*BR58*$D$29+BR75*BR76*BR58*$D$39*$D$30+BR92,BR92) -> 0 | BS100: 0
C101: =Scn4_name -> 0 | D101: Annual cost (£) | E101: =IF(E59<>"",E78*E79*E59*$D$29+E80*E81*E59*$D$39*$D$30+E93,E93) -> 0 | F101: =IF(F59<>"",F78*F79*F59*$D$29+F80*F81*F59*$D$39*$D$30+F93,F93) -> 0 | G101: 0 | H101: 0 | I101: 0 | J101: 0 | K101: 0 | L101: 0 | M101: 0 | N101: 0 | O101: 0 | P101: 0 | Q101: 0 | R101: 0 | S101: 0 | T101: 0 | U101: 0 | V101: 0 | W101: 0 | X101: 0 | Y101: 0 | Z101: 0 | AA101: 0 | AB101: 0 | AC101: 0 | AD101: 0 | AE101: 0 | AF101: 0 | AG101: 0 | AH101: 0 | AI101: 0 | AJ101: 0 | AK101: 0 | AL101: 0 | AM101: 0 | AN101: 0 | AO101: 0 | AP101: 0 | AQ101: 0 | AR101: 0 | AS101: 0 | AT101: 0 | AU101: 0 | AV101: 0 | AW101: 0 | AX101: 0 | AY101: 0 | AZ101: 0 | BA101: 0 | BB101: 0 | BC101: 0 | BD101: 0 | BE101: 0 | BF101: 0 | BG101: 0 | BH101: 0 | BI101: 0 | BJ101: 0 | BK101: 0 | BL101: 0 | BM101: 0 | BN101: 0 | BO101: 0 | BP101: 0 | BQ101: 0 | BR101: =IF(BR59<>"",BR78*BR79*BR59*$D$29+BR80*BR81*BR59*$D$39*$D$30+BR93,BR93) -> 0 | BS101: 0
C102: =Scn5_name -> 0 | D102: Annual cost (£) | E102: =IF(E60<>"",E83*E84*E60*$D$29+E85*E86*E60*$D$39*$D$30+E94,E94) -> 0 | F102: =IF(F60<>"",F83*F84*F60*$D$29+F85*F86*F60*$D$39*$D$30+F94,F94) -> 0 | G102: 0 | H102: 0 | I102: 0 | J102: 0 | K102: 0 | L102: 0 | M102: 0 | N102: 0 | O102: 0 | P102: 0 | Q102: 0 | R102: 0 | S102: 0 | T102: 0 | U102: 0 | V102: 0 | W102: 0 | X102: 0 | Y102: 0 | Z102: 0 | AA102: 0 | AB102: 0 | AC102: 0 | AD102: 0 | AE102: 0 | AF102: 0 | AG102: 0 | AH102: 0 | AI102: 0 | AJ102: 0 | AK102: 0 | AL102: 0 | AM102: 0 | AN102: 0 | AO102: 0 | AP102: 0 | AQ102: 0 | AR102: 0 | AS102: 0 | AT102: 0 | AU102: 0 | AV102: 0 | AW102: 0 | AX102: 0 | AY102: 0 | AZ102: 0 | BA102: 0 | BB102: 0 | BC102: 0 | BD102: 0 | BE102: 0 | BF102: 0 | BG102: 0 | BH102: 0 | BI102: 0 | BJ102: 0 | BK102: 0 | BL102: 0 | BM102: 0 | BN102: 0 | BO102: 0 | BP102: 0 | BQ102: 0 | BR102: =IF(BR60<>"",BR83*BR84*BR60*$D$29+BR85*BR86*BR60*$D$39*$D$30+BR94,BR94) -> 0 | BS102: 0
B104: FOR REFERENCE
C106: Total availability required
C107: =Scn1_name -> 0 | D107: MVA hours | E107: =IF(E56<>"",E56*E63*E64,0) -> 0 | F107: =IF(F56<>"",F56*F63*F64,0) -> 0 | G107: 0 | H107: 0 | I107: 0 | J107: 0 | K107: 0 | L107: 0 | M107: 0 | N107: 0 | O107: 0 | P107: 0 | Q107: 0 | R107: 0 | S107: 0 | T107: 0 | U107: 0 | V107: 0 | W107: 0 | X107: 0 | Y107: 0 | Z107: 0 | AA107: 0 | AB107: 0 | AC107: 0 | AD107: 0 | AE107: 0 | AF107: 0 | AG107: 0 | AH107: 0 | AI107: 0 | AJ107: 0 | AK107: 0 | AL107: 0 | AM107: 0 | AN107: 0 | AO107: 0 | AP107: 0 | AQ107: 0 | AR107: 0 | AS107: 0 | AT107: 0 | AU107: 0 | AV107: 0 | AW107: 0 | AX107: 0 | AY107: 0 | AZ107: 0 | BA107: 0 | BB107: 0 | BC107: 0 | BD107: 0 | BE107: 0 | BF107: 0 | BG107: 0 | BH107: 0 | BI107: 0 | BJ107: 0 | BK107: 0 | BL107: 0 | BM107: 0 | BN107: 0 | BO107: 0 | BP107: 0 | BQ107: 0 | BR107: =IF(BR56<>"",BR56*BR63*BR64,0) -> 0 | BS107: 0
C108: =Scn2_name -> 0 | D108: MVA hours | E108: =IF(E57<>"",E57*E68*E69,0) -> 0 | F108: =IF(F57<>"",F57*F68*F69,0) -> 0 | G108: 0 | H108: 0 | I108: 0 | J108: 0 | K108: 0 | L108: 0 | M108: 0 | N108: 0 | O108: 0 | P108: 0 | Q108: 0 | R108: 0 | S108: 0 | T108: 0 | U108: 0 | V108: 0 | W108: 0 | X108: 0 | Y108: 0 | Z108: 0 | AA108: 0 | AB108: 0 | AC108: 0 | AD108: 0 | AE108: 0 | AF108: 0 | AG108: 0 | AH108: 0 | AI108: 0 | AJ108: 0 | AK108: 0 | AL108: 0 | AM108: 0 | AN108: 0 | AO108: 0 | AP108: 0 | AQ108: 0 | AR108: 0 | AS108: 0 | AT108: 0 | AU108: 0 | AV108: 0 | AW108: 0 | AX108: 0 | AY108: 0 | AZ108: 0 | BA108: 0 | BB108: 0 | BC108: 0 | BD108: 0 | BE108: 0 | BF108: 0 | BG108: 0 | BH108: 0 | BI108: 0 | BJ108: 0 | BK108: 0 | BL108: 0 | BM108: 0 | BN108: 0 | BO108: 0 | BP108: 0 | BQ108: 0 | BR108: =IF(BR57<>"",BR57*BR68*BR69,0) -> 0 | BS108: 0
C109: =Scn3_name -> 0 | D109: MVA hours | E109: =IF(E58<>"",E58*E73*E74,0) -> 0 | F109: =IF(F58<>"",F58*F73*F74,0) -> 0 | G109: 0 | H109: 0 | I109: 0 | J109: 0 | K109: 0 | L109: 0 | M109: 0 | N109: 0 | O109: 0 | P109: 0 | Q109: 0 | R109: 0 | S109: 0 | T109: 0 | U109: 0 | V109: 0 | W109: 0 | X109: 0 | Y109: 0 | Z109: 0 | AA109: 0 | AB109: 0 | AC109: 0 | AD109: 0 | AE109: 0 | AF109: 0 | AG109: 0 | AH109: 0 | AI109: 0 | AJ109: 0 | AK109: 0 | AL109: 0 | AM109: 0 | AN109: 0 | AO109: 0 | AP109: 0 | AQ109: 0 | AR109: 0 | AS109: 0 | AT109: 0 | AU109: 0 | AV109: 0 | AW109: 0 | AX109: 0 | AY109: 0 | AZ109: 0 | BA109: 0 | BB109: 0 | BC109: 0 | BD109: 0 | BE109: 0 | BF109: 0 | BG109: 0 | BH109: 0 | BI109: 0 | BJ109: 0 | BK109: 0 | BL109: 0 | BM109: 0 | BN109: 0 | BO109: 0 | BP109: 0 | BQ109: 0 | BR109: =IF(BR58<>"",BR58*BR73*BR74,0) -> 0 | BS109: 0
C110: =Scn4_name -> 0 | D110: MVA hours | E110: =IF(E59<>"",E59*E78*E79,0) -> 0 | F110: =IF(F59<>"",F59*F78*F79,0) -> 0 | G110: 0 | H110: 0 | I110: 0 | J110: 0 | K110: 0 | L110: 0 | M110: 0 | N110: 0 | O110: 0 | P110: 0 | Q110: 0 | R110: 0 | S110: 0 | T110: 0 | U110: 0 | V110: 0 | W110: 0 | X110: 0 | Y110: 0 | Z110: 0 | AA110: 0 | AB110: 0 | AC110: 0 | AD110: 0 | AE110: 0 | AF110: 0 | AG110: 0 | AH110: 0 | AI110: 0 | AJ110: 0 | AK110: 0 | AL110: 0 | AM110: 0 | AN110: 0 | AO110: 0 | AP110: 0 | AQ110: 0 | AR110: 0 | AS110: 0 | AT110: 0 | AU110: 0 | AV110: 0 | AW110: 0 | AX110: 0 | AY110: 0 | AZ110: 0 | BA110: 0 | BB110: 0 | BC110: 0 | BD110: 0 | BE110: 0 | BF110: 0 | BG110: 0 | BH110: 0 | BI110: 0 | BJ110: 0 | BK110: 0 | BL110: 0 | BM110: 0 | BN110: 0 | BO110: 0 | BP110: 0 | BQ110: 0 | BR110: =IF(BR59<>"",BR59*BR78*BR79,0) -> 0 | BS110: 0
C111: =Scn5_name -> 0 | D111: MVA hours | E111: =IF(E60<>"",E60*E83*E84,0) -> 0 | F111: =IF(F60<>"",F60*F83*F84,0) -> 0 | G111: 0 | H111: 0 | I111: 0 | J111: 0 | K111: 0 | L111: 0 | M111: 0 | N111: 0 | O111: 0 | P111: 0 | Q111: 0 | R111: 0 | S111: 0 | T111: 0 | U111: 0 | V111: 0 | W111: 0 | X111: 0 | Y111: 0 | Z111: 0 | AA111: 0 | AB111: 0 | AC111: 0 | AD111: 0 | AE111: 0 | AF111: 0 | AG111: 0 | AH111: 0 | AI111: 0 | AJ111: 0 | AK111: 0 | AL111: 0 | AM111: 0 | AN111: 0 | AO111: 0 | AP111: 0 | AQ111: 0 | AR111: 0 | AS111: 0 | AT111: 0 | AU111: 0 | AV111: 0 | AW111: 0 | AX111: 0 | AY111: 0 | AZ111: 0 | BA111: 0 | BB111: 0 | BC111: 0 | BD111: 0 | BE111: 0 | BF111: 0 | BG111: 0 | BH111: 0 | BI111: 0 | BJ111: 0 | BK111: 0 | BL111: 0 | BM111: 0 | BN111: 0 | BO111: 0 | BP111: 0 | BQ111: 0 | BR111: =IF(BR60<>"",BR60*BR83*BR84,0) -> 0 | BS111: 0
C113: Total utilisation required
C114: =Scn1_name -> 0 | D114: MVA hours | E114: =IF(E56<>"",E56*$D$39*E65*E66,0) -> 0 | F114: =IF(F56<>"",F56*$D$39*F65*F66,0) -> 0 | G114: 0 | H114: 0 | I114: 0 | J114: 0 | K114: 0 | L114: 0 | M114: 0 | N114: 0 | O114: 0 | P114: 0 | Q114: 0 | R114: 0 | S114: 0 | T114: 0 | U114: 0 | V114: 0 | W114: 0 | X114: 0 | Y114: 0 | Z114: 0 | AA114: 0 | AB114: 0 | AC114: 0 | AD114: 0 | AE114: 0 | AF114: 0 | AG114: 0 | AH114: 0 | AI114: 0 | AJ114: 0 | AK114: 0 | AL114: 0 | AM114: 0 | AN114: 0 | AO114: 0 | AP114: 0 | AQ114: 0 | AR114: 0 | AS114: 0 | AT114: 0 | AU114: 0 | AV114: 0 | AW114: 0 | AX114: 0 | AY114: 0 | AZ114: 0 | BA114: 0 | BB114: 0 | BC114: 0 | BD114: 0 | BE114: 0 | BF114: 0 | BG114: 0 | BH114: 0 | BI114: 0 | BJ114: 0 | BK114: 0 | BL114: 0 | BM114: 0 | BN114: 0 | BO114: 0 | BP114: 0 | BQ114: 0 | BR114: =IF(BR56<>"",BR56*$D$39*BR65*BR66,0) -> 0 | BS114: 0
C115: =Scn2_name -> 0 | D115: MVA hours | E115: =IF(E57<>"",E57*$D$39*E70*E71,0) -> 0 | F115: =IF(F57<>"",F57*$D$39*F70*F71,0) -> 0 | G115: 0 | H115: 0 | I115: 0 | J115: 0 | K115: 0 | L115: 0 | M115: 0 | N115: 0 | O115: 0 | P115: 0 | Q115: 0 | R115: 0 | S115: 0 | T115: 0 | U115: 0 | V115: 0 | W115: 0 | X115: 0 | Y115: 0 | Z115: 0 | AA115: 0 | AB115: 0 | AC115: 0 | AD115: 0 | AE115: 0 | AF115: 0 | AG115: 0 | AH115: 0 | AI115: 0 | AJ115: 0 | AK115: 0 | AL115: 0 | AM115: 0 | AN115: 0 | AO115: 0 | AP115: 0 | AQ115: 0 | AR115: 0 | AS115: 0 | AT115: 0 | AU115: 0 | AV115: 0 | AW115: 0 | AX115: 0 | AY115: 0 | AZ115: 0 | BA115: 0 | BB115: 0 | BC115: 0 | BD115: 0 | BE115: 0 | BF115: 0 | BG115: 0 | BH115: 0 | BI115: 0 | BJ115: 0 | BK115: 0 | BL115: 0 | BM115: 0 | BN115: 0 | BO115: 0 | BP115: 0 | BQ115: 0 | BR115: =IF(BR57<>"",BR57*$D$39*BR70*BR71,0) -> 0 | BS115: 0
C116: =Scn3_name -> 0 | D116: MVA hours | E116: =IF(E58<>"",E58*$D$39*E75*E76,0) -> 0 | F116: =IF(F58<>"",F58*$D$39*F75*F76,0) -> 0 | G116: 0 | H116: 0 | I116: 0 | J116: 0 | K116: 0 | L116: 0 | M116: 0 | N116: 0 | O116: 0 | P116: 0 | Q116: 0 | R116: 0 | S116: 0 | T116: 0 | U116: 0 | V116: 0 | W116: 0 | X116: 0 | Y116: 0 | Z116: 0 | AA116: 0 | AB116: 0 | AC116: 0 | AD116: 0 | AE116: 0 | AF116: 0 | AG116: 0 | AH116: 0 | AI116: 0 | AJ116: 0 | AK116: 0 | AL116: 0 | AM116: 0 | AN116: 0 | AO116: 0 | AP116: 0 | AQ116: 0 | AR116: 0 | AS116: 0 | AT116: 0 | AU116: 0 | AV116: 0 | AW116: 0 | AX116: 0 | AY116: 0 | AZ116: 0 | BA116: 0 | BB116: 0 | BC116: 0 | BD116: 0 | BE116: 0 | BF116: 0 | BG116: 0 | BH116: 0 | BI116: 0 | BJ116: 0 | BK116: 0 | BL116: 0 | BM116: 0 | BN116: 0 | BO116: 0 | BP116: 0 | BQ116: 0 | BR116: =IF(BR58<>"",BR58*$D$39*BR75*BR76,0) -> 0 | BS116: 0
C117: =Scn4_name -> 0 | D117: MVA hours | E117: =IF(E59<>"",E59*$D$39*E80*E81,0) -> 0 | F117: =IF(F59<>"",F59*$D$39*F80*F81,0) -> 0 | G117: 0 | H117: 0 | I117: 0 | J117: 0 | K117: 0 | L117: 0 | M117: 0 | N117: 0 | O117: 0 | P117: 0 | Q117: 0 | R117: 0 | S117: 0 | T117: 0 | U117: 0 | V117: 0 | W117: 0 | X117: 0 | Y117: 0 | Z117: 0 | AA117: 0 | AB117: 0 | AC117: 0 | AD117: 0 | AE117: 0 | AF117: 0 | AG117: 0 | AH117: 0 | AI117: 0 | AJ117: 0 | AK117: 0 | AL117: 0 | AM117: 0 | AN117: 0 | AO117: 0 | AP117: 0 | AQ117: 0 | AR117: 0 | AS117: 0 | AT117: 0 | AU117: 0 | AV117: 0 | AW117: 0 | AX117: 0 | AY117: 0 | AZ117: 0 | BA117: 0 | BB117: 0 | BC117: 0 | BD117: 0 | BE117: 0 | BF117: 0 | BG117: 0 | BH117: 0 | BI117: 0 | BJ117: 0 | BK117: 0 | BL117: 0 | BM117: 0 | BN117: 0 | BO117: 0 | BP117: 0 | BQ117: 0 | BR117: =IF(BR59<>"",BR59*$D$39*BR80*BR81,0) -> 0 | BS117: 0
C118: =Scn5_name -> 0 | D118: MVA hours | E118: =IF(E60<>"",E60*$D$39*E85*E86,0) -> 0 | F118: =IF(F60<>"",F60*$D$39*F85*F86,0) -> 0 | G118: 0 | H118: 0 | I118: 0 | J118: 0 | K118: 0 | L118: 0 | M118: 0 | N118: 0 | O118: 0 | P118: 0 | Q118: 0 | R118: 0 | S118: 0 | T118: 0 | U118: 0 | V118: 0 | W118: 0 | X118: 0 | Y118: 0 | Z118: 0 | AA118: 0 | AB118: 0 | AC118: 0 | AD118: 0 | AE118: 0 | AF118: 0 | AG118: 0 | AH118: 0 | AI118: 0 | AJ118: 0 | AK118: 0 | AL118: 0 | AM118: 0 | AN118: 0 | AO118: 0 | AP118: 0 | AQ118: 0 | AR118: 0 | AS118: 0 | AT118: 0 | AU118: 0 | AV118: 0 | AW118: 0 | AX118: 0 | AY118: 0 | AZ118: 0 | BA118: 0 | BB118: 0 | BC118: 0 | BD118: 0 | BE118: 0 | BF118: 0 | BG118: 0 | BH118: 0 | BI118: 0 | BJ118: 0 | BK118: 0 | BL118: 0 | BM118: 0 | BN118: 0 | BO118: 0 | BP118: 0 | BQ118: 0 | BR118: =IF(BR60<>"",BR60*$D$39*BR85*BR86,0) -> 0 | BS118: 0

Sheet Reinforcement Deferral
A1: DO NOT FILL IN
A2: Reinforcement and Upfront Capex Inputs
B4: GUIDANCE
B5: - This tab allows for the entry of asset capacity (current and growth projections) as well as the reinforcement costs i.e. costs of the Baseline option - The Reference Year, Reference Calendar Year and Current Year inform the discounting calculations i.e. if 2018/19 is inputted the NPVs the tool calculates will be discounted to 2019. It is advisable to choose the same discounting year as the price base year. Note that the price base for this tool should be 2018/19 as per the Guidance tab i.e. the user should enter real 2018/19 costs or use the CPIH indeces in the Fixed Inputs tab to convert all costs/benefits in 2018/19 prices. - The year where an intervention is required is determined based on the year when exceedance surpasses the current capacity of the asset under a specified scenario as chosen by the user - The Date of Condition-Related Replacement Required allows the user to take into account the maximum years of deferral based on the asset's health i.e. enter 2025 if reinforcement deferral and use of flexibility solutions can only be extended to 2025 inclusive. - The Peak Network Load Growth needs to be entered for each of the scenarios - The Baseline option is assumed to be the reinforcement option as per the Guidance in this tool. More than one separate cost components can be entered by the user
B7: FIXED PARAMETERS
C8: Reference Year | D8: ='Losses Derogation Inputs'!D14 -> 2020/21
C9: Reference Calendar Year | D9: =INDEX('Fixed Inputs'!$L$23:$L$106,MATCH(Ref_year,'Fixed Inputs'!$J$23:$J$106,0)) -> 2021
C10: Current Year | D10: =YEAR(TODAY()) -> 2021
C11: Current Capacity (MVA)
C12: Current Peak Network Load (MVA)
C13: Scenario choice for reinforcement requirement date
C14: Intervention required by | D14: =INDEX('Reinforcement Deferral'!$E$27:$BS$27,MATCH(TRUE,INDEX('Reinforcement Deferral'!E28:BS32<>"",MATCH($D$13,$C$28:$C$32,0)),0)) -> 
C15: Date of Condition-Related Replacement Required
B18: EXCEEDANCE
C19: Peak Network Load Projection (MVA) | E19: =Current_year -> 2021 | F19: =E19+1 -> 2022 | G19: 2023 | H19: 2024 | I19: 2025 | J19: 2026 | K19: 2027 | L19: 2028 | M19: 2029 | N19: 2030 | O19: 2031 | P19: 2032 | Q19: 2033 | R19: 2034 | S19: 2035 | T19: 2036 | U19: 2037 | V19: 2038 | W19: 2039 | X19: 2040 | Y19: 2041 | Z19: 2042 | AA19: 2043 | AB19: 2044 | AC19: 2045 | AD19: 2046 | AE19: 2047 | AF19: 2048 | AG19: 2049 | AH19: 2050 | AI19: 2051 | AJ19: 2052 | AK19: 2053 | AL19: =AK19+1 -> 2054 | AM19: 2055 | AN19: 2056 | AO19: 2057 | AP19: 2058 | AQ19: 2059 | AR19: 2060 | AS19: 2061 | AT19: 2062 | AU19: 2063 | AV19: 2064 | AW19: 2065 | AX19: 2066 | AY19: 2067 | AZ19: 2068 | BA19: 2069 | BB19: 2070 | BC19: 2071 | BD19: 2072 | BE19: 2073 | BF19: 2074 | BG19: 2075 | BH19: 2076 | BI19: 2077 | BJ19: 2078 | BK19: 2079 | BL19: 2080 | BM19: 2081 | BN19: 2082 | BO19: 2083 | BP19: 2084 | BQ19: 2085 | BR19: 2086 | BS19: 2087
C20: =Scn1_name -> 0
C21: =Scn2_name -> 0
C22: =Scn3_name -> 0
C23: =Scn4_name -> 0
C24: =Scn5_name -> 0
C25: Current Capacity (MVA) | E25: =$D$11 -> 0 | F25: =$D$11 -> 0 | G25: 0 | H25: 0 | I25: 0 | J25: 0 | K25: 0 | L25: 0 | M25: 0 | N25: 0 | O25: 0 | P25: 0 | Q25: 0 | R25: 0 | S25: 0 | T25: 0 | U25: 0 | V25: 0 | W25: 0 | X25: 0 | Y25: 0 | Z25: 0 | AA25: 0 | AB25: 0 | AC25: 0 | AD25: 0 | AE25: 0 | AF25: 0 | AG25: 0 | AH25: 0 | AI25: 0 | AJ25: 0 | AK25: 0 | AL25: 0 | AM25: 0 | AN25: 0 | AO25: 0 | AP25: 0 | AQ25: 0 | AR25: 0 | AS25: 0 | AT25: 0 | AU25: 0 | AV25: 0 | AW25: 0 | AX25: 0 | AY25: 0 | AZ25: 0 | BA25: 0 | BB25: 0 | BC25: 0 | BD25: 0 | BE25: 0 | BF25: 0 | BG25: 0 | BH25: 0 | BI25: 0 | BJ25: 0 | BK25: 0 | BL25: 0 | BM25: 0 | BN25: 0 | BO25: 0 | BP25: 0 | BQ25: 0 | BR25: =$D$11 -> 0 | BS25: 0
C27: Exceedance per year (MVA) | E27: =Current_year -> 2021 | F27: =E27+1 -> 2022 | G27: 2023 | H27: 2024 | I27: 2025 | J27: 2026 | K27: 2027 | L27: 2028 | M27: 2029 | N27: 2030 | O27: 2031 | P27: 2032 | Q27: 2033 | R27: 2034 | S27: 2035 | T27: 2036 | U27: 2037 | V27: 2038 | W27: 2039 | X27: 2040 | Y27: 2041 | Z27: 2042 | AA27: 2043 | AB27: 2044 | AC27: 2045 | AD27: 2046 | AE27: 2047 | AF27: 2048 | AG27: 2049 | AH27: 2050 | AI27: 2051 | AJ27: 2052 | AK27: 2053 | AL27: =AK27+1 -> 2054 | AM27: 2055 | AN27: 2056 | AO27: 2057 | AP27: 2058 | AQ27: 2059 | AR27: 2060 | AS27: 2061 | AT27: 2062 | AU27: 2063 | AV27: 2064 | AW27: 2065 | AX27: 2066 | AY27: 2067 | AZ27: 2068 | BA27: 2069 | BB27: 2070 | BC27: 2071 | BD27: 2072 | BE27: 2073 | BF27: 2074 | BG27: 2075 | BH27: 2076 | BI27: 2077 | BJ27: 2078 | BK27: 2079 | BL27: 2080 | BM27: 2081 | BN27: 2082 | BO27: 2083 | BP27: 2084 | BQ27: 2085 | BR27: 2086 | BS27: 2087
C28: =Scn1_name -> 0 | E28: =IF((INDEX(E$20:E$24,MATCH($C$28,$C$20:$C$24,0)))<>"",IF(INDEX(E$20:E$24,MATCH($C$28,$C$20:$C$24,0))>$D$11,(INDEX(E$20:E$24,MATCH($C$28,$C$20:$C$24,0)))-$D$11,""),"") ->  | F28: =IF((INDEX(F$20:F$24,MATCH($C$28,$C$20:$C$24,0)))<>"",IF(INDEX(F$20:F$24,MATCH($C$28,$C$20:$C$24,0))>$D$11,(INDEX(F$20:F$24,MATCH($C$28,$C$20:$C$24,0)))-$D$11,""),"") ->  | AK28: =IF((INDEX(AK$20:AK$24,MATCH($C$28,$C$20:$C$24,0)))<>"",IF(INDEX(AK$20:AK$24,MATCH($C$28,$C$20:$C$24,0))>$D$11,(INDEX(AK$20:AK$24,MATCH($C$28,$C$20:$C$24,0)))-$D$11,""),"") -> 
C29: =Scn2_name -> 0 | E29: =IF((INDEX(E$20:E$24,MATCH($C$29,$C$20:$C$24,0)))<>"",IF(INDEX(E$20:E$24,MATCH($C$29,$C$20:$C$24,0))>$D$11,(INDEX(E$20:E$24,MATCH($C$29,$C$20:$C$24,0)))-$D$11,""),"") ->  | AK29: =IF((INDEX(AK$20:AK$24,MATCH($C$29,$C$20:$C$24,0)))<>"",IF(INDEX(AK$20:AK$24,MATCH($C$29,$C$20:$C$24,0))>$D$11,(INDEX(AK$20:AK$24,MATCH($C$29,$C$20:$C$24,0)))-$D$11,""),"") -> 
C30: =Scn3_name -> 0 | E30: =IF((INDEX(E$20:E$24,MATCH($C$30,$C$20:$C$24,0)))<>"",IF(INDEX(E$20:E$24,MATCH($C$30,$C$20:$C$24,0))>$D$11,(INDEX(E$20:E$24,MATCH($C$30,$C$20:$C$24,0)))-$D$11,""),"") ->  | AK30: =IF((INDEX(AK$20:AK$24,MATCH($C$30,$C$20:$C$24,0)))<>"",IF(INDEX(AK$20:AK$24,MATCH($C$30,$C$20:$C$24,0))>$D$11,(INDEX(AK$20:AK$24,MATCH($C$30,$C$20:$C$24,0)))-$D$11,""),"") -> 
C31: =Scn4_name -> 0 | E31: =IF((INDEX(E$20:E$24,MATCH($C$31,$C$20:$C$24,0)))<>"",IF(INDEX(E$20:E$24,MATCH($C$31,$C$20:$C$24,0))>$D$11,(INDEX(E$20:E$24,MATCH($C$31,$C$20:$C$24,0)))-$D$11,""),"") ->  | AK31: =IF((INDEX(AK$20:AK$24,MATCH($C$31,$C$20:$C$24,0)))<>"",IF(INDEX(AK$20:AK$24,MATCH($C$31,$C$20:$C$24,0))>$D$11,(INDEX(AK$20:AK$24,MATCH($C$31,$C$20:$C$24,0)))-$D$11,""),"") -> 
C32: =Scn5_name -> 0 | E32: =IF((INDEX(E$20:E$24,MATCH($C$32,$C$20:$C$24,0)))<>"",IF(INDEX(E$20:E$24,MATCH($C$32,$C$20:$C$24,0))>$D$11,(INDEX(E$20:E$24,MATCH($C$32,$C$20:$C$24,0)))-$D$11,""),"") ->  | AK32: =IF((INDEX(AK$20:AK$24,MATCH($C$32,$C$20:$C$24,0)))<>"",IF(INDEX(AK$20:AK$24,MATCH($C$32,$C$20:$C$24,0))>$D$11,(INDEX(AK$20:AK$24,MATCH($C$32,$C$20:$C$24,0)))-$D$11,""),"") -> 
B34: BASELINE REINFORCEMENT AND UPFRONT CAPEX (TO BE DEFERRED)
E35: =Current_year -> 2021 | F35: =E35+1 -> 2022 | G35: 2023 | H35: 2024 | I35: 2025 | J35: 2026 | K35: 2027 | L35: 2028 | M35: 2029 | N35: 2030 | O35: 2031 | P35: 2032 | Q35: 2033 | R35: 2034 | S35: 2035 | T35: 2036 | U35: 2037 | V35: 2038 | W35: 2039 | X35: 2040 | Y35: 2041 | Z35: 2042 | AA35: 2043 | AB35: 2044 | AC35: 2045 | AD35: 2046 | AE35: 2047 | AF35: 2048 | AG35: 2049 | AH35: 2050 | AI35: 2051 | AJ35: 2052 | AK35: 2053 | AL35: =AK35+1 -> 2054 | AM35: 2055 | AN35: 2056 | AO35: 2057 | AP35: 2058 | AQ35: 2059 | AR35: 2060 | AS35: 2061 | AT35: 2062 | AU35: 2063 | AV35: 2064 | AW35: 2065 | AX35: 2066 | AY35: 2067 | AZ35: 2068 | BA35: 2069 | BB35: 2070 | BC35: 2071 | BD35: 2072 | BE35: 2073 | BF35: 2074 | BG35: 2075 | BH35: 2076 | BI35: 2077 | BJ35: 2078 | BK35: 2079 | BL35: 2080 | BM35: 2081 | BN35: 2082 | BO35: 2083 | BP35: 2084 | BQ35: 2085 | BR35: 2086 | BS35: 2087
C36: Cost 1 | D36: e.g. reinforcement capex
C37: Cost 2
C38: Cost 3
C39: Losses derogation calculation | D39: Total | E39: =IF(AND(E36="",E37="",E38=""),"",SUM(E36:E38)) ->  | F39: =IF(AND(F36="",F37="",F38=""),"",SUM(F36:F38)) ->  | BR39: =IF(AND(BR36="",BR37="",BR38=""),"",SUM(BR36:BR38)) -> 

Sheet Societal Impacts
A1: DO NOT FILL IN
A2: Societal Impacts
B4: GUIDANCE
B5: - This tab allows for the user to enter the societal impacts for each scenario as appropriate - The societal impacts can be entered as manual entries or the user can provide background workings in the Workings tab. - The categories of societal impats as well as the calculation of costs and/or benefits resulting from these follows the Ofgem CBA template and should be updated according to the RIIO ED2 methodology when available
B6: Costs should be entered as positive values. In turn, Benefits (i.e. avoided costs) should be entered as negative values.
E7: 2020 | F7: 2021 | G7: 2022 | H7: 2023 | I7: 2024 | J7: 2025 | K7: 2026 | L7: 2027 | M7: 2028 | N7: 2029 | O7: 2030 | P7: 2031 | Q7: 2032 | R7: 2033 | S7: 2034 | T7: 2035 | U7: 2036 | V7: 2037 | W7: 2038 | X7: 2039 | Y7: 2040 | Z7: 2041 | AA7: 2042 | AB7: 2043 | AC7: 2044 | AD7: 2045 | AE7: 2046 | AF7: 2047 | AG7: 2048 | AH7: 2049 | AI7: 2050 | AJ7: 2051 | AK7: 2052 | AL7: 2053 | AM7: 2054 | AN7: 2055 | AO7: 2056 | AP7: 2057 | AQ7: 2058 | AR7: 2059 | AS7: 2060 | AT7: 2061 | AU7: 2062 | AV7: 2063 | AW7: 2064 | AX7: 2065 | AY7: 2066 | AZ7: 2067 | BA7: 2068 | BB7: 2069 | BC7: 2070 | BD7: 2071 | BE7: 2072 | BF7: 2073 | BG7: 2074 | BH7: 2075 | BI7: 2076 | BJ7: 2077 | BK7: 2078 | BL7: 2079 | BM7: 2080 | BN7: 2081 | BO7: 2082 | BP7: 2083 | BQ7: 2084 | BR7: 2085 | BS7: 2086
B8: Losses
C9: Reduced losses (MWh)
D10: ='Reinforcement Deferral'!$C$39 -> Losses derogation calculation | E10: =IF(E7<'Losses Derogation Inputs'!$D$15+('Losses Derogation Inputs'!$D$7+1),HLOOKUP(E7,'Losses Derogation Inputs'!$C$41:$AU$53,12,TRUE),0) -> 0 | F10: =IF(F7<'Losses Derogation Inputs'!$D$15+('Losses Derogation Inputs'!$D$7+1),HLOOKUP(F7,'Losses Derogation Inputs'!$C$41:$AU$53,12,TRUE),0) -> 0 | G10: =IF(G7<'Losses Derogation Inputs'!$D$15+('Losses Derogation Inputs'!$D$7+1),HLOOKUP(G7,'Losses Derogation Inputs'!$C$41:$AU$53,12,TRUE),0) -> 0 | H10: =IF(H7<'Losses Derogation Inputs'!$D$15+('Losses Derogation Inputs'!$D$7+1),HLOOKUP(H7,'Losses Derogation Inputs'!$C$41:$AU$53,12,TRUE),0) -> 0 | I10: =IF(I7<'Losses Derogation Inputs'!$D$15+('Losses Derogation Inputs'!$D$7+1),HLOOKUP(I7,'Losses Derogation Inputs'!$C$41:$AU$53,12,TRUE),0) -> 0 | J10: =IF(J7<'Losses Derogation Inputs'!$D$15+('Losses Derogation Inputs'!$D$7+1),HLOOKUP(J7,'Losses Derogation Inputs'!$C$41:$AU$53,12,TRUE),0) -> 0 | K10: =IF(K7<'Losses Derogation Inputs'!$D$15+('Losses Derogation Inputs'!$D$7+1),HLOOKUP(K7,'Losses Derogation Inputs'!$C$41:$AU$53,12,TRUE),0) -> 0 | L10: =IF(L7<'Losses Derogation Inputs'!$D$15+('Losses Derogation Inputs'!$D$7+1),HLOOKUP(L7,'Losses Derogation Inputs'!$C$41:$AU$53,12,TRUE),0) -> 0 | M10: =IF(M7<'Losses Derogation Inputs'!$D$15+('Losses Derogation Inputs'!$D$7+1),HLOOKUP(M7,'Losses Derogation Inputs'!$C$41:$AU$53,12,TRUE),0) -> 0 | N10: =IF(N7<'Losses Derogation Inputs'!$D$15+('Losses Derogation Inputs'!$D$7+1),HLOOKUP(N7,'Losses Derogation Inputs'!$C$41:$AU$53,12,TRUE),0) -> 0 | O10: =IF(O7<'Losses Derogation Inputs'!$D$15+('Losses Derogation Inputs'!$D$7+1),HLOOKUP(O7,'Losses Derogation Inputs'!$C$41:$AU$53,12,TRUE),0) -> 0 | P10: =IF(P7<'Losses Derogation Inputs'!$D$15+('Losses Derogation Inputs'!$D$7+1),HLOOKUP(P7,'Losses Derogation Inputs'!$C$41:$AU$53,12,TRUE),0) -> 0 | Q10: =IF(Q7<'Losses Derogation Inputs'!$D$15+('Losses Derogation Inputs'!$D$7+1),HLOOKUP(Q7,'Losses Derogation Inputs'!$C$41:$AU$53,12,TRUE),0) -> 0 | R10: =IF(R7<'Losses Derogation Inputs'!$D$15+('Losses Derogation Inputs'!$D$7+1),HLOOKUP(R7,'Losses Derogation Inputs'!$C$41:$AU$53,12,TRUE),0) -> 0 | S10: =IF(S7<'Losses Derogation Inputs'!$D$15+('Losses Derogation Inputs'!$D$7+1),HLOOKUP(S7,'Losses Derogation Inputs'!$C$41:$AU$53,12,TRUE),0) -> 0 | T10: =IF(T7<'Losses Derogation Inputs'!$D$15+('Losses Derogation Inputs'!$D$7+1),HLOOKUP(T7,'Losses Derogation Inputs'!$C$41:$AU$53,12,TRUE),0) -> 0 | U10: =IF(U7<'Losses Derogation Inputs'!$D$15+('Losses Derogation Inputs'!$D$7+1),HLOOKUP(U7,'Losses Derogation Inputs'!$C$41:$AU$53,12,TRUE),0) -> 0 | V10: =IF(V7<'Losses Derogation Inputs'!$D$15+('Losses Derogation Inputs'!$D$7+1),HLOOKUP(V7,'Losses Derogation Inputs'!$C$41:$AU$53,12,TRUE),0) -> 0 | W10: =IF(W7<'Losses Derogation Inputs'!$D$15+('Losses Derogation Inputs'!$D$7+1),HLOOKUP(W7,'Losses Derogation Inputs'!$C$41:$AU$53,12,TRUE),0) -> 0 | X10: =IF(X7<'Losses Derogation Inputs'!$D$15+('Losses Derogation Inputs'!$D$7+1),HLOOKUP(X7,'Losses Derogation Inputs'!$C$41:$AU$53,12,TRUE),0) -> 0 | Y10: =IF(Y7<'Losses Derogation Inputs'!$D$15+('Losses Derogation Inputs'!$D$7+1),HLOOKUP(Y7,'Losses Derogation Inputs'!$C$41:$AU$53,12,TRUE),0) -> 0 | Z10: =IF(Z7<'Losses Derogation Inputs'!$D$15+('Losses Derogation Inputs'!$D$7+1),HLOOKUP(Z7,'Losses Derogation Inputs'!$C$41:$AU$53,12,TRUE),0) -> 0 | AA10: =IF(AA7<'Losses Derogation Inputs'!$D$15+('Losses Derogation Inputs'!$D$7+1),HLOOKUP(AA7,'Losses Derogation Inputs'!$C$41:$AU$53,12,TRUE),0) -> 0 | AB10: =IF(AB7<'Losses Derogation Inputs'!$D$15+('Losses Derogation Inputs'!$D$7+1),HLOOKUP(AB7,'Losses Derogation Inputs'!$C$41:$AU$53,12,TRUE),0) -> 0 | AC10: =IF(AC7<'Losses Derogation Inputs'!$D$15+('Losses Derogation Inputs'!$D$7+1),HLOOKUP(AC7,'Losses Derogation Inputs'!$C$41:$AU$53,12,TRUE),0) -> 0 | AD10: =IF(AD7<'Losses Derogation Inputs'!$D$15+('Losses Derogation Inputs'!$D$7+1),HLOOKUP(AD7,'Losses Derogation Inputs'!$C$41:$AU$53,12,TRUE),0) -> 0 | AE10: =IF(AE7<'Losses Derogation Inputs'!$D$15+('Losses Derogation Inputs'!$D$7+1),HLOOKUP(AE7,'Losses Derogation Inputs'!$C$41:$AU$53,12,TRUE),0) -> 0 | AF10: =IF(AF7<'Losses Derogation Inputs'!$D$15+('Losses Derogation Inputs'!$D$7+1),HLOOKUP(AF7,'Losses Derogation Inputs'!$C$41:$AU$53,12,TRUE),0) -> 0 | AG10: =IF(AG7<'Losses Derogation Inputs'!$D$15+('Losses Derogation Inputs'!$D$7+1),HLOOKUP(AG7,'Losses Derogation Inputs'!$C$41:$AU$53,12,TRUE),0) -> 0 | AH10: =IF(AH7<'Losses Derogation Inputs'!$D$15+('Losses Derogation Inputs'!$D$7+1),HLOOKUP(AH7,'Losses Derogation Inputs'!$C$41:$AU$53,12,TRUE),0) -> 0 | AI10: =IF(AI7<'Losses Derogation Inputs'!$D$15+('Losses Derogation Inputs'!$D$7+1),HLOOKUP(AI7,'Losses Derogation Inputs'!$C$41:$AU$53,12,TRUE),0) -> 0 | AJ10: =IF(AJ7<'Losses Derogation Inputs'!$D$15+('Losses Derogation Inputs'!$D$7+1),HLOOKUP(AJ7,'Losses Derogation Inputs'!$C$41:$AU$53,12,TRUE),0) -> 0 | AK10: =IF(AK7<'Losses Derogation Inputs'!$D$15+('Losses Derogation Inputs'!$D$7+1),HLOOKUP(AK7,'Losses Derogation Inputs'!$C$41:$AU$53,12,TRUE),0) -> 0 | AL10: =IF(AL7<'Losses Derogation Inputs'!$D$15+('Losses Derogation Inputs'!$D$7+1),HLOOKUP(AL7,'Losses Derogation Inputs'!$C$41:$AU$53,12,TRUE),0) -> 0 | AM10: =IF(AM7<'Losses Derogation Inputs'!$D$15+('Losses Derogation Inputs'!$D$7+1),HLOOKUP(AM7,'Losses Derogation Inputs'!$C$41:$AU$53,12,TRUE),0) -> 0 | AN10: =IF(AN7<'Losses Derogation Inputs'!$D$15+('Losses Derogation Inputs'!$D$7+1),HLOOKUP(AN7,'Losses Derogation Inputs'!$C$41:$AU$53,12,TRUE),0) -> 0 | AO10: =IF(AO7<'Losses Derogation Inputs'!$D$15+('Losses Derogation Inputs'!$D$7+1),HLOOKUP(AO7,'Losses Derogation Inputs'!$C$41:$AU$53,12,TRUE),0) -> 0 | AP10: =IF(AP7<'Losses Derogation Inputs'!$D$15+('Losses Derogation Inputs'!$D$7+1),HLOOKUP(AP7,'Losses Derogation Inputs'!$C$41:$AU$53,12,TRUE),0) -> 0 | AQ10: =IF(AQ7<'Losses Derogation Inputs'!$D$15+('Losses Derogation Inputs'!$D$7+1),HLOOKUP(AQ7,'Losses Derogation Inputs'!$C$41:$AU$53,12,TRUE),0) -> 0 | AR10: =IF(AR7<'Losses Derogation Inputs'!$D$15+('Losses Derogation Inputs'!$D$7+1),HLOOKUP(AR7,'Losses Derogation Inputs'!$C$41:$AU$53,12,TRUE),0) -> 0 | AS10: =IF(AS7<'Losses Derogation Inputs'!$D$15+('Losses Derogation Inputs'!$D$7+1),HLOOKUP(AS7,'Losses Derogation Inputs'!$C$41:$AU$53,12,TRUE),0) -> 0 | AT10: =IF(AT7<'Losses Derogation Inputs'!$D$15+('Losses Derogation Inputs'!$D$7+1),HLOOKUP(AT7,'Losses Derogation Inputs'!$C$41:$AU$53,12,TRUE),0) -> 0 | AU10: =IF(AU7<'Losses Derogation Inputs'!$D$15+('Losses Derogation Inputs'!$D$7+1),HLOOKUP(AU7,'Losses Derogation Inputs'!$C$41:$AU$53,12,TRUE),0) -> 0 | AV10: =IF(AV7<'Losses Derogation Inputs'!$D$15+('Losses Derogation Inputs'!$D$7+1),HLOOKUP(AV7,'Losses Derogation Inputs'!$C$41:$AU$53,12,TRUE),0) -> 0 | AW10: =IF(AW7<'Losses Derogation Inputs'!$D$15+('Losses Derogation Inputs'!$D$7+1),HLOOKUP(AW7,'Losses Derogation Inputs'!$C$41:$AU$53,12,TRUE),0) -> 0 | AX10: =IF(AX7<'Losses Derogation Inputs'!$D$15+('Losses Derogation Inputs'!$D$7+1),HLOOKUP(AX7,'Losses Derogation Inputs'!$C$41:$AU$53,12,TRUE),0) -> 0 | AY10: =IF(AY7<'Losses Derogation Inputs'!$D$15+('Losses Derogation Inputs'!$D$7+1),HLOOKUP(AY7,'Losses Derogation Inputs'!$C$41:$AU$53,12,TRUE),0) -> 0 | AZ10: =IF(AZ7<'Losses Derogation Inputs'!$D$15+('Losses Derogation Inputs'!$D$7+1),HLOOKUP(AZ7,'Losses Derogation Inputs'!$C$41:$AU$53,12,TRUE),0) -> 0 | BA10: =IF(BA7<'Losses Derogation Inputs'!$D$15+('Losses Derogation Inputs'!$D$7+1),HLOOKUP(BA7,'Losses Derogation Inputs'!$C$41:$AU$53,12,TRUE),0) -> 0 | BB10: =IF(BB7<'Losses Derogation Inputs'!$D$15+('Losses Derogation Inputs'!$D$7+1),HLOOKUP(BB7,'Losses Derogation Inputs'!$C$41:$AU$53,12,TRUE),0) -> 0 | BC10: =IF(BC7<'Losses Derogation Inputs'!$D$15+('Losses Derogation Inputs'!$D$7+1),HLOOKUP(BC7,'Losses Derogation Inputs'!$C$41:$AU$53,12,TRUE),0) -> 0 | BD10: =IF(BD7<'Losses Derogation Inputs'!$D$15+('Losses Derogation Inputs'!$D$7+1),HLOOKUP(BD7,'Losses Derogation Inputs'!$C$41:$AU$53,12,TRUE),0) -> 0 | BE10: =IF(BE7<'Losses Derogation Inputs'!$D$15+('Losses Derogation Inputs'!$D$7+1),HLOOKUP(BE7,'Losses Derogation Inputs'!$C$41:$AU$53,12,TRUE),0) -> 0 | BF10: =IF(BF7<'Losses Derogation Inputs'!$D$15+('Losses Derogation Inputs'!$D$7+1),HLOOKUP(BF7,'Losses Derogation Inputs'!$C$41:$AU$53,12,TRUE),0) -> 0 | BG10: =IF(BG7<'Losses Derogation Inputs'!$D$15+('Losses Derogation Inputs'!$D$7+1),HLOOKUP(BG7,'Losses Derogation Inputs'!$C$41:$AU$53,12,TRUE),0) -> 0 | BH10: =IF(BH7<'Losses Derogation Inputs'!$D$15+('Losses Derogation Inputs'!$D$7+1),HLOOKUP(BH7,'Losses Derogation Inputs'!$C$41:$AU$53,12,TRUE),0) -> 0 | BI10: =IF(BI7<'Losses Derogation Inputs'!$D$15+('Losses Derogation Inputs'!$D$7+1),HLOOKUP(BI7,'Losses Derogation Inputs'!$C$41:$AU$53,12,TRUE),0) -> 0 | BJ10: =IF(BJ7<'Losses Derogation Inputs'!$D$15+('Losses Derogation Inputs'!$D$7+1),HLOOKUP(BJ7,'Losses Derogation Inputs'!$C$41:$AU$53,12,TRUE),0) -> 0 | BK10: =IF(BK7<'Losses Derogation Inputs'!$D$15+('Losses Derogation Inputs'!$D$7+1),HLOOKUP(BK7,'Losses Derogation Inputs'!$C$41:$AU$53,12,TRUE),0) -> 0 | BL10: =IF(BL7<'Losses Derogation Inputs'!$D$15+('Losses Derogation Inputs'!$D$7+1),HLOOKUP(BL7,'Losses Derogation Inputs'!$C$41:$AU$53,12,TRUE),0) -> 0 | BM10: =IF(BM7<'Losses Derogation Inputs'!$D$15+('Losses Derogation Inputs'!$D$7+1),HLOOKUP(BM7,'Losses Derogation Inputs'!$C$41:$AU$53,12,TRUE),0) -> 0 | BN10: =IF(BN7<'Losses Derogation Inputs'!$D$15+('Losses Derogation Inputs'!$D$7+1),HLOOKUP(BN7,'Losses Derogation Inputs'!$C$41:$AU$53,12,TRUE),0) -> 0 | BO10: =IF(BO7<'Losses Derogation Inputs'!$D$15+('Losses Derogation Inputs'!$D$7+1),HLOOKUP(BO7,'Losses Derogation Inputs'!$C$41:$AU$53,12,TRUE),0) -> 0 | BP10: =IF(BP7<'Losses Derogation Inputs'!$D$15+('Losses Derogation Inputs'!$D$7+1),HLOOKUP(BP7,'Losses Derogation Inputs'!$C$41:$AU$53,12,TRUE),0) -> 0 | BQ10: =IF(BQ7<'Losses Derogation Inputs'!$D$15+('Losses Derogation Inputs'!$D$7+1),HLOOKUP(BQ7,'Losses Derogation Inputs'!$C$41:$AU$53,12,TRUE),0) -> 0 | BR10: =IF(BR7<'Losses Derogation Inputs'!$D$15+('Losses Derogation Inputs'!$D$7+1),HLOOKUP(BR7,'Losses Derogation Inputs'!$C$41:$AU$53,12,TRUE),0) -> 0 | BS10: =IF(BS7<'Losses Derogation Inputs'!$D$15+('Losses Derogation Inputs'!$D$7+1),HLOOKUP(BS7,'Losses Derogation Inputs'!$C$41:$AU$53,12,TRUE),0) -> 0
D11: ='Flexibility Requirements'!$C$11 -> 0
D12: ='Flexibility Requirements'!$C$12 -> 0
D13: ='Flexibility Requirements'!$C$13 -> 0
D14: ='Flexibility Requirements'!$C$14 -> 0
D15: ='Flexibility Requirements'!$C$15 -> 0
C16: Reduced losses (£)
D17: ='Reinforcement Deferral'!$C$39 -> Losses derogation calculation | E17: ='Fixed Inputs'!$K$10*E10 -> 0 | F17: ='Fixed Inputs'!$K$10*F10 -> 0 | G17: ='Fixed Inputs'!$K$10*G10 -> 0 | H17: ='Fixed Inputs'!$K$10*H10 -> 0 | I17: ='Fixed Inputs'!$K$10*I10 -> 0 | J17: ='Fixed Inputs'!$K$10*J10 -> 0 | K17: ='Fixed Inputs'!$K$10*K10 -> 0 | L17: ='Fixed Inputs'!$K$10*L10 -> 0 | M17: ='Fixed Inputs'!$K$10*M10 -> 0 | N17: ='Fixed Inputs'!$K$10*N10 -> 0 | O17: ='Fixed Inputs'!$K$10*O10 -> 0 | P17: ='Fixed Inputs'!$K$10*P10 -> 0 | Q17: ='Fixed Inputs'!$K$10*Q10 -> 0 | R17: ='Fixed Inputs'!$K$10*R10 -> 0 | S17: ='Fixed Inputs'!$K$10*S10 -> 0 | T17: ='Fixed Inputs'!$K$10*T10 -> 0 | U17: ='Fixed Inputs'!$K$10*U10 -> 0 | V17: ='Fixed Inputs'!$K$10*V10 -> 0 | W17: ='Fixed Inputs'!$K$10*W10 -> 0 | X17: ='Fixed Inputs'!$K$10*X10 -> 0 | Y17: ='Fixed Inputs'!$K$10*Y10 -> 0 | Z17: ='Fixed Inputs'!$K$10*Z10 -> 0 | AA17: ='Fixed Inputs'!$K$10*AA10 -> 0 | AB17: ='Fixed Inputs'!$K$10*AB10 -> 0 | AC17: ='Fixed Inputs'!$K$10*AC10 -> 0 | AD17: ='Fixed Inputs'!$K$10*AD10 -> 0 | AE17: ='Fixed Inputs'!$K$10*AE10 -> 0 | AF17: ='Fixed Inputs'!$K$10*AF10 -> 0 | AG17: ='Fixed Inputs'!$K$10*AG10 -> 0 | AH17: ='Fixed Inputs'!$K$10*AH10 -> 0 | AI17: ='Fixed Inputs'!$K$10*AI10 -> 0 | AJ17: ='Fixed Inputs'!$K$10*AJ10 -> 0 | AK17: ='Fixed Inputs'!$K$10*AK10 -> 0 | AL17: ='Fixed Inputs'!$K$10*AL10 -> 0 | AM17: ='Fixed Inputs'!$K$10*AM10 -> 0 | AN17: ='Fixed Inputs'!$K$10*AN10 -> 0 | AO17: ='Fixed Inputs'!$K$10*AO10 -> 0 | AP17: ='Fixed Inputs'!$K$10*AP10 -> 0 | AQ17: ='Fixed Inputs'!$K$10*AQ10 -> 0 | AR17: ='Fixed Inputs'!$K$10*AR10 -> 0 | AS17: ='Fixed Inputs'!$K$10*AS10 -> 0 | AT17: ='Fixed Inputs'!$K$10*AT10 -> 0 | AU17: ='Fixed Inputs'!$K$10*AU10 -> 0 | AV17: ='Fixed Inputs'!$K$10*AV10 -> 0 | AW17: ='Fixed Inputs'!$K$10*AW10 -> 0 | AX17: ='Fixed Inputs'!$K$10*AX10 -> 0 | AY17: ='Fixed Inputs'!$K$10*AY10 -> 0 | AZ17: ='Fixed Inputs'!$K$10*AZ10 -> 0 | BA17: ='Fixed Inputs'!$K$10*BA10 -> 0 | BB17: ='Fixed Inputs'!$K$10*BB10 -> 0 | BC17: ='Fixed Inputs'!$K$10*BC10 -> 0 | BD17: ='Fixed Inputs'!$K$10*BD10 -> 0 | BE17: ='Fixed Inputs'!$K$10*BE10 -> 0 | BF17: ='Fixed Inputs'!$K$10*BF10 -> 0 | BG17: ='Fixed Inputs'!$K$10*BG10 -> 0 | BH17: ='Fixed Inputs'!$K$10*BH10 -> 0 | BI17: ='Fixed Inputs'!$K$10*BI10 -> 0 | BJ17: ='Fixed Inputs'!$K$10*BJ10 -> 0 | BK17: ='Fixed Inputs'!$K$10*BK10 -> 0 | BL17: ='Fixed Inputs'!$K$10*BL10 -> 0 | BM17: ='Fixed Inputs'!$K$10*BM10 -> 0 | BN17: ='Fixed Inputs'!$K$10*BN10 -> 0 | BO17: ='Fixed Inputs'!$K$10*BO10 -> 0 | BP17: ='Fixed Inputs'!$K$10*BP10 -> 0 | BQ17: ='Fixed Inputs'!$K$10*BQ10 -> 0 | BR17: ='Fixed Inputs'!$K$10*BR10 -> 0 | BS17: ='Fixed Inputs'!$K$10*BS10 -> 0
D18: ='Flexibility Requirements'!$C$11 -> 0 | E18: ='Fixed Inputs'!$K$10*E11 -> 0 | F18: ='Fixed Inputs'!$K$10*F11 -> 0 | G18: ='Fixed Inputs'!$K$10*G11 -> 0 | H18: ='Fixed Inputs'!$K$10*H11 -> 0 | I18: ='Fixed Inputs'!$K$10*I11 -> 0 | J18: ='Fixed Inputs'!$K$10*J11 -> 0 | K18: ='Fixed Inputs'!$K$10*K11 -> 0 | L18: ='Fixed Inputs'!$K$10*L11 -> 0 | M18: ='Fixed Inputs'!$K$10*M11 -> 0 | N18: ='Fixed Inputs'!$K$10*N11 -> 0 | O18: ='Fixed Inputs'!$K$10*O11 -> 0 | P18: ='Fixed Inputs'!$K$10*P11 -> 0 | Q18: ='Fixed Inputs'!$K$10*Q11 -> 0 | R18: ='Fixed Inputs'!$K$10*R11 -> 0 | S18: ='Fixed Inputs'!$K$10*S11 -> 0 | T18: ='Fixed Inputs'!$K$10*T11 -> 0 | U18: ='Fixed Inputs'!$K$10*U11 -> 0 | V18: ='Fixed Inputs'!$K$10*V11 -> 0 | W18: ='Fixed Inputs'!$K$10*W11 -> 0 | X18: ='Fixed Inputs'!$K$10*X11 -> 0 | Y18: ='Fixed Inputs'!$K$10*Y11 -> 0 | Z18: ='Fixed Inputs'!$K$10*Z11 -> 0 | AA18: ='Fixed Inputs'!$K$10*AA11 -> 0 | AB18: ='Fixed Inputs'!$K$10*AB11 -> 0 | AC18: ='Fixed Inputs'!$K$10*AC11 -> 0 | AD18: ='Fixed Inputs'!$K$10*AD11 -> 0 | AE18: ='Fixed Inputs'!$K$10*AE11 -> 0 | AF18: ='Fixed Inputs'!$K$10*AF11 -> 0 | AG18: ='Fixed Inputs'!$K$10*AG11 -> 0 | AH18: ='Fixed Inputs'!$K$10*AH11 -> 0 | AI18: ='Fixed Inputs'!$K$10*AI11 -> 0 | AJ18: ='Fixed Inputs'!$K$10*AJ11 -> 0 | AK18: ='Fixed Inputs'!$K$10*AK11 -> 0 | AL18: ='Fixed Inputs'!$K$10*AL11 -> 0 | AM18: ='Fixed Inputs'!$K$10*AM11 -> 0 | AN18: ='Fixed Inputs'!$K$10*AN11 -> 0 | AO18: ='Fixed Inputs'!$K$10*AO11 -> 0 | AP18: ='Fixed Inputs'!$K$10*AP11 -> 0 | AQ18: ='Fixed Inputs'!$K$10*AQ11 -> 0 | AR18: ='Fixed Inputs'!$K$10*AR11 -> 0 | AS18: ='Fixed Inputs'!$K$10*AS11 -> 0 | AT18: ='Fixed Inputs'!$K$10*AT11 -> 0 | AU18: ='Fixed Inputs'!$K$10*AU11 -> 0 | AV18: ='Fixed Inputs'!$K$10*AV11 -> 0 | AW18: ='Fixed Inputs'!$K$10*AW11 -> 0 | AX18: ='Fixed Inputs'!$K$10*AX11 -> 0 | AY18: ='Fixed Inputs'!$K$10*AY11 -> 0 | AZ18: ='Fixed Inputs'!$K$10*AZ11 -> 0 | BA18: ='Fixed Inputs'!$K$10*BA11 -> 0 | BB18: ='Fixed Inputs'!$K$10*BB11 -> 0 | BC18: ='Fixed Inputs'!$K$10*BC11 -> 0 | BD18: ='Fixed Inputs'!$K$10*BD11 -> 0 | BE18: ='Fixed Inputs'!$K$10*BE11 -> 0 | BF18: ='Fixed Inputs'!$K$10*BF11 -> 0 | BG18: ='Fixed Inputs'!$K$10*BG11 -> 0 | BH18: ='Fixed Inputs'!$K$10*BH11 -> 0 | BI18: ='Fixed Inputs'!$K$10*BI11 -> 0 | BJ18: ='Fixed Inputs'!$K$10*BJ11 -> 0 | BK18: ='Fixed Inputs'!$K$10*BK11 -> 0 | BL18: ='Fixed Inputs'!$K$10*BL11 -> 0 | BM18: ='Fixed Inputs'!$K$10*BM11 -> 0 | BN18: ='Fixed Inputs'!$K$10*BN11 -> 0 | BO18: ='Fixed Inputs'!$K$10*BO11 -> 0 | BP18: ='Fixed Inputs'!$K$10*BP11 -> 0 | BQ18: ='Fixed Inputs'!$K$10*BQ11 -> 0 | BR18: ='Fixed Inputs'!$K$10*BR11 -> 0 | BS18: ='Fixed Inputs'!$K$10*BS11 -> 0
D19: ='Flexibility Requirements'!$C$12 -> 0 | E19: ='Fixed Inputs'!$K$10*E12 -> 0 | F19: ='Fixed Inputs'!$K$10*F12 -> 0 | G19: ='Fixed Inputs'!$K$10*G12 -> 0 | H19: ='Fixed Inputs'!$K$10*H12 -> 0 | I19: ='Fixed Inputs'!$K$10*I12 -> 0 | J19: ='Fixed Inputs'!$K$10*J12 -> 0 | K19: ='Fixed Inputs'!$K$10*K12 -> 0 | L19: ='Fixed Inputs'!$K$10*L12 -> 0 | M19: ='Fixed Inputs'!$K$10*M12 -> 0 | N19: ='Fixed Inputs'!$K$10*N12 -> 0 | O19: ='Fixed Inputs'!$K$10*O12 -> 0 | P19: ='Fixed Inputs'!$K$10*P12 -> 0 | Q19: ='Fixed Inputs'!$K$10*Q12 -> 0 | R19: ='Fixed Inputs'!$K$10*R12 -> 0 | S19: ='Fixed Inputs'!$K$10*S12 -> 0 | T19: ='Fixed Inputs'!$K$10*T12 -> 0 | U19: ='Fixed Inputs'!$K$10*U12 -> 0 | V19: ='Fixed Inputs'!$K$10*V12 -> 0 | W19: ='Fixed Inputs'!$K$10*W12 -> 0 | X19: ='Fixed Inputs'!$K$10*X12 -> 0 | Y19: ='Fixed Inputs'!$K$10*Y12 -> 0 | Z19: ='Fixed Inputs'!$K$10*Z12 -> 0 | AA19: ='Fixed Inputs'!$K$10*AA12 -> 0 | AB19: ='Fixed Inputs'!$K$10*AB12 -> 0 | AC19: ='Fixed Inputs'!$K$10*AC12 -> 0 | AD19: ='Fixed Inputs'!$K$10*AD12 -> 0 | AE19: ='Fixed Inputs'!$K$10*AE12 -> 0 | AF19: ='Fixed Inputs'!$K$10*AF12 -> 0 | AG19: ='Fixed Inputs'!$K$10*AG12 -> 0 | AH19: ='Fixed Inputs'!$K$10*AH12 -> 0 | AI19: ='Fixed Inputs'!$K$10*AI12 -> 0 | AJ19: ='Fixed Inputs'!$K$10*AJ12 -> 0 | AK19: ='Fixed Inputs'!$K$10*AK12 -> 0 | AL19: ='Fixed Inputs'!$K$10*AL12 -> 0 | AM19: ='Fixed Inputs'!$K$10*AM12 -> 0 | AN19: ='Fixed Inputs'!$K$10*AN12 -> 0 | AO19: ='Fixed Inputs'!$K$10*AO12 -> 0 | AP19: ='Fixed Inputs'!$K$10*AP12 -> 0 | AQ19: ='Fixed Inputs'!$K$10*AQ12 -> 0 | AR19: ='Fixed Inputs'!$K$10*AR12 -> 0 | AS19: ='Fixed Inputs'!$K$10*AS12 -> 0 | AT19: ='Fixed Inputs'!$K$10*AT12 -> 0 | AU19: ='Fixed Inputs'!$K$10*AU12 -> 0 | AV19: ='Fixed Inputs'!$K$10*AV12 -> 0 | AW19: ='Fixed Inputs'!$K$10*AW12 -> 0 | AX19: ='Fixed Inputs'!$K$10*AX12 -> 0 | AY19: ='Fixed Inputs'!$K$10*AY12 -> 0 | AZ19: ='Fixed Inputs'!$K$10*AZ12 -> 0 | BA19: ='Fixed Inputs'!$K$10*BA12 -> 0 | BB19: ='Fixed Inputs'!$K$10*BB12 -> 0 | BC19: ='Fixed Inputs'!$K$10*BC12 -> 0 | BD19: ='Fixed Inputs'!$K$10*BD12 -> 0 | BE19: ='Fixed Inputs'!$K$10*BE12 -> 0 | BF19: ='Fixed Inputs'!$K$10*BF12 -> 0 | BG19: ='Fixed Inputs'!$K$10*BG12 -> 0 | BH19: ='Fixed Inputs'!$K$10*BH12 -> 0 | BI19: ='Fixed Inputs'!$K$10*BI12 -> 0 | BJ19: ='Fixed Inputs'!$K$10*BJ12 -> 0 | BK19: ='Fixed Inputs'!$K$10*BK12 -> 0 | BL19: ='Fixed Inputs'!$K$10*BL12 -> 0 | BM19: ='Fixed Inputs'!$K$10*BM12 -> 0 | BN19: ='Fixed Inputs'!$K$10*BN12 -> 0 | BO19: ='Fixed Inputs'!$K$10*BO12 -> 0 | BP19: ='Fixed Inputs'!$K$10*BP12 -> 0 | BQ19: ='Fixed Inputs'!$K$10*BQ12 -> 0 | BR19: ='Fixed Inputs'!$K$10*BR12 -> 0 | BS19: ='Fixed Inputs'!$K$10*BS12 -> 0
D20: ='Flexibility Requirements'!$C$13 -> 0 | E20: ='Fixed Inputs'!$K$10*E13 -> 0 | F20: ='Fixed Inputs'!$K$10*F13 -> 0 | G20: ='Fixed Inputs'!$K$10*G13 -> 0 | H20: ='Fixed Inputs'!$K$10*H13 -> 0 | I20: ='Fixed Inputs'!$K$10*I13 -> 0 | J20: ='Fixed Inputs'!$K$10*J13 -> 0 | K20: ='Fixed Inputs'!$K$10*K13 -> 0 | L20: ='Fixed Inputs'!$K$10*L13 -> 0 | M20: ='Fixed Inputs'!$K$10*M13 -> 0 | N20: ='Fixed Inputs'!$K$10*N13 -> 0 | O20: ='Fixed Inputs'!$K$10*O13 -> 0 | P20: ='Fixed Inputs'!$K$10*P13 -> 0 | Q20: ='Fixed Inputs'!$K$10*Q13 -> 0 | R20: ='Fixed Inputs'!$K$10*R13 -> 0 | S20: ='Fixed Inputs'!$K$10*S13 -> 0 | T20: ='Fixed Inputs'!$K$10*T13 -> 0 | U20: ='Fixed Inputs'!$K$10*U13 -> 0 | V20: ='Fixed Inputs'!$K$10*V13 -> 0 | W20: ='Fixed Inputs'!$K$10*W13 -> 0 | X20: ='Fixed Inputs'!$K$10*X13 -> 0 | Y20: ='Fixed Inputs'!$K$10*Y13 -> 0 | Z20: ='Fixed Inputs'!$K$10*Z13 -> 0 | AA20: ='Fixed Inputs'!$K$10*AA13 -> 0 | AB20: ='Fixed Inputs'!$K$10*AB13 -> 0 | AC20: ='Fixed Inputs'!$K$10*AC13 -> 0 | AD20: ='Fixed Inputs'!$K$10*AD13 -> 0 | AE20: ='Fixed Inputs'!$K$10*AE13 -> 0 | AF20: ='Fixed Inputs'!$K$10*AF13 -> 0 | AG20: ='Fixed Inputs'!$K$10*AG13 -> 0 | AH20: ='Fixed Inputs'!$K$10*AH13 -> 0 | AI20: ='Fixed Inputs'!$K$10*AI13 -> 0 | AJ20: ='Fixed Inputs'!$K$10*AJ13 -> 0 | AK20: ='Fixed Inputs'!$K$10*AK13 -> 0 | AL20: ='Fixed Inputs'!$K$10*AL13 -> 0 | AM20: ='Fixed Inputs'!$K$10*AM13 -> 0 | AN20: ='Fixed Inputs'!$K$10*AN13 -> 0 | AO20: ='Fixed Inputs'!$K$10*AO13 -> 0 | AP20: ='Fixed Inputs'!$K$10*AP13 -> 0 | AQ20: ='Fixed Inputs'!$K$10*AQ13 -> 0 | AR20: ='Fixed Inputs'!$K$10*AR13 -> 0 | AS20: ='Fixed Inputs'!$K$10*AS13 -> 0 | AT20: ='Fixed Inputs'!$K$10*AT13 -> 0 | AU20: ='Fixed Inputs'!$K$10*AU13 -> 0 | AV20: ='Fixed Inputs'!$K$10*AV13 -> 0 | AW20: ='Fixed Inputs'!$K$10*AW13 -> 0 | AX20: ='Fixed Inputs'!$K$10*AX13 -> 0 | AY20: ='Fixed Inputs'!$K$10*AY13 -> 0 | AZ20: ='Fixed Inputs'!$K$10*AZ13 -> 0 | BA20: ='Fixed Inputs'!$K$10*BA13 -> 0 | BB20: ='Fixed Inputs'!$K$10*BB13 -> 0 | BC20: ='Fixed Inputs'!$K$10*BC13 -> 0 | BD20: ='Fixed Inputs'!$K$10*BD13 -> 0 | BE20: ='Fixed Inputs'!$K$10*BE13 -> 0 | BF20: ='Fixed Inputs'!$K$10*BF13 -> 0 | BG20: ='Fixed Inputs'!$K$10*BG13 -> 0 | BH20: ='Fixed Inputs'!$K$10*BH13 -> 0 | BI20: ='Fixed Inputs'!$K$10*BI13 -> 0 | BJ20: ='Fixed Inputs'!$K$10*BJ13 -> 0 | BK20: ='Fixed Inputs'!$K$10*BK13 -> 0 | BL20: ='Fixed Inputs'!$K$10*BL13 -> 0 | BM20: ='Fixed Inputs'!$K$10*BM13 -> 0 | BN20: ='Fixed Inputs'!$K$10*BN13 -> 0 | BO20: ='Fixed Inputs'!$K$10*BO13 -> 0 | BP20: ='Fixed Inputs'!$K$10*BP13 -> 0 | BQ20: ='Fixed Inputs'!$K$10*BQ13 -> 0 | BR20: ='Fixed Inputs'!$K$10*BR13 -> 0 | BS20: ='Fixed Inputs'!$K$10*BS13 -> 0
D21: ='Flexibility Requirements'!$C$14 -> 0 | E21: ='Fixed Inputs'!$K$10*E14 -> 0 | F21: ='Fixed Inputs'!$K$10*F14 -> 0 | G21: ='Fixed Inputs'!$K$10*G14 -> 0 | H21: ='Fixed Inputs'!$K$10*H14 -> 0 | I21: ='Fixed Inputs'!$K$10*I14 -> 0 | J21: ='Fixed Inputs'!$K$10*J14 -> 0 | K21: ='Fixed Inputs'!$K$10*K14 -> 0 | L21: ='Fixed Inputs'!$K$10*L14 -> 0 | M21: ='Fixed Inputs'!$K$10*M14 -> 0 | N21: ='Fixed Inputs'!$K$10*N14 -> 0 | O21: ='Fixed Inputs'!$K$10*O14 -> 0 | P21: ='Fixed Inputs'!$K$10*P14 -> 0 | Q21: ='Fixed Inputs'!$K$10*Q14 -> 0 | R21: ='Fixed Inputs'!$K$10*R14 -> 0 | S21: ='Fixed Inputs'!$K$10*S14 -> 0 | T21: ='Fixed Inputs'!$K$10*T14 -> 0 | U21: ='Fixed Inputs'!$K$10*U14 -> 0 | V21: ='Fixed Inputs'!$K$10*V14 -> 0 | W21: ='Fixed Inputs'!$K$10*W14 -> 0 | X21: ='Fixed Inputs'!$K$10*X14 -> 0 | Y21: ='Fixed Inputs'!$K$10*Y14 -> 0 | Z21: ='Fixed Inputs'!$K$10*Z14 -> 0 | AA21: ='Fixed Inputs'!$K$10*AA14 -> 0 | AB21: ='Fixed Inputs'!$K$10*AB14 -> 0 | AC21: ='Fixed Inputs'!$K$10*AC14 -> 0 | AD21: ='Fixed Inputs'!$K$10*AD14 -> 0 | AE21: ='Fixed Inputs'!$K$10*AE14 -> 0 | AF21: ='Fixed Inputs'!$K$10*AF14 -> 0 | AG21: ='Fixed Inputs'!$K$10*AG14 -> 0 | AH21: ='Fixed Inputs'!$K$10*AH14 -> 0 | AI21: ='Fixed Inputs'!$K$10*AI14 -> 0 | AJ21: ='Fixed Inputs'!$K$10*AJ14 -> 0 | AK21: ='Fixed Inputs'!$K$10*AK14 -> 0 | AL21: ='Fixed Inputs'!$K$10*AL14 -> 0 | AM21: ='Fixed Inputs'!$K$10*AM14 -> 0 | AN21: ='Fixed Inputs'!$K$10*AN14 -> 0 | AO21: ='Fixed Inputs'!$K$10*AO14 -> 0 | AP21: ='Fixed Inputs'!$K$10*AP14 -> 0 | AQ21: ='Fixed Inputs'!$K$10*AQ14 -> 0 | AR21: ='Fixed Inputs'!$K$10*AR14 -> 0 | AS21: ='Fixed Inputs'!$K$10*AS14 -> 0 | AT21: ='Fixed Inputs'!$K$10*AT14 -> 0 | AU21: ='Fixed Inputs'!$K$10*AU14 -> 0 | AV21: ='Fixed Inputs'!$K$10*AV14 -> 0 | AW21: ='Fixed Inputs'!$K$10*AW14 -> 0 | AX21: ='Fixed Inputs'!$K$10*AX14 -> 0 | AY21: ='Fixed Inputs'!$K$10*AY14 -> 0 | AZ21: ='Fixed Inputs'!$K$10*AZ14 -> 0 | BA21: ='Fixed Inputs'!$K$10*BA14 -> 0 | BB21: ='Fixed Inputs'!$K$10*BB14 -> 0 | BC21: ='Fixed Inputs'!$K$10*BC14 -> 0 | BD21: ='Fixed Inputs'!$K$10*BD14 -> 0 | BE21: ='Fixed Inputs'!$K$10*BE14 -> 0 | BF21: ='Fixed Inputs'!$K$10*BF14 -> 0 | BG21: ='Fixed Inputs'!$K$10*BG14 -> 0 | BH21: ='Fixed Inputs'!$K$10*BH14 -> 0 | BI21: ='Fixed Inputs'!$K$10*BI14 -> 0 | BJ21: ='Fixed Inputs'!$K$10*BJ14 -> 0 | BK21: ='Fixed Inputs'!$K$10*BK14 -> 0 | BL21: ='Fixed Inputs'!$K$10*BL14 -> 0 | BM21: ='Fixed Inputs'!$K$10*BM14 -> 0 | BN21: ='Fixed Inputs'!$K$10*BN14 -> 0 | BO21: ='Fixed Inputs'!$K$10*BO14 -> 0 | BP21: ='Fixed Inputs'!$K$10*BP14 -> 0 | BQ21: ='Fixed Inputs'!$K$10*BQ14 -> 0 | BR21: ='Fixed Inputs'!$K$10*BR14 -> 0 | BS21: ='Fixed Inputs'!$K$10*BS14 -> 0
D22: ='Flexibility Requirements'!$C$15 -> 0 | E22: ='Fixed Inputs'!$K$10*E15 -> 0 | F22: ='Fixed Inputs'!$K$10*F15 -> 0 | G22: ='Fixed Inputs'!$K$10*G15 -> 0 | H22: ='Fixed Inputs'!$K$10*H15 -> 0 | I22: ='Fixed Inputs'!$K$10*I15 -> 0 | J22: ='Fixed Inputs'!$K$10*J15 -> 0 | K22: ='Fixed Inputs'!$K$10*K15 -> 0 | L22: ='Fixed Inputs'!$K$10*L15 -> 0 | M22: ='Fixed Inputs'!$K$10*M15 -> 0 | N22: ='Fixed Inputs'!$K$10*N15 -> 0 | O22: ='Fixed Inputs'!$K$10*O15 -> 0 | P22: ='Fixed Inputs'!$K$10*P15 -> 0 | Q22: ='Fixed Inputs'!$K$10*Q15 -> 0 | R22: ='Fixed Inputs'!$K$10*R15 -> 0 | S22: ='Fixed Inputs'!$K$10*S15 -> 0 | T22: ='Fixed Inputs'!$K$10*T15 -> 0 | U22: ='Fixed Inputs'!$K$10*U15 -> 0 | V22: ='Fixed Inputs'!$K$10*V15 -> 0 | W22: ='Fixed Inputs'!$K$10*W15 -> 0 | X22: ='Fixed Inputs'!$K$10*X15 -> 0 | Y22: ='Fixed Inputs'!$K$10*Y15 -> 0 | Z22: ='Fixed Inputs'!$K$10*Z15 -> 0 | AA22: ='Fixed Inputs'!$K$10*AA15 -> 0 | AB22: ='Fixed Inputs'!$K$10*AB15 -> 0 | AC22: ='Fixed Inputs'!$K$10*AC15 -> 0 | AD22: ='Fixed Inputs'!$K$10*AD15 -> 0 | AE22: ='Fixed Inputs'!$K$10*AE15 -> 0 | AF22: ='Fixed Inputs'!$K$10*AF15 -> 0 | AG22: ='Fixed Inputs'!$K$10*AG15 -> 0 | AH22: ='Fixed Inputs'!$K$10*AH15 -> 0 | AI22: ='Fixed Inputs'!$K$10*AI15 -> 0 | AJ22: ='Fixed Inputs'!$K$10*AJ15 -> 0 | AK22: ='Fixed Inputs'!$K$10*AK15 -> 0 | AL22: ='Fixed Inputs'!$K$10*AL15 -> 0 | AM22: ='Fixed Inputs'!$K$10*AM15 -> 0 | AN22: ='Fixed Inputs'!$K$10*AN15 -> 0 | AO22: ='Fixed Inputs'!$K$10*AO15 -> 0 | AP22: ='Fixed Inputs'!$K$10*AP15 -> 0 | AQ22: ='Fixed Inputs'!$K$10*AQ15 -> 0 | AR22: ='Fixed Inputs'!$K$10*AR15 -> 0 | AS22: ='Fixed Inputs'!$K$10*AS15 -> 0 | AT22: ='Fixed Inputs'!$K$10*AT15 -> 0 | AU22: ='Fixed Inputs'!$K$10*AU15 -> 0 | AV22: ='Fixed Inputs'!$K$10*AV15 -> 0 | AW22: ='Fixed Inputs'!$K$10*AW15 -> 0 | AX22: ='Fixed Inputs'!$K$10*AX15 -> 0 | AY22: ='Fixed Inputs'!$K$10*AY15 -> 0 | AZ22: ='Fixed Inputs'!$K$10*AZ15 -> 0 | BA22: ='Fixed Inputs'!$K$10*BA15 -> 0 | BB22: ='Fixed Inputs'!$K$10*BB15 -> 0 | BC22: ='Fixed Inputs'!$K$10*BC15 -> 0 | BD22: ='Fixed Inputs'!$K$10*BD15 -> 0 | BE22: ='Fixed Inputs'!$K$10*BE15 -> 0 | BF22: ='Fixed Inputs'!$K$10*BF15 -> 0 | BG22: ='Fixed Inputs'!$K$10*BG15 -> 0 | BH22: ='Fixed Inputs'!$K$10*BH15 -> 0 | BI22: ='Fixed Inputs'!$K$10*BI15 -> 0 | BJ22: ='Fixed Inputs'!$K$10*BJ15 -> 0 | BK22: ='Fixed Inputs'!$K$10*BK15 -> 0 | BL22: ='Fixed Inputs'!$K$10*BL15 -> 0 | BM22: ='Fixed Inputs'!$K$10*BM15 -> 0 | BN22: ='Fixed Inputs'!$K$10*BN15 -> 0 | BO22: ='Fixed Inputs'!$K$10*BO15 -> 0 | BP22: ='Fixed Inputs'!$K$10*BP15 -> 0 | BQ22: ='Fixed Inputs'!$K$10*BQ15 -> 0 | BR22: ='Fixed Inputs'!$K$10*BR15 -> 0 | BS22: ='Fixed Inputs'!$K$10*BS15 -> 0
B24: Emissions associated with losses
C25: Reduced emissions associated with losses (tCO2e)
D26: ='Reinforcement Deferral'!$C$39 -> Losses derogation calculation | E26: =E10*(VLOOKUP(E$7,'Fixed Inputs'!$B$22:$G$105,6,FALSE)) -> 0 | F26: =F10*(VLOOKUP(F$7,'Fixed Inputs'!$B$22:$G$105,6,FALSE)) -> 0 | G26: =G10*(VLOOKUP(G$7,'Fixed Inputs'!$B$22:$G$105,6,FALSE)) -> 0 | H26: =H10*(VLOOKUP(H$7,'Fixed Inputs'!$B$22:$G$105,6,FALSE)) -> 0 | I26: =I10*(VLOOKUP(I$7,'Fixed Inputs'!$B$22:$G$105,6,FALSE)) -> 0 | J26: =J10*(VLOOKUP(J$7,'Fixed Inputs'!$B$22:$G$105,6,FALSE)) -> 0 | K26: =K10*(VLOOKUP(K$7,'Fixed Inputs'!$B$22:$G$105,6,FALSE)) -> 0 | L26: =L10*(VLOOKUP(L$7,'Fixed Inputs'!$B$22:$G$105,6,FALSE)) -> 0 | M26: =M10*(VLOOKUP(M$7,'Fixed Inputs'!$B$22:$G$105,6,FALSE)) -> 0 | N26: =N10*(VLOOKUP(N$7,'Fixed Inputs'!$B$22:$G$105,6,FALSE)) -> 0 | O26: =O10*(VLOOKUP(O$7,'Fixed Inputs'!$B$22:$G$105,6,FALSE)) -> 0 | P26: =P10*(VLOOKUP(P$7,'Fixed Inputs'!$B$22:$G$105,6,FALSE)) -> 0 | Q26: =Q10*(VLOOKUP(Q$7,'Fixed Inputs'!$B$22:$G$105,6,FALSE)) -> 0 | R26: =R10*(VLOOKUP(R$7,'Fixed Inputs'!$B$22:$G$105,6,FALSE)) -> 0 | S26: =S10*(VLOOKUP(S$7,'Fixed Inputs'!$B$22:$G$105,6,FALSE)) -> 0 | T26: =T10*(VLOOKUP(T$7,'Fixed Inputs'!$B$22:$G$105,6,FALSE)) -> 0 | U26: =U10*(VLOOKUP(U$7,'Fixed Inputs'!$B$22:$G$105,6,FALSE)) -> 0 | V26: =V10*(VLOOKUP(V$7,'Fixed Inputs'!$B$22:$G$105,6,FALSE)) -> 0 | W26: =W10*(VLOOKUP(W$7,'Fixed Inputs'!$B$22:$G$105,6,FALSE)) -> 0 | X26: =X10*(VLOOKUP(X$7,'Fixed Inputs'!$B$22:$G$105,6,FALSE)) -> 0 | Y26: =Y10*(VLOOKUP(Y$7,'Fixed Inputs'!$B$22:$G$105,6,FALSE)) -> 0 | Z26: =Z10*(VLOOKUP(Z$7,'Fixed Inputs'!$B$22:$G$105,6,FALSE)) -> 0 | AA26: =AA10*(VLOOKUP(AA$7,'Fixed Inputs'!$B$22:$G$105,6,FALSE)) -> 0 | AB26: =AB10*(VLOOKUP(AB$7,'Fixed Inputs'!$B$22:$G$105,6,FALSE)) -> 0 | AC26: =AC10*(VLOOKUP(AC$7,'Fixed Inputs'!$B$22:$G$105,6,FALSE)) -> 0 | AD26: =AD10*(VLOOKUP(AD$7,'Fixed Inputs'!$B$22:$G$105,6,FALSE)) -> 0 | AE26: =AE10*(VLOOKUP(AE$7,'Fixed Inputs'!$B$22:$G$105,6,FALSE)) -> 0 | AF26: =AF10*(VLOOKUP(AF$7,'Fixed Inputs'!$B$22:$G$105,6,FALSE)) -> 0 | AG26: =AG10*(VLOOKUP(AG$7,'Fixed Inputs'!$B$22:$G$105,6,FALSE)) -> 0 | AH26: =AH10*(VLOOKUP(AH$7,'Fixed Inputs'!$B$22:$G$105,6,FALSE)) -> 0 | AI26: =AI10*(VLOOKUP(AI$7,'Fixed Inputs'!$B$22:$G$105,6,FALSE)) -> 0 | AJ26: =AJ10*(VLOOKUP(AJ$7,'Fixed Inputs'!$B$22:$G$105,6,FALSE)) -> 0 | AK26: =AK10*(VLOOKUP(AK$7,'Fixed Inputs'!$B$22:$G$105,6,FALSE)) -> 0 | AL26: =AL10*(VLOOKUP(AL$7,'Fixed Inputs'!$B$22:$G$105,6,FALSE)) -> 0 | AM26: =AM10*(VLOOKUP(AM$7,'Fixed Inputs'!$B$22:$G$105,6,FALSE)) -> 0 | AN26: =AN10*(VLOOKUP(AN$7,'Fixed Inputs'!$B$22:$G$105,6,FALSE)) -> 0 | AO26: =AO10*(VLOOKUP(AO$7,'Fixed Inputs'!$B$22:$G$105,6,FALSE)) -> 0 | AP26: =AP10*(VLOOKUP(AP$7,'Fixed Inputs'!$B$22:$G$105,6,FALSE)) -> 0 | AQ26: =AQ10*(VLOOKUP(AQ$7,'Fixed Inputs'!$B$22:$G$105,6,FALSE)) -> 0 | AR26: =AR10*(VLOOKUP(AR$7,'Fixed Inputs'!$B$22:$G$105,6,FALSE)) -> 0 | AS26: =AS10*(VLOOKUP(AS$7,'Fixed Inputs'!$B$22:$G$105,6,FALSE)) -> 0 | AT26: =AT10*(VLOOKUP(AT$7,'Fixed Inputs'!$B$22:$G$105,6,FALSE)) -> 0 | AU26: =AU10*(VLOOKUP(AU$7,'Fixed Inputs'!$B$22:$G$105,6,FALSE)) -> 0 | AV26: =AV10*(VLOOKUP(AV$7,'Fixed Inputs'!$B$22:$G$105,6,FALSE)) -> 0 | AW26: =AW10*(VLOOKUP(AW$7,'Fixed Inputs'!$B$22:$G$105,6,FALSE)) -> 0 | AX26: =AX10*(VLOOKUP(AX$7,'Fixed Inputs'!$B$22:$G$105,6,FALSE)) -> 0 | AY26: =AY10*(VLOOKUP(AY$7,'Fixed Inputs'!$B$22:$G$105,6,FALSE)) -> 0 | AZ26: =AZ10*(VLOOKUP(AZ$7,'Fixed Inputs'!$B$22:$G$105,6,FALSE)) -> 0 | BA26: =BA10*(VLOOKUP(BA$7,'Fixed Inputs'!$B$22:$G$105,6,FALSE)) -> 0 | BB26: =BB10*(VLOOKUP(BB$7,'Fixed Inputs'!$B$22:$G$105,6,FALSE)) -> 0 | BC26: =BC10*(VLOOKUP(BC$7,'Fixed Inputs'!$B$22:$G$105,6,FALSE)) -> 0 | BD26: =BD10*(VLOOKUP(BD$7,'Fixed Inputs'!$B$22:$G$105,6,FALSE)) -> 0 | BE26: =BE10*(VLOOKUP(BE$7,'Fixed Inputs'!$B$22:$G$105,6,FALSE)) -> 0 | BF26: =BF10*(VLOOKUP(BF$7,'Fixed Inputs'!$B$22:$G$105,6,FALSE)) -> 0 | BG26: =BG10*(VLOOKUP(BG$7,'Fixed Inputs'!$B$22:$G$105,6,FALSE)) -> 0 | BH26: =BH10*(VLOOKUP(BH$7,'Fixed Inputs'!$B$22:$G$105,6,FALSE)) -> 0 | BI26: =BI10*(VLOOKUP(BI$7,'Fixed Inputs'!$B$22:$G$105,6,FALSE)) -> 0 | BJ26: =BJ10*(VLOOKUP(BJ$7,'Fixed Inputs'!$B$22:$G$105,6,FALSE)) -> 0 | BK26: =BK10*(VLOOKUP(BK$7,'Fixed Inputs'!$B$22:$G$105,6,FALSE)) -> 0 | BL26: =BL10*(VLOOKUP(BL$7,'Fixed Inputs'!$B$22:$G$105,6,FALSE)) -> 0 | BM26: =BM10*(VLOOKUP(BM$7,'Fixed Inputs'!$B$22:$G$105,6,FALSE)) -> 0 | BN26: =BN10*(VLOOKUP(BN$7,'Fixed Inputs'!$B$22:$G$105,6,FALSE)) -> 0 | BO26: =BO10*(VLOOKUP(BO$7,'Fixed Inputs'!$B$22:$G$105,6,FALSE)) -> 0 | BP26: =BP10*(VLOOKUP(BP$7,'Fixed Inputs'!$B$22:$G$105,6,FALSE)) -> 0 | BQ26: =BQ10*(VLOOKUP(BQ$7,'Fixed Inputs'!$B$22:$G$105,6,FALSE)) -> 0 | BR26: =BR10*(VLOOKUP(BR$7,'Fixed Inputs'!$B$22:$G$105,6,FALSE)) -> 0 | BS26: =BS10*(VLOOKUP(BS$7,'Fixed Inputs'!$B$22:$G$105,6,FALSE)) -> 0
D27: ='Flexibility Requirements'!$C$11 -> 0 | E27: =E11*(VLOOKUP(E$7,'Fixed Inputs'!$B$22:$G$105,6,FALSE)) -> 0 | F27: =F11*(VLOOKUP(F$7,'Fixed Inputs'!$B$22:$G$105,6,FALSE)) -> 0 | G27: =G11*(VLOOKUP(G$7,'Fixed Inputs'!$B$22:$G$105,6,FALSE)) -> 0 | H27: =H11*(VLOOKUP(H$7,'Fixed Inputs'!$B$22:$G$105,6,FALSE)) -> 0 | I27: =I11*(VLOOKUP(I$7,'Fixed Inputs'!$B$22:$G$105,6,FALSE)) -> 0 | J27: =J11*(VLOOKUP(J$7,'Fixed Inputs'!$B$22:$G$105,6,FALSE)) -> 0 | K27: =K11*(VLOOKUP(K$7,'Fixed Inputs'!$B$22:$G$105,6,FALSE)) -> 0 | L27: =L11*(VLOOKUP(L$7,'Fixed Inputs'!$B$22:$G$105,6,FALSE)) -> 0 | M27: =M11*(VLOOKUP(M$7,'Fixed Inputs'!$B$22:$G$105,6,FALSE)) -> 0 | N27: =N11*(VLOOKUP(N$7,'Fixed Inputs'!$B$22:$G$105,6,FALSE)) -> 0 | O27: =O11*(VLOOKUP(O$7,'Fixed Inputs'!$B$22:$G$105,6,FALSE)) -> 0 | P27: =P11*(VLOOKUP(P$7,'Fixed Inputs'!$B$22:$G$105,6,FALSE)) -> 0 | Q27: =Q11*(VLOOKUP(Q$7,'Fixed Inputs'!$B$22:$G$105,6,FALSE)) -> 0 | R27: =R11*(VLOOKUP(R$7,'Fixed Inputs'!$B$22:$G$105,6,FALSE)) -> 0 | S27: =S11*(VLOOKUP(S$7,'Fixed Inputs'!$B$22:$G$105,6,FALSE)) -> 0 | T27: =T11*(VLOOKUP(T$7,'Fixed Inputs'!$B$22:$G$105,6,FALSE)) -> 0 | U27: =U11*(VLOOKUP(U$7,'Fixed Inputs'!$B$22:$G$105,6,FALSE)) -> 0 | V27: =V11*(VLOOKUP(V$7,'Fixed Inputs'!$B$22:$G$105,6,FALSE)) -> 0 | W27: =W11*(VLOOKUP(W$7,'Fixed Inputs'!$B$22:$G$105,6,FALSE)) -> 0 | X27: =X11*(VLOOKUP(X$7,'Fixed Inputs'!$B$22:$G$105,6,FALSE)) -> 0 | Y27: =Y11*(VLOOKUP(Y$7,'Fixed Inputs'!$B$22:$G$105,6,FALSE)) -> 0 | Z27: =Z11*(VLOOKUP(Z$7,'Fixed Inputs'!$B$22:$G$105,6,FALSE)) -> 0 | AA27: =AA11*(VLOOKUP(AA$7,'Fixed Inputs'!$B$22:$G$105,6,FALSE)) -> 0 | AB27: =AB11*(VLOOKUP(AB$7,'Fixed Inputs'!$B$22:$G$105,6,FALSE)) -> 0 | AC27: =AC11*(VLOOKUP(AC$7,'Fixed Inputs'!$B$22:$G$105,6,FALSE)) -> 0 | AD27: =AD11*(VLOOKUP(AD$7,'Fixed Inputs'!$B$22:$G$105,6,FALSE)) -> 0 | AE27: =AE11*(VLOOKUP(AE$7,'Fixed Inputs'!$B$22:$G$105,6,FALSE)) -> 0 | AF27: =AF11*(VLOOKUP(AF$7,'Fixed Inputs'!$B$22:$G$105,6,FALSE)) -> 0 | AG27: =AG11*(VLOOKUP(AG$7,'Fixed Inputs'!$B$22:$G$105,6,FALSE)) -> 0 | AH27: =AH11*(VLOOKUP(AH$7,'Fixed Inputs'!$B$22:$G$105,6,FALSE)) -> 0 | AI27: =AI11*(VLOOKUP(AI$7,'Fixed Inputs'!$B$22:$G$105,6,FALSE)) -> 0 | AJ27: =AJ11*(VLOOKUP(AJ$7,'Fixed Inputs'!$B$22:$G$105,6,FALSE)) -> 0 | AK27: =AK11*(VLOOKUP(AK$7,'Fixed Inputs'!$B$22:$G$105,6,FALSE)) -> 0 | AL27: =AL11*(VLOOKUP(AL$7,'Fixed Inputs'!$B$22:$G$105,6,FALSE)) -> 0 | AM27: =AM11*(VLOOKUP(AM$7,'Fixed Inputs'!$B$22:$G$105,6,FALSE)) -> 0 | AN27: =AN11*(VLOOKUP(AN$7,'Fixed Inputs'!$B$22:$G$105,6,FALSE)) -> 0 | AO27: =AO11*(VLOOKUP(AO$7,'Fixed Inputs'!$B$22:$G$105,6,FALSE)) -> 0 | AP27: =AP11*(VLOOKUP(AP$7,'Fixed Inputs'!$B$22:$G$105,6,FALSE)) -> 0 | AQ27: =AQ11*(VLOOKUP(AQ$7,'Fixed Inputs'!$B$22:$G$105,6,FALSE)) -> 0 | AR27: =AR11*(VLOOKUP(AR$7,'Fixed Inputs'!$B$22:$G$105,6,FALSE)) -> 0 | AS27: =AS11*(VLOOKUP(AS$7,'Fixed Inputs'!$B$22:$G$105,6,FALSE)) -> 0 | AT27: =AT11*(VLOOKUP(AT$7,'Fixed Inputs'!$B$22:$G$105,6,FALSE)) -> 0 | AU27: =AU11*(VLOOKUP(AU$7,'Fixed Inputs'!$B$22:$G$105,6,FALSE)) -> 0 | AV27: =AV11*(VLOOKUP(AV$7,'Fixed Inputs'!$B$22:$G$105,6,FALSE)) -> 0 | AW27: =AW11*(VLOOKUP(AW$7,'Fixed Inputs'!$B$22:$G$105,6,FALSE)) -> 0 | AX27: =AX11*(VLOOKUP(AX$7,'Fixed Inputs'!$B$22:$G$105,6,FALSE)) -> 0 | AY27: =AY11*(VLOOKUP(AY$7,'Fixed Inputs'!$B$22:$G$105,6,FALSE)) -> 0 | AZ27: =AZ11*(VLOOKUP(AZ$7,'Fixed Inputs'!$B$22:$G$105,6,FALSE)) -> 0 | BA27: =BA11*(VLOOKUP(BA$7,'Fixed Inputs'!$B$22:$G$105,6,FALSE)) -> 0 | BB27: =BB11*(VLOOKUP(BB$7,'Fixed Inputs'!$B$22:$G$105,6,FALSE)) -> 0 | BC27: =BC11*(VLOOKUP(BC$7,'Fixed Inputs'!$B$22:$G$105,6,FALSE)) -> 0 | BD27: =BD11*(VLOOKUP(BD$7,'Fixed Inputs'!$B$22:$G$105,6,FALSE)) -> 0 | BE27: =BE11*(VLOOKUP(BE$7,'Fixed Inputs'!$B$22:$G$105,6,FALSE)) -> 0 | BF27: =BF11*(VLOOKUP(BF$7,'Fixed Inputs'!$B$22:$G$105,6,FALSE)) -> 0 | BG27: =BG11*(VLOOKUP(BG$7,'Fixed Inputs'!$B$22:$G$105,6,FALSE)) -> 0 | BH27: =BH11*(VLOOKUP(BH$7,'Fixed Inputs'!$B$22:$G$105,6,FALSE)) -> 0 | BI27: =BI11*(VLOOKUP(BI$7,'Fixed Inputs'!$B$22:$G$105,6,FALSE)) -> 0 | BJ27: =BJ11*(VLOOKUP(BJ$7,'Fixed Inputs'!$B$22:$G$105,6,FALSE)) -> 0 | BK27: =BK11*(VLOOKUP(BK$7,'Fixed Inputs'!$B$22:$G$105,6,FALSE)) -> 0 | BL27: =BL11*(VLOOKUP(BL$7,'Fixed Inputs'!$B$22:$G$105,6,FALSE)) -> 0 | BM27: =BM11*(VLOOKUP(BM$7,'Fixed Inputs'!$B$22:$G$105,6,FALSE)) -> 0 | BN27: =BN11*(VLOOKUP(BN$7,'Fixed Inputs'!$B$22:$G$105,6,FALSE)) -> 0 | BO27: =BO11*(VLOOKUP(BO$7,'Fixed Inputs'!$B$22:$G$105,6,FALSE)) -> 0 | BP27: =BP11*(VLOOKUP(BP$7,'Fixed Inputs'!$B$22:$G$105,6,FALSE)) -> 0 | BQ27: =BQ11*(VLOOKUP(BQ$7,'Fixed Inputs'!$B$22:$G$105,6,FALSE)) -> 0 | BR27: =BR11*(VLOOKUP(BR$7,'Fixed Inputs'!$B$22:$G$105,6,FALSE)) -> 0 | BS27: =BS11*(VLOOKUP(BS$7,'Fixed Inputs'!$B$22:$G$105,6,FALSE)) -> 0
D28: ='Flexibility Requirements'!$C$12 -> 0 | E28: =E12*(VLOOKUP(E$7,'Fixed Inputs'!$B$22:$G$105,6,FALSE)) -> 0 | F28: =F12*(VLOOKUP(F$7,'Fixed Inputs'!$B$22:$G$105,6,FALSE)) -> 0 | G28: =G12*(VLOOKUP(G$7,'Fixed Inputs'!$B$22:$G$105,6,FALSE)) -> 0 | H28: =H12*(VLOOKUP(H$7,'Fixed Inputs'!$B$22:$G$105,6,FALSE)) -> 0 | I28: =I12*(VLOOKUP(I$7,'Fixed Inputs'!$B$22:$G$105,6,FALSE)) -> 0 | J28: =J12*(VLOOKUP(J$7,'Fixed Inputs'!$B$22:$G$105,6,FALSE)) -> 0 | K28: =K12*(VLOOKUP(K$7,'Fixed Inputs'!$B$22:$G$105,6,FALSE)) -> 0 | L28: =L12*(VLOOKUP(L$7,'Fixed Inputs'!$B$22:$G$105,6,FALSE)) -> 0 | M28: =M12*(VLOOKUP(M$7,'Fixed Inputs'!$B$22:$G$105,6,FALSE)) -> 0 | N28: =N12*(VLOOKUP(N$7,'Fixed Inputs'!$B$22:$G$105,6,FALSE)) -> 0 | O28: =O12*(VLOOKUP(O$7,'Fixed Inputs'!$B$22:$G$105,6,FALSE)) -> 0 | P28: =P12*(VLOOKUP(P$7,'Fixed Inputs'!$B$22:$G$105,6,FALSE)) -> 0 | Q28: =Q12*(VLOOKUP(Q$7,'Fixed Inputs'!$B$22:$G$105,6,FALSE)) -> 0 | R28: =R12*(VLOOKUP(R$7,'Fixed Inputs'!$B$22:$G$105,6,FALSE)) -> 0 | S28: =S12*(VLOOKUP(S$7,'Fixed Inputs'!$B$22:$G$105,6,FALSE)) -> 0 | T28: =T12*(VLOOKUP(T$7,'Fixed Inputs'!$B$22:$G$105,6,FALSE)) -> 0 | U28: =U12*(VLOOKUP(U$7,'Fixed Inputs'!$B$22:$G$105,6,FALSE)) -> 0 | V28: =V12*(VLOOKUP(V$7,'Fixed Inputs'!$B$22:$G$105,6,FALSE)) -> 0 | W28: =W12*(VLOOKUP(W$7,'Fixed Inputs'!$B$22:$G$105,6,FALSE)) -> 0 | X28: =X12*(VLOOKUP(X$7,'Fixed Inputs'!$B$22:$G$105,6,FALSE)) -> 0 | Y28: =Y12*(VLOOKUP(Y$7,'Fixed Inputs'!$B$22:$G$105,6,FALSE)) -> 0 | Z28: =Z12*(VLOOKUP(Z$7,'Fixed Inputs'!$B$22:$G$105,6,FALSE)) -> 0 | AA28: =AA12*(VLOOKUP(AA$7,'Fixed Inputs'!$B$22:$G$105,6,FALSE)) -> 0 | AB28: =AB12*(VLOOKUP(AB$7,'Fixed Inputs'!$B$22:$G$105,6,FALSE)) -> 0 | AC28: =AC12*(VLOOKUP(AC$7,'Fixed Inputs'!$B$22:$G$105,6,FALSE)) -> 0 | AD28: =AD12*(VLOOKUP(AD$7,'Fixed Inputs'!$B$22:$G$105,6,FALSE)) -> 0 | AE28: =AE12*(VLOOKUP(AE$7,'Fixed Inputs'!$B$22:$G$105,6,FALSE)) -> 0 | AF28: =AF12*(VLOOKUP(AF$7,'Fixed Inputs'!$B$22:$G$105,6,FALSE)) -> 0 | AG28: =AG12*(VLOOKUP(AG$7,'Fixed Inputs'!$B$22:$G$105,6,FALSE)) -> 0 | AH28: =AH12*(VLOOKUP(AH$7,'Fixed Inputs'!$B$22:$G$105,6,FALSE)) -> 0 | AI28: =AI12*(VLOOKUP(AI$7,'Fixed Inputs'!$B$22:$G$105,6,FALSE)) -> 0 | AJ28: =AJ12*(VLOOKUP(AJ$7,'Fixed Inputs'!$B$22:$G$105,6,FALSE)) -> 0 | AK28: =AK12*(VLOOKUP(AK$7,'Fixed Inputs'!$B$22:$G$105,6,FALSE)) -> 0 | AL28: =AL12*(VLOOKUP(AL$7,'Fixed Inputs'!$B$22:$G$105,6,FALSE)) -> 0 | AM28: =AM12*(VLOOKUP(AM$7,'Fixed Inputs'!$B$22:$G$105,6,FALSE)) -> 0 | AN28: =AN12*(VLOOKUP(AN$7,'Fixed Inputs'!$B$22:$G$105,6,FALSE)) -> 0 | AO28: =AO12*(VLOOKUP(AO$7,'Fixed Inputs'!$B$22:$G$105,6,FALSE)) -> 0 | AP28: =AP12*(VLOOKUP(AP$7,'Fixed Inputs'!$B$22:$G$105,6,FALSE)) -> 0 | AQ28: =AQ12*(VLOOKUP(AQ$7,'Fixed Inputs'!$B$22:$G$105,6,FALSE)) -> 0 | AR28: =AR12*(VLOOKUP(AR$7,'Fixed Inputs'!$B$22:$G$105,6,FALSE)) -> 0 | AS28: =AS12*(VLOOKUP(AS$7,'Fixed Inputs'!$B$22:$G$105,6,FALSE)) -> 0 | AT28: =AT12*(VLOOKUP(AT$7,'Fixed Inputs'!$B$22:$G$105,6,FALSE)) -> 0 | AU28: =AU12*(VLOOKUP(AU$7,'Fixed Inputs'!$B$22:$G$105,6,FALSE)) -> 0 | AV28: =AV12*(VLOOKUP(AV$7,'Fixed Inputs'!$B$22:$G$105,6,FALSE)) -> 0 | AW28: =AW12*(VLOOKUP(AW$7,'Fixed Inputs'!$B$22:$G$105,6,FALSE)) -> 0 | AX28: =AX12*(VLOOKUP(AX$7,'Fixed Inputs'!$B$22:$G$105,6,FALSE)) -> 0 | AY28: =AY12*(VLOOKUP(AY$7,'Fixed Inputs'!$B$22:$G$105,6,FALSE)) -> 0 | AZ28: =AZ12*(VLOOKUP(AZ$7,'Fixed Inputs'!$B$22:$G$105,6,FALSE)) -> 0 | BA28: =BA12*(VLOOKUP(BA$7,'Fixed Inputs'!$B$22:$G$105,6,FALSE)) -> 0 | BB28: =BB12*(VLOOKUP(BB$7,'Fixed Inputs'!$B$22:$G$105,6,FALSE)) -> 0 | BC28: =BC12*(VLOOKUP(BC$7,'Fixed Inputs'!$B$22:$G$105,6,FALSE)) -> 0 | BD28: =BD12*(VLOOKUP(BD$7,'Fixed Inputs'!$B$22:$G$105,6,FALSE)) -> 0 | BE28: =BE12*(VLOOKUP(BE$7,'Fixed Inputs'!$B$22:$G$105,6,FALSE)) -> 0 | BF28: =BF12*(VLOOKUP(BF$7,'Fixed Inputs'!$B$22:$G$105,6,FALSE)) -> 0 | BG28: =BG12*(VLOOKUP(BG$7,'Fixed Inputs'!$B$22:$G$105,6,FALSE)) -> 0 | BH28: =BH12*(VLOOKUP(BH$7,'Fixed Inputs'!$B$22:$G$105,6,FALSE)) -> 0 | BI28: =BI12*(VLOOKUP(BI$7,'Fixed Inputs'!$B$22:$G$105,6,FALSE)) -> 0 | BJ28: =BJ12*(VLOOKUP(BJ$7,'Fixed Inputs'!$B$22:$G$105,6,FALSE)) -> 0 | BK28: =BK12*(VLOOKUP(BK$7,'Fixed Inputs'!$B$22:$G$105,6,FALSE)) -> 0 | BL28: =BL12*(VLOOKUP(BL$7,'Fixed Inputs'!$B$22:$G$105,6,FALSE)) -> 0 | BM28: =BM12*(VLOOKUP(BM$7,'Fixed Inputs'!$B$22:$G$105,6,FALSE)) -> 0 | BN28: =BN12*(VLOOKUP(BN$7,'Fixed Inputs'!$B$22:$G$105,6,FALSE)) -> 0 | BO28: =BO12*(VLOOKUP(BO$7,'Fixed Inputs'!$B$22:$G$105,6,FALSE)) -> 0 | BP28: =BP12*(VLOOKUP(BP$7,'Fixed Inputs'!$B$22:$G$105,6,FALSE)) -> 0 | BQ28: =BQ12*(VLOOKUP(BQ$7,'Fixed Inputs'!$B$22:$G$105,6,FALSE)) -> 0 | BR28: =BR12*(VLOOKUP(BR$7,'Fixed Inputs'!$B$22:$G$105,6,FALSE)) -> 0 | BS28: =BS12*(VLOOKUP(BS$7,'Fixed Inputs'!$B$22:$G$105,6,FALSE)) -> 0
D29: ='Flexibility Requirements'!$C$13 -> 0 | E29: =E13*(VLOOKUP(E$7,'Fixed Inputs'!$B$22:$G$105,6,FALSE)) -> 0 | F29: =F13*(VLOOKUP(F$7,'Fixed Inputs'!$B$22:$G$105,6,FALSE)) -> 0 | G29: =G13*(VLOOKUP(G$7,'Fixed Inputs'!$B$22:$G$105,6,FALSE)) -> 0 | H29: =H13*(VLOOKUP(H$7,'Fixed Inputs'!$B$22:$G$105,6,FALSE)) -> 0 | I29: =I13*(VLOOKUP(I$7,'Fixed Inputs'!$B$22:$G$105,6,FALSE)) -> 0 | J29: =J13*(VLOOKUP(J$7,'Fixed Inputs'!$B$22:$G$105,6,FALSE)) -> 0 | K29: =K13*(VLOOKUP(K$7,'Fixed Inputs'!$B$22:$G$105,6,FALSE)) -> 0 | L29: =L13*(VLOOKUP(L$7,'Fixed Inputs'!$B$22:$G$105,6,FALSE)) -> 0 | M29: =M13*(VLOOKUP(M$7,'Fixed Inputs'!$B$22:$G$105,6,FALSE)) -> 0 | N29: =N13*(VLOOKUP(N$7,'Fixed Inputs'!$B$22:$G$105,6,FALSE)) -> 0 | O29: =O13*(VLOOKUP(O$7,'Fixed Inputs'!$B$22:$G$105,6,FALSE)) -> 0 | P29: =P13*(VLOOKUP(P$7,'Fixed Inputs'!$B$22:$G$105,6,FALSE)) -> 0 | Q29: =Q13*(VLOOKUP(Q$7,'Fixed Inputs'!$B$22:$G$105,6,FALSE)) -> 0 | R29: =R13*(VLOOKUP(R$7,'Fixed Inputs'!$B$22:$G$105,6,FALSE)) -> 0 | S29: =S13*(VLOOKUP(S$7,'Fixed Inputs'!$B$22:$G$105,6,FALSE)) -> 0 | T29: =T13*(VLOOKUP(T$7,'Fixed Inputs'!$B$22:$G$105,6,FALSE)) -> 0 | U29: =U13*(VLOOKUP(U$7,'Fixed Inputs'!$B$22:$G$105,6,FALSE)) -> 0 | V29: =V13*(VLOOKUP(V$7,'Fixed Inputs'!$B$22:$G$105,6,FALSE)) -> 0 | W29: =W13*(VLOOKUP(W$7,'Fixed Inputs'!$B$22:$G$105,6,FALSE)) -> 0 | X29: =X13*(VLOOKUP(X$7,'Fixed Inputs'!$B$22:$G$105,6,FALSE)) -> 0 | Y29: =Y13*(VLOOKUP(Y$7,'Fixed Inputs'!$B$22:$G$105,6,FALSE)) -> 0 | Z29: =Z13*(VLOOKUP(Z$7,'Fixed Inputs'!$B$22:$G$105,6,FALSE)) -> 0 | AA29: =AA13*(VLOOKUP(AA$7,'Fixed Inputs'!$B$22:$G$105,6,FALSE)) -> 0 | AB29: =AB13*(VLOOKUP(AB$7,'Fixed Inputs'!$B$22:$G$105,6,FALSE)) -> 0 | AC29: =AC13*(VLOOKUP(AC$7,'Fixed Inputs'!$B$22:$G$105,6,FALSE)) -> 0 | AD29: =AD13*(VLOOKUP(AD$7,'Fixed Inputs'!$B$22:$G$105,6,FALSE)) -> 0 | AE29: =AE13*(VLOOKUP(AE$7,'Fixed Inputs'!$B$22:$G$105,6,FALSE)) -> 0 | AF29: =AF13*(VLOOKUP(AF$7,'Fixed Inputs'!$B$22:$G$105,6,FALSE)) -> 0 | AG29: =AG13*(VLOOKUP(AG$7,'Fixed Inputs'!$B$22:$G$105,6,FALSE)) -> 0 | AH29: =AH13*(VLOOKUP(AH$7,'Fixed Inputs'!$B$22:$G$105,6,FALSE)) -> 0 | AI29: =AI13*(VLOOKUP(AI$7,'Fixed Inputs'!$B$22:$G$105,6,FALSE)) -> 0 | AJ29: =AJ13*(VLOOKUP(AJ$7,'Fixed Inputs'!$B$22:$G$105,6,FALSE)) -> 0 | AK29: =AK13*(VLOOKUP(AK$7,'Fixed Inputs'!$B$22:$G$105,6,FALSE)) -> 0 | AL29: =AL13*(VLOOKUP(AL$7,'Fixed Inputs'!$B$22:$G$105,6,FALSE)) -> 0 | AM29: =AM13*(VLOOKUP(AM$7,'Fixed Inputs'!$B$22:$G$105,6,FALSE)) -> 0 | AN29: =AN13*(VLOOKUP(AN$7,'Fixed Inputs'!$B$22:$G$105,6,FALSE)) -> 0 | AO29: =AO13*(VLOOKUP(AO$7,'Fixed Inputs'!$B$22:$G$105,6,FALSE)) -> 0 | AP29: =AP13*(VLOOKUP(AP$7,'Fixed Inputs'!$B$22:$G$105,6,FALSE)) -> 0 | AQ29: =AQ13*(VLOOKUP(AQ$7,'Fixed Inputs'!$B$22:$G$105,6,FALSE)) -> 0 | AR29: =AR13*(VLOOKUP(AR$7,'Fixed Inputs'!$B$22:$G$105,6,FALSE)) -> 0 | AS29: =AS13*(VLOOKUP(AS$7,'Fixed Inputs'!$B$22:$G$105,6,FALSE)) -> 0 | AT29: =AT13*(VLOOKUP(AT$7,'Fixed Inputs'!$B$22:$G$105,6,FALSE)) -> 0 | AU29: =AU13*(VLOOKUP(AU$7,'Fixed Inputs'!$B$22:$G$105,6,FALSE)) -> 0 | AV29: =AV13*(VLOOKUP(AV$7,'Fixed Inputs'!$B$22:$G$105,6,FALSE)) -> 0 | AW29: =AW13*(VLOOKUP(AW$7,'Fixed Inputs'!$B$22:$G$105,6,FALSE)) -> 0 | AX29: =AX13*(VLOOKUP(AX$7,'Fixed Inputs'!$B$22:$G$105,6,FALSE)) -> 0 | AY29: =AY13*(VLOOKUP(AY$7,'Fixed Inputs'!$B$22:$G$105,6,FALSE)) -> 0 | AZ29: =AZ13*(VLOOKUP(AZ$7,'Fixed Inputs'!$B$22:$G$105,6,FALSE)) -> 0 | BA29: =BA13*(VLOOKUP(BA$7,'Fixed Inputs'!$B$22:$G$105,6,FALSE)) -> 0 | BB29: =BB13*(VLOOKUP(BB$7,'Fixed Inputs'!$B$22:$G$105,6,FALSE)) -> 0 | BC29: =BC13*(VLOOKUP(BC$7,'Fixed Inputs'!$B$22:$G$105,6,FALSE)) -> 0 | BD29: =BD13*(VLOOKUP(BD$7,'Fixed Inputs'!$B$22:$G$105,6,FALSE)) -> 0 | BE29: =BE13*(VLOOKUP(BE$7,'Fixed Inputs'!$B$22:$G$105,6,FALSE)) -> 0 | BF29: =BF13*(VLOOKUP(BF$7,'Fixed Inputs'!$B$22:$G$105,6,FALSE)) -> 0 | BG29: =BG13*(VLOOKUP(BG$7,'Fixed Inputs'!$B$22:$G$105,6,FALSE)) -> 0 | BH29: =BH13*(VLOOKUP(BH$7,'Fixed Inputs'!$B$22:$G$105,6,FALSE)) -> 0 | BI29: =BI13*(VLOOKUP(BI$7,'Fixed Inputs'!$B$22:$G$105,6,FALSE)) -> 0 | BJ29: =BJ13*(VLOOKUP(BJ$7,'Fixed Inputs'!$B$22:$G$105,6,FALSE)) -> 0 | BK29: =BK13*(VLOOKUP(BK$7,'Fixed Inputs'!$B$22:$G$105,6,FALSE)) -> 0 | BL29: =BL13*(VLOOKUP(BL$7,'Fixed Inputs'!$B$22:$G$105,6,FALSE)) -> 0 | BM29: =BM13*(VLOOKUP(BM$7,'Fixed Inputs'!$B$22:$G$105,6,FALSE)) -> 0 | BN29: =BN13*(VLOOKUP(BN$7,'Fixed Inputs'!$B$22:$G$105,6,FALSE)) -> 0 | BO29: =BO13*(VLOOKUP(BO$7,'Fixed Inputs'!$B$22:$G$105,6,FALSE)) -> 0 | BP29: =BP13*(VLOOKUP(BP$7,'Fixed Inputs'!$B$22:$G$105,6,FALSE)) -> 0 | BQ29: =BQ13*(VLOOKUP(BQ$7,'Fixed Inputs'!$B$22:$G$105,6,FALSE)) -> 0 | BR29: =BR13*(VLOOKUP(BR$7,'Fixed Inputs'!$B$22:$G$105,6,FALSE)) -> 0 | BS29: =BS13*(VLOOKUP(BS$7,'Fixed Inputs'!$B$22:$G$105,6,FALSE)) -> 0
D30: ='Flexibility Requirements'!$C$14 -> 0 | E30: =E14*(VLOOKUP(E$7,'Fixed Inputs'!$B$22:$G$105,6,FALSE)) -> 0 | F30: =F14*(VLOOKUP(F$7,'Fixed Inputs'!$B$22:$G$105,6,FALSE)) -> 0 | G30: =G14*(VLOOKUP(G$7,'Fixed Inputs'!$B$22:$G$105,6,FALSE)) -> 0 | H30: =H14*(VLOOKUP(H$7,'Fixed Inputs'!$B$22:$G$105,6,FALSE)) -> 0 | I30: =I14*(VLOOKUP(I$7,'Fixed Inputs'!$B$22:$G$105,6,FALSE)) -> 0 | J30: =J14*(VLOOKUP(J$7,'Fixed Inputs'!$B$22:$G$105,6,FALSE)) -> 0 | K30: =K14*(VLOOKUP(K$7,'Fixed Inputs'!$B$22:$G$105,6,FALSE)) -> 0 | L30: =L14*(VLOOKUP(L$7,'Fixed Inputs'!$B$22:$G$105,6,FALSE)) -> 0 | M30: =M14*(VLOOKUP(M$7,'Fixed Inputs'!$B$22:$G$105,6,FALSE)) -> 0 | N30: =N14*(VLOOKUP(N$7,'Fixed Inputs'!$B$22:$G$105,6,FALSE)) -> 0 | O30: =O14*(VLOOKUP(O$7,'Fixed Inputs'!$B$22:$G$105,6,FALSE)) -> 0 | P30: =P14*(VLOOKUP(P$7,'Fixed Inputs'!$B$22:$G$105,6,FALSE)) -> 0 | Q30: =Q14*(VLOOKUP(Q$7,'Fixed Inputs'!$B$22:$G$105,6,FALSE)) -> 0 | R30: =R14*(VLOOKUP(R$7,'Fixed Inputs'!$B$22:$G$105,6,FALSE)) -> 0 | S30: =S14*(VLOOKUP(S$7,'Fixed Inputs'!$B$22:$G$105,6,FALSE)) -> 0 | T30: =T14*(VLOOKUP(T$7,'Fixed Inputs'!$B$22:$G$105,6,FALSE)) -> 0 | U30: =U14*(VLOOKUP(U$7,'Fixed Inputs'!$B$22:$G$105,6,FALSE)) -> 0 | V30: =V14*(VLOOKUP(V$7,'Fixed Inputs'!$B$22:$G$105,6,FALSE)) -> 0 | W30: =W14*(VLOOKUP(W$7,'Fixed Inputs'!$B$22:$G$105,6,FALSE)) -> 0 | X30: =X14*(VLOOKUP(X$7,'Fixed Inputs'!$B$22:$G$105,6,FALSE)) -> 0 | Y30: =Y14*(VLOOKUP(Y$7,'Fixed Inputs'!$B$22:$G$105,6,FALSE)) -> 0 | Z30: =Z14*(VLOOKUP(Z$7,'Fixed Inputs'!$B$22:$G$105,6,FALSE)) -> 0 | AA30: =AA14*(VLOOKUP(AA$7,'Fixed Inputs'!$B$22:$G$105,6,FALSE)) -> 0 | AB30: =AB14*(VLOOKUP(AB$7,'Fixed Inputs'!$B$22:$G$105,6,FALSE)) -> 0 | AC30: =AC14*(VLOOKUP(AC$7,'Fixed Inputs'!$B$22:$G$105,6,FALSE)) -> 0 | AD30: =AD14*(VLOOKUP(AD$7,'Fixed Inputs'!$B$22:$G$105,6,FALSE)) -> 0 | AE30: =AE14*(VLOOKUP(AE$7,'Fixed Inputs'!$B$22:$G$105,6,FALSE)) -> 0 | AF30: =AF14*(VLOOKUP(AF$7,'Fixed Inputs'!$B$22:$G$105,6,FALSE)) -> 0 | AG30: =AG14*(VLOOKUP(AG$7,'Fixed Inputs'!$B$22:$G$105,6,FALSE)) -> 0 | AH30: =AH14*(VLOOKUP(AH$7,'Fixed Inputs'!$B$22:$G$105,6,FALSE)) -> 0 | AI30: =AI14*(VLOOKUP(AI$7,'Fixed Inputs'!$B$22:$G$105,6,FALSE)) -> 0 | AJ30: =AJ14*(VLOOKUP(AJ$7,'Fixed Inputs'!$B$22:$G$105,6,FALSE)) -> 0 | AK30: =AK14*(VLOOKUP(AK$7,'Fixed Inputs'!$B$22:$G$105,6,FALSE)) -> 0 | AL30: =AL14*(VLOOKUP(AL$7,'Fixed Inputs'!$B$22:$G$105,6,FALSE)) -> 0 | AM30: =AM14*(VLOOKUP(AM$7,'Fixed Inputs'!$B$22:$G$105,6,FALSE)) -> 0 | AN30: =AN14*(VLOOKUP(AN$7,'Fixed Inputs'!$B$22:$G$105,6,FALSE)) -> 0 | AO30: =AO14*(VLOOKUP(AO$7,'Fixed Inputs'!$B$22:$G$105,6,FALSE)) -> 0 | AP30: =AP14*(VLOOKUP(AP$7,'Fixed Inputs'!$B$22:$G$105,6,FALSE)) -> 0 | AQ30: =AQ14*(VLOOKUP(AQ$7,'Fixed Inputs'!$B$22:$G$105,6,FALSE)) -> 0 | AR30: =AR14*(VLOOKUP(AR$7,'Fixed Inputs'!$B$22:$G$105,6,FALSE)) -> 0 | AS30: =AS14*(VLOOKUP(AS$7,'Fixed Inputs'!$B$22:$G$105,6,FALSE)) -> 0 | AT30: =AT14*(VLOOKUP(AT$7,'Fixed Inputs'!$B$22:$G$105,6,FALSE)) -> 0 | AU30: =AU14*(VLOOKUP(AU$7,'Fixed Inputs'!$B$22:$G$105,6,FALSE)) -> 0 | AV30: =AV14*(VLOOKUP(AV$7,'Fixed Inputs'!$B$22:$G$105,6,FALSE)) -> 0 | AW30: =AW14*(VLOOKUP(AW$7,'Fixed Inputs'!$B$22:$G$105,6,FALSE)) -> 0 | AX30: =AX14*(VLOOKUP(AX$7,'Fixed Inputs'!$B$22:$G$105,6,FALSE)) -> 0 | AY30: =AY14*(VLOOKUP(AY$7,'Fixed Inputs'!$B$22:$G$105,6,FALSE)) -> 0 | AZ30: =AZ14*(VLOOKUP(AZ$7,'Fixed Inputs'!$B$22:$G$105,6,FALSE)) -> 0 | BA30: =BA14*(VLOOKUP(BA$7,'Fixed Inputs'!$B$22:$G$105,6,FALSE)) -> 0 | BB30: =BB14*(VLOOKUP(BB$7,'Fixed Inputs'!$B$22:$G$105,6,FALSE)) -> 0 | BC30: =BC14*(VLOOKUP(BC$7,'Fixed Inputs'!$B$22:$G$105,6,FALSE)) -> 0 | BD30: =BD14*(VLOOKUP(BD$7,'Fixed Inputs'!$B$22:$G$105,6,FALSE)) -> 0 | BE30: =BE14*(VLOOKUP(BE$7,'Fixed Inputs'!$B$22:$G$105,6,FALSE)) -> 0 | BF30: =BF14*(VLOOKUP(BF$7,'Fixed Inputs'!$B$22:$G$105,6,FALSE)) -> 0 | BG30: =BG14*(VLOOKUP(BG$7,'Fixed Inputs'!$B$22:$G$105,6,FALSE)) -> 0 | BH30: =BH14*(VLOOKUP(BH$7,'Fixed Inputs'!$B$22:$G$105,6,FALSE)) -> 0 | BI30: =BI14*(VLOOKUP(BI$7,'Fixed Inputs'!$B$22:$G$105,6,FALSE)) -> 0 | BJ30: =BJ14*(VLOOKUP(BJ$7,'Fixed Inputs'!$B$22:$G$105,6,FALSE)) -> 0 | BK30: =BK14*(VLOOKUP(BK$7,'Fixed Inputs'!$B$22:$G$105,6,FALSE)) -> 0 | BL30: =BL14*(VLOOKUP(BL$7,'Fixed Inputs'!$B$22:$G$105,6,FALSE)) -> 0 | BM30: =BM14*(VLOOKUP(BM$7,'Fixed Inputs'!$B$22:$G$105,6,FALSE)) -> 0 | BN30: =BN14*(VLOOKUP(BN$7,'Fixed Inputs'!$B$22:$G$105,6,FALSE)) -> 0 | BO30: =BO14*(VLOOKUP(BO$7,'Fixed Inputs'!$B$22:$G$105,6,FALSE)) -> 0 | BP30: =BP14*(VLOOKUP(BP$7,'Fixed Inputs'!$B$22:$G$105,6,FALSE)) -> 0 | BQ30: =BQ14*(VLOOKUP(BQ$7,'Fixed Inputs'!$B$22:$G$105,6,FALSE)) -> 0 | BR30: =BR14*(VLOOKUP(BR$7,'Fixed Inputs'!$B$22:$G$105,6,FALSE)) -> 0 | BS30: =BS14*(VLOOKUP(BS$7,'Fixed Inputs'!$B$22:$G$105,6,FALSE)) -> 0
D31: ='Flexibility Requirements'!$C$15 -> 0 | E31: =E15*(VLOOKUP(E$7,'Fixed Inputs'!$B$22:$G$105,6,FALSE)) -> 0 | F31: =F15*(VLOOKUP(F$7,'Fixed Inputs'!$B$22:$G$105,6,FALSE)) -> 0 | G31: =G15*(VLOOKUP(G$7,'Fixed Inputs'!$B$22:$G$105,6,FALSE)) -> 0 | H31: =H15*(VLOOKUP(H$7,'Fixed Inputs'!$B$22:$G$105,6,FALSE)) -> 0 | I31: =I15*(VLOOKUP(I$7,'Fixed Inputs'!$B$22:$G$105,6,FALSE)) -> 0 | J31: =J15*(VLOOKUP(J$7,'Fixed Inputs'!$B$22:$G$105,6,FALSE)) -> 0 | K31: =K15*(VLOOKUP(K$7,'Fixed Inputs'!$B$22:$G$105,6,FALSE)) -> 0 | L31: =L15*(VLOOKUP(L$7,'Fixed Inputs'!$B$22:$G$105,6,FALSE)) -> 0 | M31: =M15*(VLOOKUP(M$7,'Fixed Inputs'!$B$22:$G$105,6,FALSE)) -> 0 | N31: =N15*(VLOOKUP(N$7,'Fixed Inputs'!$B$22:$G$105,6,FALSE)) -> 0 | O31: =O15*(VLOOKUP(O$7,'Fixed Inputs'!$B$22:$G$105,6,FALSE)) -> 0 | P31: =P15*(VLOOKUP(P$7,'Fixed Inputs'!$B$22:$G$105,6,FALSE)) -> 0 | Q31: =Q15*(VLOOKUP(Q$7,'Fixed Inputs'!$B$22:$G$105,6,FALSE)) -> 0 | R31: =R15*(VLOOKUP(R$7,'Fixed Inputs'!$B$22:$G$105,6,FALSE)) -> 0 | S31: =S15*(VLOOKUP(S$7,'Fixed Inputs'!$B$22:$G$105,6,FALSE)) -> 0 | T31: =T15*(VLOOKUP(T$7,'Fixed Inputs'!$B$22:$G$105,6,FALSE)) -> 0 | U31: =U15*(VLOOKUP(U$7,'Fixed Inputs'!$B$22:$G$105,6,FALSE)) -> 0 | V31: =V15*(VLOOKUP(V$7,'Fixed Inputs'!$B$22:$G$105,6,FALSE)) -> 0 | W31: =W15*(VLOOKUP(W$7,'Fixed Inputs'!$B$22:$G$105,6,FALSE)) -> 0 | X31: =X15*(VLOOKUP(X$7,'Fixed Inputs'!$B$22:$G$105,6,FALSE)) -> 0 | Y31: =Y15*(VLOOKUP(Y$7,'Fixed Inputs'!$B$22:$G$105,6,FALSE)) -> 0 | Z31: =Z15*(VLOOKUP(Z$7,'Fixed Inputs'!$B$22:$G$105,6,FALSE)) -> 0 | AA31: =AA15*(VLOOKUP(AA$7,'Fixed Inputs'!$B$22:$G$105,6,FALSE)) -> 0 | AB31: =AB15*(VLOOKUP(AB$7,'Fixed Inputs'!$B$22:$G$105,6,FALSE)) -> 0 | AC31: =AC15*(VLOOKUP(AC$7,'Fixed Inputs'!$B$22:$G$105,6,FALSE)) -> 0 | AD31: =AD15*(VLOOKUP(AD$7,'Fixed Inputs'!$B$22:$G$105,6,FALSE)) -> 0 | AE31: =AE15*(VLOOKUP(AE$7,'Fixed Inputs'!$B$22:$G$105,6,FALSE)) -> 0 | AF31: =AF15*(VLOOKUP(AF$7,'Fixed Inputs'!$B$22:$G$105,6,FALSE)) -> 0 | AG31: =AG15*(VLOOKUP(AG$7,'Fixed Inputs'!$B$22:$G$105,6,FALSE)) -> 0 | AH31: =AH15*(VLOOKUP(AH$7,'Fixed Inputs'!$B$22:$G$105,6,FALSE)) -> 0 | AI31: =AI15*(VLOOKUP(AI$7,'Fixed Inputs'!$B$22:$G$105,6,FALSE)) -> 0 | AJ31: =AJ15*(VLOOKUP(AJ$7,'Fixed Inputs'!$B$22:$G$105,6,FALSE)) -> 0 | AK31: =AK15*(VLOOKUP(AK$7,'Fixed Inputs'!$B$22:$G$105,6,FALSE)) -> 0 | AL31: =AL15*(VLOOKUP(AL$7,'Fixed Inputs'!$B$22:$G$105,6,FALSE)) -> 0 | AM31: =AM15*(VLOOKUP(AM$7,'Fixed Inputs'!$B$22:$G$105,6,FALSE)) -> 0 | AN31: =AN15*(VLOOKUP(AN$7,'Fixed Inputs'!$B$22:$G$105,6,FALSE)) -> 0 | AO31: =AO15*(VLOOKUP(AO$7,'Fixed Inputs'!$B$22:$G$105,6,FALSE)) -> 0 | AP31: =AP15*(VLOOKUP(AP$7,'Fixed Inputs'!$B$22:$G$105,6,FALSE)) -> 0 | AQ31: =AQ15*(VLOOKUP(AQ$7,'Fixed Inputs'!$B$22:$G$105,6,FALSE)) -> 0 | AR31: =AR15*(VLOOKUP(AR$7,'Fixed Inputs'!$B$22:$G$105,6,FALSE)) -> 0 | AS31: =AS15*(VLOOKUP(AS$7,'Fixed Inputs'!$B$22:$G$105,6,FALSE)) -> 0 | AT31: =AT15*(VLOOKUP(AT$7,'Fixed Inputs'!$B$22:$G$105,6,FALSE)) -> 0 | AU31: =AU15*(VLOOKUP(AU$7,'Fixed Inputs'!$B$22:$G$105,6,FALSE)) -> 0 | AV31: =AV15*(VLOOKUP(AV$7,'Fixed Inputs'!$B$22:$G$105,6,FALSE)) -> 0 | AW31: =AW15*(VLOOKUP(AW$7,'Fixed Inputs'!$B$22:$G$105,6,FALSE)) -> 0 | AX31: =AX15*(VLOOKUP(AX$7,'Fixed Inputs'!$B$22:$G$105,6,FALSE)) -> 0 | AY31: =AY15*(VLOOKUP(AY$7,'Fixed Inputs'!$B$22:$G$105,6,FALSE)) -> 0 | AZ31: =AZ15*(VLOOKUP(AZ$7,'Fixed Inputs'!$B$22:$G$105,6,FALSE)) -> 0 | BA31: =BA15*(VLOOKUP(BA$7,'Fixed Inputs'!$B$22:$G$105,6,FALSE)) -> 0 | BB31: =BB15*(VLOOKUP(BB$7,'Fixed Inputs'!$B$22:$G$105,6,FALSE)) -> 0 | BC31: =BC15*(VLOOKUP(BC$7,'Fixed Inputs'!$B$22:$G$105,6,FALSE)) -> 0 | BD31: =BD15*(VLOOKUP(BD$7,'Fixed Inputs'!$B$22:$G$105,6,FALSE)) -> 0 | BE31: =BE15*(VLOOKUP(BE$7,'Fixed Inputs'!$B$22:$G$105,6,FALSE)) -> 0 | BF31: =BF15*(VLOOKUP(BF$7,'Fixed Inputs'!$B$22:$G$105,6,FALSE)) -> 0 | BG31: =BG15*(VLOOKUP(BG$7,'Fixed Inputs'!$B$22:$G$105,6,FALSE)) -> 0 | BH31: =BH15*(VLOOKUP(BH$7,'Fixed Inputs'!$B$22:$G$105,6,FALSE)) -> 0 | BI31: =BI15*(VLOOKUP(BI$7,'Fixed Inputs'!$B$22:$G$105,6,FALSE)) -> 0 | BJ31: =BJ15*(VLOOKUP(BJ$7,'Fixed Inputs'!$B$22:$G$105,6,FALSE)) -> 0 | BK31: =BK15*(VLOOKUP(BK$7,'Fixed Inputs'!$B$22:$G$105,6,FALSE)) -> 0 | BL31: =BL15*(VLOOKUP(BL$7,'Fixed Inputs'!$B$22:$G$105,6,FALSE)) -> 0 | BM31: =BM15*(VLOOKUP(BM$7,'Fixed Inputs'!$B$22:$G$105,6,FALSE)) -> 0 | BN31: =BN15*(VLOOKUP(BN$7,'Fixed Inputs'!$B$22:$G$105,6,FALSE)) -> 0 | BO31: =BO15*(VLOOKUP(BO$7,'Fixed Inputs'!$B$22:$G$105,6,FALSE)) -> 0 | BP31: =BP15*(VLOOKUP(BP$7,'Fixed Inputs'!$B$22:$G$105,6,FALSE)) -> 0 | BQ31: =BQ15*(VLOOKUP(BQ$7,'Fixed Inputs'!$B$22:$G$105,6,FALSE)) -> 0 | BR31: =BR15*(VLOOKUP(BR$7,'Fixed Inputs'!$B$22:$G$105,6,FALSE)) -> 0 | BS31: =BS15*(VLOOKUP(BS$7,'Fixed Inputs'!$B$22:$G$105,6,FALSE)) -> 0
C32: Reduced emissions associated with losses (£)
D33: ='Reinforcement Deferral'!$C$39 -> Losses derogation calculation | E33: =E26*(VLOOKUP(E$7,'Fixed Inputs'!$B$22:$F$105,5,FALSE)) -> 0 | F33: =F26*(VLOOKUP(F$7,'Fixed Inputs'!$B$22:$F$105,5,FALSE)/1000000) -> 0 | G33: =G26*(VLOOKUP(G$7,'Fixed Inputs'!$B$22:$F$105,5,FALSE)/1000000) -> 0 | H33: =H26*(VLOOKUP(H$7,'Fixed Inputs'!$B$22:$F$105,5,FALSE)/1000000) -> 0 | I33: =I26*(VLOOKUP(I$7,'Fixed Inputs'!$B$22:$F$105,5,FALSE)/1000000) -> 0 | J33: =J26*(VLOOKUP(J$7,'Fixed Inputs'!$B$22:$F$105,5,FALSE)/1000000) -> 0 | K33: =K26*(VLOOKUP(K$7,'Fixed Inputs'!$B$22:$F$105,5,FALSE)/1000000) -> 0 | L33: =L26*(VLOOKUP(L$7,'Fixed Inputs'!$B$22:$F$105,5,FALSE)/1000000) -> 0 | M33: =M26*(VLOOKUP(M$7,'Fixed Inputs'!$B$22:$F$105,5,FALSE)/1000000) -> 0 | N33: =N26*(VLOOKUP(N$7,'Fixed Inputs'!$B$22:$F$105,5,FALSE)/1000000) -> 0 | O33: =O26*(VLOOKUP(O$7,'Fixed Inputs'!$B$22:$F$105,5,FALSE)/1000000) -> 0 | P33: =P26*(VLOOKUP(P$7,'Fixed Inputs'!$B$22:$F$105,5,FALSE)/1000000) -> 0 | Q33: =Q26*(VLOOKUP(Q$7,'Fixed Inputs'!$B$22:$F$105,5,FALSE)/1000000) -> 0 | R33: =R26*(VLOOKUP(R$7,'Fixed Inputs'!$B$22:$F$105,5,FALSE)/1000000) -> 0 | S33: =S26*(VLOOKUP(S$7,'Fixed Inputs'!$B$22:$F$105,5,FALSE)/1000000) -> 0 | T33: =T26*(VLOOKUP(T$7,'Fixed Inputs'!$B$22:$F$105,5,FALSE)/1000000) -> 0 | U33: =U26*(VLOOKUP(U$7,'Fixed Inputs'!$B$22:$F$105,5,FALSE)/1000000) -> 0 | V33: =V26*(VLOOKUP(V$7,'Fixed Inputs'!$B$22:$F$105,5,FALSE)/1000000) -> 0 | W33: =W26*(VLOOKUP(W$7,'Fixed Inputs'!$B$22:$F$105,5,FALSE)/1000000) -> 0 | X33: =X26*(VLOOKUP(X$7,'Fixed Inputs'!$B$22:$F$105,5,FALSE)/1000000) -> 0 | Y33: =Y26*(VLOOKUP(Y$7,'Fixed Inputs'!$B$22:$F$105,5,FALSE)/1000000) -> 0 | Z33: =Z26*(VLOOKUP(Z$7,'Fixed Inputs'!$B$22:$F$105,5,FALSE)/1000000) -> 0 | AA33: =AA26*(VLOOKUP(AA$7,'Fixed Inputs'!$B$22:$F$105,5,FALSE)/1000000) -> 0 | AB33: =AB26*(VLOOKUP(AB$7,'Fixed Inputs'!$B$22:$F$105,5,FALSE)/1000000) -> 0 | AC33: =AC26*(VLOOKUP(AC$7,'Fixed Inputs'!$B$22:$F$105,5,FALSE)/1000000) -> 0 | AD33: =AD26*(VLOOKUP(AD$7,'Fixed Inputs'!$B$22:$F$105,5,FALSE)/1000000) -> 0 | AE33: =AE26*(VLOOKUP(AE$7,'Fixed Inputs'!$B$22:$F$105,5,FALSE)/1000000) -> 0 | AF33: =AF26*(VLOOKUP(AF$7,'Fixed Inputs'!$B$22:$F$105,5,FALSE)/1000000) -> 0 | AG33: =AG26*(VLOOKUP(AG$7,'Fixed Inputs'!$B$22:$F$105,5,FALSE)/1000000) -> 0 | AH33: =AH26*(VLOOKUP(AH$7,'Fixed Inputs'!$B$22:$F$105,5,FALSE)/1000000) -> 0 | AI33: =AI26*(VLOOKUP(AI$7,'Fixed Inputs'!$B$22:$F$105,5,FALSE)/1000000) -> 0 | AJ33: =AJ26*(VLOOKUP(AJ$7,'Fixed Inputs'!$B$22:$F$105,5,FALSE)/1000000) -> 0 | AK33: =AK26*(VLOOKUP(AK$7,'Fixed Inputs'!$B$22:$F$105,5,FALSE)/1000000) -> 0 | AL33: =AL26*(VLOOKUP(AL$7,'Fixed Inputs'!$B$22:$F$105,5,FALSE)/1000000) -> 0 | AM33: =AM26*(VLOOKUP(AM$7,'Fixed Inputs'!$B$22:$F$105,5,FALSE)/1000000) -> 0 | AN33: =AN26*(VLOOKUP(AN$7,'Fixed Inputs'!$B$22:$F$105,5,FALSE)/1000000) -> 0 | AO33: =AO26*(VLOOKUP(AO$7,'Fixed Inputs'!$B$22:$F$105,5,FALSE)/1000000) -> 0 | AP33: =AP26*(VLOOKUP(AP$7,'Fixed Inputs'!$B$22:$F$105,5,FALSE)/1000000) -> 0 | AQ33: =AQ26*(VLOOKUP(AQ$7,'Fixed Inputs'!$B$22:$F$105,5,FALSE)/1000000) -> 0 | AR33: =AR26*(VLOOKUP(AR$7,'Fixed Inputs'!$B$22:$F$105,5,FALSE)/1000000) -> 0 | AS33: =AS26*(VLOOKUP(AS$7,'Fixed Inputs'!$B$22:$F$105,5,FALSE)/1000000) -> 0 | AT33: =AT26*(VLOOKUP(AT$7,'Fixed Inputs'!$B$22:$F$105,5,FALSE)/1000000) -> 0 | AU33: =AU26*(VLOOKUP(AU$7,'Fixed Inputs'!$B$22:$F$105,5,FALSE)/1000000) -> 0 | AV33: =AV26*(VLOOKUP(AV$7,'Fixed Inputs'!$B$22:$F$105,5,FALSE)/1000000) -> 0 | AW33: =AW26*(VLOOKUP(AW$7,'Fixed Inputs'!$B$22:$F$105,5,FALSE)/1000000) -> 0 | AX33: =AX26*(VLOOKUP(AX$7,'Fixed Inputs'!$B$22:$F$105,5,FALSE)/1000000) -> 0 | AY33: =AY26*(VLOOKUP(AY$7,'Fixed Inputs'!$B$22:$F$105,5,FALSE)/1000000) -> 0 | AZ33: =AZ26*(VLOOKUP(AZ$7,'Fixed Inputs'!$B$22:$F$105,5,FALSE)/1000000) -> 0 | BA33: =BA26*(VLOOKUP(BA$7,'Fixed Inputs'!$B$22:$F$105,5,FALSE)/1000000) -> 0 | BB33: =BB26*(VLOOKUP(BB$7,'Fixed Inputs'!$B$22:$F$105,5,FALSE)/1000000) -> 0 | BC33: =BC26*(VLOOKUP(BC$7,'Fixed Inputs'!$B$22:$F$105,5,FALSE)/1000000) -> 0 | BD33: =BD26*(VLOOKUP(BD$7,'Fixed Inputs'!$B$22:$F$105,5,FALSE)/1000000) -> 0 | BE33: =BE26*(VLOOKUP(BE$7,'Fixed Inputs'!$B$22:$F$105,5,FALSE)/1000000) -> 0 | BF33: =BF26*(VLOOKUP(BF$7,'Fixed Inputs'!$B$22:$F$105,5,FALSE)/1000000) -> 0 | BG33: =BG26*(VLOOKUP(BG$7,'Fixed Inputs'!$B$22:$F$105,5,FALSE)/1000000) -> 0 | BH33: =BH26*(VLOOKUP(BH$7,'Fixed Inputs'!$B$22:$F$105,5,FALSE)/1000000) -> 0 | BI33: =BI26*(VLOOKUP(BI$7,'Fixed Inputs'!$B$22:$F$105,5,FALSE)/1000000) -> 0 | BJ33: =BJ26*(VLOOKUP(BJ$7,'Fixed Inputs'!$B$22:$F$105,5,FALSE)/1000000) -> 0 | BK33: =BK26*(VLOOKUP(BK$7,'Fixed Inputs'!$B$22:$F$105,5,FALSE)/1000000) -> 0 | BL33: =BL26*(VLOOKUP(BL$7,'Fixed Inputs'!$B$22:$F$105,5,FALSE)/1000000) -> 0 | BM33: =BM26*(VLOOKUP(BM$7,'Fixed Inputs'!$B$22:$F$105,5,FALSE)/1000000) -> 0 | BN33: =BN26*(VLOOKUP(BN$7,'Fixed Inputs'!$B$22:$F$105,5,FALSE)/1000000) -> 0 | BO33: =BO26*(VLOOKUP(BO$7,'Fixed Inputs'!$B$22:$F$105,5,FALSE)/1000000) -> 0 | BP33: =BP26*(VLOOKUP(BP$7,'Fixed Inputs'!$B$22:$F$105,5,FALSE)/1000000) -> 0 | BQ33: =BQ26*(VLOOKUP(BQ$7,'Fixed Inputs'!$B$22:$F$105,5,FALSE)/1000000) -> 0 | BR33: =BR26*(VLOOKUP(BR$7,'Fixed Inputs'!$B$22:$F$105,5,FALSE)/1000000) -> 0 | BS33: =BS26*(VLOOKUP(BS$7,'Fixed Inputs'!$B$22:$F$105,5,FALSE)/1000000) -> 0
D34: ='Flexibility Requirements'!$C$11 -> 0 | E34: =E27*(VLOOKUP(E$7,'Fixed Inputs'!$B$22:$F$105,5,FALSE)/1000000) -> 0 | F34: =F27*(VLOOKUP(F$7,'Fixed Inputs'!$B$22:$F$105,5,FALSE)/1000000) -> 0 | G34: =G27*(VLOOKUP(G$7,'Fixed Inputs'!$B$22:$F$105,5,FALSE)/1000000) -> 0 | H34: =H27*(VLOOKUP(H$7,'Fixed Inputs'!$B$22:$F$105,5,FALSE)/1000000) -> 0 | I34: =I27*(VLOOKUP(I$7,'Fixed Inputs'!$B$22:$F$105,5,FALSE)/1000000) -> 0 | J34: =J27*(VLOOKUP(J$7,'Fixed Inputs'!$B$22:$F$105,5,FALSE)/1000000) -> 0 | K34: =K27*(VLOOKUP(K$7,'Fixed Inputs'!$B$22:$F$105,5,FALSE)/1000000) -> 0 | L34: =L27*(VLOOKUP(L$7,'Fixed Inputs'!$B$22:$F$105,5,FALSE)/1000000) -> 0 | M34: =M27*(VLOOKUP(M$7,'Fixed Inputs'!$B$22:$F$105,5,FALSE)/1000000) -> 0 | N34: =N27*(VLOOKUP(N$7,'Fixed Inputs'!$B$22:$F$105,5,FALSE)/1000000) -> 0 | O34: =O27*(VLOOKUP(O$7,'Fixed Inputs'!$B$22:$F$105,5,FALSE)/1000000) -> 0 | P34: =P27*(VLOOKUP(P$7,'Fixed Inputs'!$B$22:$F$105,5,FALSE)/1000000) -> 0 | Q34: =Q27*(VLOOKUP(Q$7,'Fixed Inputs'!$B$22:$F$105,5,FALSE)/1000000) -> 0 | R34: =R27*(VLOOKUP(R$7,'Fixed Inputs'!$B$22:$F$105,5,FALSE)/1000000) -> 0 | S34: =S27*(VLOOKUP(S$7,'Fixed Inputs'!$B$22:$F$105,5,FALSE)/1000000) -> 0 | T34: =T27*(VLOOKUP(T$7,'Fixed Inputs'!$B$22:$F$105,5,FALSE)/1000000) -> 0 | U34: =U27*(VLOOKUP(U$7,'Fixed Inputs'!$B$22:$F$105,5,FALSE)/1000000) -> 0 | V34: =V27*(VLOOKUP(V$7,'Fixed Inputs'!$B$22:$F$105,5,FALSE)/1000000) -> 0 | W34: =W27*(VLOOKUP(W$7,'Fixed Inputs'!$B$22:$F$105,5,FALSE)/1000000) -> 0 | X34: =X27*(VLOOKUP(X$7,'Fixed Inputs'!$B$22:$F$105,5,FALSE)/1000000) -> 0 | Y34: =Y27*(VLOOKUP(Y$7,'Fixed Inputs'!$B$22:$F$105,5,FALSE)/1000000) -> 0 | Z34: =Z27*(VLOOKUP(Z$7,'Fixed Inputs'!$B$22:$F$105,5,FALSE)/1000000) -> 0 | AA34: =AA27*(VLOOKUP(AA$7,'Fixed Inputs'!$B$22:$F$105,5,FALSE)/1000000) -> 0 | AB34: =AB27*(VLOOKUP(AB$7,'Fixed Inputs'!$B$22:$F$105,5,FALSE)/1000000) -> 0 | AC34: =AC27*(VLOOKUP(AC$7,'Fixed Inputs'!$B$22:$F$105,5,FALSE)/1000000) -> 0 | AD34: =AD27*(VLOOKUP(AD$7,'Fixed Inputs'!$B$22:$F$105,5,FALSE)/1000000) -> 0 | AE34: =AE27*(VLOOKUP(AE$7,'Fixed Inputs'!$B$22:$F$105,5,FALSE)/1000000) -> 0 | AF34: =AF27*(VLOOKUP(AF$7,'Fixed Inputs'!$B$22:$F$105,5,FALSE)/1000000) -> 0 | AG34: =AG27*(VLOOKUP(AG$7,'Fixed Inputs'!$B$22:$F$105,5,FALSE)/1000000) -> 0 | AH34: =AH27*(VLOOKUP(AH$7,'Fixed Inputs'!$B$22:$F$105,5,FALSE)/1000000) -> 0 | AI34: =AI27*(VLOOKUP(AI$7,'Fixed Inputs'!$B$22:$F$105,5,FALSE)/1000000) -> 0 | AJ34: =AJ27*(VLOOKUP(AJ$7,'Fixed Inputs'!$B$22:$F$105,5,FALSE)/1000000) -> 0 | AK34: =AK27*(VLOOKUP(AK$7,'Fixed Inputs'!$B$22:$F$105,5,FALSE)/1000000) -> 0 | AL34: =AL27*(VLOOKUP(AL$7,'Fixed Inputs'!$B$22:$F$105,5,FALSE)/1000000) -> 0 | AM34: =AM27*(VLOOKUP(AM$7,'Fixed Inputs'!$B$22:$F$105,5,FALSE)/1000000) -> 0 | AN34: =AN27*(VLOOKUP(AN$7,'Fixed Inputs'!$B$22:$F$105,5,FALSE)/1000000) -> 0 | AO34: =AO27*(VLOOKUP(AO$7,'Fixed Inputs'!$B$22:$F$105,5,FALSE)/1000000) -> 0 | AP34: =AP27*(VLOOKUP(AP$7,'Fixed Inputs'!$B$22:$F$105,5,FALSE)/1000000) -> 0 | AQ34: =AQ27*(VLOOKUP(AQ$7,'Fixed Inputs'!$B$22:$F$105,5,FALSE)/1000000) -> 0 | AR34: =AR27*(VLOOKUP(AR$7,'Fixed Inputs'!$B$22:$F$105,5,FALSE)/1000000) -> 0 | AS34: =AS27*(VLOOKUP(AS$7,'Fixed Inputs'!$B$22:$F$105,5,FALSE)/1000000) -> 0 | AT34: =AT27*(VLOOKUP(AT$7,'Fixed Inputs'!$B$22:$F$105,5,FALSE)/1000000) -> 0 | AU34: =AU27*(VLOOKUP(AU$7,'Fixed Inputs'!$B$22:$F$105,5,FALSE)/1000000) -> 0 | AV34: =AV27*(VLOOKUP(AV$7,'Fixed Inputs'!$B$22:$F$105,5,FALSE)/1000000) -> 0 | AW34: =AW27*(VLOOKUP(AW$7,'Fixed Inputs'!$B$22:$F$105,5,FALSE)/1000000) -> 0 | AX34: =AX27*(VLOOKUP(AX$7,'Fixed Inputs'!$B$22:$F$105,5,FALSE)/1000000) -> 0 | AY34: =AY27*(VLOOKUP(AY$7,'Fixed Inputs'!$B$22:$F$105,5,FALSE)/1000000) -> 0 | AZ34: =AZ27*(VLOOKUP(AZ$7,'Fixed Inputs'!$B$22:$F$105,5,FALSE)/1000000) -> 0 | BA34: =BA27*(VLOOKUP(BA$7,'Fixed Inputs'!$B$22:$F$105,5,FALSE)/1000000) -> 0 | BB34: =BB27*(VLOOKUP(BB$7,'Fixed Inputs'!$B$22:$F$105,5,FALSE)/1000000) -> 0 | BC34: =BC27*(VLOOKUP(BC$7,'Fixed Inputs'!$B$22:$F$105,5,FALSE)/1000000) -> 0 | BD34: =BD27*(VLOOKUP(BD$7,'Fixed Inputs'!$B$22:$F$105,5,FALSE)/1000000) -> 0 | BE34: =BE27*(VLOOKUP(BE$7,'Fixed Inputs'!$B$22:$F$105,5,FALSE)/1000000) -> 0 | BF34: =BF27*(VLOOKUP(BF$7,'Fixed Inputs'!$B$22:$F$105,5,FALSE)/1000000) -> 0 | BG34: =BG27*(VLOOKUP(BG$7,'Fixed Inputs'!$B$22:$F$105,5,FALSE)/1000000) -> 0 | BH34: =BH27*(VLOOKUP(BH$7,'Fixed Inputs'!$B$22:$F$105,5,FALSE)/1000000) -> 0 | BI34: =BI27*(VLOOKUP(BI$7,'Fixed Inputs'!$B$22:$F$105,5,FALSE)/1000000) -> 0 | BJ34: =BJ27*(VLOOKUP(BJ$7,'Fixed Inputs'!$B$22:$F$105,5,FALSE)/1000000) -> 0 | BK34: =BK27*(VLOOKUP(BK$7,'Fixed Inputs'!$B$22:$F$105,5,FALSE)/1000000) -> 0 | BL34: =BL27*(VLOOKUP(BL$7,'Fixed Inputs'!$B$22:$F$105,5,FALSE)/1000000) -> 0 | BM34: =BM27*(VLOOKUP(BM$7,'Fixed Inputs'!$B$22:$F$105,5,FALSE)/1000000) -> 0 | BN34: =BN27*(VLOOKUP(BN$7,'Fixed Inputs'!$B$22:$F$105,5,FALSE)/1000000) -> 0 | BO34: =BO27*(VLOOKUP(BO$7,'Fixed Inputs'!$B$22:$F$105,5,FALSE)/1000000) -> 0 | BP34: =BP27*(VLOOKUP(BP$7,'Fixed Inputs'!$B$22:$F$105,5,FALSE)/1000000) -> 0 | BQ34: =BQ27*(VLOOKUP(BQ$7,'Fixed Inputs'!$B$22:$F$105,5,FALSE)/1000000) -> 0 | BR34: =BR27*(VLOOKUP(BR$7,'Fixed Inputs'!$B$22:$F$105,5,FALSE)/1000000) -> 0 | BS34: =BS27*(VLOOKUP(BS$7,'Fixed Inputs'!$B$22:$F$105,5,FALSE)/1000000) -> 0
D35: ='Flexibility Requirements'!$C$12 -> 0 | E35: =E28*(VLOOKUP(E$7,'Fixed Inputs'!$B$22:$F$105,5,FALSE)/1000000) -> 0 | F35: =F28*(VLOOKUP(F$7,'Fixed Inputs'!$B$22:$F$105,5,FALSE)/1000000) -> 0 | G35: =G28*(VLOOKUP(G$7,'Fixed Inputs'!$B$22:$F$105,5,FALSE)/1000000) -> 0 | H35: =H28*(VLOOKUP(H$7,'Fixed Inputs'!$B$22:$F$105,5,FALSE)/1000000) -> 0 | I35: =I28*(VLOOKUP(I$7,'Fixed Inputs'!$B$22:$F$105,5,FALSE)/1000000) -> 0 | J35: =J28*(VLOOKUP(J$7,'Fixed Inputs'!$B$22:$F$105,5,FALSE)/1000000) -> 0 | K35: =K28*(VLOOKUP(K$7,'Fixed Inputs'!$B$22:$F$105,5,FALSE)/1000000) -> 0 | L35: =L28*(VLOOKUP(L$7,'Fixed Inputs'!$B$22:$F$105,5,FALSE)/1000000) -> 0 | M35: =M28*(VLOOKUP(M$7,'Fixed Inputs'!$B$22:$F$105,5,FALSE)/1000000) -> 0 | N35: =N28*(VLOOKUP(N$7,'Fixed Inputs'!$B$22:$F$105,5,FALSE)/1000000) -> 0 | O35: =O28*(VLOOKUP(O$7,'Fixed Inputs'!$B$22:$F$105,5,FALSE)/1000000) -> 0 | P35: =P28*(VLOOKUP(P$7,'Fixed Inputs'!$B$22:$F$105,5,FALSE)/1000000) -> 0 | Q35: =Q28*(VLOOKUP(Q$7,'Fixed Inputs'!$B$22:$F$105,5,FALSE)/1000000) -> 0 | R35: =R28*(VLOOKUP(R$7,'Fixed Inputs'!$B$22:$F$105,5,FALSE)/1000000) -> 0 | S35: =S28*(VLOOKUP(S$7,'Fixed Inputs'!$B$22:$F$105,5,FALSE)/1000000) -> 0 | T35: =T28*(VLOOKUP(T$7,'Fixed Inputs'!$B$22:$F$105,5,FALSE)/1000000) -> 0 | U35: =U28*(VLOOKUP(U$7,'Fixed Inputs'!$B$22:$F$105,5,FALSE)/1000000) -> 0 | V35: =V28*(VLOOKUP(V$7,'Fixed Inputs'!$B$22:$F$105,5,FALSE)/1000000) -> 0 | W35: =W28*(VLOOKUP(W$7,'Fixed Inputs'!$B$22:$F$105,5,FALSE)/1000000) -> 0 | X35: =X28*(VLOOKUP(X$7,'Fixed Inputs'!$B$22:$F$105,5,FALSE)/1000000) -> 0 | Y35: =Y28*(VLOOKUP(Y$7,'Fixed Inputs'!$B$22:$F$105,5,FALSE)/1000000) -> 0 | Z35: =Z28*(VLOOKUP(Z$7,'Fixed Inputs'!$B$22:$F$105,5,FALSE)/1000000) -> 0 | AA35: =AA28*(VLOOKUP(AA$7,'Fixed Inputs'!$B$22:$F$105,5,FALSE)/1000000) -> 0 | AB35: =AB28*(VLOOKUP(AB$7,'Fixed Inputs'!$B$22:$F$105,5,FALSE)/1000000) -> 0 | AC35: =AC28*(VLOOKUP(AC$7,'Fixed Inputs'!$B$22:$F$105,5,FALSE)/1000000) -> 0 | AD35: =AD28*(VLOOKUP(AD$7,'Fixed Inputs'!$B$22:$F$105,5,FALSE)/1000000) -> 0 | AE35: =AE28*(VLOOKUP(AE$7,'Fixed Inputs'!$B$22:$F$105,5,FALSE)/1000000) -> 0 | AF35: =AF28*(VLOOKUP(AF$7,'Fixed Inputs'!$B$22:$F$105,5,FALSE)/1000000) -> 0 | AG35: =AG28*(VLOOKUP(AG$7,'Fixed Inputs'!$B$22:$F$105,5,FALSE)/1000000) -> 0 | AH35: =AH28*(VLOOKUP(AH$7,'Fixed Inputs'!$B$22:$F$105,5,FALSE)/1000000) -> 0 | AI35: =AI28*(VLOOKUP(AI$7,'Fixed Inputs'!$B$22:$F$105,5,FALSE)/1000000) -> 0 | AJ35: =AJ28*(VLOOKUP(AJ$7,'Fixed Inputs'!$B$22:$F$105,5,FALSE)/1000000) -> 0 | AK35: =AK28*(VLOOKUP(AK$7,'Fixed Inputs'!$B$22:$F$105,5,FALSE)/1000000) -> 0 | AL35: =AL28*(VLOOKUP(AL$7,'Fixed Inputs'!$B$22:$F$105,5,FALSE)/1000000) -> 0 | AM35: =AM28*(VLOOKUP(AM$7,'Fixed Inputs'!$B$22:$F$105,5,FALSE)/1000000) -> 0 | AN35: =AN28*(VLOOKUP(AN$7,'Fixed Inputs'!$B$22:$F$105,5,FALSE)/1000000) -> 0 | AO35: =AO28*(VLOOKUP(AO$7,'Fixed Inputs'!$B$22:$F$105,5,FALSE)/1000000) -> 0 | AP35: =AP28*(VLOOKUP(AP$7,'Fixed Inputs'!$B$22:$F$105,5,FALSE)/1000000) -> 0 | AQ35: =AQ28*(VLOOKUP(AQ$7,'Fixed Inputs'!$B$22:$F$105,5,FALSE)/1000000) -> 0 | AR35: =AR28*(VLOOKUP(AR$7,'Fixed Inputs'!$B$22:$F$105,5,FALSE)/1000000) -> 0 | AS35: =AS28*(VLOOKUP(AS$7,'Fixed Inputs'!$B$22:$F$105,5,FALSE)/1000000) -> 0 | AT35: =AT28*(VLOOKUP(AT$7,'Fixed Inputs'!$B$22:$F$105,5,FALSE)/1000000) -> 0 | AU35: =AU28*(VLOOKUP(AU$7,'Fixed Inputs'!$B$22:$F$105,5,FALSE)/1000000) -> 0 | AV35: =AV28*(VLOOKUP(AV$7,'Fixed Inputs'!$B$22:$F$105,5,FALSE)/1000000) -> 0 | AW35: =AW28*(VLOOKUP(AW$7,'Fixed Inputs'!$B$22:$F$105,5,FALSE)/1000000) -> 0 | AX35: =AX28*(VLOOKUP(AX$7,'Fixed Inputs'!$B$22:$F$105,5,FALSE)/1000000) -> 0 | AY35: =AY28*(VLOOKUP(AY$7,'Fixed Inputs'!$B$22:$F$105,5,FALSE)/1000000) -> 0 | AZ35: =AZ28*(VLOOKUP(AZ$7,'Fixed Inputs'!$B$22:$F$105,5,FALSE)/1000000) -> 0 | BA35: =BA28*(VLOOKUP(BA$7,'Fixed Inputs'!$B$22:$F$105,5,FALSE)/1000000) -> 0 | BB35: =BB28*(VLOOKUP(BB$7,'Fixed Inputs'!$B$22:$F$105,5,FALSE)/1000000) -> 0 | BC35: =BC28*(VLOOKUP(BC$7,'Fixed Inputs'!$B$22:$F$105,5,FALSE)/1000000) -> 0 | BD35: =BD28*(VLOOKUP(BD$7,'Fixed Inputs'!$B$22:$F$105,5,FALSE)/1000000) -> 0 | BE35: =BE28*(VLOOKUP(BE$7,'Fixed Inputs'!$B$22:$F$105,5,FALSE)/1000000) -> 0 | BF35: =BF28*(VLOOKUP(BF$7,'Fixed Inputs'!$B$22:$F$105,5,FALSE)/1000000) -> 0 | BG35: =BG28*(VLOOKUP(BG$7,'Fixed Inputs'!$B$22:$F$105,5,FALSE)/1000000) -> 0 | BH35: =BH28*(VLOOKUP(BH$7,'Fixed Inputs'!$B$22:$F$105,5,FALSE)/1000000) -> 0 | BI35: =BI28*(VLOOKUP(BI$7,'Fixed Inputs'!$B$22:$F$105,5,FALSE)/1000000) -> 0 | BJ35: =BJ28*(VLOOKUP(BJ$7,'Fixed Inputs'!$B$22:$F$105,5,FALSE)/1000000) -> 0 | BK35: =BK28*(VLOOKUP(BK$7,'Fixed Inputs'!$B$22:$F$105,5,FALSE)/1000000) -> 0 | BL35: =BL28*(VLOOKUP(BL$7,'Fixed Inputs'!$B$22:$F$105,5,FALSE)/1000000) -> 0 | BM35: =BM28*(VLOOKUP(BM$7,'Fixed Inputs'!$B$22:$F$105,5,FALSE)/1000000) -> 0 | BN35: =BN28*(VLOOKUP(BN$7,'Fixed Inputs'!$B$22:$F$105,5,FALSE)/1000000) -> 0 | BO35: =BO28*(VLOOKUP(BO$7,'Fixed Inputs'!$B$22:$F$105,5,FALSE)/1000000) -> 0 | BP35: =BP28*(VLOOKUP(BP$7,'Fixed Inputs'!$B$22:$F$105,5,FALSE)/1000000) -> 0 | BQ35: =BQ28*(VLOOKUP(BQ$7,'Fixed Inputs'!$B$22:$F$105,5,FALSE)/1000000) -> 0 | BR35: =BR28*(VLOOKUP(BR$7,'Fixed Inputs'!$B$22:$F$105,5,FALSE)/1000000) -> 0 | BS35: =BS28*(VLOOKUP(BS$7,'Fixed Inputs'!$B$22:$F$105,5,FALSE)/1000000) -> 0
D36: ='Flexibility Requirements'!$C$13 -> 0 | E36: =E29*(VLOOKUP(E$7,'Fixed Inputs'!$B$22:$F$105,5,FALSE)/1000000) -> 0 | F36: =F29*(VLOOKUP(F$7,'Fixed Inputs'!$B$22:$F$105,5,FALSE)/1000000) -> 0 | G36: =G29*(VLOOKUP(G$7,'Fixed Inputs'!$B$22:$F$105,5,FALSE)/1000000) -> 0 | H36: =H29*(VLOOKUP(H$7,'Fixed Inputs'!$B$22:$F$105,5,FALSE)/1000000) -> 0 | I36: =I29*(VLOOKUP(I$7,'Fixed Inputs'!$B$22:$F$105,5,FALSE)/1000000) -> 0 | J36: =J29*(VLOOKUP(J$7,'Fixed Inputs'!$B$22:$F$105,5,FALSE)/1000000) -> 0 | K36: =K29*(VLOOKUP(K$7,'Fixed Inputs'!$B$22:$F$105,5,FALSE)/1000000) -> 0 | L36: =L29*(VLOOKUP(L$7,'Fixed Inputs'!$B$22:$F$105,5,FALSE)/1000000) -> 0 | M36: =M29*(VLOOKUP(M$7,'Fixed Inputs'!$B$22:$F$105,5,FALSE)/1000000) -> 0 | N36: =N29*(VLOOKUP(N$7,'Fixed Inputs'!$B$22:$F$105,5,FALSE)/1000000) -> 0 | O36: =O29*(VLOOKUP(O$7,'Fixed Inputs'!$B$22:$F$105,5,FALSE)/1000000) -> 0 | P36: =P29*(VLOOKUP(P$7,'Fixed Inputs'!$B$22:$F$105,5,FALSE)/1000000) -> 0 | Q36: =Q29*(VLOOKUP(Q$7,'Fixed Inputs'!$B$22:$F$105,5,FALSE)/1000000) -> 0 | R36: =R29*(VLOOKUP(R$7,'Fixed Inputs'!$B$22:$F$105,5,FALSE)/1000000) -> 0 | S36: =S29*(VLOOKUP(S$7,'Fixed Inputs'!$B$22:$F$105,5,FALSE)/1000000) -> 0 | T36: =T29*(VLOOKUP(T$7,'Fixed Inputs'!$B$22:$F$105,5,FALSE)/1000000) -> 0 | U36: =U29*(VLOOKUP(U$7,'Fixed Inputs'!$B$22:$F$105,5,FALSE)/1000000) -> 0 | V36: =V29*(VLOOKUP(V$7,'Fixed Inputs'!$B$22:$F$105,5,FALSE)/1000000) -> 0 | W36: =W29*(VLOOKUP(W$7,'Fixed Inputs'!$B$22:$F$105,5,FALSE)/1000000) -> 0 | X36: =X29*(VLOOKUP(X$7,'Fixed Inputs'!$B$22:$F$105,5,FALSE)/1000000) -> 0 | Y36: =Y29*(VLOOKUP(Y$7,'Fixed Inputs'!$B$22:$F$105,5,FALSE)/1000000) -> 0 | Z36: =Z29*(VLOOKUP(Z$7,'Fixed Inputs'!$B$22:$F$105,5,FALSE)/1000000) -> 0 | AA36: =AA29*(VLOOKUP(AA$7,'Fixed Inputs'!$B$22:$F$105,5,FALSE)/1000000) -> 0 | AB36: =AB29*(VLOOKUP(AB$7,'Fixed Inputs'!$B$22:$F$105,5,FALSE)/1000000) -> 0 | AC36: =AC29*(VLOOKUP(AC$7,'Fixed Inputs'!$B$22:$F$105,5,FALSE)/1000000) -> 0 | AD36: =AD29*(VLOOKUP(AD$7,'Fixed Inputs'!$B$22:$F$105,5,FALSE)/1000000) -> 0 | AE36: =AE29*(VLOOKUP(AE$7,'Fixed Inputs'!$B$22:$F$105,5,FALSE)/1000000) -> 0 | AF36: =AF29*(VLOOKUP(AF$7,'Fixed Inputs'!$B$22:$F$105,5,FALSE)/1000000) -> 0 | AG36: =AG29*(VLOOKUP(AG$7,'Fixed Inputs'!$B$22:$F$105,5,FALSE)/1000000) -> 0 | AH36: =AH29*(VLOOKUP(AH$7,'Fixed Inputs'!$B$22:$F$105,5,FALSE)/1000000) -> 0 | AI36: =AI29*(VLOOKUP(AI$7,'Fixed Inputs'!$B$22:$F$105,5,FALSE)/1000000) -> 0 | AJ36: =AJ29*(VLOOKUP(AJ$7,'Fixed Inputs'!$B$22:$F$105,5,FALSE)/1000000) -> 0 | AK36: =AK29*(VLOOKUP(AK$7,'Fixed Inputs'!$B$22:$F$105,5,FALSE)/1000000) -> 0 | AL36: =AL29*(VLOOKUP(AL$7,'Fixed Inputs'!$B$22:$F$105,5,FALSE)/1000000) -> 0 | AM36: =AM29*(VLOOKUP(AM$7,'Fixed Inputs'!$B$22:$F$105,5,FALSE)/1000000) -> 0 | AN36: =AN29*(VLOOKUP(AN$7,'Fixed Inputs'!$B$22:$F$105,5,FALSE)/1000000) -> 0 | AO36: =AO29*(VLOOKUP(AO$7,'Fixed Inputs'!$B$22:$F$105,5,FALSE)/1000000) -> 0 | AP36: =AP29*(VLOOKUP(AP$7,'Fixed Inputs'!$B$22:$F$105,5,FALSE)/1000000) -> 0 | AQ36: =AQ29*(VLOOKUP(AQ$7,'Fixed Inputs'!$B$22:$F$105,5,FALSE)/1000000) -> 0 | AR36: =AR29*(VLOOKUP(AR$7,'Fixed Inputs'!$B$22:$F$105,5,FALSE)/1000000) -> 0 | AS36: =AS29*(VLOOKUP(AS$7,'Fixed Inputs'!$B$22:$F$105,5,FALSE)/1000000) -> 0 | AT36: =AT29*(VLOOKUP(AT$7,'Fixed Inputs'!$B$22:$F$105,5,FALSE)/1000000) -> 0 | AU36: =AU29*(VLOOKUP(AU$7,'Fixed Inputs'!$B$22:$F$105,5,FALSE)/1000000) -> 0 | AV36: =AV29*(VLOOKUP(AV$7,'Fixed Inputs'!$B$22:$F$105,5,FALSE)/1000000) -> 0 | AW36: =AW29*(VLOOKUP(AW$7,'Fixed Inputs'!$B$22:$F$105,5,FALSE)/1000000) -> 0 | AX36: =AX29*(VLOOKUP(AX$7,'Fixed Inputs'!$B$22:$F$105,5,FALSE)/1000000) -> 0 | AY36: =AY29*(VLOOKUP(AY$7,'Fixed Inputs'!$B$22:$F$105,5,FALSE)/1000000) -> 0 | AZ36: =AZ29*(VLOOKUP(AZ$7,'Fixed Inputs'!$B$22:$F$105,5,FALSE)/1000000) -> 0 | BA36: =BA29*(VLOOKUP(BA$7,'Fixed Inputs'!$B$22:$F$105,5,FALSE)/1000000) -> 0 | BB36: =BB29*(VLOOKUP(BB$7,'Fixed Inputs'!$B$22:$F$105,5,FALSE)/1000000) -> 0 | BC36: =BC29*(VLOOKUP(BC$7,'Fixed Inputs'!$B$22:$F$105,5,FALSE)/1000000) -> 0 | BD36: =BD29*(VLOOKUP(BD$7,'Fixed Inputs'!$B$22:$F$105,5,FALSE)/1000000) -> 0 | BE36: =BE29*(VLOOKUP(BE$7,'Fixed Inputs'!$B$22:$F$105,5,FALSE)/1000000) -> 0 | BF36: =BF29*(VLOOKUP(BF$7,'Fixed Inputs'!$B$22:$F$105,5,FALSE)/1000000) -> 0 | BG36: =BG29*(VLOOKUP(BG$7,'Fixed Inputs'!$B$22:$F$105,5,FALSE)/1000000) -> 0 | BH36: =BH29*(VLOOKUP(BH$7,'Fixed Inputs'!$B$22:$F$105,5,FALSE)/1000000) -> 0 | BI36: =BI29*(VLOOKUP(BI$7,'Fixed Inputs'!$B$22:$F$105,5,FALSE)/1000000) -> 0 | BJ36: =BJ29*(VLOOKUP(BJ$7,'Fixed Inputs'!$B$22:$F$105,5,FALSE)/1000000) -> 0 | BK36: =BK29*(VLOOKUP(BK$7,'Fixed Inputs'!$B$22:$F$105,5,FALSE)/1000000) -> 0 | BL36: =BL29*(VLOOKUP(BL$7,'Fixed Inputs'!$B$22:$F$105,5,FALSE)/1000000) -> 0 | BM36: =BM29*(VLOOKUP(BM$7,'Fixed Inputs'!$B$22:$F$105,5,FALSE)/1000000) -> 0 | BN36: =BN29*(VLOOKUP(BN$7,'Fixed Inputs'!$B$22:$F$105,5,FALSE)/1000000) -> 0 | BO36: =BO29*(VLOOKUP(BO$7,'Fixed Inputs'!$B$22:$F$105,5,FALSE)/1000000) -> 0 | BP36: =BP29*(VLOOKUP(BP$7,'Fixed Inputs'!$B$22:$F$105,5,FALSE)/1000000) -> 0 | BQ36: =BQ29*(VLOOKUP(BQ$7,'Fixed Inputs'!$B$22:$F$105,5,FALSE)/1000000) -> 0 | BR36: =BR29*(VLOOKUP(BR$7,'Fixed Inputs'!$B$22:$F$105,5,FALSE)/1000000) -> 0 | BS36: =BS29*(VLOOKUP(BS$7,'Fixed Inputs'!$B$22:$F$105,5,FALSE)/1000000) -> 0
D37: ='Flexibility Requirements'!$C$14 -> 0 | E37: =E30*(VLOOKUP(E$7,'Fixed Inputs'!$B$22:$F$105,5,FALSE)/1000000) -> 0 | F37: =F30*(VLOOKUP(F$7,'Fixed Inputs'!$B$22:$F$105,5,FALSE)/1000000) -> 0 | G37: =G30*(VLOOKUP(G$7,'Fixed Inputs'!$B$22:$F$105,5,FALSE)/1000000) -> 0 | H37: =H30*(VLOOKUP(H$7,'Fixed Inputs'!$B$22:$F$105,5,FALSE)/1000000) -> 0 | I37: =I30*(VLOOKUP(I$7,'Fixed Inputs'!$B$22:$F$105,5,FALSE)/1000000) -> 0 | J37: =J30*(VLOOKUP(J$7,'Fixed Inputs'!$B$22:$F$105,5,FALSE)/1000000) -> 0 | K37: =K30*(VLOOKUP(K$7,'Fixed Inputs'!$B$22:$F$105,5,FALSE)/1000000) -> 0 | L37: =L30*(VLOOKUP(L$7,'Fixed Inputs'!$B$22:$F$105,5,FALSE)/1000000) -> 0 | M37: =M30*(VLOOKUP(M$7,'Fixed Inputs'!$B$22:$F$105,5,FALSE)/1000000) -> 0 | N37: =N30*(VLOOKUP(N$7,'Fixed Inputs'!$B$22:$F$105,5,FALSE)/1000000) -> 0 | O37: =O30*(VLOOKUP(O$7,'Fixed Inputs'!$B$22:$F$105,5,FALSE)/1000000) -> 0 | P37: =P30*(VLOOKUP(P$7,'Fixed Inputs'!$B$22:$F$105,5,FALSE)/1000000) -> 0 | Q37: =Q30*(VLOOKUP(Q$7,'Fixed Inputs'!$B$22:$F$105,5,FALSE)/1000000) -> 0 | R37: =R30*(VLOOKUP(R$7,'Fixed Inputs'!$B$22:$F$105,5,FALSE)/1000000) -> 0 | S37: =S30*(VLOOKUP(S$7,'Fixed Inputs'!$B$22:$F$105,5,FALSE)/1000000) -> 0 | T37: =T30*(VLOOKUP(T$7,'Fixed Inputs'!$B$22:$F$105,5,FALSE)/1000000) -> 0 | U37: =U30*(VLOOKUP(U$7,'Fixed Inputs'!$B$22:$F$105,5,FALSE)/1000000) -> 0 | V37: =V30*(VLOOKUP(V$7,'Fixed Inputs'!$B$22:$F$105,5,FALSE)/1000000) -> 0 | W37: =W30*(VLOOKUP(W$7,'Fixed Inputs'!$B$22:$F$105,5,FALSE)/1000000) -> 0 | X37: =X30*(VLOOKUP(X$7,'Fixed Inputs'!$B$22:$F$105,5,FALSE)/1000000) -> 0 | Y37: =Y30*(VLOOKUP(Y$7,'Fixed Inputs'!$B$22:$F$105,5,FALSE)/1000000) -> 0 | Z37: =Z30*(VLOOKUP(Z$7,'Fixed Inputs'!$B$22:$F$105,5,FALSE)/1000000) -> 0 | AA37: =AA30*(VLOOKUP(AA$7,'Fixed Inputs'!$B$22:$F$105,5,FALSE)/1000000) -> 0 | AB37: =AB30*(VLOOKUP(AB$7,'Fixed Inputs'!$B$22:$F$105,5,FALSE)/1000000) -> 0 | AC37: =AC30*(VLOOKUP(AC$7,'Fixed Inputs'!$B$22:$F$105,5,FALSE)/1000000) -> 0 | AD37: =AD30*(VLOOKUP(AD$7,'Fixed Inputs'!$B$22:$F$105,5,FALSE)/1000000) -> 0 | AE37: =AE30*(VLOOKUP(AE$7,'Fixed Inputs'!$B$22:$F$105,5,FALSE)/1000000) -> 0 | AF37: =AF30*(VLOOKUP(AF$7,'Fixed Inputs'!$B$22:$F$105,5,FALSE)/1000000) -> 0 | AG37: =AG30*(VLOOKUP(AG$7,'Fixed Inputs'!$B$22:$F$105,5,FALSE)/1000000) -> 0 | AH37: =AH30*(VLOOKUP(AH$7,'Fixed Inputs'!$B$22:$F$105,5,FALSE)/1000000) -> 0 | AI37: =AI30*(VLOOKUP(AI$7,'Fixed Inputs'!$B$22:$F$105,5,FALSE)/1000000) -> 0 | AJ37: =AJ30*(VLOOKUP(AJ$7,'Fixed Inputs'!$B$22:$F$105,5,FALSE)/1000000) -> 0 | AK37: =AK30*(VLOOKUP(AK$7,'Fixed Inputs'!$B$22:$F$105,5,FALSE)/1000000) -> 0 | AL37: =AL30*(VLOOKUP(AL$7,'Fixed Inputs'!$B$22:$F$105,5,FALSE)/1000000) -> 0 | AM37: =AM30*(VLOOKUP(AM$7,'Fixed Inputs'!$B$22:$F$105,5,FALSE)/1000000) -> 0 | AN37: =AN30*(VLOOKUP(AN$7,'Fixed Inputs'!$B$22:$F$105,5,FALSE)/1000000) -> 0 | AO37: =AO30*(VLOOKUP(AO$7,'Fixed Inputs'!$B$22:$F$105,5,FALSE)/1000000) -> 0 | AP37: =AP30*(VLOOKUP(AP$7,'Fixed Inputs'!$B$22:$F$105,5,FALSE)/1000000) -> 0 | AQ37: =AQ30*(VLOOKUP(AQ$7,'Fixed Inputs'!$B$22:$F$105,5,FALSE)/1000000) -> 0 | AR37: =AR30*(VLOOKUP(AR$7,'Fixed Inputs'!$B$22:$F$105,5,FALSE)/1000000) -> 0 | AS37: =AS30*(VLOOKUP(AS$7,'Fixed Inputs'!$B$22:$F$105,5,FALSE)/1000000) -> 0 | AT37: =AT30*(VLOOKUP(AT$7,'Fixed Inputs'!$B$22:$F$105,5,FALSE)/1000000) -> 0 | AU37: =AU30*(VLOOKUP(AU$7,'Fixed Inputs'!$B$22:$F$105,5,FALSE)/1000000) -> 0 | AV37: =AV30*(VLOOKUP(AV$7,'Fixed Inputs'!$B$22:$F$105,5,FALSE)/1000000) -> 0 | AW37: =AW30*(VLOOKUP(AW$7,'Fixed Inputs'!$B$22:$F$105,5,FALSE)/1000000) -> 0 | AX37: =AX30*(VLOOKUP(AX$7,'Fixed Inputs'!$B$22:$F$105,5,FALSE)/1000000) -> 0 | AY37: =AY30*(VLOOKUP(AY$7,'Fixed Inputs'!$B$22:$F$105,5,FALSE)/1000000) -> 0 | AZ37: =AZ30*(VLOOKUP(AZ$7,'Fixed Inputs'!$B$22:$F$105,5,FALSE)/1000000) -> 0 | BA37: =BA30*(VLOOKUP(BA$7,'Fixed Inputs'!$B$22:$F$105,5,FALSE)/1000000) -> 0 | BB37: =BB30*(VLOOKUP(BB$7,'Fixed Inputs'!$B$22:$F$105,5,FALSE)/1000000) -> 0 | BC37: =BC30*(VLOOKUP(BC$7,'Fixed Inputs'!$B$22:$F$105,5,FALSE)/1000000) -> 0 | BD37: =BD30*(VLOOKUP(BD$7,'Fixed Inputs'!$B$22:$F$105,5,FALSE)/1000000) -> 0 | BE37: =BE30*(VLOOKUP(BE$7,'Fixed Inputs'!$B$22:$F$105,5,FALSE)/1000000) -> 0 | BF37: =BF30*(VLOOKUP(BF$7,'Fixed Inputs'!$B$22:$F$105,5,FALSE)/1000000) -> 0 | BG37: =BG30*(VLOOKUP(BG$7,'Fixed Inputs'!$B$22:$F$105,5,FALSE)/1000000) -> 0 | BH37: =BH30*(VLOOKUP(BH$7,'Fixed Inputs'!$B$22:$F$105,5,FALSE)/1000000) -> 0 | BI37: =BI30*(VLOOKUP(BI$7,'Fixed Inputs'!$B$22:$F$105,5,FALSE)/1000000) -> 0 | BJ37: =BJ30*(VLOOKUP(BJ$7,'Fixed Inputs'!$B$22:$F$105,5,FALSE)/1000000) -> 0 | BK37: =BK30*(VLOOKUP(BK$7,'Fixed Inputs'!$B$22:$F$105,5,FALSE)/1000000) -> 0 | BL37: =BL30*(VLOOKUP(BL$7,'Fixed Inputs'!$B$22:$F$105,5,FALSE)/1000000) -> 0 | BM37: =BM30*(VLOOKUP(BM$7,'Fixed Inputs'!$B$22:$F$105,5,FALSE)/1000000) -> 0 | BN37: =BN30*(VLOOKUP(BN$7,'Fixed Inputs'!$B$22:$F$105,5,FALSE)/1000000) -> 0 | BO37: =BO30*(VLOOKUP(BO$7,'Fixed Inputs'!$B$22:$F$105,5,FALSE)/1000000) -> 0 | BP37: =BP30*(VLOOKUP(BP$7,'Fixed Inputs'!$B$22:$F$105,5,FALSE)/1000000) -> 0 | BQ37: =BQ30*(VLOOKUP(BQ$7,'Fixed Inputs'!$B$22:$F$105,5,FALSE)/1000000) -> 0 | BR37: =BR30*(VLOOKUP(BR$7,'Fixed Inputs'!$B$22:$F$105,5,FALSE)/1000000) -> 0 | BS37: =BS30*(VLOOKUP(BS$7,'Fixed Inputs'!$B$22:$F$105,5,FALSE)/1000000) -> 0
D38: ='Flexibility Requirements'!$C$15 -> 0 | E38: =E31*(VLOOKUP(E$7,'Fixed Inputs'!$B$22:$F$105,5,FALSE)/1000000) -> 0 | F38: =F31*(VLOOKUP(F$7,'Fixed Inputs'!$B$22:$F$105,5,FALSE)/1000000) -> 0 | G38: =G31*(VLOOKUP(G$7,'Fixed Inputs'!$B$22:$F$105,5,FALSE)/1000000) -> 0 | H38: =H31*(VLOOKUP(H$7,'Fixed Inputs'!$B$22:$F$105,5,FALSE)/1000000) -> 0 | I38: =I31*(VLOOKUP(I$7,'Fixed Inputs'!$B$22:$F$105,5,FALSE)/1000000) -> 0 | J38: =J31*(VLOOKUP(J$7,'Fixed Inputs'!$B$22:$F$105,5,FALSE)/1000000) -> 0 | K38: =K31*(VLOOKUP(K$7,'Fixed Inputs'!$B$22:$F$105,5,FALSE)/1000000) -> 0 | L38: =L31*(VLOOKUP(L$7,'Fixed Inputs'!$B$22:$F$105,5,FALSE)/1000000) -> 0 | M38: =M31*(VLOOKUP(M$7,'Fixed Inputs'!$B$22:$F$105,5,FALSE)/1000000) -> 0 | N38: =N31*(VLOOKUP(N$7,'Fixed Inputs'!$B$22:$F$105,5,FALSE)/1000000) -> 0 | O38: =O31*(VLOOKUP(O$7,'Fixed Inputs'!$B$22:$F$105,5,FALSE)/1000000) -> 0 | P38: =P31*(VLOOKUP(P$7,'Fixed Inputs'!$B$22:$F$105,5,FALSE)/1000000) -> 0 | Q38: =Q31*(VLOOKUP(Q$7,'Fixed Inputs'!$B$22:$F$105,5,FALSE)/1000000) -> 0 | R38: =R31*(VLOOKUP(R$7,'Fixed Inputs'!$B$22:$F$105,5,FALSE)/1000000) -> 0 | S38: =S31*(VLOOKUP(S$7,'Fixed Inputs'!$B$22:$F$105,5,FALSE)/1000000) -> 0 | T38: =T31*(VLOOKUP(T$7,'Fixed Inputs'!$B$22:$F$105,5,FALSE)/1000000) -> 0 | U38: =U31*(VLOOKUP(U$7,'Fixed Inputs'!$B$22:$F$105,5,FALSE)/1000000) -> 0 | V38: =V31*(VLOOKUP(V$7,'Fixed Inputs'!$B$22:$F$105,5,FALSE)/1000000) -> 0 | W38: =W31*(VLOOKUP(W$7,'Fixed Inputs'!$B$22:$F$105,5,FALSE)/1000000) -> 0 | X38: =X31*(VLOOKUP(X$7,'Fixed Inputs'!$B$22:$F$105,5,FALSE)/1000000) -> 0 | Y38: =Y31*(VLOOKUP(Y$7,'Fixed Inputs'!$B$22:$F$105,5,FALSE)/1000000) -> 0 | Z38: =Z31*(VLOOKUP(Z$7,'Fixed Inputs'!$B$22:$F$105,5,FALSE)/1000000) -> 0 | AA38: =AA31*(VLOOKUP(AA$7,'Fixed Inputs'!$B$22:$F$105,5,FALSE)/1000000) -> 0 | AB38: =AB31*(VLOOKUP(AB$7,'Fixed Inputs'!$B$22:$F$105,5,FALSE)/1000000) -> 0 | AC38: =AC31*(VLOOKUP(AC$7,'Fixed Inputs'!$B$22:$F$105,5,FALSE)/1000000) -> 0 | AD38: =AD31*(VLOOKUP(AD$7,'Fixed Inputs'!$B$22:$F$105,5,FALSE)/1000000) -> 0 | AE38: =AE31*(VLOOKUP(AE$7,'Fixed Inputs'!$B$22:$F$105,5,FALSE)/1000000) -> 0 | AF38: =AF31*(VLOOKUP(AF$7,'Fixed Inputs'!$B$22:$F$105,5,FALSE)/1000000) -> 0 | AG38: =AG31*(VLOOKUP(AG$7,'Fixed Inputs'!$B$22:$F$105,5,FALSE)/1000000) -> 0 | AH38: =AH31*(VLOOKUP(AH$7,'Fixed Inputs'!$B$22:$F$105,5,FALSE)/1000000) -> 0 | AI38: =AI31*(VLOOKUP(AI$7,'Fixed Inputs'!$B$22:$F$105,5,FALSE)/1000000) -> 0 | AJ38: =AJ31*(VLOOKUP(AJ$7,'Fixed Inputs'!$B$22:$F$105,5,FALSE)/1000000) -> 0 | AK38: =AK31*(VLOOKUP(AK$7,'Fixed Inputs'!$B$22:$F$105,5,FALSE)/1000000) -> 0 | AL38: =AL31*(VLOOKUP(AL$7,'Fixed Inputs'!$B$22:$F$105,5,FALSE)/1000000) -> 0 | AM38: =AM31*(VLOOKUP(AM$7,'Fixed Inputs'!$B$22:$F$105,5,FALSE)/1000000) -> 0 | AN38: =AN31*(VLOOKUP(AN$7,'Fixed Inputs'!$B$22:$F$105,5,FALSE)/1000000) -> 0 | AO38: =AO31*(VLOOKUP(AO$7,'Fixed Inputs'!$B$22:$F$105,5,FALSE)/1000000) -> 0 | AP38: =AP31*(VLOOKUP(AP$7,'Fixed Inputs'!$B$22:$F$105,5,FALSE)/1000000) -> 0 | AQ38: =AQ31*(VLOOKUP(AQ$7,'Fixed Inputs'!$B$22:$F$105,5,FALSE)/1000000) -> 0 | AR38: =AR31*(VLOOKUP(AR$7,'Fixed Inputs'!$B$22:$F$105,5,FALSE)/1000000) -> 0 | AS38: =AS31*(VLOOKUP(AS$7,'Fixed Inputs'!$B$22:$F$105,5,FALSE)/1000000) -> 0 | AT38: =AT31*(VLOOKUP(AT$7,'Fixed Inputs'!$B$22:$F$105,5,FALSE)/1000000) -> 0 | AU38: =AU31*(VLOOKUP(AU$7,'Fixed Inputs'!$B$22:$F$105,5,FALSE)/1000000) -> 0 | AV38: =AV31*(VLOOKUP(AV$7,'Fixed Inputs'!$B$22:$F$105,5,FALSE)/1000000) -> 0 | AW38: =AW31*(VLOOKUP(AW$7,'Fixed Inputs'!$B$22:$F$105,5,FALSE)/1000000) -> 0 | AX38: =AX31*(VLOOKUP(AX$7,'Fixed Inputs'!$B$22:$F$105,5,FALSE)/1000000) -> 0 | AY38: =AY31*(VLOOKUP(AY$7,'Fixed Inputs'!$B$22:$F$105,5,FALSE)/1000000) -> 0 | AZ38: =AZ31*(VLOOKUP(AZ$7,'Fixed Inputs'!$B$22:$F$105,5,FALSE)/1000000) -> 0 | BA38: =BA31*(VLOOKUP(BA$7,'Fixed Inputs'!$B$22:$F$105,5,FALSE)/1000000) -> 0 | BB38: =BB31*(VLOOKUP(BB$7,'Fixed Inputs'!$B$22:$F$105,5,FALSE)/1000000) -> 0 | BC38: =BC31*(VLOOKUP(BC$7,'Fixed Inputs'!$B$22:$F$105,5,FALSE)/1000000) -> 0 | BD38: =BD31*(VLOOKUP(BD$7,'Fixed Inputs'!$B$22:$F$105,5,FALSE)/1000000) -> 0 | BE38: =BE31*(VLOOKUP(BE$7,'Fixed Inputs'!$B$22:$F$105,5,FALSE)/1000000) -> 0 | BF38: =BF31*(VLOOKUP(BF$7,'Fixed Inputs'!$B$22:$F$105,5,FALSE)/1000000) -> 0 | BG38: =BG31*(VLOOKUP(BG$7,'Fixed Inputs'!$B$22:$F$105,5,FALSE)/1000000) -> 0 | BH38: =BH31*(VLOOKUP(BH$7,'Fixed Inputs'!$B$22:$F$105,5,FALSE)/1000000) -> 0 | BI38: =BI31*(VLOOKUP(BI$7,'Fixed Inputs'!$B$22:$F$105,5,FALSE)/1000000) -> 0 | BJ38: =BJ31*(VLOOKUP(BJ$7,'Fixed Inputs'!$B$22:$F$105,5,FALSE)/1000000) -> 0 | BK38: =BK31*(VLOOKUP(BK$7,'Fixed Inputs'!$B$22:$F$105,5,FALSE)/1000000) -> 0 | BL38: =BL31*(VLOOKUP(BL$7,'Fixed Inputs'!$B$22:$F$105,5,FALSE)/1000000) -> 0 | BM38: =BM31*(VLOOKUP(BM$7,'Fixed Inputs'!$B$22:$F$105,5,FALSE)/1000000) -> 0 | BN38: =BN31*(VLOOKUP(BN$7,'Fixed Inputs'!$B$22:$F$105,5,FALSE)/1000000) -> 0 | BO38: =BO31*(VLOOKUP(BO$7,'Fixed Inputs'!$B$22:$F$105,5,FALSE)/1000000) -> 0 | BP38: =BP31*(VLOOKUP(BP$7,'Fixed Inputs'!$B$22:$F$105,5,FALSE)/1000000) -> 0 | BQ38: =BQ31*(VLOOKUP(BQ$7,'Fixed Inputs'!$B$22:$F$105,5,FALSE)/1000000) -> 0 | BR38: =BR31*(VLOOKUP(BR$7,'Fixed Inputs'!$B$22:$F$105,5,FALSE)/1000000) -> 0 | BS38: =BS31*(VLOOKUP(BS$7,'Fixed Inputs'!$B$22:$F$105,5,FALSE)/1000000) -> 0
B40: Emissions not associated with losses
C41: Other reduced emissions not associated with losses1 (tCO2e) | D41: [enter source of emission reduction]
D42: ='Reinforcement Deferral'!$C$39 -> Losses derogation calculation
D43: ='Flexibility Requirements'!$C$11 -> 0
D44: ='Flexibility Requirements'!$C$12 -> 0
D45: ='Flexibility Requirements'!$C$13 -> 0
D46: ='Flexibility Requirements'!$C$14 -> 0
D47: ='Flexibility Requirements'!$C$15 -> 0
C48: Reduced emissions not associated with losses (£)
D49: ='Reinforcement Deferral'!$C$39 -> Losses derogation calculation | E49: =E42*(VLOOKUP(E$7,'Fixed Inputs'!$B$22:$F$105,5,FALSE)) -> 0 | F49: =F42*(VLOOKUP(F$7,'Fixed Inputs'!$B$22:$F$105,5,FALSE)) -> 0 | G49: =G42*(VLOOKUP(G$7,'Fixed Inputs'!$B$22:$F$105,5,FALSE)) -> 0 | H49: =H42*(VLOOKUP(H$7,'Fixed Inputs'!$B$22:$F$105,5,FALSE)) -> 0 | I49: =I42*(VLOOKUP(I$7,'Fixed Inputs'!$B$22:$F$105,5,FALSE)) -> 0 | J49: =J42*(VLOOKUP(J$7,'Fixed Inputs'!$B$22:$F$105,5,FALSE)) -> 0 | K49: =K42*(VLOOKUP(K$7,'Fixed Inputs'!$B$22:$F$105,5,FALSE)) -> 0 | L49: =L42*(VLOOKUP(L$7,'Fixed Inputs'!$B$22:$F$105,5,FALSE)) -> 0 | M49: =M42*(VLOOKUP(M$7,'Fixed Inputs'!$B$22:$F$105,5,FALSE)) -> 0 | N49: =N42*(VLOOKUP(N$7,'Fixed Inputs'!$B$22:$F$105,5,FALSE)) -> 0 | O49: =O42*(VLOOKUP(O$7,'Fixed Inputs'!$B$22:$F$105,5,FALSE)) -> 0 | P49: =P42*(VLOOKUP(P$7,'Fixed Inputs'!$B$22:$F$105,5,FALSE)) -> 0 | Q49: =Q42*(VLOOKUP(Q$7,'Fixed Inputs'!$B$22:$F$105,5,FALSE)) -> 0 | R49: =R42*(VLOOKUP(R$7,'Fixed Inputs'!$B$22:$F$105,5,FALSE)) -> 0 | S49: =S42*(VLOOKUP(S$7,'Fixed Inputs'!$B$22:$F$105,5,FALSE)) -> 0 | T49: =T42*(VLOOKUP(T$7,'Fixed Inputs'!$B$22:$F$105,5,FALSE)) -> 0 | U49: =U42*(VLOOKUP(U$7,'Fixed Inputs'!$B$22:$F$105,5,FALSE)) -> 0 | V49: =V42*(VLOOKUP(V$7,'Fixed Inputs'!$B$22:$F$105,5,FALSE)) -> 0 | W49: =W42*(VLOOKUP(W$7,'Fixed Inputs'!$B$22:$F$105,5,FALSE)) -> 0 | X49: =X42*(VLOOKUP(X$7,'Fixed Inputs'!$B$22:$F$105,5,FALSE)) -> 0 | Y49: =Y42*(VLOOKUP(Y$7,'Fixed Inputs'!$B$22:$F$105,5,FALSE)) -> 0 | Z49: =Z42*(VLOOKUP(Z$7,'Fixed Inputs'!$B$22:$F$105,5,FALSE)) -> 0 | AA49: =AA42*(VLOOKUP(AA$7,'Fixed Inputs'!$B$22:$F$105,5,FALSE)) -> 0 | AB49: =AB42*(VLOOKUP(AB$7,'Fixed Inputs'!$B$22:$F$105,5,FALSE)) -> 0 | AC49: =AC42*(VLOOKUP(AC$7,'Fixed Inputs'!$B$22:$F$105,5,FALSE)) -> 0 | AD49: =AD42*(VLOOKUP(AD$7,'Fixed Inputs'!$B$22:$F$105,5,FALSE)) -> 0 | AE49: =AE42*(VLOOKUP(AE$7,'Fixed Inputs'!$B$22:$F$105,5,FALSE)) -> 0 | AF49: =AF42*(VLOOKUP(AF$7,'Fixed Inputs'!$B$22:$F$105,5,FALSE)) -> 0 | AG49: =AG42*(VLOOKUP(AG$7,'Fixed Inputs'!$B$22:$F$105,5,FALSE)) -> 0 | AH49: =AH42*(VLOOKUP(AH$7,'Fixed Inputs'!$B$22:$F$105,5,FALSE)) -> 0 | AI49: =AI42*(VLOOKUP(AI$7,'Fixed Inputs'!$B$22:$F$105,5,FALSE)) -> 0 | AJ49: =AJ42*(VLOOKUP(AJ$7,'Fixed Inputs'!$B$22:$F$105,5,FALSE)) -> 0 | AK49: =AK42*(VLOOKUP(AK$7,'Fixed Inputs'!$B$22:$F$105,5,FALSE)) -> 0 | AL49: =AL42*(VLOOKUP(AL$7,'Fixed Inputs'!$B$22:$F$105,5,FALSE)) -> 0 | AM49: =AM42*(VLOOKUP(AM$7,'Fixed Inputs'!$B$22:$F$105,5,FALSE)) -> 0 | AN49: =AN42*(VLOOKUP(AN$7,'Fixed Inputs'!$B$22:$F$105,5,FALSE)) -> 0 | AO49: =AO42*(VLOOKUP(AO$7,'Fixed Inputs'!$B$22:$F$105,5,FALSE)) -> 0 | AP49: =AP42*(VLOOKUP(AP$7,'Fixed Inputs'!$B$22:$F$105,5,FALSE)) -> 0 | AQ49: =AQ42*(VLOOKUP(AQ$7,'Fixed Inputs'!$B$22:$F$105,5,FALSE)) -> 0 | AR49: =AR42*(VLOOKUP(AR$7,'Fixed Inputs'!$B$22:$F$105,5,FALSE)) -> 0 | AS49: =AS42*(VLOOKUP(AS$7,'Fixed Inputs'!$B$22:$F$105,5,FALSE)) -> 0 | AT49: =AT42*(VLOOKUP(AT$7,'Fixed Inputs'!$B$22:$F$105,5,FALSE)) -> 0 | AU49: =AU42*(VLOOKUP(AU$7,'Fixed Inputs'!$B$22:$F$105,5,FALSE)) -> 0 | AV49: =AV42*(VLOOKUP(AV$7,'Fixed Inputs'!$B$22:$F$105,5,FALSE)) -> 0 | AW49: =AW42*(VLOOKUP(AW$7,'Fixed Inputs'!$B$22:$F$105,5,FALSE)) -> 0 | AX49: =AX42*(VLOOKUP(AX$7,'Fixed Inputs'!$B$22:$F$105,5,FALSE)) -> 0 | AY49: =AY42*(VLOOKUP(AY$7,'Fixed Inputs'!$B$22:$F$105,5,FALSE)) -> 0 | AZ49: =AZ42*(VLOOKUP(AZ$7,'Fixed Inputs'!$B$22:$F$105,5,FALSE)) -> 0 | BA49: =BA42*(VLOOKUP(BA$7,'Fixed Inputs'!$B$22:$F$105,5,FALSE)) -> 0 | BB49: =BB42*(VLOOKUP(BB$7,'Fixed Inputs'!$B$22:$F$105,5,FALSE)) -> 0 | BC49: =BC42*(VLOOKUP(BC$7,'Fixed Inputs'!$B$22:$F$105,5,FALSE)) -> 0 | BD49: =BD42*(VLOOKUP(BD$7,'Fixed Inputs'!$B$22:$F$105,5,FALSE)) -> 0 | BE49: =BE42*(VLOOKUP(BE$7,'Fixed Inputs'!$B$22:$F$105,5,FALSE)) -> 0 | BF49: =BF42*(VLOOKUP(BF$7,'Fixed Inputs'!$B$22:$F$105,5,FALSE)) -> 0 | BG49: =BG42*(VLOOKUP(BG$7,'Fixed Inputs'!$B$22:$F$105,5,FALSE)) -> 0 | BH49: =BH42*(VLOOKUP(BH$7,'Fixed Inputs'!$B$22:$F$105,5,FALSE)) -> 0 | BI49: =BI42*(VLOOKUP(BI$7,'Fixed Inputs'!$B$22:$F$105,5,FALSE)) -> 0 | BJ49: =BJ42*(VLOOKUP(BJ$7,'Fixed Inputs'!$B$22:$F$105,5,FALSE)) -> 0 | BK49: =BK42*(VLOOKUP(BK$7,'Fixed Inputs'!$B$22:$F$105,5,FALSE)) -> 0 | BL49: =BL42*(VLOOKUP(BL$7,'Fixed Inputs'!$B$22:$F$105,5,FALSE)) -> 0 | BM49: =BM42*(VLOOKUP(BM$7,'Fixed Inputs'!$B$22:$F$105,5,FALSE)) -> 0 | BN49: =BN42*(VLOOKUP(BN$7,'Fixed Inputs'!$B$22:$F$105,5,FALSE)) -> 0 | BO49: =BO42*(VLOOKUP(BO$7,'Fixed Inputs'!$B$22:$F$105,5,FALSE)) -> 0 | BP49: =BP42*(VLOOKUP(BP$7,'Fixed Inputs'!$B$22:$F$105,5,FALSE)) -> 0 | BQ49: =BQ42*(VLOOKUP(BQ$7,'Fixed Inputs'!$B$22:$F$105,5,FALSE)) -> 0 | BR49: =BR42*(VLOOKUP(BR$7,'Fixed Inputs'!$B$22:$F$105,5,FALSE)) -> 0 | BS49: =BS42*(VLOOKUP(BS$7,'Fixed Inputs'!$B$22:$F$105,5,FALSE)) -> 0
D50: ='Flexibility Requirements'!$C$11 -> 0 | E50: =E43*(VLOOKUP(E$7,'Fixed Inputs'!$B$22:$F$105,5,FALSE)) -> 0 | F50: =F43*(VLOOKUP(F$7,'Fixed Inputs'!$B$22:$F$105,5,FALSE)) -> 0 | G50: =G43*(VLOOKUP(G$7,'Fixed Inputs'!$B$22:$F$105,5,FALSE)) -> 0 | H50: =H43*(VLOOKUP(H$7,'Fixed Inputs'!$B$22:$F$105,5,FALSE)) -> 0 | I50: =I43*(VLOOKUP(I$7,'Fixed Inputs'!$B$22:$F$105,5,FALSE)) -> 0 | J50: =J43*(VLOOKUP(J$7,'Fixed Inputs'!$B$22:$F$105,5,FALSE)) -> 0 | K50: =K43*(VLOOKUP(K$7,'Fixed Inputs'!$B$22:$F$105,5,FALSE)) -> 0 | L50: =L43*(VLOOKUP(L$7,'Fixed Inputs'!$B$22:$F$105,5,FALSE)) -> 0 | M50: =M43*(VLOOKUP(M$7,'Fixed Inputs'!$B$22:$F$105,5,FALSE)) -> 0 | N50: =N43*(VLOOKUP(N$7,'Fixed Inputs'!$B$22:$F$105,5,FALSE)) -> 0 | O50: =O43*(VLOOKUP(O$7,'Fixed Inputs'!$B$22:$F$105,5,FALSE)) -> 0 | P50: =P43*(VLOOKUP(P$7,'Fixed Inputs'!$B$22:$F$105,5,FALSE)) -> 0 | Q50: =Q43*(VLOOKUP(Q$7,'Fixed Inputs'!$B$22:$F$105,5,FALSE)) -> 0 | R50: =R43*(VLOOKUP(R$7,'Fixed Inputs'!$B$22:$F$105,5,FALSE)) -> 0 | S50: =S43*(VLOOKUP(S$7,'Fixed Inputs'!$B$22:$F$105,5,FALSE)) -> 0 | T50: =T43*(VLOOKUP(T$7,'Fixed Inputs'!$B$22:$F$105,5,FALSE)) -> 0 | U50: =U43*(VLOOKUP(U$7,'Fixed Inputs'!$B$22:$F$105,5,FALSE)) -> 0 | V50: =V43*(VLOOKUP(V$7,'Fixed Inputs'!$B$22:$F$105,5,FALSE)) -> 0 | W50: =W43*(VLOOKUP(W$7,'Fixed Inputs'!$B$22:$F$105,5,FALSE)) -> 0 | X50: =X43*(VLOOKUP(X$7,'Fixed Inputs'!$B$22:$F$105,5,FALSE)) -> 0 | Y50: =Y43*(VLOOKUP(Y$7,'Fixed Inputs'!$B$22:$F$105,5,FALSE)) -> 0 | Z50: =Z43*(VLOOKUP(Z$7,'Fixed Inputs'!$B$22:$F$105,5,FALSE)) -> 0 | AA50: =AA43*(VLOOKUP(AA$7,'Fixed Inputs'!$B$22:$F$105,5,FALSE)) -> 0 | AB50: =AB43*(VLOOKUP(AB$7,'Fixed Inputs'!$B$22:$F$105,5,FALSE)) -> 0 | AC50: =AC43*(VLOOKUP(AC$7,'Fixed Inputs'!$B$22:$F$105,5,FALSE)) -> 0 | AD50: =AD43*(VLOOKUP(AD$7,'Fixed Inputs'!$B$22:$F$105,5,FALSE)) -> 0 | AE50: =AE43*(VLOOKUP(AE$7,'Fixed Inputs'!$B$22:$F$105,5,FALSE)) -> 0 | AF50: =AF43*(VLOOKUP(AF$7,'Fixed Inputs'!$B$22:$F$105,5,FALSE)) -> 0 | AG50: =AG43*(VLOOKUP(AG$7,'Fixed Inputs'!$B$22:$F$105,5,FALSE)) -> 0 | AH50: =AH43*(VLOOKUP(AH$7,'Fixed Inputs'!$B$22:$F$105,5,FALSE)) -> 0 | AI50: =AI43*(VLOOKUP(AI$7,'Fixed Inputs'!$B$22:$F$105,5,FALSE)) -> 0 | AJ50: =AJ43*(VLOOKUP(AJ$7,'Fixed Inputs'!$B$22:$F$105,5,FALSE)) -> 0 | AK50: =AK43*(VLOOKUP(AK$7,'Fixed Inputs'!$B$22:$F$105,5,FALSE)) -> 0 | AL50: =AL43*(VLOOKUP(AL$7,'Fixed Inputs'!$B$22:$F$105,5,FALSE)) -> 0 | AM50: =AM43*(VLOOKUP(AM$7,'Fixed Inputs'!$B$22:$F$105,5,FALSE)) -> 0 | AN50: =AN43*(VLOOKUP(AN$7,'Fixed Inputs'!$B$22:$F$105,5,FALSE)) -> 0 | AO50: =AO43*(VLOOKUP(AO$7,'Fixed Inputs'!$B$22:$F$105,5,FALSE)) -> 0 | AP50: =AP43*(VLOOKUP(AP$7,'Fixed Inputs'!$B$22:$F$105,5,FALSE)) -> 0 | AQ50: =AQ43*(VLOOKUP(AQ$7,'Fixed Inputs'!$B$22:$F$105,5,FALSE)) -> 0 | AR50: =AR43*(VLOOKUP(AR$7,'Fixed Inputs'!$B$22:$F$105,5,FALSE)) -> 0 | AS50: =AS43*(VLOOKUP(AS$7,'Fixed Inputs'!$B$22:$F$105,5,FALSE)) -> 0 | AT50: =AT43*(VLOOKUP(AT$7,'Fixed Inputs'!$B$22:$F$105,5,FALSE)) -> 0 | AU50: =AU43*(VLOOKUP(AU$7,'Fixed Inputs'!$B$22:$F$105,5,FALSE)) -> 0 | AV50: =AV43*(VLOOKUP(AV$7,'Fixed Inputs'!$B$22:$F$105,5,FALSE)) -> 0 | AW50: =AW43*(VLOOKUP(AW$7,'Fixed Inputs'!$B$22:$F$105,5,FALSE)) -> 0 | AX50: =AX43*(VLOOKUP(AX$7,'Fixed Inputs'!$B$22:$F$105,5,FALSE)) -> 0 | AY50: =AY43*(VLOOKUP(AY$7,'Fixed Inputs'!$B$22:$F$105,5,FALSE)) -> 0 | AZ50: =AZ43*(VLOOKUP(AZ$7,'Fixed Inputs'!$B$22:$F$105,5,FALSE)) -> 0 | BA50: =BA43*(VLOOKUP(BA$7,'Fixed Inputs'!$B$22:$F$105,5,FALSE)) -> 0 | BB50: =BB43*(VLOOKUP(BB$7,'Fixed Inputs'!$B$22:$F$105,5,FALSE)) -> 0 | BC50: =BC43*(VLOOKUP(BC$7,'Fixed Inputs'!$B$22:$F$105,5,FALSE)) -> 0 | BD50: =BD43*(VLOOKUP(BD$7,'Fixed Inputs'!$B$22:$F$105,5,FALSE)) -> 0 | BE50: =BE43*(VLOOKUP(BE$7,'Fixed Inputs'!$B$22:$F$105,5,FALSE)) -> 0 | BF50: =BF43*(VLOOKUP(BF$7,'Fixed Inputs'!$B$22:$F$105,5,FALSE)) -> 0 | BG50: =BG43*(VLOOKUP(BG$7,'Fixed Inputs'!$B$22:$F$105,5,FALSE)) -> 0 | BH50: =BH43*(VLOOKUP(BH$7,'Fixed Inputs'!$B$22:$F$105,5,FALSE)) -> 0 | BI50: =BI43*(VLOOKUP(BI$7,'Fixed Inputs'!$B$22:$F$105,5,FALSE)) -> 0 | BJ50: =BJ43*(VLOOKUP(BJ$7,'Fixed Inputs'!$B$22:$F$105,5,FALSE)) -> 0 | BK50: =BK43*(VLOOKUP(BK$7,'Fixed Inputs'!$B$22:$F$105,5,FALSE)) -> 0 | BL50: =BL43*(VLOOKUP(BL$7,'Fixed Inputs'!$B$22:$F$105,5,FALSE)) -> 0 | BM50: =BM43*(VLOOKUP(BM$7,'Fixed Inputs'!$B$22:$F$105,5,FALSE)) -> 0 | BN50: =BN43*(VLOOKUP(BN$7,'Fixed Inputs'!$B$22:$F$105,5,FALSE)) -> 0 | BO50: =BO43*(VLOOKUP(BO$7,'Fixed Inputs'!$B$22:$F$105,5,FALSE)) -> 0 | BP50: =BP43*(VLOOKUP(BP$7,'Fixed Inputs'!$B$22:$F$105,5,FALSE)) -> 0 | BQ50: =BQ43*(VLOOKUP(BQ$7,'Fixed Inputs'!$B$22:$F$105,5,FALSE)) -> 0 | BR50: =BR43*(VLOOKUP(BR$7,'Fixed Inputs'!$B$22:$F$105,5,FALSE)) -> 0 | BS50: =BS43*(VLOOKUP(BS$7,'Fixed Inputs'!$B$22:$F$105,5,FALSE)) -> 0
D51: ='Flexibility Requirements'!$C$12 -> 0 | E51: =E44*(VLOOKUP(E$7,'Fixed Inputs'!$B$22:$F$105,5,FALSE)) -> 0 | F51: =F44*(VLOOKUP(F$7,'Fixed Inputs'!$B$22:$F$105,5,FALSE)) -> 0 | G51: =G44*(VLOOKUP(G$7,'Fixed Inputs'!$B$22:$F$105,5,FALSE)) -> 0 | H51: =H44*(VLOOKUP(H$7,'Fixed Inputs'!$B$22:$F$105,5,FALSE)) -> 0 | I51: =I44*(VLOOKUP(I$7,'Fixed Inputs'!$B$22:$F$105,5,FALSE)) -> 0 | J51: =J44*(VLOOKUP(J$7,'Fixed Inputs'!$B$22:$F$105,5,FALSE)) -> 0 | K51: =K44*(VLOOKUP(K$7,'Fixed Inputs'!$B$22:$F$105,5,FALSE)) -> 0 | L51: =L44*(VLOOKUP(L$7,'Fixed Inputs'!$B$22:$F$105,5,FALSE)) -> 0 | M51: =M44*(VLOOKUP(M$7,'Fixed Inputs'!$B$22:$F$105,5,FALSE)) -> 0 | N51: =N44*(VLOOKUP(N$7,'Fixed Inputs'!$B$22:$F$105,5,FALSE)) -> 0 | O51: =O44*(VLOOKUP(O$7,'Fixed Inputs'!$B$22:$F$105,5,FALSE)) -> 0 | P51: =P44*(VLOOKUP(P$7,'Fixed Inputs'!$B$22:$F$105,5,FALSE)) -> 0 | Q51: =Q44*(VLOOKUP(Q$7,'Fixed Inputs'!$B$22:$F$105,5,FALSE)) -> 0 | R51: =R44*(VLOOKUP(R$7,'Fixed Inputs'!$B$22:$F$105,5,FALSE)) -> 0 | S51: =S44*(VLOOKUP(S$7,'Fixed Inputs'!$B$22:$F$105,5,FALSE)) -> 0 | T51: =T44*(VLOOKUP(T$7,'Fixed Inputs'!$B$22:$F$105,5,FALSE)) -> 0 | U51: =U44*(VLOOKUP(U$7,'Fixed Inputs'!$B$22:$F$105,5,FALSE)) -> 0 | V51: =V44*(VLOOKUP(V$7,'Fixed Inputs'!$B$22:$F$105,5,FALSE)) -> 0 | W51: =W44*(VLOOKUP(W$7,'Fixed Inputs'!$B$22:$F$105,5,FALSE)) -> 0 | X51: =X44*(VLOOKUP(X$7,'Fixed Inputs'!$B$22:$F$105,5,FALSE)) -> 0 | Y51: =Y44*(VLOOKUP(Y$7,'Fixed Inputs'!$B$22:$F$105,5,FALSE)) -> 0 | Z51: =Z44*(VLOOKUP(Z$7,'Fixed Inputs'!$B$22:$F$105,5,FALSE)) -> 0 | AA51: =AA44*(VLOOKUP(AA$7,'Fixed Inputs'!$B$22:$F$105,5,FALSE)) -> 0 | AB51: =AB44*(VLOOKUP(AB$7,'Fixed Inputs'!$B$22:$F$105,5,FALSE)) -> 0 | AC51: =AC44*(VLOOKUP(AC$7,'Fixed Inputs'!$B$22:$F$105,5,FALSE)) -> 0 | AD51: =AD44*(VLOOKUP(AD$7,'Fixed Inputs'!$B$22:$F$105,5,FALSE)) -> 0 | AE51: =AE44*(VLOOKUP(AE$7,'Fixed Inputs'!$B$22:$F$105,5,FALSE)) -> 0 | AF51: =AF44*(VLOOKUP(AF$7,'Fixed Inputs'!$B$22:$F$105,5,FALSE)) -> 0 | AG51: =AG44*(VLOOKUP(AG$7,'Fixed Inputs'!$B$22:$F$105,5,FALSE)) -> 0 | AH51: =AH44*(VLOOKUP(AH$7,'Fixed Inputs'!$B$22:$F$105,5,FALSE)) -> 0 | AI51: =AI44*(VLOOKUP(AI$7,'Fixed Inputs'!$B$22:$F$105,5,FALSE)) -> 0 | AJ51: =AJ44*(VLOOKUP(AJ$7,'Fixed Inputs'!$B$22:$F$105,5,FALSE)) -> 0 | AK51: =AK44*(VLOOKUP(AK$7,'Fixed Inputs'!$B$22:$F$105,5,FALSE)) -> 0 | AL51: =AL44*(VLOOKUP(AL$7,'Fixed Inputs'!$B$22:$F$105,5,FALSE)) -> 0 | AM51: =AM44*(VLOOKUP(AM$7,'Fixed Inputs'!$B$22:$F$105,5,FALSE)) -> 0 | AN51: =AN44*(VLOOKUP(AN$7,'Fixed Inputs'!$B$22:$F$105,5,FALSE)) -> 0 | AO51: =AO44*(VLOOKUP(AO$7,'Fixed Inputs'!$B$22:$F$105,5,FALSE)) -> 0 | AP51: =AP44*(VLOOKUP(AP$7,'Fixed Inputs'!$B$22:$F$105,5,FALSE)) -> 0 | AQ51: =AQ44*(VLOOKUP(AQ$7,'Fixed Inputs'!$B$22:$F$105,5,FALSE)) -> 0 | AR51: =AR44*(VLOOKUP(AR$7,'Fixed Inputs'!$B$22:$F$105,5,FALSE)) -> 0 | AS51: =AS44*(VLOOKUP(AS$7,'Fixed Inputs'!$B$22:$F$105,5,FALSE)) -> 0 | AT51: =AT44*(VLOOKUP(AT$7,'Fixed Inputs'!$B$22:$F$105,5,FALSE)) -> 0 | AU51: =AU44*(VLOOKUP(AU$7,'Fixed Inputs'!$B$22:$F$105,5,FALSE)) -> 0 | AV51: =AV44*(VLOOKUP(AV$7,'Fixed Inputs'!$B$22:$F$105,5,FALSE)) -> 0 | AW51: =AW44*(VLOOKUP(AW$7,'Fixed Inputs'!$B$22:$F$105,5,FALSE)) -> 0 | AX51: =AX44*(VLOOKUP(AX$7,'Fixed Inputs'!$B$22:$F$105,5,FALSE)) -> 0 | AY51: =AY44*(VLOOKUP(AY$7,'Fixed Inputs'!$B$22:$F$105,5,FALSE)) -> 0 | AZ51: =AZ44*(VLOOKUP(AZ$7,'Fixed Inputs'!$B$22:$F$105,5,FALSE)) -> 0 | BA51: =BA44*(VLOOKUP(BA$7,'Fixed Inputs'!$B$22:$F$105,5,FALSE)) -> 0 | BB51: =BB44*(VLOOKUP(BB$7,'Fixed Inputs'!$B$22:$F$105,5,FALSE)) -> 0 | BC51: =BC44*(VLOOKUP(BC$7,'Fixed Inputs'!$B$22:$F$105,5,FALSE)) -> 0 | BD51: =BD44*(VLOOKUP(BD$7,'Fixed Inputs'!$B$22:$F$105,5,FALSE)) -> 0 | BE51: =BE44*(VLOOKUP(BE$7,'Fixed Inputs'!$B$22:$F$105,5,FALSE)) -> 0 | BF51: =BF44*(VLOOKUP(BF$7,'Fixed Inputs'!$B$22:$F$105,5,FALSE)) -> 0 | BG51: =BG44*(VLOOKUP(BG$7,'Fixed Inputs'!$B$22:$F$105,5,FALSE)) -> 0 | BH51: =BH44*(VLOOKUP(BH$7,'Fixed Inputs'!$B$22:$F$105,5,FALSE)) -> 0 | BI51: =BI44*(VLOOKUP(BI$7,'Fixed Inputs'!$B$22:$F$105,5,FALSE)) -> 0 | BJ51: =BJ44*(VLOOKUP(BJ$7,'Fixed Inputs'!$B$22:$F$105,5,FALSE)) -> 0 | BK51: =BK44*(VLOOKUP(BK$7,'Fixed Inputs'!$B$22:$F$105,5,FALSE)) -> 0 | BL51: =BL44*(VLOOKUP(BL$7,'Fixed Inputs'!$B$22:$F$105,5,FALSE)) -> 0 | BM51: =BM44*(VLOOKUP(BM$7,'Fixed Inputs'!$B$22:$F$105,5,FALSE)) -> 0 | BN51: =BN44*(VLOOKUP(BN$7,'Fixed Inputs'!$B$22:$F$105,5,FALSE)) -> 0 | BO51: =BO44*(VLOOKUP(BO$7,'Fixed Inputs'!$B$22:$F$105,5,FALSE)) -> 0 | BP51: =BP44*(VLOOKUP(BP$7,'Fixed Inputs'!$B$22:$F$105,5,FALSE)) -> 0 | BQ51: =BQ44*(VLOOKUP(BQ$7,'Fixed Inputs'!$B$22:$F$105,5,FALSE)) -> 0 | BR51: =BR44*(VLOOKUP(BR$7,'Fixed Inputs'!$B$22:$F$105,5,FALSE)) -> 0 | BS51: =BS44*(VLOOKUP(BS$7,'Fixed Inputs'!$B$22:$F$105,5,FALSE)) -> 0
D52: ='Flexibility Requirements'!$C$13 -> 0 | E52: =E45*(VLOOKUP(E$7,'Fixed Inputs'!$B$22:$F$105,5,FALSE)) -> 0 | F52: =F45*(VLOOKUP(F$7,'Fixed Inputs'!$B$22:$F$105,5,FALSE)) -> 0 | G52: =G45*(VLOOKUP(G$7,'Fixed Inputs'!$B$22:$F$105,5,FALSE)) -> 0 | H52: =H45*(VLOOKUP(H$7,'Fixed Inputs'!$B$22:$F$105,5,FALSE)) -> 0 | I52: =I45*(VLOOKUP(I$7,'Fixed Inputs'!$B$22:$F$105,5,FALSE)) -> 0 | J52: =J45*(VLOOKUP(J$7,'Fixed Inputs'!$B$22:$F$105,5,FALSE)) -> 0 | K52: =K45*(VLOOKUP(K$7,'Fixed Inputs'!$B$22:$F$105,5,FALSE)) -> 0 | L52: =L45*(VLOOKUP(L$7,'Fixed Inputs'!$B$22:$F$105,5,FALSE)) -> 0 | M52: =M45*(VLOOKUP(M$7,'Fixed Inputs'!$B$22:$F$105,5,FALSE)) -> 0 | N52: =N45*(VLOOKUP(N$7,'Fixed Inputs'!$B$22:$F$105,5,FALSE)) -> 0 | O52: =O45*(VLOOKUP(O$7,'Fixed Inputs'!$B$22:$F$105,5,FALSE)) -> 0 | P52: =P45*(VLOOKUP(P$7,'Fixed Inputs'!$B$22:$F$105,5,FALSE)) -> 0 | Q52: =Q45*(VLOOKUP(Q$7,'Fixed Inputs'!$B$22:$F$105,5,FALSE)) -> 0 | R52: =R45*(VLOOKUP(R$7,'Fixed Inputs'!$B$22:$F$105,5,FALSE)) -> 0 | S52: =S45*(VLOOKUP(S$7,'Fixed Inputs'!$B$22:$F$105,5,FALSE)) -> 0 | T52: =T45*(VLOOKUP(T$7,'Fixed Inputs'!$B$22:$F$105,5,FALSE)) -> 0 | U52: =U45*(VLOOKUP(U$7,'Fixed Inputs'!$B$22:$F$105,5,FALSE)) -> 0 | V52: =V45*(VLOOKUP(V$7,'Fixed Inputs'!$B$22:$F$105,5,FALSE)) -> 0 | W52: =W45*(VLOOKUP(W$7,'Fixed Inputs'!$B$22:$F$105,5,FALSE)) -> 0 | X52: =X45*(VLOOKUP(X$7,'Fixed Inputs'!$B$22:$F$105,5,FALSE)) -> 0 | Y52: =Y45*(VLOOKUP(Y$7,'Fixed Inputs'!$B$22:$F$105,5,FALSE)) -> 0 | Z52: =Z45*(VLOOKUP(Z$7,'Fixed Inputs'!$B$22:$F$105,5,FALSE)) -> 0 | AA52: =AA45*(VLOOKUP(AA$7,'Fixed Inputs'!$B$22:$F$105,5,FALSE)) -> 0 | AB52: =AB45*(VLOOKUP(AB$7,'Fixed Inputs'!$B$22:$F$105,5,FALSE)) -> 0 | AC52: =AC45*(VLOOKUP(AC$7,'Fixed Inputs'!$B$22:$F$105,5,FALSE)) -> 0 | AD52: =AD45*(VLOOKUP(AD$7,'Fixed Inputs'!$B$22:$F$105,5,FALSE)) -> 0 | AE52: =AE45*(VLOOKUP(AE$7,'Fixed Inputs'!$B$22:$F$105,5,FALSE)) -> 0 | AF52: =AF45*(VLOOKUP(AF$7,'Fixed Inputs'!$B$22:$F$105,5,FALSE)) -> 0 | AG52: =AG45*(VLOOKUP(AG$7,'Fixed Inputs'!$B$22:$F$105,5,FALSE)) -> 0 | AH52: =AH45*(VLOOKUP(AH$7,'Fixed Inputs'!$B$22:$F$105,5,FALSE)) -> 0 | AI52: =AI45*(VLOOKUP(AI$7,'Fixed Inputs'!$B$22:$F$105,5,FALSE)) -> 0 | AJ52: =AJ45*(VLOOKUP(AJ$7,'Fixed Inputs'!$B$22:$F$105,5,FALSE)) -> 0 | AK52: =AK45*(VLOOKUP(AK$7,'Fixed Inputs'!$B$22:$F$105,5,FALSE)) -> 0 | AL52: =AL45*(VLOOKUP(AL$7,'Fixed Inputs'!$B$22:$F$105,5,FALSE)) -> 0 | AM52: =AM45*(VLOOKUP(AM$7,'Fixed Inputs'!$B$22:$F$105,5,FALSE)) -> 0 | AN52: =AN45*(VLOOKUP(AN$7,'Fixed Inputs'!$B$22:$F$105,5,FALSE)) -> 0 | AO52: =AO45*(VLOOKUP(AO$7,'Fixed Inputs'!$B$22:$F$105,5,FALSE)) -> 0 | AP52: =AP45*(VLOOKUP(AP$7,'Fixed Inputs'!$B$22:$F$105,5,FALSE)) -> 0 | AQ52: =AQ45*(VLOOKUP(AQ$7,'Fixed Inputs'!$B$22:$F$105,5,FALSE)) -> 0 | AR52: =AR45*(VLOOKUP(AR$7,'Fixed Inputs'!$B$22:$F$105,5,FALSE)) -> 0 | AS52: =AS45*(VLOOKUP(AS$7,'Fixed Inputs'!$B$22:$F$105,5,FALSE)) -> 0 | AT52: =AT45*(VLOOKUP(AT$7,'Fixed Inputs'!$B$22:$F$105,5,FALSE)) -> 0 | AU52: =AU45*(VLOOKUP(AU$7,'Fixed Inputs'!$B$22:$F$105,5,FALSE)) -> 0 | AV52: =AV45*(VLOOKUP(AV$7,'Fixed Inputs'!$B$22:$F$105,5,FALSE)) -> 0 | AW52: =AW45*(VLOOKUP(AW$7,'Fixed Inputs'!$B$22:$F$105,5,FALSE)) -> 0 | AX52: =AX45*(VLOOKUP(AX$7,'Fixed Inputs'!$B$22:$F$105,5,FALSE)) -> 0 | AY52: =AY45*(VLOOKUP(AY$7,'Fixed Inputs'!$B$22:$F$105,5,FALSE)) -> 0 | AZ52: =AZ45*(VLOOKUP(AZ$7,'Fixed Inputs'!$B$22:$F$105,5,FALSE)) -> 0 | BA52: =BA45*(VLOOKUP(BA$7,'Fixed Inputs'!$B$22:$F$105,5,FALSE)) -> 0 | BB52: =BB45*(VLOOKUP(BB$7,'Fixed Inputs'!$B$22:$F$105,5,FALSE)) -> 0 | BC52: =BC45*(VLOOKUP(BC$7,'Fixed Inputs'!$B$22:$F$105,5,FALSE)) -> 0 | BD52: =BD45*(VLOOKUP(BD$7,'Fixed Inputs'!$B$22:$F$105,5,FALSE)) -> 0 | BE52: =BE45*(VLOOKUP(BE$7,'Fixed Inputs'!$B$22:$F$105,5,FALSE)) -> 0 | BF52: =BF45*(VLOOKUP(BF$7,'Fixed Inputs'!$B$22:$F$105,5,FALSE)) -> 0 | BG52: =BG45*(VLOOKUP(BG$7,'Fixed Inputs'!$B$22:$F$105,5,FALSE)) -> 0 | BH52: =BH45*(VLOOKUP(BH$7,'Fixed Inputs'!$B$22:$F$105,5,FALSE)) -> 0 | BI52: =BI45*(VLOOKUP(BI$7,'Fixed Inputs'!$B$22:$F$105,5,FALSE)) -> 0 | BJ52: =BJ45*(VLOOKUP(BJ$7,'Fixed Inputs'!$B$22:$F$105,5,FALSE)) -> 0 | BK52: =BK45*(VLOOKUP(BK$7,'Fixed Inputs'!$B$22:$F$105,5,FALSE)) -> 0 | BL52: =BL45*(VLOOKUP(BL$7,'Fixed Inputs'!$B$22:$F$105,5,FALSE)) -> 0 | BM52: =BM45*(VLOOKUP(BM$7,'Fixed Inputs'!$B$22:$F$105,5,FALSE)) -> 0 | BN52: =BN45*(VLOOKUP(BN$7,'Fixed Inputs'!$B$22:$F$105,5,FALSE)) -> 0 | BO52: =BO45*(VLOOKUP(BO$7,'Fixed Inputs'!$B$22:$F$105,5,FALSE)) -> 0 | BP52: =BP45*(VLOOKUP(BP$7,'Fixed Inputs'!$B$22:$F$105,5,FALSE)) -> 0 | BQ52: =BQ45*(VLOOKUP(BQ$7,'Fixed Inputs'!$B$22:$F$105,5,FALSE)) -> 0 | BR52: =BR45*(VLOOKUP(BR$7,'Fixed Inputs'!$B$22:$F$105,5,FALSE)) -> 0 | BS52: =BS45*(VLOOKUP(BS$7,'Fixed Inputs'!$B$22:$F$105,5,FALSE)) -> 0
D53: ='Flexibility Requirements'!$C$14 -> 0 | E53: =E46*(VLOOKUP(E$7,'Fixed Inputs'!$B$22:$F$105,5,FALSE)) -> 0 | F53: =F46*(VLOOKUP(F$7,'Fixed Inputs'!$B$22:$F$105,5,FALSE)) -> 0 | G53: =G46*(VLOOKUP(G$7,'Fixed Inputs'!$B$22:$F$105,5,FALSE)) -> 0 | H53: =H46*(VLOOKUP(H$7,'Fixed Inputs'!$B$22:$F$105,5,FALSE)) -> 0 | I53: =I46*(VLOOKUP(I$7,'Fixed Inputs'!$B$22:$F$105,5,FALSE)) -> 0 | J53: =J46*(VLOOKUP(J$7,'Fixed Inputs'!$B$22:$F$105,5,FALSE)) -> 0 | K53: =K46*(VLOOKUP(K$7,'Fixed Inputs'!$B$22:$F$105,5,FALSE)) -> 0 | L53: =L46*(VLOOKUP(L$7,'Fixed Inputs'!$B$22:$F$105,5,FALSE)) -> 0 | M53: =M46*(VLOOKUP(M$7,'Fixed Inputs'!$B$22:$F$105,5,FALSE)) -> 0 | N53: =N46*(VLOOKUP(N$7,'Fixed Inputs'!$B$22:$F$105,5,FALSE)) -> 0 | O53: =O46*(VLOOKUP(O$7,'Fixed Inputs'!$B$22:$F$105,5,FALSE)) -> 0 | P53: =P46*(VLOOKUP(P$7,'Fixed Inputs'!$B$22:$F$105,5,FALSE)) -> 0 | Q53: =Q46*(VLOOKUP(Q$7,'Fixed Inputs'!$B$22:$F$105,5,FALSE)) -> 0 | R53: =R46*(VLOOKUP(R$7,'Fixed Inputs'!$B$22:$F$105,5,FALSE)) -> 0 | S53: =S46*(VLOOKUP(S$7,'Fixed Inputs'!$B$22:$F$105,5,FALSE)) -> 0 | T53: =T46*(VLOOKUP(T$7,'Fixed Inputs'!$B$22:$F$105,5,FALSE)) -> 0 | U53: =U46*(VLOOKUP(U$7,'Fixed Inputs'!$B$22:$F$105,5,FALSE)) -> 0 | V53: =V46*(VLOOKUP(V$7,'Fixed Inputs'!$B$22:$F$105,5,FALSE)) -> 0 | W53: =W46*(VLOOKUP(W$7,'Fixed Inputs'!$B$22:$F$105,5,FALSE)) -> 0 | X53: =X46*(VLOOKUP(X$7,'Fixed Inputs'!$B$22:$F$105,5,FALSE)) -> 0 | Y53: =Y46*(VLOOKUP(Y$7,'Fixed Inputs'!$B$22:$F$105,5,FALSE)) -> 0 | Z53: =Z46*(VLOOKUP(Z$7,'Fixed Inputs'!$B$22:$F$105,5,FALSE)) -> 0 | AA53: =AA46*(VLOOKUP(AA$7,'Fixed Inputs'!$B$22:$F$105,5,FALSE)) -> 0 | AB53: =AB46*(VLOOKUP(AB$7,'Fixed Inputs'!$B$22:$F$105,5,FALSE)) -> 0 | AC53: =AC46*(VLOOKUP(AC$7,'Fixed Inputs'!$B$22:$F$105,5,FALSE)) -> 0 | AD53: =AD46*(VLOOKUP(AD$7,'Fixed Inputs'!$B$22:$F$105,5,FALSE)) -> 0 | AE53: =AE46*(VLOOKUP(AE$7,'Fixed Inputs'!$B$22:$F$105,5,FALSE)) -> 0 | AF53: =AF46*(VLOOKUP(AF$7,'Fixed Inputs'!$B$22:$F$105,5,FALSE)) -> 0 | AG53: =AG46*(VLOOKUP(AG$7,'Fixed Inputs'!$B$22:$F$105,5,FALSE)) -> 0 | AH53: =AH46*(VLOOKUP(AH$7,'Fixed Inputs'!$B$22:$F$105,5,FALSE)) -> 0 | AI53: =AI46*(VLOOKUP(AI$7,'Fixed Inputs'!$B$22:$F$105,5,FALSE)) -> 0 | AJ53: =AJ46*(VLOOKUP(AJ$7,'Fixed Inputs'!$B$22:$F$105,5,FALSE)) -> 0 | AK53: =AK46*(VLOOKUP(AK$7,'Fixed Inputs'!$B$22:$F$105,5,FALSE)) -> 0 | AL53: =AL46*(VLOOKUP(AL$7,'Fixed Inputs'!$B$22:$F$105,5,FALSE)) -> 0 | AM53: =AM46*(VLOOKUP(AM$7,'Fixed Inputs'!$B$22:$F$105,5,FALSE)) -> 0 | AN53: =AN46*(VLOOKUP(AN$7,'Fixed Inputs'!$B$22:$F$105,5,FALSE)) -> 0 | AO53: =AO46*(VLOOKUP(AO$7,'Fixed Inputs'!$B$22:$F$105,5,FALSE)) -> 0 | AP53: =AP46*(VLOOKUP(AP$7,'Fixed Inputs'!$B$22:$F$105,5,FALSE)) -> 0 | AQ53: =AQ46*(VLOOKUP(AQ$7,'Fixed Inputs'!$B$22:$F$105,5,FALSE)) -> 0 | AR53: =AR46*(VLOOKUP(AR$7,'Fixed Inputs'!$B$22:$F$105,5,FALSE)) -> 0 | AS53: =AS46*(VLOOKUP(AS$7,'Fixed Inputs'!$B$22:$F$105,5,FALSE)) -> 0 | AT53: =AT46*(VLOOKUP(AT$7,'Fixed Inputs'!$B$22:$F$105,5,FALSE)) -> 0 | AU53: =AU46*(VLOOKUP(AU$7,'Fixed Inputs'!$B$22:$F$105,5,FALSE)) -> 0 | AV53: =AV46*(VLOOKUP(AV$7,'Fixed Inputs'!$B$22:$F$105,5,FALSE)) -> 0 | AW53: =AW46*(VLOOKUP(AW$7,'Fixed Inputs'!$B$22:$F$105,5,FALSE)) -> 0 | AX53: =AX46*(VLOOKUP(AX$7,'Fixed Inputs'!$B$22:$F$105,5,FALSE)) -> 0 | AY53: =AY46*(VLOOKUP(AY$7,'Fixed Inputs'!$B$22:$F$105,5,FALSE)) -> 0 | AZ53: =AZ46*(VLOOKUP(AZ$7,'Fixed Inputs'!$B$22:$F$105,5,FALSE)) -> 0 | BA53: =BA46*(VLOOKUP(BA$7,'Fixed Inputs'!$B$22:$F$105,5,FALSE)) -> 0 | BB53: =BB46*(VLOOKUP(BB$7,'Fixed Inputs'!$B$22:$F$105,5,FALSE)) -> 0 | BC53: =BC46*(VLOOKUP(BC$7,'Fixed Inputs'!$B$22:$F$105,5,FALSE)) -> 0 | BD53: =BD46*(VLOOKUP(BD$7,'Fixed Inputs'!$B$22:$F$105,5,FALSE)) -> 0 | BE53: =BE46*(VLOOKUP(BE$7,'Fixed Inputs'!$B$22:$F$105,5,FALSE)) -> 0 | BF53: =BF46*(VLOOKUP(BF$7,'Fixed Inputs'!$B$22:$F$105,5,FALSE)) -> 0 | BG53: =BG46*(VLOOKUP(BG$7,'Fixed Inputs'!$B$22:$F$105,5,FALSE)) -> 0 | BH53: =BH46*(VLOOKUP(BH$7,'Fixed Inputs'!$B$22:$F$105,5,FALSE)) -> 0 | BI53: =BI46*(VLOOKUP(BI$7,'Fixed Inputs'!$B$22:$F$105,5,FALSE)) -> 0 | BJ53: =BJ46*(VLOOKUP(BJ$7,'Fixed Inputs'!$B$22:$F$105,5,FALSE)) -> 0 | BK53: =BK46*(VLOOKUP(BK$7,'Fixed Inputs'!$B$22:$F$105,5,FALSE)) -> 0 | BL53: =BL46*(VLOOKUP(BL$7,'Fixed Inputs'!$B$22:$F$105,5,FALSE)) -> 0 | BM53: =BM46*(VLOOKUP(BM$7,'Fixed Inputs'!$B$22:$F$105,5,FALSE)) -> 0 | BN53: =BN46*(VLOOKUP(BN$7,'Fixed Inputs'!$B$22:$F$105,5,FALSE)) -> 0 | BO53: =BO46*(VLOOKUP(BO$7,'Fixed Inputs'!$B$22:$F$105,5,FALSE)) -> 0 | BP53: =BP46*(VLOOKUP(BP$7,'Fixed Inputs'!$B$22:$F$105,5,FALSE)) -> 0 | BQ53: =BQ46*(VLOOKUP(BQ$7,'Fixed Inputs'!$B$22:$F$105,5,FALSE)) -> 0 | BR53: =BR46*(VLOOKUP(BR$7,'Fixed Inputs'!$B$22:$F$105,5,FALSE)) -> 0 | BS53: =BS46*(VLOOKUP(BS$7,'Fixed Inputs'!$B$22:$F$105,5,FALSE)) -> 0
D54: ='Flexibility Requirements'!$C$15 -> 0 | E54: =E47*(VLOOKUP(E$7,'Fixed Inputs'!$B$22:$F$105,5,FALSE)) -> 0 | F54: =F47*(VLOOKUP(F$7,'Fixed Inputs'!$B$22:$F$105,5,FALSE)) -> 0 | G54: =G47*(VLOOKUP(G$7,'Fixed Inputs'!$B$22:$F$105,5,FALSE)) -> 0 | H54: =H47*(VLOOKUP(H$7,'Fixed Inputs'!$B$22:$F$105,5,FALSE)) -> 0 | I54: =I47*(VLOOKUP(I$7,'Fixed Inputs'!$B$22:$F$105,5,FALSE)) -> 0 | J54: =J47*(VLOOKUP(J$7,'Fixed Inputs'!$B$22:$F$105,5,FALSE)) -> 0 | K54: =K47*(VLOOKUP(K$7,'Fixed Inputs'!$B$22:$F$105,5,FALSE)) -> 0 | L54: =L47*(VLOOKUP(L$7,'Fixed Inputs'!$B$22:$F$105,5,FALSE)) -> 0 | M54: =M47*(VLOOKUP(M$7,'Fixed Inputs'!$B$22:$F$105,5,FALSE)) -> 0 | N54: =N47*(VLOOKUP(N$7,'Fixed Inputs'!$B$22:$F$105,5,FALSE)) -> 0 | O54: =O47*(VLOOKUP(O$7,'Fixed Inputs'!$B$22:$F$105,5,FALSE)) -> 0 | P54: =P47*(VLOOKUP(P$7,'Fixed Inputs'!$B$22:$F$105,5,FALSE)) -> 0 | Q54: =Q47*(VLOOKUP(Q$7,'Fixed Inputs'!$B$22:$F$105,5,FALSE)) -> 0 | R54: =R47*(VLOOKUP(R$7,'Fixed Inputs'!$B$22:$F$105,5,FALSE)) -> 0 | S54: =S47*(VLOOKUP(S$7,'Fixed Inputs'!$B$22:$F$105,5,FALSE)) -> 0 | T54: =T47*(VLOOKUP(T$7,'Fixed Inputs'!$B$22:$F$105,5,FALSE)) -> 0 | U54: =U47*(VLOOKUP(U$7,'Fixed Inputs'!$B$22:$F$105,5,FALSE)) -> 0 | V54: =V47*(VLOOKUP(V$7,'Fixed Inputs'!$B$22:$F$105,5,FALSE)) -> 0 | W54: =W47*(VLOOKUP(W$7,'Fixed Inputs'!$B$22:$F$105,5,FALSE)) -> 0 | X54: =X47*(VLOOKUP(X$7,'Fixed Inputs'!$B$22:$F$105,5,FALSE)) -> 0 | Y54: =Y47*(VLOOKUP(Y$7,'Fixed Inputs'!$B$22:$F$105,5,FALSE)) -> 0 | Z54: =Z47*(VLOOKUP(Z$7,'Fixed Inputs'!$B$22:$F$105,5,FALSE)) -> 0 | AA54: =AA47*(VLOOKUP(AA$7,'Fixed Inputs'!$B$22:$F$105,5,FALSE)) -> 0 | AB54: =AB47*(VLOOKUP(AB$7,'Fixed Inputs'!$B$22:$F$105,5,FALSE)) -> 0 | AC54: =AC47*(VLOOKUP(AC$7,'Fixed Inputs'!$B$22:$F$105,5,FALSE)) -> 0 | AD54: =AD47*(VLOOKUP(AD$7,'Fixed Inputs'!$B$22:$F$105,5,FALSE)) -> 0 | AE54: =AE47*(VLOOKUP(AE$7,'Fixed Inputs'!$B$22:$F$105,5,FALSE)) -> 0 | AF54: =AF47*(VLOOKUP(AF$7,'Fixed Inputs'!$B$22:$F$105,5,FALSE)) -> 0 | AG54: =AG47*(VLOOKUP(AG$7,'Fixed Inputs'!$B$22:$F$105,5,FALSE)) -> 0 | AH54: =AH47*(VLOOKUP(AH$7,'Fixed Inputs'!$B$22:$F$105,5,FALSE)) -> 0 | AI54: =AI47*(VLOOKUP(AI$7,'Fixed Inputs'!$B$22:$F$105,5,FALSE)) -> 0 | AJ54: =AJ47*(VLOOKUP(AJ$7,'Fixed Inputs'!$B$22:$F$105,5,FALSE)) -> 0 | AK54: =AK47*(VLOOKUP(AK$7,'Fixed Inputs'!$B$22:$F$105,5,FALSE)) -> 0 | AL54: =AL47*(VLOOKUP(AL$7,'Fixed Inputs'!$B$22:$F$105,5,FALSE)) -> 0 | AM54: =AM47*(VLOOKUP(AM$7,'Fixed Inputs'!$B$22:$F$105,5,FALSE)) -> 0 | AN54: =AN47*(VLOOKUP(AN$7,'Fixed Inputs'!$B$22:$F$105,5,FALSE)) -> 0 | AO54: =AO47*(VLOOKUP(AO$7,'Fixed Inputs'!$B$22:$F$105,5,FALSE)) -> 0 | AP54: =AP47*(VLOOKUP(AP$7,'Fixed Inputs'!$B$22:$F$105,5,FALSE)) -> 0 | AQ54: =AQ47*(VLOOKUP(AQ$7,'Fixed Inputs'!$B$22:$F$105,5,FALSE)) -> 0 | AR54: =AR47*(VLOOKUP(AR$7,'Fixed Inputs'!$B$22:$F$105,5,FALSE)) -> 0 | AS54: =AS47*(VLOOKUP(AS$7,'Fixed Inputs'!$B$22:$F$105,5,FALSE)) -> 0 | AT54: =AT47*(VLOOKUP(AT$7,'Fixed Inputs'!$B$22:$F$105,5,FALSE)) -> 0 | AU54: =AU47*(VLOOKUP(AU$7,'Fixed Inputs'!$B$22:$F$105,5,FALSE)) -> 0 | AV54: =AV47*(VLOOKUP(AV$7,'Fixed Inputs'!$B$22:$F$105,5,FALSE)) -> 0 | AW54: =AW47*(VLOOKUP(AW$7,'Fixed Inputs'!$B$22:$F$105,5,FALSE)) -> 0 | AX54: =AX47*(VLOOKUP(AX$7,'Fixed Inputs'!$B$22:$F$105,5,FALSE)) -> 0 | AY54: =AY47*(VLOOKUP(AY$7,'Fixed Inputs'!$B$22:$F$105,5,FALSE)) -> 0 | AZ54: =AZ47*(VLOOKUP(AZ$7,'Fixed Inputs'!$B$22:$F$105,5,FALSE)) -> 0 | BA54: =BA47*(VLOOKUP(BA$7,'Fixed Inputs'!$B$22:$F$105,5,FALSE)) -> 0 | BB54: =BB47*(VLOOKUP(BB$7,'Fixed Inputs'!$B$22:$F$105,5,FALSE)) -> 0 | BC54: =BC47*(VLOOKUP(BC$7,'Fixed Inputs'!$B$22:$F$105,5,FALSE)) -> 0 | BD54: =BD47*(VLOOKUP(BD$7,'Fixed Inputs'!$B$22:$F$105,5,FALSE)) -> 0 | BE54: =BE47*(VLOOKUP(BE$7,'Fixed Inputs'!$B$22:$F$105,5,FALSE)) -> 0 | BF54: =BF47*(VLOOKUP(BF$7,'Fixed Inputs'!$B$22:$F$105,5,FALSE)) -> 0 | BG54: =BG47*(VLOOKUP(BG$7,'Fixed Inputs'!$B$22:$F$105,5,FALSE)) -> 0 | BH54: =BH47*(VLOOKUP(BH$7,'Fixed Inputs'!$B$22:$F$105,5,FALSE)) -> 0 | BI54: =BI47*(VLOOKUP(BI$7,'Fixed Inputs'!$B$22:$F$105,5,FALSE)) -> 0 | BJ54: =BJ47*(VLOOKUP(BJ$7,'Fixed Inputs'!$B$22:$F$105,5,FALSE)) -> 0 | BK54: =BK47*(VLOOKUP(BK$7,'Fixed Inputs'!$B$22:$F$105,5,FALSE)) -> 0 | BL54: =BL47*(VLOOKUP(BL$7,'Fixed Inputs'!$B$22:$F$105,5,FALSE)) -> 0 | BM54: =BM47*(VLOOKUP(BM$7,'Fixed Inputs'!$B$22:$F$105,5,FALSE)) -> 0 | BN54: =BN47*(VLOOKUP(BN$7,'Fixed Inputs'!$B$22:$F$105,5,FALSE)) -> 0 | BO54: =BO47*(VLOOKUP(BO$7,'Fixed Inputs'!$B$22:$F$105,5,FALSE)) -> 0 | BP54: =BP47*(VLOOKUP(BP$7,'Fixed Inputs'!$B$22:$F$105,5,FALSE)) -> 0 | BQ54: =BQ47*(VLOOKUP(BQ$7,'Fixed Inputs'!$B$22:$F$105,5,FALSE)) -> 0 | BR54: =BR47*(VLOOKUP(BR$7,'Fixed Inputs'!$B$22:$F$105,5,FALSE)) -> 0 | BS54: =BS47*(VLOOKUP(BS$7,'Fixed Inputs'!$B$22:$F$105,5,FALSE)) -> 0
C56: Reduced emissions not associated with losses1 (tCO2e) | D56: [enter source of emission reduction]
D57: ='Reinforcement Deferral'!$C$39 -> Losses derogation calculation
D58: ='Flexibility Requirements'!$C$11 -> 0
D59: ='Flexibility Requirements'!$C$12 -> 0
D60: ='Flexibility Requirements'!$C$13 -> 0
D61: ='Flexibility Requirements'!$C$14 -> 0
D62: ='Flexibility Requirements'!$C$15 -> 0
C63: Reduced emissions not associated with losses (£)
D64: ='Reinforcement Deferral'!$C$39 -> Losses derogation calculation | E64: =E57*(VLOOKUP(E$7,'Fixed Inputs'!$B$22:$F$105,5,FALSE)) -> 0 | F64: =F57*(VLOOKUP(F$7,'Fixed Inputs'!$B$22:$F$105,5,FALSE)) -> 0 | G64: =G57*(VLOOKUP(G$7,'Fixed Inputs'!$B$22:$F$105,5,FALSE)) -> 0 | H64: =H57*(VLOOKUP(H$7,'Fixed Inputs'!$B$22:$F$105,5,FALSE)) -> 0 | I64: =I57*(VLOOKUP(I$7,'Fixed Inputs'!$B$22:$F$105,5,FALSE)) -> 0 | J64: =J57*(VLOOKUP(J$7,'Fixed Inputs'!$B$22:$F$105,5,FALSE)) -> 0 | K64: =K57*(VLOOKUP(K$7,'Fixed Inputs'!$B$22:$F$105,5,FALSE)) -> 0 | L64: =L57*(VLOOKUP(L$7,'Fixed Inputs'!$B$22:$F$105,5,FALSE)) -> 0 | M64: =M57*(VLOOKUP(M$7,'Fixed Inputs'!$B$22:$F$105,5,FALSE)) -> 0 | N64: =N57*(VLOOKUP(N$7,'Fixed Inputs'!$B$22:$F$105,5,FALSE)) -> 0 | O64: =O57*(VLOOKUP(O$7,'Fixed Inputs'!$B$22:$F$105,5,FALSE)) -> 0 | P64: =P57*(VLOOKUP(P$7,'Fixed Inputs'!$B$22:$F$105,5,FALSE)) -> 0 | Q64: =Q57*(VLOOKUP(Q$7,'Fixed Inputs'!$B$22:$F$105,5,FALSE)) -> 0 | R64: =R57*(VLOOKUP(R$7,'Fixed Inputs'!$B$22:$F$105,5,FALSE)) -> 0 | S64: =S57*(VLOOKUP(S$7,'Fixed Inputs'!$B$22:$F$105,5,FALSE)) -> 0 | T64: =T57*(VLOOKUP(T$7,'Fixed Inputs'!$B$22:$F$105,5,FALSE)) -> 0 | U64: =U57*(VLOOKUP(U$7,'Fixed Inputs'!$B$22:$F$105,5,FALSE)) -> 0 | V64: =V57*(VLOOKUP(V$7,'Fixed Inputs'!$B$22:$F$105,5,FALSE)) -> 0 | W64: =W57*(VLOOKUP(W$7,'Fixed Inputs'!$B$22:$F$105,5,FALSE)) -> 0 | X64: =X57*(VLOOKUP(X$7,'Fixed Inputs'!$B$22:$F$105,5,FALSE)) -> 0 | Y64: =Y57*(VLOOKUP(Y$7,'Fixed Inputs'!$B$22:$F$105,5,FALSE)) -> 0 | Z64: =Z57*(VLOOKUP(Z$7,'Fixed Inputs'!$B$22:$F$105,5,FALSE)) -> 0 | AA64: =AA57*(VLOOKUP(AA$7,'Fixed Inputs'!$B$22:$F$105,5,FALSE)) -> 0 | AB64: =AB57*(VLOOKUP(AB$7,'Fixed Inputs'!$B$22:$F$105,5,FALSE)) -> 0 | AC64: =AC57*(VLOOKUP(AC$7,'Fixed Inputs'!$B$22:$F$105,5,FALSE)) -> 0 | AD64: =AD57*(VLOOKUP(AD$7,'Fixed Inputs'!$B$22:$F$105,5,FALSE)) -> 0 | AE64: =AE57*(VLOOKUP(AE$7,'Fixed Inputs'!$B$22:$F$105,5,FALSE)) -> 0 | AF64: =AF57*(VLOOKUP(AF$7,'Fixed Inputs'!$B$22:$F$105,5,FALSE)) -> 0 | AG64: =AG57*(VLOOKUP(AG$7,'Fixed Inputs'!$B$22:$F$105,5,FALSE)) -> 0 | AH64: =AH57*(VLOOKUP(AH$7,'Fixed Inputs'!$B$22:$F$105,5,FALSE)) -> 0 | AI64: =AI57*(VLOOKUP(AI$7,'Fixed Inputs'!$B$22:$F$105,5,FALSE)) -> 0 | AJ64: =AJ57*(VLOOKUP(AJ$7,'Fixed Inputs'!$B$22:$F$105,5,FALSE)) -> 0 | AK64: =AK57*(VLOOKUP(AK$7,'Fixed Inputs'!$B$22:$F$105,5,FALSE)) -> 0 | AL64: =AL57*(VLOOKUP(AL$7,'Fixed Inputs'!$B$22:$F$105,5,FALSE)) -> 0 | AM64: =AM57*(VLOOKUP(AM$7,'Fixed Inputs'!$B$22:$F$105,5,FALSE)) -> 0 | AN64: =AN57*(VLOOKUP(AN$7,'Fixed Inputs'!$B$22:$F$105,5,FALSE)) -> 0 | AO64: =AO57*(VLOOKUP(AO$7,'Fixed Inputs'!$B$22:$F$105,5,FALSE)) -> 0 | AP64: =AP57*(VLOOKUP(AP$7,'Fixed Inputs'!$B$22:$F$105,5,FALSE)) -> 0 | AQ64: =AQ57*(VLOOKUP(AQ$7,'Fixed Inputs'!$B$22:$F$105,5,FALSE)) -> 0 | AR64: =AR57*(VLOOKUP(AR$7,'Fixed Inputs'!$B$22:$F$105,5,FALSE)) -> 0 | AS64: =AS57*(VLOOKUP(AS$7,'Fixed Inputs'!$B$22:$F$105,5,FALSE)) -> 0 | AT64: =AT57*(VLOOKUP(AT$7,'Fixed Inputs'!$B$22:$F$105,5,FALSE)) -> 0 | AU64: =AU57*(VLOOKUP(AU$7,'Fixed Inputs'!$B$22:$F$105,5,FALSE)) -> 0 | AV64: =AV57*(VLOOKUP(AV$7,'Fixed Inputs'!$B$22:$F$105,5,FALSE)) -> 0 | AW64: =AW57*(VLOOKUP(AW$7,'Fixed Inputs'!$B$22:$F$105,5,FALSE)) -> 0 | AX64: =AX57*(VLOOKUP(AX$7,'Fixed Inputs'!$B$22:$F$105,5,FALSE)) -> 0 | AY64: =AY57*(VLOOKUP(AY$7,'Fixed Inputs'!$B$22:$F$105,5,FALSE)) -> 0 | AZ64: =AZ57*(VLOOKUP(AZ$7,'Fixed Inputs'!$B$22:$F$105,5,FALSE)) -> 0 | BA64: =BA57*(VLOOKUP(BA$7,'Fixed Inputs'!$B$22:$F$105,5,FALSE)) -> 0 | BB64: =BB57*(VLOOKUP(BB$7,'Fixed Inputs'!$B$22:$F$105,5,FALSE)) -> 0 | BC64: =BC57*(VLOOKUP(BC$7,'Fixed Inputs'!$B$22:$F$105,5,FALSE)) -> 0 | BD64: =BD57*(VLOOKUP(BD$7,'Fixed Inputs'!$B$22:$F$105,5,FALSE)) -> 0 | BE64: =BE57*(VLOOKUP(BE$7,'Fixed Inputs'!$B$22:$F$105,5,FALSE)) -> 0 | BF64: =BF57*(VLOOKUP(BF$7,'Fixed Inputs'!$B$22:$F$105,5,FALSE)) -> 0 | BG64: =BG57*(VLOOKUP(BG$7,'Fixed Inputs'!$B$22:$F$105,5,FALSE)) -> 0 | BH64: =BH57*(VLOOKUP(BH$7,'Fixed Inputs'!$B$22:$F$105,5,FALSE)) -> 0 | BI64: =BI57*(VLOOKUP(BI$7,'Fixed Inputs'!$B$22:$F$105,5,FALSE)) -> 0 | BJ64: =BJ57*(VLOOKUP(BJ$7,'Fixed Inputs'!$B$22:$F$105,5,FALSE)) -> 0 | BK64: =BK57*(VLOOKUP(BK$7,'Fixed Inputs'!$B$22:$F$105,5,FALSE)) -> 0 | BL64: =BL57*(VLOOKUP(BL$7,'Fixed Inputs'!$B$22:$F$105,5,FALSE)) -> 0 | BM64: =BM57*(VLOOKUP(BM$7,'Fixed Inputs'!$B$22:$F$105,5,FALSE)) -> 0 | BN64: =BN57*(VLOOKUP(BN$7,'Fixed Inputs'!$B$22:$F$105,5,FALSE)) -> 0 | BO64: =BO57*(VLOOKUP(BO$7,'Fixed Inputs'!$B$22:$F$105,5,FALSE)) -> 0 | BP64: =BP57*(VLOOKUP(BP$7,'Fixed Inputs'!$B$22:$F$105,5,FALSE)) -> 0 | BQ64: =BQ57*(VLOOKUP(BQ$7,'Fixed Inputs'!$B$22:$F$105,5,FALSE)) -> 0 | BR64: =BR57*(VLOOKUP(BR$7,'Fixed Inputs'!$B$22:$F$105,5,FALSE)) -> 0 | BS64: =BS57*(VLOOKUP(BS$7,'Fixed Inputs'!$B$22:$F$105,5,FALSE)) -> 0
D65: ='Flexibility Requirements'!$C$11 -> 0 | E65: =E58*(VLOOKUP(E$7,'Fixed Inputs'!$B$22:$F$105,5,FALSE)) -> 0 | F65: =F58*(VLOOKUP(F$7,'Fixed Inputs'!$B$22:$F$105,5,FALSE)) -> 0 | G65: =G58*(VLOOKUP(G$7,'Fixed Inputs'!$B$22:$F$105,5,FALSE)) -> 0 | H65: =H58*(VLOOKUP(H$7,'Fixed Inputs'!$B$22:$F$105,5,FALSE)) -> 0 | I65: =I58*(VLOOKUP(I$7,'Fixed Inputs'!$B$22:$F$105,5,FALSE)) -> 0 | J65: =J58*(VLOOKUP(J$7,'Fixed Inputs'!$B$22:$F$105,5,FALSE)) -> 0 | K65: =K58*(VLOOKUP(K$7,'Fixed Inputs'!$B$22:$F$105,5,FALSE)) -> 0 | L65: =L58*(VLOOKUP(L$7,'Fixed Inputs'!$B$22:$F$105,5,FALSE)) -> 0 | M65: =M58*(VLOOKUP(M$7,'Fixed Inputs'!$B$22:$F$105,5,FALSE)) -> 0 | N65: =N58*(VLOOKUP(N$7,'Fixed Inputs'!$B$22:$F$105,5,FALSE)) -> 0 | O65: =O58*(VLOOKUP(O$7,'Fixed Inputs'!$B$22:$F$105,5,FALSE)) -> 0 | P65: =P58*(VLOOKUP(P$7,'Fixed Inputs'!$B$22:$F$105,5,FALSE)) -> 0 | Q65: =Q58*(VLOOKUP(Q$7,'Fixed Inputs'!$B$22:$F$105,5,FALSE)) -> 0 | R65: =R58*(VLOOKUP(R$7,'Fixed Inputs'!$B$22:$F$105,5,FALSE)) -> 0 | S65: =S58*(VLOOKUP(S$7,'Fixed Inputs'!$B$22:$F$105,5,FALSE)) -> 0 | T65: =T58*(VLOOKUP(T$7,'Fixed Inputs'!$B$22:$F$105,5,FALSE)) -> 0 | U65: =U58*(VLOOKUP(U$7,'Fixed Inputs'!$B$22:$F$105,5,FALSE)) -> 0 | V65: =V58*(VLOOKUP(V$7,'Fixed Inputs'!$B$22:$F$105,5,FALSE)) -> 0 | W65: =W58*(VLOOKUP(W$7,'Fixed Inputs'!$B$22:$F$105,5,FALSE)) -> 0 | X65: =X58*(VLOOKUP(X$7,'Fixed Inputs'!$B$22:$F$105,5,FALSE)) -> 0 | Y65: =Y58*(VLOOKUP(Y$7,'Fixed Inputs'!$B$22:$F$105,5,FALSE)) -> 0 | Z65: =Z58*(VLOOKUP(Z$7,'Fixed Inputs'!$B$22:$F$105,5,FALSE)) -> 0 | AA65: =AA58*(VLOOKUP(AA$7,'Fixed Inputs'!$B$22:$F$105,5,FALSE)) -> 0 | AB65: =AB58*(VLOOKUP(AB$7,'Fixed Inputs'!$B$22:$F$105,5,FALSE)) -> 0 | AC65: =AC58*(VLOOKUP(AC$7,'Fixed Inputs'!$B$22:$F$105,5,FALSE)) -> 0 | AD65: =AD58*(VLOOKUP(AD$7,'Fixed Inputs'!$B$22:$F$105,5,FALSE)) -> 0 | AE65: =AE58*(VLOOKUP(AE$7,'Fixed Inputs'!$B$22:$F$105,5,FALSE)) -> 0 | AF65: =AF58*(VLOOKUP(AF$7,'Fixed Inputs'!$B$22:$F$105,5,FALSE)) -> 0 | AG65: =AG58*(VLOOKUP(AG$7,'Fixed Inputs'!$B$22:$F$105,5,FALSE)) -> 0 | AH65: =AH58*(VLOOKUP(AH$7,'Fixed Inputs'!$B$22:$F$105,5,FALSE)) -> 0 | AI65: =AI58*(VLOOKUP(AI$7,'Fixed Inputs'!$B$22:$F$105,5,FALSE)) -> 0 | AJ65: =AJ58*(VLOOKUP(AJ$7,'Fixed Inputs'!$B$22:$F$105,5,FALSE)) -> 0 | AK65: =AK58*(VLOOKUP(AK$7,'Fixed Inputs'!$B$22:$F$105,5,FALSE)) -> 0 | AL65: =AL58*(VLOOKUP(AL$7,'Fixed Inputs'!$B$22:$F$105,5,FALSE)) -> 0 | AM65: =AM58*(VLOOKUP(AM$7,'Fixed Inputs'!$B$22:$F$105,5,FALSE)) -> 0 | AN65: =AN58*(VLOOKUP(AN$7,'Fixed Inputs'!$B$22:$F$105,5,FALSE)) -> 0 | AO65: =AO58*(VLOOKUP(AO$7,'Fixed Inputs'!$B$22:$F$105,5,FALSE)) -> 0 | AP65: =AP58*(VLOOKUP(AP$7,'Fixed Inputs'!$B$22:$F$105,5,FALSE)) -> 0 | AQ65: =AQ58*(VLOOKUP(AQ$7,'Fixed Inputs'!$B$22:$F$105,5,FALSE)) -> 0 | AR65: =AR58*(VLOOKUP(AR$7,'Fixed Inputs'!$B$22:$F$105,5,FALSE)) -> 0 | AS65: =AS58*(VLOOKUP(AS$7,'Fixed Inputs'!$B$22:$F$105,5,FALSE)) -> 0 | AT65: =AT58*(VLOOKUP(AT$7,'Fixed Inputs'!$B$22:$F$105,5,FALSE)) -> 0 | AU65: =AU58*(VLOOKUP(AU$7,'Fixed Inputs'!$B$22:$F$105,5,FALSE)) -> 0 | AV65: =AV58*(VLOOKUP(AV$7,'Fixed Inputs'!$B$22:$F$105,5,FALSE)) -> 0 | AW65: =AW58*(VLOOKUP(AW$7,'Fixed Inputs'!$B$22:$F$105,5,FALSE)) -> 0 | AX65: =AX58*(VLOOKUP(AX$7,'Fixed Inputs'!$B$22:$F$105,5,FALSE)) -> 0 | AY65: =AY58*(VLOOKUP(AY$7,'Fixed Inputs'!$B$22:$F$105,5,FALSE)) -> 0 | AZ65: =AZ58*(VLOOKUP(AZ$7,'Fixed Inputs'!$B$22:$F$105,5,FALSE)) -> 0 | BA65: =BA58*(VLOOKUP(BA$7,'Fixed Inputs'!$B$22:$F$105,5,FALSE)) -> 0 | BB65: =BB58*(VLOOKUP(BB$7,'Fixed Inputs'!$B$22:$F$105,5,FALSE)) -> 0 | BC65: =BC58*(VLOOKUP(BC$7,'Fixed Inputs'!$B$22:$F$105,5,FALSE)) -> 0 | BD65: =BD58*(VLOOKUP(BD$7,'Fixed Inputs'!$B$22:$F$105,5,FALSE)) -> 0 | BE65: =BE58*(VLOOKUP(BE$7,'Fixed Inputs'!$B$22:$F$105,5,FALSE)) -> 0 | BF65: =BF58*(VLOOKUP(BF$7,'Fixed Inputs'!$B$22:$F$105,5,FALSE)) -> 0 | BG65: =BG58*(VLOOKUP(BG$7,'Fixed Inputs'!$B$22:$F$105,5,FALSE)) -> 0 | BH65: =BH58*(VLOOKUP(BH$7,'Fixed Inputs'!$B$22:$F$105,5,FALSE)) -> 0 | BI65: =BI58*(VLOOKUP(BI$7,'Fixed Inputs'!$B$22:$F$105,5,FALSE)) -> 0 | BJ65: =BJ58*(VLOOKUP(BJ$7,'Fixed Inputs'!$B$22:$F$105,5,FALSE)) -> 0 | BK65: =BK58*(VLOOKUP(BK$7,'Fixed Inputs'!$B$22:$F$105,5,FALSE)) -> 0 | BL65: =BL58*(VLOOKUP(BL$7,'Fixed Inputs'!$B$22:$F$105,5,FALSE)) -> 0 | BM65: =BM58*(VLOOKUP(BM$7,'Fixed Inputs'!$B$22:$F$105,5,FALSE)) -> 0 | BN65: =BN58*(VLOOKUP(BN$7,'Fixed Inputs'!$B$22:$F$105,5,FALSE)) -> 0 | BO65: =BO58*(VLOOKUP(BO$7,'Fixed Inputs'!$B$22:$F$105,5,FALSE)) -> 0 | BP65: =BP58*(VLOOKUP(BP$7,'Fixed Inputs'!$B$22:$F$105,5,FALSE)) -> 0 | BQ65: =BQ58*(VLOOKUP(BQ$7,'Fixed Inputs'!$B$22:$F$105,5,FALSE)) -> 0 | BR65: =BR58*(VLOOKUP(BR$7,'Fixed Inputs'!$B$22:$F$105,5,FALSE)) -> 0 | BS65: =BS58*(VLOOKUP(BS$7,'Fixed Inputs'!$B$22:$F$105,5,FALSE)) -> 0
D66: ='Flexibility Requirements'!$C$12 -> 0 | E66: =E59*(VLOOKUP(E$7,'Fixed Inputs'!$B$22:$F$105,5,FALSE)) -> 0 | F66: =F59*(VLOOKUP(F$7,'Fixed Inputs'!$B$22:$F$105,5,FALSE)) -> 0 | G66: =G59*(VLOOKUP(G$7,'Fixed Inputs'!$B$22:$F$105,5,FALSE)) -> 0 | H66: =H59*(VLOOKUP(H$7,'Fixed Inputs'!$B$22:$F$105,5,FALSE)) -> 0 | I66: =I59*(VLOOKUP(I$7,'Fixed Inputs'!$B$22:$F$105,5,FALSE)) -> 0 | J66: =J59*(VLOOKUP(J$7,'Fixed Inputs'!$B$22:$F$105,5,FALSE)) -> 0 | K66: =K59*(VLOOKUP(K$7,'Fixed Inputs'!$B$22:$F$105,5,FALSE)) -> 0 | L66: =L59*(VLOOKUP(L$7,'Fixed Inputs'!$B$22:$F$105,5,FALSE)) -> 0 | M66: =M59*(VLOOKUP(M$7,'Fixed Inputs'!$B$22:$F$105,5,FALSE)) -> 0 | N66: =N59*(VLOOKUP(N$7,'Fixed Inputs'!$B$22:$F$105,5,FALSE)) -> 0 | O66: =O59*(VLOOKUP(O$7,'Fixed Inputs'!$B$22:$F$105,5,FALSE)) -> 0 | P66: =P59*(VLOOKUP(P$7,'Fixed Inputs'!$B$22:$F$105,5,FALSE)) -> 0 | Q66: =Q59*(VLOOKUP(Q$7,'Fixed Inputs'!$B$22:$F$105,5,FALSE)) -> 0 | R66: =R59*(VLOOKUP(R$7,'Fixed Inputs'!$B$22:$F$105,5,FALSE)) -> 0 | S66: =S59*(VLOOKUP(S$7,'Fixed Inputs'!$B$22:$F$105,5,FALSE)) -> 0 | T66: =T59*(VLOOKUP(T$7,'Fixed Inputs'!$B$22:$F$105,5,FALSE)) -> 0 | U66: =U59*(VLOOKUP(U$7,'Fixed Inputs'!$B$22:$F$105,5,FALSE)) -> 0 | V66: =V59*(VLOOKUP(V$7,'Fixed Inputs'!$B$22:$F$105,5,FALSE)) -> 0 | W66: =W59*(VLOOKUP(W$7,'Fixed Inputs'!$B$22:$F$105,5,FALSE)) -> 0 | X66: =X59*(VLOOKUP(X$7,'Fixed Inputs'!$B$22:$F$105,5,FALSE)) -> 0 | Y66: =Y59*(VLOOKUP(Y$7,'Fixed Inputs'!$B$22:$F$105,5,FALSE)) -> 0 | Z66: =Z59*(VLOOKUP(Z$7,'Fixed Inputs'!$B$22:$F$105,5,FALSE)) -> 0 | AA66: =AA59*(VLOOKUP(AA$7,'Fixed Inputs'!$B$22:$F$105,5,FALSE)) -> 0 | AB66: =AB59*(VLOOKUP(AB$7,'Fixed Inputs'!$B$22:$F$105,5,FALSE)) -> 0 | AC66: =AC59*(VLOOKUP(AC$7,'Fixed Inputs'!$B$22:$F$105,5,FALSE)) -> 0 | AD66: =AD59*(VLOOKUP(AD$7,'Fixed Inputs'!$B$22:$F$105,5,FALSE)) -> 0 | AE66: =AE59*(VLOOKUP(AE$7,'Fixed Inputs'!$B$22:$F$105,5,FALSE)) -> 0 | AF66: =AF59*(VLOOKUP(AF$7,'Fixed Inputs'!$B$22:$F$105,5,FALSE)) -> 0 | AG66: =AG59*(VLOOKUP(AG$7,'Fixed Inputs'!$B$22:$F$105,5,FALSE)) -> 0 | AH66: =AH59*(VLOOKUP(AH$7,'Fixed Inputs'!$B$22:$F$105,5,FALSE)) -> 0 | AI66: =AI59*(VLOOKUP(AI$7,'Fixed Inputs'!$B$22:$F$105,5,FALSE)) -> 0 | AJ66: =AJ59*(VLOOKUP(AJ$7,'Fixed Inputs'!$B$22:$F$105,5,FALSE)) -> 0 | AK66: =AK59*(VLOOKUP(AK$7,'Fixed Inputs'!$B$22:$F$105,5,FALSE)) -> 0 | AL66: =AL59*(VLOOKUP(AL$7,'Fixed Inputs'!$B$22:$F$105,5,FALSE)) -> 0 | AM66: =AM59*(VLOOKUP(AM$7,'Fixed Inputs'!$B$22:$F$105,5,FALSE)) -> 0 | AN66: =AN59*(VLOOKUP(AN$7,'Fixed Inputs'!$B$22:$F$105,5,FALSE)) -> 0 | AO66: =AO59*(VLOOKUP(AO$7,'Fixed Inputs'!$B$22:$F$105,5,FALSE)) -> 0 | AP66: =AP59*(VLOOKUP(AP$7,'Fixed Inputs'!$B$22:$F$105,5,FALSE)) -> 0 | AQ66: =AQ59*(VLOOKUP(AQ$7,'Fixed Inputs'!$B$22:$F$105,5,FALSE)) -> 0 | AR66: =AR59*(VLOOKUP(AR$7,'Fixed Inputs'!$B$22:$F$105,5,FALSE)) -> 0 | AS66: =AS59*(VLOOKUP(AS$7,'Fixed Inputs'!$B$22:$F$105,5,FALSE)) -> 0 | AT66: =AT59*(VLOOKUP(AT$7,'Fixed Inputs'!$B$22:$F$105,5,FALSE)) -> 0 | AU66: =AU59*(VLOOKUP(AU$7,'Fixed Inputs'!$B$22:$F$105,5,FALSE)) -> 0 | AV66: =AV59*(VLOOKUP(AV$7,'Fixed Inputs'!$B$22:$F$105,5,FALSE)) -> 0 | AW66: =AW59*(VLOOKUP(AW$7,'Fixed Inputs'!$B$22:$F$105,5,FALSE)) -> 0 | AX66: =AX59*(VLOOKUP(AX$7,'Fixed Inputs'!$B$22:$F$105,5,FALSE)) -> 0 | AY66: =AY59*(VLOOKUP(AY$7,'Fixed Inputs'!$B$22:$F$105,5,FALSE)) -> 0 | AZ66: =AZ59*(VLOOKUP(AZ$7,'Fixed Inputs'!$B$22:$F$105,5,FALSE)) -> 0 | BA66: =BA59*(VLOOKUP(BA$7,'Fixed Inputs'!$B$22:$F$105,5,FALSE)) -> 0 | BB66: =BB59*(VLOOKUP(BB$7,'Fixed Inputs'!$B$22:$F$105,5,FALSE)) -> 0 | BC66: =BC59*(VLOOKUP(BC$7,'Fixed Inputs'!$B$22:$F$105,5,FALSE)) -> 0 | BD66: =BD59*(VLOOKUP(BD$7,'Fixed Inputs'!$B$22:$F$105,5,FALSE)) -> 0 | BE66: =BE59*(VLOOKUP(BE$7,'Fixed Inputs'!$B$22:$F$105,5,FALSE)) -> 0 | BF66: =BF59*(VLOOKUP(BF$7,'Fixed Inputs'!$B$22:$F$105,5,FALSE)) -> 0 | BG66: =BG59*(VLOOKUP(BG$7,'Fixed Inputs'!$B$22:$F$105,5,FALSE)) -> 0 | BH66: =BH59*(VLOOKUP(BH$7,'Fixed Inputs'!$B$22:$F$105,5,FALSE)) -> 0 | BI66: =BI59*(VLOOKUP(BI$7,'Fixed Inputs'!$B$22:$F$105,5,FALSE)) -> 0 | BJ66: =BJ59*(VLOOKUP(BJ$7,'Fixed Inputs'!$B$22:$F$105,5,FALSE)) -> 0 | BK66: =BK59*(VLOOKUP(BK$7,'Fixed Inputs'!$B$22:$F$105,5,FALSE)) -> 0 | BL66: =BL59*(VLOOKUP(BL$7,'Fixed Inputs'!$B$22:$F$105,5,FALSE)) -> 0 | BM66: =BM59*(VLOOKUP(BM$7,'Fixed Inputs'!$B$22:$F$105,5,FALSE)) -> 0 | BN66: =BN59*(VLOOKUP(BN$7,'Fixed Inputs'!$B$22:$F$105,5,FALSE)) -> 0 | BO66: =BO59*(VLOOKUP(BO$7,'Fixed Inputs'!$B$22:$F$105,5,FALSE)) -> 0 | BP66: =BP59*(VLOOKUP(BP$7,'Fixed Inputs'!$B$22:$F$105,5,FALSE)) -> 0 | BQ66: =BQ59*(VLOOKUP(BQ$7,'Fixed Inputs'!$B$22:$F$105,5,FALSE)) -> 0 | BR66: =BR59*(VLOOKUP(BR$7,'Fixed Inputs'!$B$22:$F$105,5,FALSE)) -> 0 | BS66: =BS59*(VLOOKUP(BS$7,'Fixed Inputs'!$B$22:$F$105,5,FALSE)) -> 0
D67: ='Flexibility Requirements'!$C$13 -> 0 | E67: =E60*(VLOOKUP(E$7,'Fixed Inputs'!$B$22:$F$105,5,FALSE)) -> 0 | F67: =F60*(VLOOKUP(F$7,'Fixed Inputs'!$B$22:$F$105,5,FALSE)) -> 0 | G67: =G60*(VLOOKUP(G$7,'Fixed Inputs'!$B$22:$F$105,5,FALSE)) -> 0 | H67: =H60*(VLOOKUP(H$7,'Fixed Inputs'!$B$22:$F$105,5,FALSE)) -> 0 | I67: =I60*(VLOOKUP(I$7,'Fixed Inputs'!$B$22:$F$105,5,FALSE)) -> 0 | J67: =J60*(VLOOKUP(J$7,'Fixed Inputs'!$B$22:$F$105,5,FALSE)) -> 0 | K67: =K60*(VLOOKUP(K$7,'Fixed Inputs'!$B$22:$F$105,5,FALSE)) -> 0 | L67: =L60*(VLOOKUP(L$7,'Fixed Inputs'!$B$22:$F$105,5,FALSE)) -> 0 | M67: =M60*(VLOOKUP(M$7,'Fixed Inputs'!$B$22:$F$105,5,FALSE)) -> 0 | N67: =N60*(VLOOKUP(N$7,'Fixed Inputs'!$B$22:$F$105,5,FALSE)) -> 0 | O67: =O60*(VLOOKUP(O$7,'Fixed Inputs'!$B$22:$F$105,5,FALSE)) -> 0 | P67: =P60*(VLOOKUP(P$7,'Fixed Inputs'!$B$22:$F$105,5,FALSE)) -> 0 | Q67: =Q60*(VLOOKUP(Q$7,'Fixed Inputs'!$B$22:$F$105,5,FALSE)) -> 0 | R67: =R60*(VLOOKUP(R$7,'Fixed Inputs'!$B$22:$F$105,5,FALSE)) -> 0 | S67: =S60*(VLOOKUP(S$7,'Fixed Inputs'!$B$22:$F$105,5,FALSE)) -> 0 | T67: =T60*(VLOOKUP(T$7,'Fixed Inputs'!$B$22:$F$105,5,FALSE)) -> 0 | U67: =U60*(VLOOKUP(U$7,'Fixed Inputs'!$B$22:$F$105,5,FALSE)) -> 0 | V67: =V60*(VLOOKUP(V$7,'Fixed Inputs'!$B$22:$F$105,5,FALSE)) -> 0 | W67: =W60*(VLOOKUP(W$7,'Fixed Inputs'!$B$22:$F$105,5,FALSE)) -> 0 | X67: =X60*(VLOOKUP(X$7,'Fixed Inputs'!$B$22:$F$105,5,FALSE)) -> 0 | Y67: =Y60*(VLOOKUP(Y$7,'Fixed Inputs'!$B$22:$F$105,5,FALSE)) -> 0 | Z67: =Z60*(VLOOKUP(Z$7,'Fixed Inputs'!$B$22:$F$105,5,FALSE)) -> 0 | AA67: =AA60*(VLOOKUP(AA$7,'Fixed Inputs'!$B$22:$F$105,5,FALSE)) -> 0 | AB67: =AB60*(VLOOKUP(AB$7,'Fixed Inputs'!$B$22:$F$105,5,FALSE)) -> 0 | AC67: =AC60*(VLOOKUP(AC$7,'Fixed Inputs'!$B$22:$F$105,5,FALSE)) -> 0 | AD67: =AD60*(VLOOKUP(AD$7,'Fixed Inputs'!$B$22:$F$105,5,FALSE)) -> 0 | AE67: =AE60*(VLOOKUP(AE$7,'Fixed Inputs'!$B$22:$F$105,5,FALSE)) -> 0 | AF67: =AF60*(VLOOKUP(AF$7,'Fixed Inputs'!$B$22:$F$105,5,FALSE)) -> 0 | AG67: =AG60*(VLOOKUP(AG$7,'Fixed Inputs'!$B$22:$F$105,5,FALSE)) -> 0 | AH67: =AH60*(VLOOKUP(AH$7,'Fixed Inputs'!$B$22:$F$105,5,FALSE)) -> 0 | AI67: =AI60*(VLOOKUP(AI$7,'Fixed Inputs'!$B$22:$F$105,5,FALSE)) -> 0 | AJ67: =AJ60*(VLOOKUP(AJ$7,'Fixed Inputs'!$B$22:$F$105,5,FALSE)) -> 0 | AK67: =AK60*(VLOOKUP(AK$7,'Fixed Inputs'!$B$22:$F$105,5,FALSE)) -> 0 | AL67: =AL60*(VLOOKUP(AL$7,'Fixed Inputs'!$B$22:$F$105,5,FALSE)) -> 0 | AM67: =AM60*(VLOOKUP(AM$7,'Fixed Inputs'!$B$22:$F$105,5,FALSE)) -> 0 | AN67: =AN60*(VLOOKUP(AN$7,'Fixed Inputs'!$B$22:$F$105,5,FALSE)) -> 0 | AO67: =AO60*(VLOOKUP(AO$7,'Fixed Inputs'!$B$22:$F$105,5,FALSE)) -> 0 | AP67: =AP60*(VLOOKUP(AP$7,'Fixed Inputs'!$B$22:$F$105,5,FALSE)) -> 0 | AQ67: =AQ60*(VLOOKUP(AQ$7,'Fixed Inputs'!$B$22:$F$105,5,FALSE)) -> 0 | AR67: =AR60*(VLOOKUP(AR$7,'Fixed Inputs'!$B$22:$F$105,5,FALSE)) -> 0 | AS67: =AS60*(VLOOKUP(AS$7,'Fixed Inputs'!$B$22:$F$105,5,FALSE)) -> 0 | AT67: =AT60*(VLOOKUP(AT$7,'Fixed Inputs'!$B$22:$F$105,5,FALSE)) -> 0 | AU67: =AU60*(VLOOKUP(AU$7,'Fixed Inputs'!$B$22:$F$105,5,FALSE)) -> 0 | AV67: =AV60*(VLOOKUP(AV$7,'Fixed Inputs'!$B$22:$F$105,5,FALSE)) -> 0 | AW67: =AW60*(VLOOKUP(AW$7,'Fixed Inputs'!$B$22:$F$105,5,FALSE)) -> 0 | AX67: =AX60*(VLOOKUP(AX$7,'Fixed Inputs'!$B$22:$F$105,5,FALSE)) -> 0 | AY67: =AY60*(VLOOKUP(AY$7,'Fixed Inputs'!$B$22:$F$105,5,FALSE)) -> 0 | AZ67: =AZ60*(VLOOKUP(AZ$7,'Fixed Inputs'!$B$22:$F$105,5,FALSE)) -> 0 | BA67: =BA60*(VLOOKUP(BA$7,'Fixed Inputs'!$B$22:$F$105,5,FALSE)) -> 0 | BB67: =BB60*(VLOOKUP(BB$7,'Fixed Inputs'!$B$22:$F$105,5,FALSE)) -> 0 | BC67: =BC60*(VLOOKUP(BC$7,'Fixed Inputs'!$B$22:$F$105,5,FALSE)) -> 0 | BD67: =BD60*(VLOOKUP(BD$7,'Fixed Inputs'!$B$22:$F$105,5,FALSE)) -> 0 | BE67: =BE60*(VLOOKUP(BE$7,'Fixed Inputs'!$B$22:$F$105,5,FALSE)) -> 0 | BF67: =BF60*(VLOOKUP(BF$7,'Fixed Inputs'!$B$22:$F$105,5,FALSE)) -> 0 | BG67: =BG60*(VLOOKUP(BG$7,'Fixed Inputs'!$B$22:$F$105,5,FALSE)) -> 0 | BH67: =BH60*(VLOOKUP(BH$7,'Fixed Inputs'!$B$22:$F$105,5,FALSE)) -> 0 | BI67: =BI60*(VLOOKUP(BI$7,'Fixed Inputs'!$B$22:$F$105,5,FALSE)) -> 0 | BJ67: =BJ60*(VLOOKUP(BJ$7,'Fixed Inputs'!$B$22:$F$105,5,FALSE)) -> 0 | BK67: =BK60*(VLOOKUP(BK$7,'Fixed Inputs'!$B$22:$F$105,5,FALSE)) -> 0 | BL67: =BL60*(VLOOKUP(BL$7,'Fixed Inputs'!$B$22:$F$105,5,FALSE)) -> 0 | BM67: =BM60*(VLOOKUP(BM$7,'Fixed Inputs'!$B$22:$F$105,5,FALSE)) -> 0 | BN67: =BN60*(VLOOKUP(BN$7,'Fixed Inputs'!$B$22:$F$105,5,FALSE)) -> 0 | BO67: =BO60*(VLOOKUP(BO$7,'Fixed Inputs'!$B$22:$F$105,5,FALSE)) -> 0 | BP67: =BP60*(VLOOKUP(BP$7,'Fixed Inputs'!$B$22:$F$105,5,FALSE)) -> 0 | BQ67: =BQ60*(VLOOKUP(BQ$7,'Fixed Inputs'!$B$22:$F$105,5,FALSE)) -> 0 | BR67: =BR60*(VLOOKUP(BR$7,'Fixed Inputs'!$B$22:$F$105,5,FALSE)) -> 0 | BS67: =BS60*(VLOOKUP(BS$7,'Fixed Inputs'!$B$22:$F$105,5,FALSE)) -> 0
D68: ='Flexibility Requirements'!$C$14 -> 0 | E68: =E61*(VLOOKUP(E$7,'Fixed Inputs'!$B$22:$F$105,5,FALSE)) -> 0 | F68: =F61*(VLOOKUP(F$7,'Fixed Inputs'!$B$22:$F$105,5,FALSE)) -> 0 | G68: =G61*(VLOOKUP(G$7,'Fixed Inputs'!$B$22:$F$105,5,FALSE)) -> 0 | H68: =H61*(VLOOKUP(H$7,'Fixed Inputs'!$B$22:$F$105,5,FALSE)) -> 0 | I68: =I61*(VLOOKUP(I$7,'Fixed Inputs'!$B$22:$F$105,5,FALSE)) -> 0 | J68: =J61*(VLOOKUP(J$7,'Fixed Inputs'!$B$22:$F$105,5,FALSE)) -> 0 | K68: =K61*(VLOOKUP(K$7,'Fixed Inputs'!$B$22:$F$105,5,FALSE)) -> 0 | L68: =L61*(VLOOKUP(L$7,'Fixed Inputs'!$B$22:$F$105,5,FALSE)) -> 0 | M68: =M61*(VLOOKUP(M$7,'Fixed Inputs'!$B$22:$F$105,5,FALSE)) -> 0 | N68: =N61*(VLOOKUP(N$7,'Fixed Inputs'!$B$22:$F$105,5,FALSE)) -> 0 | O68: =O61*(VLOOKUP(O$7,'Fixed Inputs'!$B$22:$F$105,5,FALSE)) -> 0 | P68: =P61*(VLOOKUP(P$7,'Fixed Inputs'!$B$22:$F$105,5,FALSE)) -> 0 | Q68: =Q61*(VLOOKUP(Q$7,'Fixed Inputs'!$B$22:$F$105,5,FALSE)) -> 0 | R68: =R61*(VLOOKUP(R$7,'Fixed Inputs'!$B$22:$F$105,5,FALSE)) -> 0 | S68: =S61*(VLOOKUP(S$7,'Fixed Inputs'!$B$22:$F$105,5,FALSE)) -> 0 | T68: =T61*(VLOOKUP(T$7,'Fixed Inputs'!$B$22:$F$105,5,FALSE)) -> 0 | U68: =U61*(VLOOKUP(U$7,'Fixed Inputs'!$B$22:$F$105,5,FALSE)) -> 0 | V68: =V61*(VLOOKUP(V$7,'Fixed Inputs'!$B$22:$F$105,5,FALSE)) -> 0 | W68: =W61*(VLOOKUP(W$7,'Fixed Inputs'!$B$22:$F$105,5,FALSE)) -> 0 | X68: =X61*(VLOOKUP(X$7,'Fixed Inputs'!$B$22:$F$105,5,FALSE)) -> 0 | Y68: =Y61*(VLOOKUP(Y$7,'Fixed Inputs'!$B$22:$F$105,5,FALSE)) -> 0 | Z68: =Z61*(VLOOKUP(Z$7,'Fixed Inputs'!$B$22:$F$105,5,FALSE)) -> 0 | AA68: =AA61*(VLOOKUP(AA$7,'Fixed Inputs'!$B$22:$F$105,5,FALSE)) -> 0 | AB68: =AB61*(VLOOKUP(AB$7,'Fixed Inputs'!$B$22:$F$105,5,FALSE)) -> 0 | AC68: =AC61*(VLOOKUP(AC$7,'Fixed Inputs'!$B$22:$F$105,5,FALSE)) -> 0 | AD68: =AD61*(VLOOKUP(AD$7,'Fixed Inputs'!$B$22:$F$105,5,FALSE)) -> 0 | AE68: =AE61*(VLOOKUP(AE$7,'Fixed Inputs'!$B$22:$F$105,5,FALSE)) -> 0 | AF68: =AF61*(VLOOKUP(AF$7,'Fixed Inputs'!$B$22:$F$105,5,FALSE)) -> 0 | AG68: =AG61*(VLOOKUP(AG$7,'Fixed Inputs'!$B$22:$F$105,5,FALSE)) -> 0 | AH68: =AH61*(VLOOKUP(AH$7,'Fixed Inputs'!$B$22:$F$105,5,FALSE)) -> 0 | AI68: =AI61*(VLOOKUP(AI$7,'Fixed Inputs'!$B$22:$F$105,5,FALSE)) -> 0 | AJ68: =AJ61*(VLOOKUP(AJ$7,'Fixed Inputs'!$B$22:$F$105,5,FALSE)) -> 0 | AK68: =AK61*(VLOOKUP(AK$7,'Fixed Inputs'!$B$22:$F$105,5,FALSE)) -> 0 | AL68: =AL61*(VLOOKUP(AL$7,'Fixed Inputs'!$B$22:$F$105,5,FALSE)) -> 0 | AM68: =AM61*(VLOOKUP(AM$7,'Fixed Inputs'!$B$22:$F$105,5,FALSE)) -> 0 | AN68: =AN61*(VLOOKUP(AN$7,'Fixed Inputs'!$B$22:$F$105,5,FALSE)) -> 0 | AO68: =AO61*(VLOOKUP(AO$7,'Fixed Inputs'!$B$22:$F$105,5,FALSE)) -> 0 | AP68: =AP61*(VLOOKUP(AP$7,'Fixed Inputs'!$B$22:$F$105,5,FALSE)) -> 0 | AQ68: =AQ61*(VLOOKUP(AQ$7,'Fixed Inputs'!$B$22:$F$105,5,FALSE)) -> 0 | AR68: =AR61*(VLOOKUP(AR$7,'Fixed Inputs'!$B$22:$F$105,5,FALSE)) -> 0 | AS68: =AS61*(VLOOKUP(AS$7,'Fixed Inputs'!$B$22:$F$105,5,FALSE)) -> 0 | AT68: =AT61*(VLOOKUP(AT$7,'Fixed Inputs'!$B$22:$F$105,5,FALSE)) -> 0 | AU68: =AU61*(VLOOKUP(AU$7,'Fixed Inputs'!$B$22:$F$105,5,FALSE)) -> 0 | AV68: =AV61*(VLOOKUP(AV$7,'Fixed Inputs'!$B$22:$F$105,5,FALSE)) -> 0 | AW68: =AW61*(VLOOKUP(AW$7,'Fixed Inputs'!$B$22:$F$105,5,FALSE)) -> 0 | AX68: =AX61*(VLOOKUP(AX$7,'Fixed Inputs'!$B$22:$F$105,5,FALSE)) -> 0 | AY68: =AY61*(VLOOKUP(AY$7,'Fixed Inputs'!$B$22:$F$105,5,FALSE)) -> 0 | AZ68: =AZ61*(VLOOKUP(AZ$7,'Fixed Inputs'!$B$22:$F$105,5,FALSE)) -> 0 | BA68: =BA61*(VLOOKUP(BA$7,'Fixed Inputs'!$B$22:$F$105,5,FALSE)) -> 0 | BB68: =BB61*(VLOOKUP(BB$7,'Fixed Inputs'!$B$22:$F$105,5,FALSE)) -> 0 | BC68: =BC61*(VLOOKUP(BC$7,'Fixed Inputs'!$B$22:$F$105,5,FALSE)) -> 0 | BD68: =BD61*(VLOOKUP(BD$7,'Fixed Inputs'!$B$22:$F$105,5,FALSE)) -> 0 | BE68: =BE61*(VLOOKUP(BE$7,'Fixed Inputs'!$B$22:$F$105,5,FALSE)) -> 0 | BF68: =BF61*(VLOOKUP(BF$7,'Fixed Inputs'!$B$22:$F$105,5,FALSE)) -> 0 | BG68: =BG61*(VLOOKUP(BG$7,'Fixed Inputs'!$B$22:$F$105,5,FALSE)) -> 0 | BH68: =BH61*(VLOOKUP(BH$7,'Fixed Inputs'!$B$22:$F$105,5,FALSE)) -> 0 | BI68: =BI61*(VLOOKUP(BI$7,'Fixed Inputs'!$B$22:$F$105,5,FALSE)) -> 0 | BJ68: =BJ61*(VLOOKUP(BJ$7,'Fixed Inputs'!$B$22:$F$105,5,FALSE)) -> 0 | BK68: =BK61*(VLOOKUP(BK$7,'Fixed Inputs'!$B$22:$F$105,5,FALSE)) -> 0 | BL68: =BL61*(VLOOKUP(BL$7,'Fixed Inputs'!$B$22:$F$105,5,FALSE)) -> 0 | BM68: =BM61*(VLOOKUP(BM$7,'Fixed Inputs'!$B$22:$F$105,5,FALSE)) -> 0 | BN68: =BN61*(VLOOKUP(BN$7,'Fixed Inputs'!$B$22:$F$105,5,FALSE)) -> 0 | BO68: =BO61*(VLOOKUP(BO$7,'Fixed Inputs'!$B$22:$F$105,5,FALSE)) -> 0 | BP68: =BP61*(VLOOKUP(BP$7,'Fixed Inputs'!$B$22:$F$105,5,FALSE)) -> 0 | BQ68: =BQ61*(VLOOKUP(BQ$7,'Fixed Inputs'!$B$22:$F$105,5,FALSE)) -> 0 | BR68: =BR61*(VLOOKUP(BR$7,'Fixed Inputs'!$B$22:$F$105,5,FALSE)) -> 0 | BS68: =BS61*(VLOOKUP(BS$7,'Fixed Inputs'!$B$22:$F$105,5,FALSE)) -> 0
D69: ='Flexibility Requirements'!$C$15 -> 0 | E69: =E62*(VLOOKUP(E$7,'Fixed Inputs'!$B$22:$F$105,5,FALSE)) -> 0 | F69: =F62*(VLOOKUP(F$7,'Fixed Inputs'!$B$22:$F$105,5,FALSE)) -> 0 | G69: =G62*(VLOOKUP(G$7,'Fixed Inputs'!$B$22:$F$105,5,FALSE)) -> 0 | H69: =H62*(VLOOKUP(H$7,'Fixed Inputs'!$B$22:$F$105,5,FALSE)) -> 0 | I69: =I62*(VLOOKUP(I$7,'Fixed Inputs'!$B$22:$F$105,5,FALSE)) -> 0 | J69: =J62*(VLOOKUP(J$7,'Fixed Inputs'!$B$22:$F$105,5,FALSE)) -> 0 | K69: =K62*(VLOOKUP(K$7,'Fixed Inputs'!$B$22:$F$105,5,FALSE)) -> 0 | L69: =L62*(VLOOKUP(L$7,'Fixed Inputs'!$B$22:$F$105,5,FALSE)) -> 0 | M69: =M62*(VLOOKUP(M$7,'Fixed Inputs'!$B$22:$F$105,5,FALSE)) -> 0 | N69: =N62*(VLOOKUP(N$7,'Fixed Inputs'!$B$22:$F$105,5,FALSE)) -> 0 | O69: =O62*(VLOOKUP(O$7,'Fixed Inputs'!$B$22:$F$105,5,FALSE)) -> 0 | P69: =P62*(VLOOKUP(P$7,'Fixed Inputs'!$B$22:$F$105,5,FALSE)) -> 0 | Q69: =Q62*(VLOOKUP(Q$7,'Fixed Inputs'!$B$22:$F$105,5,FALSE)) -> 0 | R69: =R62*(VLOOKUP(R$7,'Fixed Inputs'!$B$22:$F$105,5,FALSE)) -> 0 | S69: =S62*(VLOOKUP(S$7,'Fixed Inputs'!$B$22:$F$105,5,FALSE)) -> 0 | T69: =T62*(VLOOKUP(T$7,'Fixed Inputs'!$B$22:$F$105,5,FALSE)) -> 0 | U69: =U62*(VLOOKUP(U$7,'Fixed Inputs'!$B$22:$F$105,5,FALSE)) -> 0 | V69: =V62*(VLOOKUP(V$7,'Fixed Inputs'!$B$22:$F$105,5,FALSE)) -> 0 | W69: =W62*(VLOOKUP(W$7,'Fixed Inputs'!$B$22:$F$105,5,FALSE)) -> 0 | X69: =X62*(VLOOKUP(X$7,'Fixed Inputs'!$B$22:$F$105,5,FALSE)) -> 0 | Y69: =Y62*(VLOOKUP(Y$7,'Fixed Inputs'!$B$22:$F$105,5,FALSE)) -> 0 | Z69: =Z62*(VLOOKUP(Z$7,'Fixed Inputs'!$B$22:$F$105,5,FALSE)) -> 0 | AA69: =AA62*(VLOOKUP(AA$7,'Fixed Inputs'!$B$22:$F$105,5,FALSE)) -> 0 | AB69: =AB62*(VLOOKUP(AB$7,'Fixed Inputs'!$B$22:$F$105,5,FALSE)) -> 0 | AC69: =AC62*(VLOOKUP(AC$7,'Fixed Inputs'!$B$22:$F$105,5,FALSE)) -> 0 | AD69: =AD62*(VLOOKUP(AD$7,'Fixed Inputs'!$B$22:$F$105,5,FALSE)) -> 0 | AE69: =AE62*(VLOOKUP(AE$7,'Fixed Inputs'!$B$22:$F$105,5,FALSE)) -> 0 | AF69: =AF62*(VLOOKUP(AF$7,'Fixed Inputs'!$B$22:$F$105,5,FALSE)) -> 0 | AG69: =AG62*(VLOOKUP(AG$7,'Fixed Inputs'!$B$22:$F$105,5,FALSE)) -> 0 | AH69: =AH62*(VLOOKUP(AH$7,'Fixed Inputs'!$B$22:$F$105,5,FALSE)) -> 0 | AI69: =AI62*(VLOOKUP(AI$7,'Fixed Inputs'!$B$22:$F$105,5,FALSE)) -> 0 | AJ69: =AJ62*(VLOOKUP(AJ$7,'Fixed Inputs'!$B$22:$F$105,5,FALSE)) -> 0 | AK69: =AK62*(VLOOKUP(AK$7,'Fixed Inputs'!$B$22:$F$105,5,FALSE)) -> 0 | AL69: =AL62*(VLOOKUP(AL$7,'Fixed Inputs'!$B$22:$F$105,5,FALSE)) -> 0 | AM69: =AM62*(VLOOKUP(AM$7,'Fixed Inputs'!$B$22:$F$105,5,FALSE)) -> 0 | AN69: =AN62*(VLOOKUP(AN$7,'Fixed Inputs'!$B$22:$F$105,5,FALSE)) -> 0 | AO69: =AO62*(VLOOKUP(AO$7,'Fixed Inputs'!$B$22:$F$105,5,FALSE)) -> 0 | AP69: =AP62*(VLOOKUP(AP$7,'Fixed Inputs'!$B$22:$F$105,5,FALSE)) -> 0 | AQ69: =AQ62*(VLOOKUP(AQ$7,'Fixed Inputs'!$B$22:$F$105,5,FALSE)) -> 0 | AR69: =AR62*(VLOOKUP(AR$7,'Fixed Inputs'!$B$22:$F$105,5,FALSE)) -> 0 | AS69: =AS62*(VLOOKUP(AS$7,'Fixed Inputs'!$B$22:$F$105,5,FALSE)) -> 0 | AT69: =AT62*(VLOOKUP(AT$7,'Fixed Inputs'!$B$22:$F$105,5,FALSE)) -> 0 | AU69: =AU62*(VLOOKUP(AU$7,'Fixed Inputs'!$B$22:$F$105,5,FALSE)) -> 0 | AV69: =AV62*(VLOOKUP(AV$7,'Fixed Inputs'!$B$22:$F$105,5,FALSE)) -> 0 | AW69: =AW62*(VLOOKUP(AW$7,'Fixed Inputs'!$B$22:$F$105,5,FALSE)) -> 0 | AX69: =AX62*(VLOOKUP(AX$7,'Fixed Inputs'!$B$22:$F$105,5,FALSE)) -> 0 | AY69: =AY62*(VLOOKUP(AY$7,'Fixed Inputs'!$B$22:$F$105,5,FALSE)) -> 0 | AZ69: =AZ62*(VLOOKUP(AZ$7,'Fixed Inputs'!$B$22:$F$105,5,FALSE)) -> 0 | BA69: =BA62*(VLOOKUP(BA$7,'Fixed Inputs'!$B$22:$F$105,5,FALSE)) -> 0 | BB69: =BB62*(VLOOKUP(BB$7,'Fixed Inputs'!$B$22:$F$105,5,FALSE)) -> 0 | BC69: =BC62*(VLOOKUP(BC$7,'Fixed Inputs'!$B$22:$F$105,5,FALSE)) -> 0 | BD69: =BD62*(VLOOKUP(BD$7,'Fixed Inputs'!$B$22:$F$105,5,FALSE)) -> 0 | BE69: =BE62*(VLOOKUP(BE$7,'Fixed Inputs'!$B$22:$F$105,5,FALSE)) -> 0 | BF69: =BF62*(VLOOKUP(BF$7,'Fixed Inputs'!$B$22:$F$105,5,FALSE)) -> 0 | BG69: =BG62*(VLOOKUP(BG$7,'Fixed Inputs'!$B$22:$F$105,5,FALSE)) -> 0 | BH69: =BH62*(VLOOKUP(BH$7,'Fixed Inputs'!$B$22:$F$105,5,FALSE)) -> 0 | BI69: =BI62*(VLOOKUP(BI$7,'Fixed Inputs'!$B$22:$F$105,5,FALSE)) -> 0 | BJ69: =BJ62*(VLOOKUP(BJ$7,'Fixed Inputs'!$B$22:$F$105,5,FALSE)) -> 0 | BK69: =BK62*(VLOOKUP(BK$7,'Fixed Inputs'!$B$22:$F$105,5,FALSE)) -> 0 | BL69: =BL62*(VLOOKUP(BL$7,'Fixed Inputs'!$B$22:$F$105,5,FALSE)) -> 0 | BM69: =BM62*(VLOOKUP(BM$7,'Fixed Inputs'!$B$22:$F$105,5,FALSE)) -> 0 | BN69: =BN62*(VLOOKUP(BN$7,'Fixed Inputs'!$B$22:$F$105,5,FALSE)) -> 0 | BO69: =BO62*(VLOOKUP(BO$7,'Fixed Inputs'!$B$22:$F$105,5,FALSE)) -> 0 | BP69: =BP62*(VLOOKUP(BP$7,'Fixed Inputs'!$B$22:$F$105,5,FALSE)) -> 0 | BQ69: =BQ62*(VLOOKUP(BQ$7,'Fixed Inputs'!$B$22:$F$105,5,FALSE)) -> 0 | BR69: =BR62*(VLOOKUP(BR$7,'Fixed Inputs'!$B$22:$F$105,5,FALSE)) -> 0 | BS69: =BS62*(VLOOKUP(BS$7,'Fixed Inputs'!$B$22:$F$105,5,FALSE)) -> 0
C71: Reduced emissions not associated with losses1 (tCO2e) | D71: [enter source of emission reduction]
D72: ='Reinforcement Deferral'!$C$39 -> Losses derogation calculation
D73: ='Flexibility Requirements'!$C$11 -> 0
D74: ='Flexibility Requirements'!$C$12 -> 0
D75: ='Flexibility Requirements'!$C$13 -> 0
D76: ='Flexibility Requirements'!$C$14 -> 0
D77: ='Flexibility Requirements'!$C$15 -> 0
C78: Reduced emissions not associated with losses (£)
D79: ='Reinforcement Deferral'!$C$39 -> Losses derogation calculation | E79: =E72*(VLOOKUP(E$7,'Fixed Inputs'!$B$22:$F$105,5,FALSE)) -> 0 | F79: =F72*(VLOOKUP(F$7,'Fixed Inputs'!$B$22:$F$105,5,FALSE)) -> 0 | G79: =G72*(VLOOKUP(G$7,'Fixed Inputs'!$B$22:$F$105,5,FALSE)) -> 0 | H79: =H72*(VLOOKUP(H$7,'Fixed Inputs'!$B$22:$F$105,5,FALSE)) -> 0 | I79: =I72*(VLOOKUP(I$7,'Fixed Inputs'!$B$22:$F$105,5,FALSE)) -> 0 | J79: =J72*(VLOOKUP(J$7,'Fixed Inputs'!$B$22:$F$105,5,FALSE)) -> 0 | K79: =K72*(VLOOKUP(K$7,'Fixed Inputs'!$B$22:$F$105,5,FALSE)) -> 0 | L79: =L72*(VLOOKUP(L$7,'Fixed Inputs'!$B$22:$F$105,5,FALSE)) -> 0 | M79: =M72*(VLOOKUP(M$7,'Fixed Inputs'!$B$22:$F$105,5,FALSE)) -> 0 | N79: =N72*(VLOOKUP(N$7,'Fixed Inputs'!$B$22:$F$105,5,FALSE)) -> 0 | O79: =O72*(VLOOKUP(O$7,'Fixed Inputs'!$B$22:$F$105,5,FALSE)) -> 0 | P79: =P72*(VLOOKUP(P$7,'Fixed Inputs'!$B$22:$F$105,5,FALSE)) -> 0 | Q79: =Q72*(VLOOKUP(Q$7,'Fixed Inputs'!$B$22:$F$105,5,FALSE)) -> 0 | R79: =R72*(VLOOKUP(R$7,'Fixed Inputs'!$B$22:$F$105,5,FALSE)) -> 0 | S79: =S72*(VLOOKUP(S$7,'Fixed Inputs'!$B$22:$F$105,5,FALSE)) -> 0 | T79: =T72*(VLOOKUP(T$7,'Fixed Inputs'!$B$22:$F$105,5,FALSE)) -> 0 | U79: =U72*(VLOOKUP(U$7,'Fixed Inputs'!$B$22:$F$105,5,FALSE)) -> 0 | V79: =V72*(VLOOKUP(V$7,'Fixed Inputs'!$B$22:$F$105,5,FALSE)) -> 0 | W79: =W72*(VLOOKUP(W$7,'Fixed Inputs'!$B$22:$F$105,5,FALSE)) -> 0 | X79: =X72*(VLOOKUP(X$7,'Fixed Inputs'!$B$22:$F$105,5,FALSE)) -> 0 | Y79: =Y72*(VLOOKUP(Y$7,'Fixed Inputs'!$B$22:$F$105,5,FALSE)) -> 0 | Z79: =Z72*(VLOOKUP(Z$7,'Fixed Inputs'!$B$22:$F$105,5,FALSE)) -> 0 | AA79: =AA72*(VLOOKUP(AA$7,'Fixed Inputs'!$B$22:$F$105,5,FALSE)) -> 0 | AB79: =AB72*(VLOOKUP(AB$7,'Fixed Inputs'!$B$22:$F$105,5,FALSE)) -> 0 | AC79: =AC72*(VLOOKUP(AC$7,'Fixed Inputs'!$B$22:$F$105,5,FALSE)) -> 0 | AD79: =AD72*(VLOOKUP(AD$7,'Fixed Inputs'!$B$22:$F$105,5,FALSE)) -> 0 | AE79: =AE72*(VLOOKUP(AE$7,'Fixed Inputs'!$B$22:$F$105,5,FALSE)) -> 0 | AF79: =AF72*(VLOOKUP(AF$7,'Fixed Inputs'!$B$22:$F$105,5,FALSE)) -> 0 | AG79: =AG72*(VLOOKUP(AG$7,'Fixed Inputs'!$B$22:$F$105,5,FALSE)) -> 0 | AH79: =AH72*(VLOOKUP(AH$7,'Fixed Inputs'!$B$22:$F$105,5,FALSE)) -> 0 | AI79: =AI72*(VLOOKUP(AI$7,'Fixed Inputs'!$B$22:$F$105,5,FALSE)) -> 0 | AJ79: =AJ72*(VLOOKUP(AJ$7,'Fixed Inputs'!$B$22:$F$105,5,FALSE)) -> 0 | AK79: =AK72*(VLOOKUP(AK$7,'Fixed Inputs'!$B$22:$F$105,5,FALSE)) -> 0 | AL79: =AL72*(VLOOKUP(AL$7,'Fixed Inputs'!$B$22:$F$105,5,FALSE)) -> 0 | AM79: =AM72*(VLOOKUP(AM$7,'Fixed Inputs'!$B$22:$F$105,5,FALSE)) -> 0 | AN79: =AN72*(VLOOKUP(AN$7,'Fixed Inputs'!$B$22:$F$105,5,FALSE)) -> 0 | AO79: =AO72*(VLOOKUP(AO$7,'Fixed Inputs'!$B$22:$F$105,5,FALSE)) -> 0 | AP79: =AP72*(VLOOKUP(AP$7,'Fixed Inputs'!$B$22:$F$105,5,FALSE)) -> 0 | AQ79: =AQ72*(VLOOKUP(AQ$7,'Fixed Inputs'!$B$22:$F$105,5,FALSE)) -> 0 | AR79: =AR72*(VLOOKUP(AR$7,'Fixed Inputs'!$B$22:$F$105,5,FALSE)) -> 0 | AS79: =AS72*(VLOOKUP(AS$7,'Fixed Inputs'!$B$22:$F$105,5,FALSE)) -> 0 | AT79: =AT72*(VLOOKUP(AT$7,'Fixed Inputs'!$B$22:$F$105,5,FALSE)) -> 0 | AU79: =AU72*(VLOOKUP(AU$7,'Fixed Inputs'!$B$22:$F$105,5,FALSE)) -> 0 | AV79: =AV72*(VLOOKUP(AV$7,'Fixed Inputs'!$B$22:$F$105,5,FALSE)) -> 0 | AW79: =AW72*(VLOOKUP(AW$7,'Fixed Inputs'!$B$22:$F$105,5,FALSE)) -> 0 | AX79: =AX72*(VLOOKUP(AX$7,'Fixed Inputs'!$B$22:$F$105,5,FALSE)) -> 0 | AY79: =AY72*(VLOOKUP(AY$7,'Fixed Inputs'!$B$22:$F$105,5,FALSE)) -> 0 | AZ79: =AZ72*(VLOOKUP(AZ$7,'Fixed Inputs'!$B$22:$F$105,5,FALSE)) -> 0 | BA79: =BA72*(VLOOKUP(BA$7,'Fixed Inputs'!$B$22:$F$105,5,FALSE)) -> 0 | BB79: =BB72*(VLOOKUP(BB$7,'Fixed Inputs'!$B$22:$F$105,5,FALSE)) -> 0 | BC79: =BC72*(VLOOKUP(BC$7,'Fixed Inputs'!$B$22:$F$105,5,FALSE)) -> 0 | BD79: =BD72*(VLOOKUP(BD$7,'Fixed Inputs'!$B$22:$F$105,5,FALSE)) -> 0 | BE79: =BE72*(VLOOKUP(BE$7,'Fixed Inputs'!$B$22:$F$105,5,FALSE)) -> 0 | BF79: =BF72*(VLOOKUP(BF$7,'Fixed Inputs'!$B$22:$F$105,5,FALSE)) -> 0 | BG79: =BG72*(VLOOKUP(BG$7,'Fixed Inputs'!$B$22:$F$105,5,FALSE)) -> 0 | BH79: =BH72*(VLOOKUP(BH$7,'Fixed Inputs'!$B$22:$F$105,5,FALSE)) -> 0 | BI79: =BI72*(VLOOKUP(BI$7,'Fixed Inputs'!$B$22:$F$105,5,FALSE)) -> 0 | BJ79: =BJ72*(VLOOKUP(BJ$7,'Fixed Inputs'!$B$22:$F$105,5,FALSE)) -> 0 | BK79: =BK72*(VLOOKUP(BK$7,'Fixed Inputs'!$B$22:$F$105,5,FALSE)) -> 0 | BL79: =BL72*(VLOOKUP(BL$7,'Fixed Inputs'!$B$22:$F$105,5,FALSE)) -> 0 | BM79: =BM72*(VLOOKUP(BM$7,'Fixed Inputs'!$B$22:$F$105,5,FALSE)) -> 0 | BN79: =BN72*(VLOOKUP(BN$7,'Fixed Inputs'!$B$22:$F$105,5,FALSE)) -> 0 | BO79: =BO72*(VLOOKUP(BO$7,'Fixed Inputs'!$B$22:$F$105,5,FALSE)) -> 0 | BP79: =BP72*(VLOOKUP(BP$7,'Fixed Inputs'!$B$22:$F$105,5,FALSE)) -> 0 | BQ79: =BQ72*(VLOOKUP(BQ$7,'Fixed Inputs'!$B$22:$F$105,5,FALSE)) -> 0 | BR79: =BR72*(VLOOKUP(BR$7,'Fixed Inputs'!$B$22:$F$105,5,FALSE)) -> 0 | BS79: =BS72*(VLOOKUP(BS$7,'Fixed Inputs'!$B$22:$F$105,5,FALSE)) -> 0
D80: ='Flexibility Requirements'!$C$11 -> 0 | E80: =E73*(VLOOKUP(E$7,'Fixed Inputs'!$B$22:$F$105,5,FALSE)) -> 0 | F80: =F73*(VLOOKUP(F$7,'Fixed Inputs'!$B$22:$F$105,5,FALSE)) -> 0 | G80: =G73*(VLOOKUP(G$7,'Fixed Inputs'!$B$22:$F$105,5,FALSE)) -> 0 | H80: =H73*(VLOOKUP(H$7,'Fixed Inputs'!$B$22:$F$105,5,FALSE)) -> 0 | I80: =I73*(VLOOKUP(I$7,'Fixed Inputs'!$B$22:$F$105,5,FALSE)) -> 0 | J80: =J73*(VLOOKUP(J$7,'Fixed Inputs'!$B$22:$F$105,5,FALSE)) -> 0 | K80: =K73*(VLOOKUP(K$7,'Fixed Inputs'!$B$22:$F$105,5,FALSE)) -> 0 | L80: =L73*(VLOOKUP(L$7,'Fixed Inputs'!$B$22:$F$105,5,FALSE)) -> 0 | M80: =M73*(VLOOKUP(M$7,'Fixed Inputs'!$B$22:$F$105,5,FALSE)) -> 0 | N80: =N73*(VLOOKUP(N$7,'Fixed Inputs'!$B$22:$F$105,5,FALSE)) -> 0 | O80: =O73*(VLOOKUP(O$7,'Fixed Inputs'!$B$22:$F$105,5,FALSE)) -> 0 | P80: =P73*(VLOOKUP(P$7,'Fixed Inputs'!$B$22:$F$105,5,FALSE)) -> 0 | Q80: =Q73*(VLOOKUP(Q$7,'Fixed Inputs'!$B$22:$F$105,5,FALSE)) -> 0 | R80: =R73*(VLOOKUP(R$7,'Fixed Inputs'!$B$22:$F$105,5,FALSE)) -> 0 | S80: =S73*(VLOOKUP(S$7,'Fixed Inputs'!$B$22:$F$105,5,FALSE)) -> 0 | T80: =T73*(VLOOKUP(T$7,'Fixed Inputs'!$B$22:$F$105,5,FALSE)) -> 0 | U80: =U73*(VLOOKUP(U$7,'Fixed Inputs'!$B$22:$F$105,5,FALSE)) -> 0 | V80: =V73*(VLOOKUP(V$7,'Fixed Inputs'!$B$22:$F$105,5,FALSE)) -> 0 | W80: =W73*(VLOOKUP(W$7,'Fixed Inputs'!$B$22:$F$105,5,FALSE)) -> 0 | X80: =X73*(VLOOKUP(X$7,'Fixed Inputs'!$B$22:$F$105,5,FALSE)) -> 0 | Y80: =Y73*(VLOOKUP(Y$7,'Fixed Inputs'!$B$22:$F$105,5,FALSE)) -> 0 | Z80: =Z73*(VLOOKUP(Z$7,'Fixed Inputs'!$B$22:$F$105,5,FALSE)) -> 0 | AA80: =AA73*(VLOOKUP(AA$7,'Fixed Inputs'!$B$22:$F$105,5,FALSE)) -> 0 | AB80: =AB73*(VLOOKUP(AB$7,'Fixed Inputs'!$B$22:$F$105,5,FALSE)) -> 0 | AC80: =AC73*(VLOOKUP(AC$7,'Fixed Inputs'!$B$22:$F$105,5,FALSE)) -> 0 | AD80: =AD73*(VLOOKUP(AD$7,'Fixed Inputs'!$B$22:$F$105,5,FALSE)) -> 0 | AE80: =AE73*(VLOOKUP(AE$7,'Fixed Inputs'!$B$22:$F$105,5,FALSE)) -> 0 | AF80: =AF73*(VLOOKUP(AF$7,'Fixed Inputs'!$B$22:$F$105,5,FALSE)) -> 0 | AG80: =AG73*(VLOOKUP(AG$7,'Fixed Inputs'!$B$22:$F$105,5,FALSE)) -> 0 | AH80: =AH73*(VLOOKUP(AH$7,'Fixed Inputs'!$B$22:$F$105,5,FALSE)) -> 0 | AI80: =AI73*(VLOOKUP(AI$7,'Fixed Inputs'!$B$22:$F$105,5,FALSE)) -> 0 | AJ80: =AJ73*(VLOOKUP(AJ$7,'Fixed Inputs'!$B$22:$F$105,5,FALSE)) -> 0 | AK80: =AK73*(VLOOKUP(AK$7,'Fixed Inputs'!$B$22:$F$105,5,FALSE)) -> 0 | AL80: =AL73*(VLOOKUP(AL$7,'Fixed Inputs'!$B$22:$F$105,5,FALSE)) -> 0 | AM80: =AM73*(VLOOKUP(AM$7,'Fixed Inputs'!$B$22:$F$105,5,FALSE)) -> 0 | AN80: =AN73*(VLOOKUP(AN$7,'Fixed Inputs'!$B$22:$F$105,5,FALSE)) -> 0 | AO80: =AO73*(VLOOKUP(AO$7,'Fixed Inputs'!$B$22:$F$105,5,FALSE)) -> 0 | AP80: =AP73*(VLOOKUP(AP$7,'Fixed Inputs'!$B$22:$F$105,5,FALSE)) -> 0 | AQ80: =AQ73*(VLOOKUP(AQ$7,'Fixed Inputs'!$B$22:$F$105,5,FALSE)) -> 0 | AR80: =AR73*(VLOOKUP(AR$7,'Fixed Inputs'!$B$22:$F$105,5,FALSE)) -> 0 | AS80: =AS73*(VLOOKUP(AS$7,'Fixed Inputs'!$B$22:$F$105,5,FALSE)) -> 0 | AT80: =AT73*(VLOOKUP(AT$7,'Fixed Inputs'!$B$22:$F$105,5,FALSE)) -> 0 | AU80: =AU73*(VLOOKUP(AU$7,'Fixed Inputs'!$B$22:$F$105,5,FALSE)) -> 0 | AV80: =AV73*(VLOOKUP(AV$7,'Fixed Inputs'!$B$22:$F$105,5,FALSE)) -> 0 | AW80: =AW73*(VLOOKUP(AW$7,'Fixed Inputs'!$B$22:$F$105,5,FALSE)) -> 0 | AX80: =AX73*(VLOOKUP(AX$7,'Fixed Inputs'!$B$22:$F$105,5,FALSE)) -> 0 | AY80: =AY73*(VLOOKUP(AY$7,'Fixed Inputs'!$B$22:$F$105,5,FALSE)) -> 0 | AZ80: =AZ73*(VLOOKUP(AZ$7,'Fixed Inputs'!$B$22:$F$105,5,FALSE)) -> 0 | BA80: =BA73*(VLOOKUP(BA$7,'Fixed Inputs'!$B$22:$F$105,5,FALSE)) -> 0 | BB80: =BB73*(VLOOKUP(BB$7,'Fixed Inputs'!$B$22:$F$105,5,FALSE)) -> 0 | BC80: =BC73*(VLOOKUP(BC$7,'Fixed Inputs'!$B$22:$F$105,5,FALSE)) -> 0 | BD80: =BD73*(VLOOKUP(BD$7,'Fixed Inputs'!$B$22:$F$105,5,FALSE)) -> 0 | BE80: =BE73*(VLOOKUP(BE$7,'Fixed Inputs'!$B$22:$F$105,5,FALSE)) -> 0 | BF80: =BF73*(VLOOKUP(BF$7,'Fixed Inputs'!$B$22:$F$105,5,FALSE)) -> 0 | BG80: =BG73*(VLOOKUP(BG$7,'Fixed Inputs'!$B$22:$F$105,5,FALSE)) -> 0 | BH80: =BH73*(VLOOKUP(BH$7,'Fixed Inputs'!$B$22:$F$105,5,FALSE)) -> 0 | BI80: =BI73*(VLOOKUP(BI$7,'Fixed Inputs'!$B$22:$F$105,5,FALSE)) -> 0 | BJ80: =BJ73*(VLOOKUP(BJ$7,'Fixed Inputs'!$B$22:$F$105,5,FALSE)) -> 0 | BK80: =BK73*(VLOOKUP(BK$7,'Fixed Inputs'!$B$22:$F$105,5,FALSE)) -> 0 | BL80: =BL73*(VLOOKUP(BL$7,'Fixed Inputs'!$B$22:$F$105,5,FALSE)) -> 0 | BM80: =BM73*(VLOOKUP(BM$7,'Fixed Inputs'!$B$22:$F$105,5,FALSE)) -> 0 | BN80: =BN73*(VLOOKUP(BN$7,'Fixed Inputs'!$B$22:$F$105,5,FALSE)) -> 0 | BO80: =BO73*(VLOOKUP(BO$7,'Fixed Inputs'!$B$22:$F$105,5,FALSE)) -> 0 | BP80: =BP73*(VLOOKUP(BP$7,'Fixed Inputs'!$B$22:$F$105,5,FALSE)) -> 0 | BQ80: =BQ73*(VLOOKUP(BQ$7,'Fixed Inputs'!$B$22:$F$105,5,FALSE)) -> 0 | BR80: =BR73*(VLOOKUP(BR$7,'Fixed Inputs'!$B$22:$F$105,5,FALSE)) -> 0 | BS80: =BS73*(VLOOKUP(BS$7,'Fixed Inputs'!$B$22:$F$105,5,FALSE)) -> 0
D81: ='Flexibility Requirements'!$C$12 -> 0 | E81: =E74*(VLOOKUP(E$7,'Fixed Inputs'!$B$22:$F$105,5,FALSE)) -> 0 | F81: =F74*(VLOOKUP(F$7,'Fixed Inputs'!$B$22:$F$105,5,FALSE)) -> 0 | G81: =G74*(VLOOKUP(G$7,'Fixed Inputs'!$B$22:$F$105,5,FALSE)) -> 0 | H81: =H74*(VLOOKUP(H$7,'Fixed Inputs'!$B$22:$F$105,5,FALSE)) -> 0 | I81: =I74*(VLOOKUP(I$7,'Fixed Inputs'!$B$22:$F$105,5,FALSE)) -> 0 | J81: =J74*(VLOOKUP(J$7,'Fixed Inputs'!$B$22:$F$105,5,FALSE)) -> 0 | K81: =K74*(VLOOKUP(K$7,'Fixed Inputs'!$B$22:$F$105,5,FALSE)) -> 0 | L81: =L74*(VLOOKUP(L$7,'Fixed Inputs'!$B$22:$F$105,5,FALSE)) -> 0 | M81: =M74*(VLOOKUP(M$7,'Fixed Inputs'!$B$22:$F$105,5,FALSE)) -> 0 | N81: =N74*(VLOOKUP(N$7,'Fixed Inputs'!$B$22:$F$105,5,FALSE)) -> 0 | O81: =O74*(VLOOKUP(O$7,'Fixed Inputs'!$B$22:$F$105,5,FALSE)) -> 0 | P81: =P74*(VLOOKUP(P$7,'Fixed Inputs'!$B$22:$F$105,5,FALSE)) -> 0 | Q81: =Q74*(VLOOKUP(Q$7,'Fixed Inputs'!$B$22:$F$105,5,FALSE)) -> 0 | R81: =R74*(VLOOKUP(R$7,'Fixed Inputs'!$B$22:$F$105,5,FALSE)) -> 0 | S81: =S74*(VLOOKUP(S$7,'Fixed Inputs'!$B$22:$F$105,5,FALSE)) -> 0 | T81: =T74*(VLOOKUP(T$7,'Fixed Inputs'!$B$22:$F$105,5,FALSE)) -> 0 | U81: =U74*(VLOOKUP(U$7,'Fixed Inputs'!$B$22:$F$105,5,FALSE)) -> 0 | V81: =V74*(VLOOKUP(V$7,'Fixed Inputs'!$B$22:$F$105,5,FALSE)) -> 0 | W81: =W74*(VLOOKUP(W$7,'Fixed Inputs'!$B$22:$F$105,5,FALSE)) -> 0 | X81: =X74*(VLOOKUP(X$7,'Fixed Inputs'!$B$22:$F$105,5,FALSE)) -> 0 | Y81: =Y74*(VLOOKUP(Y$7,'Fixed Inputs'!$B$22:$F$105,5,FALSE)) -> 0 | Z81: =Z74*(VLOOKUP(Z$7,'Fixed Inputs'!$B$22:$F$105,5,FALSE)) -> 0 | AA81: =AA74*(VLOOKUP(AA$7,'Fixed Inputs'!$B$22:$F$105,5,FALSE)) -> 0 | AB81: =AB74*(VLOOKUP(AB$7,'Fixed Inputs'!$B$22:$F$105,5,FALSE)) -> 0 | AC81: =AC74*(VLOOKUP(AC$7,'Fixed Inputs'!$B$22:$F$105,5,FALSE)) -> 0 | AD81: =AD74*(VLOOKUP(AD$7,'Fixed Inputs'!$B$22:$F$105,5,FALSE)) -> 0 | AE81: =AE74*(VLOOKUP(AE$7,'Fixed Inputs'!$B$22:$F$105,5,FALSE)) -> 0 | AF81: =AF74*(VLOOKUP(AF$7,'Fixed Inputs'!$B$22:$F$105,5,FALSE)) -> 0 | AG81: =AG74*(VLOOKUP(AG$7,'Fixed Inputs'!$B$22:$F$105,5,FALSE)) -> 0 | AH81: =AH74*(VLOOKUP(AH$7,'Fixed Inputs'!$B$22:$F$105,5,FALSE)) -> 0 | AI81: =AI74*(VLOOKUP(AI$7,'Fixed Inputs'!$B$22:$F$105,5,FALSE)) -> 0 | AJ81: =AJ74*(VLOOKUP(AJ$7,'Fixed Inputs'!$B$22:$F$105,5,FALSE)) -> 0 | AK81: =AK74*(VLOOKUP(AK$7,'Fixed Inputs'!$B$22:$F$105,5,FALSE)) -> 0 | AL81: =AL74*(VLOOKUP(AL$7,'Fixed Inputs'!$B$22:$F$105,5,FALSE)) -> 0 | AM81: =AM74*(VLOOKUP(AM$7,'Fixed Inputs'!$B$22:$F$105,5,FALSE)) -> 0 | AN81: =AN74*(VLOOKUP(AN$7,'Fixed Inputs'!$B$22:$F$105,5,FALSE)) -> 0 | AO81: =AO74*(VLOOKUP(AO$7,'Fixed Inputs'!$B$22:$F$105,5,FALSE)) -> 0 | AP81: =AP74*(VLOOKUP(AP$7,'Fixed Inputs'!$B$22:$F$105,5,FALSE)) -> 0 | AQ81: =AQ74*(VLOOKUP(AQ$7,'Fixed Inputs'!$B$22:$F$105,5,FALSE)) -> 0 | AR81: =AR74*(VLOOKUP(AR$7,'Fixed Inputs'!$B$22:$F$105,5,FALSE)) -> 0 | AS81: =AS74*(VLOOKUP(AS$7,'Fixed Inputs'!$B$22:$F$105,5,FALSE)) -> 0 | AT81: =AT74*(VLOOKUP(AT$7,'Fixed Inputs'!$B$22:$F$105,5,FALSE)) -> 0 | AU81: =AU74*(VLOOKUP(AU$7,'Fixed Inputs'!$B$22:$F$105,5,FALSE)) -> 0 | AV81: =AV74*(VLOOKUP(AV$7,'Fixed Inputs'!$B$22:$F$105,5,FALSE)) -> 0 | AW81: =AW74*(VLOOKUP(AW$7,'Fixed Inputs'!$B$22:$F$105,5,FALSE)) -> 0 | AX81: =AX74*(VLOOKUP(AX$7,'Fixed Inputs'!$B$22:$F$105,5,FALSE)) -> 0 | AY81: =AY74*(VLOOKUP(AY$7,'Fixed Inputs'!$B$22:$F$105,5,FALSE)) -> 0 | AZ81: =AZ74*(VLOOKUP(AZ$7,'Fixed Inputs'!$B$22:$F$105,5,FALSE)) -> 0 | BA81: =BA74*(VLOOKUP(BA$7,'Fixed Inputs'!$B$22:$F$105,5,FALSE)) -> 0 | BB81: =BB74*(VLOOKUP(BB$7,'Fixed Inputs'!$B$22:$F$105,5,FALSE)) -> 0 | BC81: =BC74*(VLOOKUP(BC$7,'Fixed Inputs'!$B$22:$F$105,5,FALSE)) -> 0 | BD81: =BD74*(VLOOKUP(BD$7,'Fixed Inputs'!$B$22:$F$105,5,FALSE)) -> 0 | BE81: =BE74*(VLOOKUP(BE$7,'Fixed Inputs'!$B$22:$F$105,5,FALSE)) -> 0 | BF81: =BF74*(VLOOKUP(BF$7,'Fixed Inputs'!$B$22:$F$105,5,FALSE)) -> 0 | BG81: =BG74*(VLOOKUP(BG$7,'Fixed Inputs'!$B$22:$F$105,5,FALSE)) -> 0 | BH81: =BH74*(VLOOKUP(BH$7,'Fixed Inputs'!$B$22:$F$105,5,FALSE)) -> 0 | BI81: =BI74*(VLOOKUP(BI$7,'Fixed Inputs'!$B$22:$F$105,5,FALSE)) -> 0 | BJ81: =BJ74*(VLOOKUP(BJ$7,'Fixed Inputs'!$B$22:$F$105,5,FALSE)) -> 0 | BK81: =BK74*(VLOOKUP(BK$7,'Fixed Inputs'!$B$22:$F$105,5,FALSE)) -> 0 | BL81: =BL74*(VLOOKUP(BL$7,'Fixed Inputs'!$B$22:$F$105,5,FALSE)) -> 0 | BM81: =BM74*(VLOOKUP(BM$7,'Fixed Inputs'!$B$22:$F$105,5,FALSE)) -> 0 | BN81: =BN74*(VLOOKUP(BN$7,'Fixed Inputs'!$B$22:$F$105,5,FALSE)) -> 0 | BO81: =BO74*(VLOOKUP(BO$7,'Fixed Inputs'!$B$22:$F$105,5,FALSE)) -> 0 | BP81: =BP74*(VLOOKUP(BP$7,'Fixed Inputs'!$B$22:$F$105,5,FALSE)) -> 0 | BQ81: =BQ74*(VLOOKUP(BQ$7,'Fixed Inputs'!$B$22:$F$105,5,FALSE)) -> 0 | BR81: =BR74*(VLOOKUP(BR$7,'Fixed Inputs'!$B$22:$F$105,5,FALSE)) -> 0 | BS81: =BS74*(VLOOKUP(BS$7,'Fixed Inputs'!$B$22:$F$105,5,FALSE)) -> 0
D82: ='Flexibility Requirements'!$C$13 -> 0 | E82: =E75*(VLOOKUP(E$7,'Fixed Inputs'!$B$22:$F$105,5,FALSE)) -> 0 | F82: =F75*(VLOOKUP(F$7,'Fixed Inputs'!$B$22:$F$105,5,FALSE)) -> 0 | G82: =G75*(VLOOKUP(G$7,'Fixed Inputs'!$B$22:$F$105,5,FALSE)) -> 0 | H82: =H75*(VLOOKUP(H$7,'Fixed Inputs'!$B$22:$F$105,5,FALSE)) -> 0 | I82: =I75*(VLOOKUP(I$7,'Fixed Inputs'!$B$22:$F$105,5,FALSE)) -> 0 | J82: =J75*(VLOOKUP(J$7,'Fixed Inputs'!$B$22:$F$105,5,FALSE)) -> 0 | K82: =K75*(VLOOKUP(K$7,'Fixed Inputs'!$B$22:$F$105,5,FALSE)) -> 0 | L82: =L75*(VLOOKUP(L$7,'Fixed Inputs'!$B$22:$F$105,5,FALSE)) -> 0 | M82: =M75*(VLOOKUP(M$7,'Fixed Inputs'!$B$22:$F$105,5,FALSE)) -> 0 | N82: =N75*(VLOOKUP(N$7,'Fixed Inputs'!$B$22:$F$105,5,FALSE)) -> 0 | O82: =O75*(VLOOKUP(O$7,'Fixed Inputs'!$B$22:$F$105,5,FALSE)) -> 0 | P82: =P75*(VLOOKUP(P$7,'Fixed Inputs'!$B$22:$F$105,5,FALSE)) -> 0 | Q82: =Q75*(VLOOKUP(Q$7,'Fixed Inputs'!$B$22:$F$105,5,FALSE)) -> 0 | R82: =R75*(VLOOKUP(R$7,'Fixed Inputs'!$B$22:$F$105,5,FALSE)) -> 0 | S82: =S75*(VLOOKUP(S$7,'Fixed Inputs'!$B$22:$F$105,5,FALSE)) -> 0 | T82: =T75*(VLOOKUP(T$7,'Fixed Inputs'!$B$22:$F$105,5,FALSE)) -> 0 | U82: =U75*(VLOOKUP(U$7,'Fixed Inputs'!$B$22:$F$105,5,FALSE)) -> 0 | V82: =V75*(VLOOKUP(V$7,'Fixed Inputs'!$B$22:$F$105,5,FALSE)) -> 0 | W82: =W75*(VLOOKUP(W$7,'Fixed Inputs'!$B$22:$F$105,5,FALSE)) -> 0 | X82: =X75*(VLOOKUP(X$7,'Fixed Inputs'!$B$22:$F$105,5,FALSE)) -> 0 | Y82: =Y75*(VLOOKUP(Y$7,'Fixed Inputs'!$B$22:$F$105,5,FALSE)) -> 0 | Z82: =Z75*(VLOOKUP(Z$7,'Fixed Inputs'!$B$22:$F$105,5,FALSE)) -> 0 | AA82: =AA75*(VLOOKUP(AA$7,'Fixed Inputs'!$B$22:$F$105,5,FALSE)) -> 0 | AB82: =AB75*(VLOOKUP(AB$7,'Fixed Inputs'!$B$22:$F$105,5,FALSE)) -> 0 | AC82: =AC75*(VLOOKUP(AC$7,'Fixed Inputs'!$B$22:$F$105,5,FALSE)) -> 0 | AD82: =AD75*(VLOOKUP(AD$7,'Fixed Inputs'!$B$22:$F$105,5,FALSE)) -> 0 | AE82: =AE75*(VLOOKUP(AE$7,'Fixed Inputs'!$B$22:$F$105,5,FALSE)) -> 0 | AF82: =AF75*(VLOOKUP(AF$7,'Fixed Inputs'!$B$22:$F$105,5,FALSE)) -> 0 | AG82: =AG75*(VLOOKUP(AG$7,'Fixed Inputs'!$B$22:$F$105,5,FALSE)) -> 0 | AH82: =AH75*(VLOOKUP(AH$7,'Fixed Inputs'!$B$22:$F$105,5,FALSE)) -> 0 | AI82: =AI75*(VLOOKUP(AI$7,'Fixed Inputs'!$B$22:$F$105,5,FALSE)) -> 0 | AJ82: =AJ75*(VLOOKUP(AJ$7,'Fixed Inputs'!$B$22:$F$105,5,FALSE)) -> 0 | AK82: =AK75*(VLOOKUP(AK$7,'Fixed Inputs'!$B$22:$F$105,5,FALSE)) -> 0 | AL82: =AL75*(VLOOKUP(AL$7,'Fixed Inputs'!$B$22:$F$105,5,FALSE)) -> 0 | AM82: =AM75*(VLOOKUP(AM$7,'Fixed Inputs'!$B$22:$F$105,5,FALSE)) -> 0 | AN82: =AN75*(VLOOKUP(AN$7,'Fixed Inputs'!$B$22:$F$105,5,FALSE)) -> 0 | AO82: =AO75*(VLOOKUP(AO$7,'Fixed Inputs'!$B$22:$F$105,5,FALSE)) -> 0 | AP82: =AP75*(VLOOKUP(AP$7,'Fixed Inputs'!$B$22:$F$105,5,FALSE)) -> 0 | AQ82: =AQ75*(VLOOKUP(AQ$7,'Fixed Inputs'!$B$22:$F$105,5,FALSE)) -> 0 | AR82: =AR75*(VLOOKUP(AR$7,'Fixed Inputs'!$B$22:$F$105,5,FALSE)) -> 0 | AS82: =AS75*(VLOOKUP(AS$7,'Fixed Inputs'!$B$22:$F$105,5,FALSE)) -> 0 | AT82: =AT75*(VLOOKUP(AT$7,'Fixed Inputs'!$B$22:$F$105,5,FALSE)) -> 0 | AU82: =AU75*(VLOOKUP(AU$7,'Fixed Inputs'!$B$22:$F$105,5,FALSE)) -> 0 | AV82: =AV75*(VLOOKUP(AV$7,'Fixed Inputs'!$B$22:$F$105,5,FALSE)) -> 0 | AW82: =AW75*(VLOOKUP(AW$7,'Fixed Inputs'!$B$22:$F$105,5,FALSE)) -> 0 | AX82: =AX75*(VLOOKUP(AX$7,'Fixed Inputs'!$B$22:$F$105,5,FALSE)) -> 0 | AY82: =AY75*(VLOOKUP(AY$7,'Fixed Inputs'!$B$22:$F$105,5,FALSE)) -> 0 | AZ82: =AZ75*(VLOOKUP(AZ$7,'Fixed Inputs'!$B$22:$F$105,5,FALSE)) -> 0 | BA82: =BA75*(VLOOKUP(BA$7,'Fixed Inputs'!$B$22:$F$105,5,FALSE)) -> 0 | BB82: =BB75*(VLOOKUP(BB$7,'Fixed Inputs'!$B$22:$F$105,5,FALSE)) -> 0 | BC82: =BC75*(VLOOKUP(BC$7,'Fixed Inputs'!$B$22:$F$105,5,FALSE)) -> 0 | BD82: =BD75*(VLOOKUP(BD$7,'Fixed Inputs'!$B$22:$F$105,5,FALSE)) -> 0 | BE82: =BE75*(VLOOKUP(BE$7,'Fixed Inputs'!$B$22:$F$105,5,FALSE)) -> 0 | BF82: =BF75*(VLOOKUP(BF$7,'Fixed Inputs'!$B$22:$F$105,5,FALSE)) -> 0 | BG82: =BG75*(VLOOKUP(BG$7,'Fixed Inputs'!$B$22:$F$105,5,FALSE)) -> 0 | BH82: =BH75*(VLOOKUP(BH$7,'Fixed Inputs'!$B$22:$F$105,5,FALSE)) -> 0 | BI82: =BI75*(VLOOKUP(BI$7,'Fixed Inputs'!$B$22:$F$105,5,FALSE)) -> 0 | BJ82: =BJ75*(VLOOKUP(BJ$7,'Fixed Inputs'!$B$22:$F$105,5,FALSE)) -> 0 | BK82: =BK75*(VLOOKUP(BK$7,'Fixed Inputs'!$B$22:$F$105,5,FALSE)) -> 0 | BL82: =BL75*(VLOOKUP(BL$7,'Fixed Inputs'!$B$22:$F$105,5,FALSE)) -> 0 | BM82: =BM75*(VLOOKUP(BM$7,'Fixed Inputs'!$B$22:$F$105,5,FALSE)) -> 0 | BN82: =BN75*(VLOOKUP(BN$7,'Fixed Inputs'!$B$22:$F$105,5,FALSE)) -> 0 | BO82: =BO75*(VLOOKUP(BO$7,'Fixed Inputs'!$B$22:$F$105,5,FALSE)) -> 0 | BP82: =BP75*(VLOOKUP(BP$7,'Fixed Inputs'!$B$22:$F$105,5,FALSE)) -> 0 | BQ82: =BQ75*(VLOOKUP(BQ$7,'Fixed Inputs'!$B$22:$F$105,5,FALSE)) -> 0 | BR82: =BR75*(VLOOKUP(BR$7,'Fixed Inputs'!$B$22:$F$105,5,FALSE)) -> 0 | BS82: =BS75*(VLOOKUP(BS$7,'Fixed Inputs'!$B$22:$F$105,5,FALSE)) -> 0
D83: ='Flexibility Requirements'!$C$14 -> 0 | E83: =E76*(VLOOKUP(E$7,'Fixed Inputs'!$B$22:$F$105,5,FALSE)) -> 0 | F83: =F76*(VLOOKUP(F$7,'Fixed Inputs'!$B$22:$F$105,5,FALSE)) -> 0 | G83: =G76*(VLOOKUP(G$7,'Fixed Inputs'!$B$22:$F$105,5,FALSE)) -> 0 | H83: =H76*(VLOOKUP(H$7,'Fixed Inputs'!$B$22:$F$105,5,FALSE)) -> 0 | I83: =I76*(VLOOKUP(I$7,'Fixed Inputs'!$B$22:$F$105,5,FALSE)) -> 0 | J83: =J76*(VLOOKUP(J$7,'Fixed Inputs'!$B$22:$F$105,5,FALSE)) -> 0 | K83: =K76*(VLOOKUP(K$7,'Fixed Inputs'!$B$22:$F$105,5,FALSE)) -> 0 | L83: =L76*(VLOOKUP(L$7,'Fixed Inputs'!$B$22:$F$105,5,FALSE)) -> 0 | M83: =M76*(VLOOKUP(M$7,'Fixed Inputs'!$B$22:$F$105,5,FALSE)) -> 0 | N83: =N76*(VLOOKUP(N$7,'Fixed Inputs'!$B$22:$F$105,5,FALSE)) -> 0 | O83: =O76*(VLOOKUP(O$7,'Fixed Inputs'!$B$22:$F$105,5,FALSE)) -> 0 | P83: =P76*(VLOOKUP(P$7,'Fixed Inputs'!$B$22:$F$105,5,FALSE)) -> 0 | Q83: =Q76*(VLOOKUP(Q$7,'Fixed Inputs'!$B$22:$F$105,5,FALSE)) -> 0 | R83: =R76*(VLOOKUP(R$7,'Fixed Inputs'!$B$22:$F$105,5,FALSE)) -> 0 | S83: =S76*(VLOOKUP(S$7,'Fixed Inputs'!$B$22:$F$105,5,FALSE)) -> 0 | T83: =T76*(VLOOKUP(T$7,'Fixed Inputs'!$B$22:$F$105,5,FALSE)) -> 0 | U83: =U76*(VLOOKUP(U$7,'Fixed Inputs'!$B$22:$F$105,5,FALSE)) -> 0 | V83: =V76*(VLOOKUP(V$7,'Fixed Inputs'!$B$22:$F$105,5,FALSE)) -> 0 | W83: =W76*(VLOOKUP(W$7,'Fixed Inputs'!$B$22:$F$105,5,FALSE)) -> 0 | X83: =X76*(VLOOKUP(X$7,'Fixed Inputs'!$B$22:$F$105,5,FALSE)) -> 0 | Y83: =Y76*(VLOOKUP(Y$7,'Fixed Inputs'!$B$22:$F$105,5,FALSE)) -> 0 | Z83: =Z76*(VLOOKUP(Z$7,'Fixed Inputs'!$B$22:$F$105,5,FALSE)) -> 0 | AA83: =AA76*(VLOOKUP(AA$7,'Fixed Inputs'!$B$22:$F$105,5,FALSE)) -> 0 | AB83: =AB76*(VLOOKUP(AB$7,'Fixed Inputs'!$B$22:$F$105,5,FALSE)) -> 0 | AC83: =AC76*(VLOOKUP(AC$7,'Fixed Inputs'!$B$22:$F$105,5,FALSE)) -> 0 | AD83: =AD76*(VLOOKUP(AD$7,'Fixed Inputs'!$B$22:$F$105,5,FALSE)) -> 0 | AE83: =AE76*(VLOOKUP(AE$7,'Fixed Inputs'!$B$22:$F$105,5,FALSE)) -> 0 | AF83: =AF76*(VLOOKUP(AF$7,'Fixed Inputs'!$B$22:$F$105,5,FALSE)) -> 0 | AG83: =AG76*(VLOOKUP(AG$7,'Fixed Inputs'!$B$22:$F$105,5,FALSE)) -> 0 | AH83: =AH76*(VLOOKUP(AH$7,'Fixed Inputs'!$B$22:$F$105,5,FALSE)) -> 0 | AI83: =AI76*(VLOOKUP(AI$7,'Fixed Inputs'!$B$22:$F$105,5,FALSE)) -> 0 | AJ83: =AJ76*(VLOOKUP(AJ$7,'Fixed Inputs'!$B$22:$F$105,5,FALSE)) -> 0 | AK83: =AK76*(VLOOKUP(AK$7,'Fixed Inputs'!$B$22:$F$105,5,FALSE)) -> 0 | AL83: =AL76*(VLOOKUP(AL$7,'Fixed Inputs'!$B$22:$F$105,5,FALSE)) -> 0 | AM83: =AM76*(VLOOKUP(AM$7,'Fixed Inputs'!$B$22:$F$105,5,FALSE)) -> 0 | AN83: =AN76*(VLOOKUP(AN$7,'Fixed Inputs'!$B$22:$F$105,5,FALSE)) -> 0 | AO83: =AO76*(VLOOKUP(AO$7,'Fixed Inputs'!$B$22:$F$105,5,FALSE)) -> 0 | AP83: =AP76*(VLOOKUP(AP$7,'Fixed Inputs'!$B$22:$F$105,5,FALSE)) -> 0 | AQ83: =AQ76*(VLOOKUP(AQ$7,'Fixed Inputs'!$B$22:$F$105,5,FALSE)) -> 0 | AR83: =AR76*(VLOOKUP(AR$7,'Fixed Inputs'!$B$22:$F$105,5,FALSE)) -> 0 | AS83: =AS76*(VLOOKUP(AS$7,'Fixed Inputs'!$B$22:$F$105,5,FALSE)) -> 0 | AT83: =AT76*(VLOOKUP(AT$7,'Fixed Inputs'!$B$22:$F$105,5,FALSE)) -> 0 | AU83: =AU76*(VLOOKUP(AU$7,'Fixed Inputs'!$B$22:$F$105,5,FALSE)) -> 0 | AV83: =AV76*(VLOOKUP(AV$7,'Fixed Inputs'!$B$22:$F$105,5,FALSE)) -> 0 | AW83: =AW76*(VLOOKUP(AW$7,'Fixed Inputs'!$B$22:$F$105,5,FALSE)) -> 0 | AX83: =AX76*(VLOOKUP(AX$7,'Fixed Inputs'!$B$22:$F$105,5,FALSE)) -> 0 | AY83: =AY76*(VLOOKUP(AY$7,'Fixed Inputs'!$B$22:$F$105,5,FALSE)) -> 0 | AZ83: =AZ76*(VLOOKUP(AZ$7,'Fixed Inputs'!$B$22:$F$105,5,FALSE)) -> 0 | BA83: =BA76*(VLOOKUP(BA$7,'Fixed Inputs'!$B$22:$F$105,5,FALSE)) -> 0 | BB83: =BB76*(VLOOKUP(BB$7,'Fixed Inputs'!$B$22:$F$105,5,FALSE)) -> 0 | BC83: =BC76*(VLOOKUP(BC$7,'Fixed Inputs'!$B$22:$F$105,5,FALSE)) -> 0 | BD83: =BD76*(VLOOKUP(BD$7,'Fixed Inputs'!$B$22:$F$105,5,FALSE)) -> 0 | BE83: =BE76*(VLOOKUP(BE$7,'Fixed Inputs'!$B$22:$F$105,5,FALSE)) -> 0 | BF83: =BF76*(VLOOKUP(BF$7,'Fixed Inputs'!$B$22:$F$105,5,FALSE)) -> 0 | BG83: =BG76*(VLOOKUP(BG$7,'Fixed Inputs'!$B$22:$F$105,5,FALSE)) -> 0 | BH83: =BH76*(VLOOKUP(BH$7,'Fixed Inputs'!$B$22:$F$105,5,FALSE)) -> 0 | BI83: =BI76*(VLOOKUP(BI$7,'Fixed Inputs'!$B$22:$F$105,5,FALSE)) -> 0 | BJ83: =BJ76*(VLOOKUP(BJ$7,'Fixed Inputs'!$B$22:$F$105,5,FALSE)) -> 0 | BK83: =BK76*(VLOOKUP(BK$7,'Fixed Inputs'!$B$22:$F$105,5,FALSE)) -> 0 | BL83: =BL76*(VLOOKUP(BL$7,'Fixed Inputs'!$B$22:$F$105,5,FALSE)) -> 0 | BM83: =BM76*(VLOOKUP(BM$7,'Fixed Inputs'!$B$22:$F$105,5,FALSE)) -> 0 | BN83: =BN76*(VLOOKUP(BN$7,'Fixed Inputs'!$B$22:$F$105,5,FALSE)) -> 0 | BO83: =BO76*(VLOOKUP(BO$7,'Fixed Inputs'!$B$22:$F$105,5,FALSE)) -> 0 | BP83: =BP76*(VLOOKUP(BP$7,'Fixed Inputs'!$B$22:$F$105,5,FALSE)) -> 0 | BQ83: =BQ76*(VLOOKUP(BQ$7,'Fixed Inputs'!$B$22:$F$105,5,FALSE)) -> 0 | BR83: =BR76*(VLOOKUP(BR$7,'Fixed Inputs'!$B$22:$F$105,5,FALSE)) -> 0 | BS83: =BS76*(VLOOKUP(BS$7,'Fixed Inputs'!$B$22:$F$105,5,FALSE)) -> 0
D84: ='Flexibility Requirements'!$C$15 -> 0 | E84: =E77*(VLOOKUP(E$7,'Fixed Inputs'!$B$22:$F$105,5,FALSE)) -> 0 | F84: =F77*(VLOOKUP(F$7,'Fixed Inputs'!$B$22:$F$105,5,FALSE)) -> 0 | G84: =G77*(VLOOKUP(G$7,'Fixed Inputs'!$B$22:$F$105,5,FALSE)) -> 0 | H84: =H77*(VLOOKUP(H$7,'Fixed Inputs'!$B$22:$F$105,5,FALSE)) -> 0 | I84: =I77*(VLOOKUP(I$7,'Fixed Inputs'!$B$22:$F$105,5,FALSE)) -> 0 | J84: =J77*(VLOOKUP(J$7,'Fixed Inputs'!$B$22:$F$105,5,FALSE)) -> 0 | K84: =K77*(VLOOKUP(K$7,'Fixed Inputs'!$B$22:$F$105,5,FALSE)) -> 0 | L84: =L77*(VLOOKUP(L$7,'Fixed Inputs'!$B$22:$F$105,5,FALSE)) -> 0 | M84: =M77*(VLOOKUP(M$7,'Fixed Inputs'!$B$22:$F$105,5,FALSE)) -> 0 | N84: =N77*(VLOOKUP(N$7,'Fixed Inputs'!$B$22:$F$105,5,FALSE)) -> 0 | O84: =O77*(VLOOKUP(O$7,'Fixed Inputs'!$B$22:$F$105,5,FALSE)) -> 0 | P84: =P77*(VLOOKUP(P$7,'Fixed Inputs'!$B$22:$F$105,5,FALSE)) -> 0 | Q84: =Q77*(VLOOKUP(Q$7,'Fixed Inputs'!$B$22:$F$105,5,FALSE)) -> 0 | R84: =R77*(VLOOKUP(R$7,'Fixed Inputs'!$B$22:$F$105,5,FALSE)) -> 0 | S84: =S77*(VLOOKUP(S$7,'Fixed Inputs'!$B$22:$F$105,5,FALSE)) -> 0 | T84: =T77*(VLOOKUP(T$7,'Fixed Inputs'!$B$22:$F$105,5,FALSE)) -> 0 | U84: =U77*(VLOOKUP(U$7,'Fixed Inputs'!$B$22:$F$105,5,FALSE)) -> 0 | V84: =V77*(VLOOKUP(V$7,'Fixed Inputs'!$B$22:$F$105,5,FALSE)) -> 0 | W84: =W77*(VLOOKUP(W$7,'Fixed Inputs'!$B$22:$F$105,5,FALSE)) -> 0 | X84: =X77*(VLOOKUP(X$7,'Fixed Inputs'!$B$22:$F$105,5,FALSE)) -> 0 | Y84: =Y77*(VLOOKUP(Y$7,'Fixed Inputs'!$B$22:$F$105,5,FALSE)) -> 0 | Z84: =Z77*(VLOOKUP(Z$7,'Fixed Inputs'!$B$22:$F$105,5,FALSE)) -> 0 | AA84: =AA77*(VLOOKUP(AA$7,'Fixed Inputs'!$B$22:$F$105,5,FALSE)) -> 0 | AB84: =AB77*(VLOOKUP(AB$7,'Fixed Inputs'!$B$22:$F$105,5,FALSE)) -> 0 | AC84: =AC77*(VLOOKUP(AC$7,'Fixed Inputs'!$B$22:$F$105,5,FALSE)) -> 0 | AD84: =AD77*(VLOOKUP(AD$7,'Fixed Inputs'!$B$22:$F$105,5,FALSE)) -> 0 | AE84: =AE77*(VLOOKUP(AE$7,'Fixed Inputs'!$B$22:$F$105,5,FALSE)) -> 0 | AF84: =AF77*(VLOOKUP(AF$7,'Fixed Inputs'!$B$22:$F$105,5,FALSE)) -> 0 | AG84: =AG77*(VLOOKUP(AG$7,'Fixed Inputs'!$B$22:$F$105,5,FALSE)) -> 0 | AH84: =AH77*(VLOOKUP(AH$7,'Fixed Inputs'!$B$22:$F$105,5,FALSE)) -> 0 | AI84: =AI77*(VLOOKUP(AI$7,'Fixed Inputs'!$B$22:$F$105,5,FALSE)) -> 0 | AJ84: =AJ77*(VLOOKUP(AJ$7,'Fixed Inputs'!$B$22:$F$105,5,FALSE)) -> 0 | AK84: =AK77*(VLOOKUP(AK$7,'Fixed Inputs'!$B$22:$F$105,5,FALSE)) -> 0 | AL84: =AL77*(VLOOKUP(AL$7,'Fixed Inputs'!$B$22:$F$105,5,FALSE)) -> 0 | AM84: =AM77*(VLOOKUP(AM$7,'Fixed Inputs'!$B$22:$F$105,5,FALSE)) -> 0 | AN84: =AN77*(VLOOKUP(AN$7,'Fixed Inputs'!$B$22:$F$105,5,FALSE)) -> 0 | AO84: =AO77*(VLOOKUP(AO$7,'Fixed Inputs'!$B$22:$F$105,5,FALSE)) -> 0 | AP84: =AP77*(VLOOKUP(AP$7,'Fixed Inputs'!$B$22:$F$105,5,FALSE)) -> 0 | AQ84: =AQ77*(VLOOKUP(AQ$7,'Fixed Inputs'!$B$22:$F$105,5,FALSE)) -> 0 | AR84: =AR77*(VLOOKUP(AR$7,'Fixed Inputs'!$B$22:$F$105,5,FALSE)) -> 0 | AS84: =AS77*(VLOOKUP(AS$7,'Fixed Inputs'!$B$22:$F$105,5,FALSE)) -> 0 | AT84: =AT77*(VLOOKUP(AT$7,'Fixed Inputs'!$B$22:$F$105,5,FALSE)) -> 0 | AU84: =AU77*(VLOOKUP(AU$7,'Fixed Inputs'!$B$22:$F$105,5,FALSE)) -> 0 | AV84: =AV77*(VLOOKUP(AV$7,'Fixed Inputs'!$B$22:$F$105,5,FALSE)) -> 0 | AW84: =AW77*(VLOOKUP(AW$7,'Fixed Inputs'!$B$22:$F$105,5,FALSE)) -> 0 | AX84: =AX77*(VLOOKUP(AX$7,'Fixed Inputs'!$B$22:$F$105,5,FALSE)) -> 0 | AY84: =AY77*(VLOOKUP(AY$7,'Fixed Inputs'!$B$22:$F$105,5,FALSE)) -> 0 | AZ84: =AZ77*(VLOOKUP(AZ$7,'Fixed Inputs'!$B$22:$F$105,5,FALSE)) -> 0 | BA84: =BA77*(VLOOKUP(BA$7,'Fixed Inputs'!$B$22:$F$105,5,FALSE)) -> 0 | BB84: =BB77*(VLOOKUP(BB$7,'Fixed Inputs'!$B$22:$F$105,5,FALSE)) -> 0 | BC84: =BC77*(VLOOKUP(BC$7,'Fixed Inputs'!$B$22:$F$105,5,FALSE)) -> 0 | BD84: =BD77*(VLOOKUP(BD$7,'Fixed Inputs'!$B$22:$F$105,5,FALSE)) -> 0 | BE84: =BE77*(VLOOKUP(BE$7,'Fixed Inputs'!$B$22:$F$105,5,FALSE)) -> 0 | BF84: =BF77*(VLOOKUP(BF$7,'Fixed Inputs'!$B$22:$F$105,5,FALSE)) -> 0 | BG84: =BG77*(VLOOKUP(BG$7,'Fixed Inputs'!$B$22:$F$105,5,FALSE)) -> 0 | BH84: =BH77*(VLOOKUP(BH$7,'Fixed Inputs'!$B$22:$F$105,5,FALSE)) -> 0 | BI84: =BI77*(VLOOKUP(BI$7,'Fixed Inputs'!$B$22:$F$105,5,FALSE)) -> 0 | BJ84: =BJ77*(VLOOKUP(BJ$7,'Fixed Inputs'!$B$22:$F$105,5,FALSE)) -> 0 | BK84: =BK77*(VLOOKUP(BK$7,'Fixed Inputs'!$B$22:$F$105,5,FALSE)) -> 0 | BL84: =BL77*(VLOOKUP(BL$7,'Fixed Inputs'!$B$22:$F$105,5,FALSE)) -> 0 | BM84: =BM77*(VLOOKUP(BM$7,'Fixed Inputs'!$B$22:$F$105,5,FALSE)) -> 0 | BN84: =BN77*(VLOOKUP(BN$7,'Fixed Inputs'!$B$22:$F$105,5,FALSE)) -> 0 | BO84: =BO77*(VLOOKUP(BO$7,'Fixed Inputs'!$B$22:$F$105,5,FALSE)) -> 0 | BP84: =BP77*(VLOOKUP(BP$7,'Fixed Inputs'!$B$22:$F$105,5,FALSE)) -> 0 | BQ84: =BQ77*(VLOOKUP(BQ$7,'Fixed Inputs'!$B$22:$F$105,5,FALSE)) -> 0 | BR84: =BR77*(VLOOKUP(BR$7,'Fixed Inputs'!$B$22:$F$105,5,FALSE)) -> 0 | BS84: =BS77*(VLOOKUP(BS$7,'Fixed Inputs'!$B$22:$F$105,5,FALSE)) -> 0
B86: Customer Interruptions (CI)
C87: Reduced number of customers interrupted (no.)
D88: ='Reinforcement Deferral'!$C$39 -> Losses derogation calculation
D89: ='Flexibility Requirements'!$C$11 -> 0
D90: ='Flexibility Requirements'!$C$12 -> 0
D91: ='Flexibility Requirements'!$C$13 -> 0
D92: ='Flexibility Requirements'!$C$14 -> 0
D93: ='Flexibility Requirements'!$C$15 -> 0
C94: Reduced Customer Interruptions (CI), (£)
D95: ='Reinforcement Deferral'!$C$39 -> Losses derogation calculation | E95: =E88*'Fixed Inputs'!$K$14 -> 0 | F95: =F88*'Fixed Inputs'!$K$14 -> 0 | G95: =G88*'Fixed Inputs'!$K$14 -> 0 | H95: =H88*'Fixed Inputs'!$K$14 -> 0 | I95: =I88*'Fixed Inputs'!$K$14 -> 0 | J95: =J88*'Fixed Inputs'!$K$14 -> 0 | K95: =K88*'Fixed Inputs'!$K$14 -> 0 | L95: =L88*'Fixed Inputs'!$K$14 -> 0 | M95: =M88*'Fixed Inputs'!$K$14 -> 0 | N95: =N88*'Fixed Inputs'!$K$14 -> 0 | O95: =O88*'Fixed Inputs'!$K$14 -> 0 | P95: =P88*'Fixed Inputs'!$K$14 -> 0 | Q95: =Q88*'Fixed Inputs'!$K$14 -> 0 | R95: =R88*'Fixed Inputs'!$K$14 -> 0 | S95: =S88*'Fixed Inputs'!$K$14 -> 0 | T95: =T88*'Fixed Inputs'!$K$14 -> 0 | U95: =U88*'Fixed Inputs'!$K$14 -> 0 | V95: =V88*'Fixed Inputs'!$K$14 -> 0 | W95: =W88*'Fixed Inputs'!$K$14 -> 0 | X95: =X88*'Fixed Inputs'!$K$14 -> 0 | Y95: =Y88*'Fixed Inputs'!$K$14 -> 0 | Z95: =Z88*'Fixed Inputs'!$K$14 -> 0 | AA95: =AA88*'Fixed Inputs'!$K$14 -> 0 | AB95: =AB88*'Fixed Inputs'!$K$14 -> 0 | AC95: =AC88*'Fixed Inputs'!$K$14 -> 0 | AD95: =AD88*'Fixed Inputs'!$K$14 -> 0 | AE95: =AE88*'Fixed Inputs'!$K$14 -> 0 | AF95: =AF88*'Fixed Inputs'!$K$14 -> 0 | AG95: =AG88*'Fixed Inputs'!$K$14 -> 0 | AH95: =AH88*'Fixed Inputs'!$K$14 -> 0 | AI95: =AI88*'Fixed Inputs'!$K$14 -> 0 | AJ95: =AJ88*'Fixed Inputs'!$K$14 -> 0 | AK95: =AK88*'Fixed Inputs'!$K$14 -> 0 | AL95: =AL88*'Fixed Inputs'!$K$14 -> 0 | AM95: =AM88*'Fixed Inputs'!$K$14 -> 0 | AN95: =AN88*'Fixed Inputs'!$K$14 -> 0 | AO95: =AO88*'Fixed Inputs'!$K$14 -> 0 | AP95: =AP88*'Fixed Inputs'!$K$14 -> 0 | AQ95: =AQ88*'Fixed Inputs'!$K$14 -> 0 | AR95: =AR88*'Fixed Inputs'!$K$14 -> 0 | AS95: =AS88*'Fixed Inputs'!$K$14 -> 0 | AT95: =AT88*'Fixed Inputs'!$K$14 -> 0 | AU95: =AU88*'Fixed Inputs'!$K$14 -> 0 | AV95: =AV88*'Fixed Inputs'!$K$14 -> 0 | AW95: =AW88*'Fixed Inputs'!$K$14 -> 0 | AX95: =AX88*'Fixed Inputs'!$K$14 -> 0 | AY95: =AY88*'Fixed Inputs'!$K$14 -> 0 | AZ95: =AZ88*'Fixed Inputs'!$K$14 -> 0 | BA95: =BA88*'Fixed Inputs'!$K$14 -> 0 | BB95: =BB88*'Fixed Inputs'!$K$14 -> 0 | BC95: =BC88*'Fixed Inputs'!$K$14 -> 0 | BD95: =BD88*'Fixed Inputs'!$K$14 -> 0 | BE95: =BE88*'Fixed Inputs'!$K$14 -> 0 | BF95: =BF88*'Fixed Inputs'!$K$14 -> 0 | BG95: =BG88*'Fixed Inputs'!$K$14 -> 0 | BH95: =BH88*'Fixed Inputs'!$K$14 -> 0 | BI95: =BI88*'Fixed Inputs'!$K$14 -> 0 | BJ95: =BJ88*'Fixed Inputs'!$K$14 -> 0 | BK95: =BK88*'Fixed Inputs'!$K$14 -> 0 | BL95: =BL88*'Fixed Inputs'!$K$14 -> 0 | BM95: =BM88*'Fixed Inputs'!$K$14 -> 0 | BN95: =BN88*'Fixed Inputs'!$K$14 -> 0 | BO95: =BO88*'Fixed Inputs'!$K$14 -> 0 | BP95: =BP88*'Fixed Inputs'!$K$14 -> 0 | BQ95: =BQ88*'Fixed Inputs'!$K$14 -> 0 | BR95: =BR88*'Fixed Inputs'!$K$14 -> 0 | BS95: =BS88*'Fixed Inputs'!$K$14 -> 0
D96: ='Flexibility Requirements'!$C$11 -> 0 | E96: =E89*'Fixed Inputs'!$K$14 -> 0 | F96: =F89*'Fixed Inputs'!$K$14 -> 0 | G96: =G89*'Fixed Inputs'!$K$14 -> 0 | H96: =H89*'Fixed Inputs'!$K$14 -> 0 | I96: =I89*'Fixed Inputs'!$K$14 -> 0 | J96: =J89*'Fixed Inputs'!$K$14 -> 0 | K96: =K89*'Fixed Inputs'!$K$14 -> 0 | L96: =L89*'Fixed Inputs'!$K$14 -> 0 | M96: =M89*'Fixed Inputs'!$K$14 -> 0 | N96: =N89*'Fixed Inputs'!$K$14 -> 0 | O96: =O89*'Fixed Inputs'!$K$14 -> 0 | P96: =P89*'Fixed Inputs'!$K$14 -> 0 | Q96: =Q89*'Fixed Inputs'!$K$14 -> 0 | R96: =R89*'Fixed Inputs'!$K$14 -> 0 | S96: =S89*'Fixed Inputs'!$K$14 -> 0 | T96: =T89*'Fixed Inputs'!$K$14 -> 0 | U96: =U89*'Fixed Inputs'!$K$14 -> 0 | V96: =V89*'Fixed Inputs'!$K$14 -> 0 | W96: =W89*'Fixed Inputs'!$K$14 -> 0 | X96: =X89*'Fixed Inputs'!$K$14 -> 0 | Y96: =Y89*'Fixed Inputs'!$K$14 -> 0 | Z96: =Z89*'Fixed Inputs'!$K$14 -> 0 | AA96: =AA89*'Fixed Inputs'!$K$14 -> 0 | AB96: =AB89*'Fixed Inputs'!$K$14 -> 0 | AC96: =AC89*'Fixed Inputs'!$K$14 -> 0 | AD96: =AD89*'Fixed Inputs'!$K$14 -> 0 | AE96: =AE89*'Fixed Inputs'!$K$14 -> 0 | AF96: =AF89*'Fixed Inputs'!$K$14 -> 0 | AG96: =AG89*'Fixed Inputs'!$K$14 -> 0 | AH96: =AH89*'Fixed Inputs'!$K$14 -> 0 | AI96: =AI89*'Fixed Inputs'!$K$14 -> 0 | AJ96: =AJ89*'Fixed Inputs'!$K$14 -> 0 | AK96: =AK89*'Fixed Inputs'!$K$14 -> 0 | AL96: =AL89*'Fixed Inputs'!$K$14 -> 0 | AM96: =AM89*'Fixed Inputs'!$K$14 -> 0 | AN96: =AN89*'Fixed Inputs'!$K$14 -> 0 | AO96: =AO89*'Fixed Inputs'!$K$14 -> 0 | AP96: =AP89*'Fixed Inputs'!$K$14 -> 0 | AQ96: =AQ89*'Fixed Inputs'!$K$14 -> 0 | AR96: =AR89*'Fixed Inputs'!$K$14 -> 0 | AS96: =AS89*'Fixed Inputs'!$K$14 -> 0 | AT96: =AT89*'Fixed Inputs'!$K$14 -> 0 | AU96: =AU89*'Fixed Inputs'!$K$14 -> 0 | AV96: =AV89*'Fixed Inputs'!$K$14 -> 0 | AW96: =AW89*'Fixed Inputs'!$K$14 -> 0 | AX96: =AX89*'Fixed Inputs'!$K$14 -> 0 | AY96: =AY89*'Fixed Inputs'!$K$14 -> 0 | AZ96: =AZ89*'Fixed Inputs'!$K$14 -> 0 | BA96: =BA89*'Fixed Inputs'!$K$14 -> 0 | BB96: =BB89*'Fixed Inputs'!$K$14 -> 0 | BC96: =BC89*'Fixed Inputs'!$K$14 -> 0 | BD96: =BD89*'Fixed Inputs'!$K$14 -> 0 | BE96: =BE89*'Fixed Inputs'!$K$14 -> 0 | BF96: =BF89*'Fixed Inputs'!$K$14 -> 0 | BG96: =BG89*'Fixed Inputs'!$K$14 -> 0 | BH96: =BH89*'Fixed Inputs'!$K$14 -> 0 | BI96: =BI89*'Fixed Inputs'!$K$14 -> 0 | BJ96: =BJ89*'Fixed Inputs'!$K$14 -> 0 | BK96: =BK89*'Fixed Inputs'!$K$14 -> 0 | BL96: =BL89*'Fixed Inputs'!$K$14 -> 0 | BM96: =BM89*'Fixed Inputs'!$K$14 -> 0 | BN96: =BN89*'Fixed Inputs'!$K$14 -> 0 | BO96: =BO89*'Fixed Inputs'!$K$14 -> 0 | BP96: =BP89*'Fixed Inputs'!$K$14 -> 0 | BQ96: =BQ89*'Fixed Inputs'!$K$14 -> 0 | BR96: =BR89*'Fixed Inputs'!$K$14 -> 0 | BS96: =BS89*'Fixed Inputs'!$K$14 -> 0
D97: ='Flexibility Requirements'!$C$12 -> 0 | E97: =E90*'Fixed Inputs'!$K$14 -> 0 | F97: =F90*'Fixed Inputs'!$K$14 -> 0 | G97: =G90*'Fixed Inputs'!$K$14 -> 0 | H97: =H90*'Fixed Inputs'!$K$14 -> 0 | I97: =I90*'Fixed Inputs'!$K$14 -> 0 | J97: =J90*'Fixed Inputs'!$K$14 -> 0 | K97: =K90*'Fixed Inputs'!$K$14 -> 0 | L97: =L90*'Fixed Inputs'!$K$14 -> 0 | M97: =M90*'Fixed Inputs'!$K$14 -> 0 | N97: =N90*'Fixed Inputs'!$K$14 -> 0 | O97: =O90*'Fixed Inputs'!$K$14 -> 0 | P97: =P90*'Fixed Inputs'!$K$14 -> 0 | Q97: =Q90*'Fixed Inputs'!$K$14 -> 0 | R97: =R90*'Fixed Inputs'!$K$14 -> 0 | S97: =S90*'Fixed Inputs'!$K$14 -> 0 | T97: =T90*'Fixed Inputs'!$K$14 -> 0 | U97: =U90*'Fixed Inputs'!$K$14 -> 0 | V97: =V90*'Fixed Inputs'!$K$14 -> 0 | W97: =W90*'Fixed Inputs'!$K$14 -> 0 | X97: =X90*'Fixed Inputs'!$K$14 -> 0 | Y97: =Y90*'Fixed Inputs'!$K$14 -> 0 | Z97: =Z90*'Fixed Inputs'!$K$14 -> 0 | AA97: =AA90*'Fixed Inputs'!$K$14 -> 0 | AB97: =AB90*'Fixed Inputs'!$K$14 -> 0 | AC97: =AC90*'Fixed Inputs'!$K$14 -> 0 | AD97: =AD90*'Fixed Inputs'!$K$14 -> 0 | AE97: =AE90*'Fixed Inputs'!$K$14 -> 0 | AF97: =AF90*'Fixed Inputs'!$K$14 -> 0 | AG97: =AG90*'Fixed Inputs'!$K$14 -> 0 | AH97: =AH90*'Fixed Inputs'!$K$14 -> 0 | AI97: =AI90*'Fixed Inputs'!$K$14 -> 0 | AJ97: =AJ90*'Fixed Inputs'!$K$14 -> 0 | AK97: =AK90*'Fixed Inputs'!$K$14 -> 0 | AL97: =AL90*'Fixed Inputs'!$K$14 -> 0 | AM97: =AM90*'Fixed Inputs'!$K$14 -> 0 | AN97: =AN90*'Fixed Inputs'!$K$14 -> 0 | AO97: =AO90*'Fixed Inputs'!$K$14 -> 0 | AP97: =AP90*'Fixed Inputs'!$K$14 -> 0 | AQ97: =AQ90*'Fixed Inputs'!$K$14 -> 0 | AR97: =AR90*'Fixed Inputs'!$K$14 -> 0 | AS97: =AS90*'Fixed Inputs'!$K$14 -> 0 | AT97: =AT90*'Fixed Inputs'!$K$14 -> 0 | AU97: =AU90*'Fixed Inputs'!$K$14 -> 0 | AV97: =AV90*'Fixed Inputs'!$K$14 -> 0 | AW97: =AW90*'Fixed Inputs'!$K$14 -> 0 | AX97: =AX90*'Fixed Inputs'!$K$14 -> 0 | AY97: =AY90*'Fixed Inputs'!$K$14 -> 0 | AZ97: =AZ90*'Fixed Inputs'!$K$14 -> 0 | BA97: =BA90*'Fixed Inputs'!$K$14 -> 0 | BB97: =BB90*'Fixed Inputs'!$K$14 -> 0 | BC97: =BC90*'Fixed Inputs'!$K$14 -> 0 | BD97: =BD90*'Fixed Inputs'!$K$14 -> 0 | BE97: =BE90*'Fixed Inputs'!$K$14 -> 0 | BF97: =BF90*'Fixed Inputs'!$K$14 -> 0 | BG97: =BG90*'Fixed Inputs'!$K$14 -> 0 | BH97: =BH90*'Fixed Inputs'!$K$14 -> 0 | BI97: =BI90*'Fixed Inputs'!$K$14 -> 0 | BJ97: =BJ90*'Fixed Inputs'!$K$14 -> 0 | BK97: =BK90*'Fixed Inputs'!$K$14 -> 0 | BL97: =BL90*'Fixed Inputs'!$K$14 -> 0 | BM97: =BM90*'Fixed Inputs'!$K$14 -> 0 | BN97: =BN90*'Fixed Inputs'!$K$14 -> 0 | BO97: =BO90*'Fixed Inputs'!$K$14 -> 0 | BP97: =BP90*'Fixed Inputs'!$K$14 -> 0 | BQ97: =BQ90*'Fixed Inputs'!$K$14 -> 0 | BR97: =BR90*'Fixed Inputs'!$K$14 -> 0 | BS97: =BS90*'Fixed Inputs'!$K$14 -> 0
D98: ='Flexibility Requirements'!$C$13 -> 0 | E98: =E91*'Fixed Inputs'!$K$14 -> 0 | F98: =F91*'Fixed Inputs'!$K$14 -> 0 | G98: =G91*'Fixed Inputs'!$K$14 -> 0 | H98: =H91*'Fixed Inputs'!$K$14 -> 0 | I98: =I91*'Fixed Inputs'!$K$14 -> 0 | J98: =J91*'Fixed Inputs'!$K$14 -> 0 | K98: =K91*'Fixed Inputs'!$K$14 -> 0 | L98: =L91*'Fixed Inputs'!$K$14 -> 0 | M98: =M91*'Fixed Inputs'!$K$14 -> 0 | N98: =N91*'Fixed Inputs'!$K$14 -> 0 | O98: =O91*'Fixed Inputs'!$K$14 -> 0 | P98: =P91*'Fixed Inputs'!$K$14 -> 0 | Q98: =Q91*'Fixed Inputs'!$K$14 -> 0 | R98: =R91*'Fixed Inputs'!$K$14 -> 0 | S98: =S91*'Fixed Inputs'!$K$14 -> 0 | T98: =T91*'Fixed Inputs'!$K$14 -> 0 | U98: =U91*'Fixed Inputs'!$K$14 -> 0 | V98: =V91*'Fixed Inputs'!$K$14 -> 0 | W98: =W91*'Fixed Inputs'!$K$14 -> 0 | X98: =X91*'Fixed Inputs'!$K$14 -> 0 | Y98: =Y91*'Fixed Inputs'!$K$14 -> 0 | Z98: =Z91*'Fixed Inputs'!$K$14 -> 0 | AA98: =AA91*'Fixed Inputs'!$K$14 -> 0 | AB98: =AB91*'Fixed Inputs'!$K$14 -> 0 | AC98: =AC91*'Fixed Inputs'!$K$14 -> 0 | AD98: =AD91*'Fixed Inputs'!$K$14 -> 0 | AE98: =AE91*'Fixed Inputs'!$K$14 -> 0 | AF98: =AF91*'Fixed Inputs'!$K$14 -> 0 | AG98: =AG91*'Fixed Inputs'!$K$14 -> 0 | AH98: =AH91*'Fixed Inputs'!$K$14 -> 0 | AI98: =AI91*'Fixed Inputs'!$K$14 -> 0 | AJ98: =AJ91*'Fixed Inputs'!$K$14 -> 0 | AK98: =AK91*'Fixed Inputs'!$K$14 -> 0 | AL98: =AL91*'Fixed Inputs'!$K$14 -> 0 | AM98: =AM91*'Fixed Inputs'!$K$14 -> 0 | AN98: =AN91*'Fixed Inputs'!$K$14 -> 0 | AO98: =AO91*'Fixed Inputs'!$K$14 -> 0 | AP98: =AP91*'Fixed Inputs'!$K$14 -> 0 | AQ98: =AQ91*'Fixed Inputs'!$K$14 -> 0 | AR98: =AR91*'Fixed Inputs'!$K$14 -> 0 | AS98: =AS91*'Fixed Inputs'!$K$14 -> 0 | AT98: =AT91*'Fixed Inputs'!$K$14 -> 0 | AU98: =AU91*'Fixed Inputs'!$K$14 -> 0 | AV98: =AV91*'Fixed Inputs'!$K$14 -> 0 | AW98: =AW91*'Fixed Inputs'!$K$14 -> 0 | AX98: =AX91*'Fixed Inputs'!$K$14 -> 0 | AY98: =AY91*'Fixed Inputs'!$K$14 -> 0 | AZ98: =AZ91*'Fixed Inputs'!$K$14 -> 0 | BA98: =BA91*'Fixed Inputs'!$K$14 -> 0 | BB98: =BB91*'Fixed Inputs'!$K$14 -> 0 | BC98: =BC91*'Fixed Inputs'!$K$14 -> 0 | BD98: =BD91*'Fixed Inputs'!$K$14 -> 0 | BE98: =BE91*'Fixed Inputs'!$K$14 -> 0 | BF98: =BF91*'Fixed Inputs'!$K$14 -> 0 | BG98: =BG91*'Fixed Inputs'!$K$14 -> 0 | BH98: =BH91*'Fixed Inputs'!$K$14 -> 0 | BI98: =BI91*'Fixed Inputs'!$K$14 -> 0 | BJ98: =BJ91*'Fixed Inputs'!$K$14 -> 0 | BK98: =BK91*'Fixed Inputs'!$K$14 -> 0 | BL98: =BL91*'Fixed Inputs'!$K$14 -> 0 | BM98: =BM91*'Fixed Inputs'!$K$14 -> 0 | BN98: =BN91*'Fixed Inputs'!$K$14 -> 0 | BO98: =BO91*'Fixed Inputs'!$K$14 -> 0 | BP98: =BP91*'Fixed Inputs'!$K$14 -> 0 | BQ98: =BQ91*'Fixed Inputs'!$K$14 -> 0 | BR98: =BR91*'Fixed Inputs'!$K$14 -> 0 | BS98: =BS91*'Fixed Inputs'!$K$14 -> 0
D99: ='Flexibility Requirements'!$C$14 -> 0 | E99: =E92*'Fixed Inputs'!$K$14 -> 0 | F99: =F92*'Fixed Inputs'!$K$14 -> 0 | G99: =G92*'Fixed Inputs'!$K$14 -> 0 | H99: =H92*'Fixed Inputs'!$K$14 -> 0 | I99: =I92*'Fixed Inputs'!$K$14 -> 0 | J99: =J92*'Fixed Inputs'!$K$14 -> 0 | K99: =K92*'Fixed Inputs'!$K$14 -> 0 | L99: =L92*'Fixed Inputs'!$K$14 -> 0 | M99: =M92*'Fixed Inputs'!$K$14 -> 0 | N99: =N92*'Fixed Inputs'!$K$14 -> 0 | O99: =O92*'Fixed Inputs'!$K$14 -> 0 | P99: =P92*'Fixed Inputs'!$K$14 -> 0 | Q99: =Q92*'Fixed Inputs'!$K$14 -> 0 | R99: =R92*'Fixed Inputs'!$K$14 -> 0 | S99: =S92*'Fixed Inputs'!$K$14 -> 0 | T99: =T92*'Fixed Inputs'!$K$14 -> 0 | U99: =U92*'Fixed Inputs'!$K$14 -> 0 | V99: =V92*'Fixed Inputs'!$K$14 -> 0 | W99: =W92*'Fixed Inputs'!$K$14 -> 0 | X99: =X92*'Fixed Inputs'!$K$14 -> 0 | Y99: =Y92*'Fixed Inputs'!$K$14 -> 0 | Z99: =Z92*'Fixed Inputs'!$K$14 -> 0 | AA99: =AA92*'Fixed Inputs'!$K$14 -> 0 | AB99: =AB92*'Fixed Inputs'!$K$14 -> 0 | AC99: =AC92*'Fixed Inputs'!$K$14 -> 0 | AD99: =AD92*'Fixed Inputs'!$K$14 -> 0 | AE99: =AE92*'Fixed Inputs'!$K$14 -> 0 | AF99: =AF92*'Fixed Inputs'!$K$14 -> 0 | AG99: =AG92*'Fixed Inputs'!$K$14 -> 0 | AH99: =AH92*'Fixed Inputs'!$K$14 -> 0 | AI99: =AI92*'Fixed Inputs'!$K$14 -> 0 | AJ99: =AJ92*'Fixed Inputs'!$K$14 -> 0 | AK99: =AK92*'Fixed Inputs'!$K$14 -> 0 | AL99: =AL92*'Fixed Inputs'!$K$14 -> 0 | AM99: =AM92*'Fixed Inputs'!$K$14 -> 0 | AN99: =AN92*'Fixed Inputs'!$K$14 -> 0 | AO99: =AO92*'Fixed Inputs'!$K$14 -> 0 | AP99: =AP92*'Fixed Inputs'!$K$14 -> 0 | AQ99: =AQ92*'Fixed Inputs'!$K$14 -> 0 | AR99: =AR92*'Fixed Inputs'!$K$14 -> 0 | AS99: =AS92*'Fixed Inputs'!$K$14 -> 0 | AT99: =AT92*'Fixed Inputs'!$K$14 -> 0 | AU99: =AU92*'Fixed Inputs'!$K$14 -> 0 | AV99: =AV92*'Fixed Inputs'!$K$14 -> 0 | AW99: =AW92*'Fixed Inputs'!$K$14 -> 0 | AX99: =AX92*'Fixed Inputs'!$K$14 -> 0 | AY99: =AY92*'Fixed Inputs'!$K$14 -> 0 | AZ99: =AZ92*'Fixed Inputs'!$K$14 -> 0 | BA99: =BA92*'Fixed Inputs'!$K$14 -> 0 | BB99: =BB92*'Fixed Inputs'!$K$14 -> 0 | BC99: =BC92*'Fixed Inputs'!$K$14 -> 0 | BD99: =BD92*'Fixed Inputs'!$K$14 -> 0 | BE99: =BE92*'Fixed Inputs'!$K$14 -> 0 | BF99: =BF92*'Fixed Inputs'!$K$14 -> 0 | BG99: =BG92*'Fixed Inputs'!$K$14 -> 0 | BH99: =BH92*'Fixed Inputs'!$K$14 -> 0 | BI99: =BI92*'Fixed Inputs'!$K$14 -> 0 | BJ99: =BJ92*'Fixed Inputs'!$K$14 -> 0 | BK99: =BK92*'Fixed Inputs'!$K$14 -> 0 | BL99: =BL92*'Fixed Inputs'!$K$14 -> 0 | BM99: =BM92*'Fixed Inputs'!$K$14 -> 0 | BN99: =BN92*'Fixed Inputs'!$K$14 -> 0 | BO99: =BO92*'Fixed Inputs'!$K$14 -> 0 | BP99: =BP92*'Fixed Inputs'!$K$14 -> 0 | BQ99: =BQ92*'Fixed Inputs'!$K$14 -> 0 | BR99: =BR92*'Fixed Inputs'!$K$14 -> 0 | BS99: =BS92*'Fixed Inputs'!$K$14 -> 0
D100: ='Flexibility Requirements'!$C$15 -> 0 | E100: =E93*'Fixed Inputs'!$K$14 -> 0 | F100: =F93*'Fixed Inputs'!$K$14 -> 0 | G100: =G93*'Fixed Inputs'!$K$14 -> 0 | H100: =H93*'Fixed Inputs'!$K$14 -> 0 | I100: =I93*'Fixed Inputs'!$K$14 -> 0 | J100: =J93*'Fixed Inputs'!$K$14 -> 0 | K100: =K93*'Fixed Inputs'!$K$14 -> 0 | L100: =L93*'Fixed Inputs'!$K$14 -> 0 | M100: =M93*'Fixed Inputs'!$K$14 -> 0 | N100: =N93*'Fixed Inputs'!$K$14 -> 0 | O100: =O93*'Fixed Inputs'!$K$14 -> 0 | P100: =P93*'Fixed Inputs'!$K$14 -> 0 | Q100: =Q93*'Fixed Inputs'!$K$14 -> 0 | R100: =R93*'Fixed Inputs'!$K$14 -> 0 | S100: =S93*'Fixed Inputs'!$K$14 -> 0 | T100: =T93*'Fixed Inputs'!$K$14 -> 0 | U100: =U93*'Fixed Inputs'!$K$14 -> 0 | V100: =V93*'Fixed Inputs'!$K$14 -> 0 | W100: =W93*'Fixed Inputs'!$K$14 -> 0 | X100: =X93*'Fixed Inputs'!$K$14 -> 0 | Y100: =Y93*'Fixed Inputs'!$K$14 -> 0 | Z100: =Z93*'Fixed Inputs'!$K$14 -> 0 | AA100: =AA93*'Fixed Inputs'!$K$14 -> 0 | AB100: =AB93*'Fixed Inputs'!$K$14 -> 0 | AC100: =AC93*'Fixed Inputs'!$K$14 -> 0 | AD100: =AD93*'Fixed Inputs'!$K$14 -> 0 | AE100: =AE93*'Fixed Inputs'!$K$14 -> 0 | AF100: =AF93*'Fixed Inputs'!$K$14 -> 0 | AG100: =AG93*'Fixed Inputs'!$K$14 -> 0 | AH100: =AH93*'Fixed Inputs'!$K$14 -> 0 | AI100: =AI93*'Fixed Inputs'!$K$14 -> 0 | AJ100: =AJ93*'Fixed Inputs'!$K$14 -> 0 | AK100: =AK93*'Fixed Inputs'!$K$14 -> 0 | AL100: =AL93*'Fixed Inputs'!$K$14 -> 0 | AM100: =AM93*'Fixed Inputs'!$K$14 -> 0 | AN100: =AN93*'Fixed Inputs'!$K$14 -> 0 | AO100: =AO93*'Fixed Inputs'!$K$14 -> 0 | AP100: =AP93*'Fixed Inputs'!$K$14 -> 0 | AQ100: =AQ93*'Fixed Inputs'!$K$14 -> 0 | AR100: =AR93*'Fixed Inputs'!$K$14 -> 0 | AS100: =AS93*'Fixed Inputs'!$K$14 -> 0 | AT100: =AT93*'Fixed Inputs'!$K$14 -> 0 | AU100: =AU93*'Fixed Inputs'!$K$14 -> 0 | AV100: =AV93*'Fixed Inputs'!$K$14 -> 0 | AW100: =AW93*'Fixed Inputs'!$K$14 -> 0 | AX100: =AX93*'Fixed Inputs'!$K$14 -> 0 | AY100: =AY93*'Fixed Inputs'!$K$14 -> 0 | AZ100: =AZ93*'Fixed Inputs'!$K$14 -> 0 | BA100: =BA93*'Fixed Inputs'!$K$14 -> 0 | BB100: =BB93*'Fixed Inputs'!$K$14 -> 0 | BC100: =BC93*'Fixed Inputs'!$K$14 -> 0 | BD100: =BD93*'Fixed Inputs'!$K$14 -> 0 | BE100: =BE93*'Fixed Inputs'!$K$14 -> 0 | BF100: =BF93*'Fixed Inputs'!$K$14 -> 0 | BG100: =BG93*'Fixed Inputs'!$K$14 -> 0 | BH100: =BH93*'Fixed Inputs'!$K$14 -> 0 | BI100: =BI93*'Fixed Inputs'!$K$14 -> 0 | BJ100: =BJ93*'Fixed Inputs'!$K$14 -> 0 | BK100: =BK93*'Fixed Inputs'!$K$14 -> 0 | BL100: =BL93*'Fixed Inputs'!$K$14 -> 0 | BM100: =BM93*'Fixed Inputs'!$K$14 -> 0 | BN100: =BN93*'Fixed Inputs'!$K$14 -> 0 | BO100: =BO93*'Fixed Inputs'!$K$14 -> 0 | BP100: =BP93*'Fixed Inputs'!$K$14 -> 0 | BQ100: =BQ93*'Fixed Inputs'!$K$14 -> 0 | BR100: =BR93*'Fixed Inputs'!$K$14 -> 0 | BS100: =BS93*'Fixed Inputs'!$K$14 -> 0
B102: Customer Minutes Lost (CML)
C103: Reduced customer minutes lost (mins)
D104: ='Reinforcement Deferral'!$C$39 -> Losses derogation calculation
D105: ='Flexibility Requirements'!$C$11 -> 0
D106: ='Flexibility Requirements'!$C$12 -> 0
D107: ='Flexibility Requirements'!$C$13 -> 0
D108: ='Flexibility Requirements'!$C$14 -> 0
D109: ='Flexibility Requirements'!$C$15 -> 0
C110: Reduced Customer Minutes Lost (CML), (£)
D111: ='Reinforcement Deferral'!$C$39 -> Losses derogation calculation | E111: =E104*'Fixed Inputs'!$K$15 -> 0 | F111: =F104*'Fixed Inputs'!$K$15 -> 0 | G111: =G104*'Fixed Inputs'!$K$15 -> 0 | H111: =H104*'Fixed Inputs'!$K$15 -> 0 | I111: =I104*'Fixed Inputs'!$K$15 -> 0 | J111: =J104*'Fixed Inputs'!$K$15 -> 0 | K111: =K104*'Fixed Inputs'!$K$15 -> 0 | L111: =L104*'Fixed Inputs'!$K$15 -> 0 | M111: =M104*'Fixed Inputs'!$K$15 -> 0 | N111: =N104*'Fixed Inputs'!$K$15 -> 0 | O111: =O104*'Fixed Inputs'!$K$15 -> 0 | P111: =P104*'Fixed Inputs'!$K$15 -> 0 | Q111: =Q104*'Fixed Inputs'!$K$15 -> 0 | R111: =R104*'Fixed Inputs'!$K$15 -> 0 | S111: =S104*'Fixed Inputs'!$K$15 -> 0 | T111: =T104*'Fixed Inputs'!$K$15 -> 0 | U111: =U104*'Fixed Inputs'!$K$15 -> 0 | V111: =V104*'Fixed Inputs'!$K$15 -> 0 | W111: =W104*'Fixed Inputs'!$K$15 -> 0 | X111: =X104*'Fixed Inputs'!$K$15 -> 0 | Y111: =Y104*'Fixed Inputs'!$K$15 -> 0 | Z111: =Z104*'Fixed Inputs'!$K$15 -> 0 | AA111: =AA104*'Fixed Inputs'!$K$15 -> 0 | AB111: =AB104*'Fixed Inputs'!$K$15 -> 0 | AC111: =AC104*'Fixed Inputs'!$K$15 -> 0 | AD111: =AD104*'Fixed Inputs'!$K$15 -> 0 | AE111: =AE104*'Fixed Inputs'!$K$15 -> 0 | AF111: =AF104*'Fixed Inputs'!$K$15 -> 0 | AG111: =AG104*'Fixed Inputs'!$K$15 -> 0 | AH111: =AH104*'Fixed Inputs'!$K$15 -> 0 | AI111: =AI104*'Fixed Inputs'!$K$15 -> 0 | AJ111: =AJ104*'Fixed Inputs'!$K$15 -> 0 | AK111: =AK104*'Fixed Inputs'!$K$15 -> 0 | AL111: =AL104*'Fixed Inputs'!$K$15 -> 0 | AM111: =AM104*'Fixed Inputs'!$K$15 -> 0 | AN111: =AN104*'Fixed Inputs'!$K$15 -> 0 | AO111: =AO104*'Fixed Inputs'!$K$15 -> 0 | AP111: =AP104*'Fixed Inputs'!$K$15 -> 0 | AQ111: =AQ104*'Fixed Inputs'!$K$15 -> 0 | AR111: =AR104*'Fixed Inputs'!$K$15 -> 0 | AS111: =AS104*'Fixed Inputs'!$K$15 -> 0 | AT111: =AT104*'Fixed Inputs'!$K$15 -> 0 | AU111: =AU104*'Fixed Inputs'!$K$15 -> 0 | AV111: =AV104*'Fixed Inputs'!$K$15 -> 0 | AW111: =AW104*'Fixed Inputs'!$K$15 -> 0 | AX111: =AX104*'Fixed Inputs'!$K$15 -> 0 | AY111: =AY104*'Fixed Inputs'!$K$15 -> 0 | AZ111: =AZ104*'Fixed Inputs'!$K$15 -> 0 | BA111: =BA104*'Fixed Inputs'!$K$15 -> 0 | BB111: =BB104*'Fixed Inputs'!$K$15 -> 0 | BC111: =BC104*'Fixed Inputs'!$K$15 -> 0 | BD111: =BD104*'Fixed Inputs'!$K$15 -> 0 | BE111: =BE104*'Fixed Inputs'!$K$15 -> 0 | BF111: =BF104*'Fixed Inputs'!$K$15 -> 0 | BG111: =BG104*'Fixed Inputs'!$K$15 -> 0 | BH111: =BH104*'Fixed Inputs'!$K$15 -> 0 | BI111: =BI104*'Fixed Inputs'!$K$15 -> 0 | BJ111: =BJ104*'Fixed Inputs'!$K$15 -> 0 | BK111: =BK104*'Fixed Inputs'!$K$15 -> 0 | BL111: =BL104*'Fixed Inputs'!$K$15 -> 0 | BM111: =BM104*'Fixed Inputs'!$K$15 -> 0 | BN111: =BN104*'Fixed Inputs'!$K$15 -> 0 | BO111: =BO104*'Fixed Inputs'!$K$15 -> 0 | BP111: =BP104*'Fixed Inputs'!$K$15 -> 0 | BQ111: =BQ104*'Fixed Inputs'!$K$15 -> 0 | BR111: =BR104*'Fixed Inputs'!$K$15 -> 0 | BS111: =BS104*'Fixed Inputs'!$K$15 -> 0
D112: ='Flexibility Requirements'!$C$11 -> 0 | E112: =E105*'Fixed Inputs'!$K$15 -> 0 | F112: =F105*'Fixed Inputs'!$K$15 -> 0 | G112: =G105*'Fixed Inputs'!$K$15 -> 0 | H112: =H105*'Fixed Inputs'!$K$15 -> 0 | I112: =I105*'Fixed Inputs'!$K$15 -> 0 | J112: =J105*'Fixed Inputs'!$K$15 -> 0 | K112: =K105*'Fixed Inputs'!$K$15 -> 0 | L112: =L105*'Fixed Inputs'!$K$15 -> 0 | M112: =M105*'Fixed Inputs'!$K$15 -> 0 | N112: =N105*'Fixed Inputs'!$K$15 -> 0 | O112: =O105*'Fixed Inputs'!$K$15 -> 0 | P112: =P105*'Fixed Inputs'!$K$15 -> 0 | Q112: =Q105*'Fixed Inputs'!$K$15 -> 0 | R112: =R105*'Fixed Inputs'!$K$15 -> 0 | S112: =S105*'Fixed Inputs'!$K$15 -> 0 | T112: =T105*'Fixed Inputs'!$K$15 -> 0 | U112: =U105*'Fixed Inputs'!$K$15 -> 0 | V112: =V105*'Fixed Inputs'!$K$15 -> 0 | W112: =W105*'Fixed Inputs'!$K$15 -> 0 | X112: =X105*'Fixed Inputs'!$K$15 -> 0 | Y112: =Y105*'Fixed Inputs'!$K$15 -> 0 | Z112: =Z105*'Fixed Inputs'!$K$15 -> 0 | AA112: =AA105*'Fixed Inputs'!$K$15 -> 0 | AB112: =AB105*'Fixed Inputs'!$K$15 -> 0 | AC112: =AC105*'Fixed Inputs'!$K$15 -> 0 | AD112: =AD105*'Fixed Inputs'!$K$15 -> 0 | AE112: =AE105*'Fixed Inputs'!$K$15 -> 0 | AF112: =AF105*'Fixed Inputs'!$K$15 -> 0 | AG112: =AG105*'Fixed Inputs'!$K$15 -> 0 | AH112: =AH105*'Fixed Inputs'!$K$15 -> 0 | AI112: =AI105*'Fixed Inputs'!$K$15 -> 0 | AJ112: =AJ105*'Fixed Inputs'!$K$15 -> 0 | AK112: =AK105*'Fixed Inputs'!$K$15 -> 0 | AL112: =AL105*'Fixed Inputs'!$K$15 -> 0 | AM112: =AM105*'Fixed Inputs'!$K$15 -> 0 | AN112: =AN105*'Fixed Inputs'!$K$15 -> 0 | AO112: =AO105*'Fixed Inputs'!$K$15 -> 0 | AP112: =AP105*'Fixed Inputs'!$K$15 -> 0 | AQ112: =AQ105*'Fixed Inputs'!$K$15 -> 0 | AR112: =AR105*'Fixed Inputs'!$K$15 -> 0 | AS112: =AS105*'Fixed Inputs'!$K$15 -> 0 | AT112: =AT105*'Fixed Inputs'!$K$15 -> 0 | AU112: =AU105*'Fixed Inputs'!$K$15 -> 0 | AV112: =AV105*'Fixed Inputs'!$K$15 -> 0 | AW112: =AW105*'Fixed Inputs'!$K$15 -> 0 | AX112: =AX105*'Fixed Inputs'!$K$15 -> 0 | AY112: =AY105*'Fixed Inputs'!$K$15 -> 0 | AZ112: =AZ105*'Fixed Inputs'!$K$15 -> 0 | BA112: =BA105*'Fixed Inputs'!$K$15 -> 0 | BB112: =BB105*'Fixed Inputs'!$K$15 -> 0 | BC112: =BC105*'Fixed Inputs'!$K$15 -> 0 | BD112: =BD105*'Fixed Inputs'!$K$15 -> 0 | BE112: =BE105*'Fixed Inputs'!$K$15 -> 0 | BF112: =BF105*'Fixed Inputs'!$K$15 -> 0 | BG112: =BG105*'Fixed Inputs'!$K$15 -> 0 | BH112: =BH105*'Fixed Inputs'!$K$15 -> 0 | BI112: =BI105*'Fixed Inputs'!$K$15 -> 0 | BJ112: =BJ105*'Fixed Inputs'!$K$15 -> 0 | BK112: =BK105*'Fixed Inputs'!$K$15 -> 0 | BL112: =BL105*'Fixed Inputs'!$K$15 -> 0 | BM112: =BM105*'Fixed Inputs'!$K$15 -> 0 | BN112: =BN105*'Fixed Inputs'!$K$15 -> 0 | BO112: =BO105*'Fixed Inputs'!$K$15 -> 0 | BP112: =BP105*'Fixed Inputs'!$K$15 -> 0 | BQ112: =BQ105*'Fixed Inputs'!$K$15 -> 0 | BR112: =BR105*'Fixed Inputs'!$K$15 -> 0 | BS112: =BS105*'Fixed Inputs'!$K$15 -> 0
D113: ='Flexibility Requirements'!$C$12 -> 0 | E113: =E106*'Fixed Inputs'!$K$15 -> 0 | F113: =F106*'Fixed Inputs'!$K$15 -> 0 | G113: =G106*'Fixed Inputs'!$K$15 -> 0 | H113: =H106*'Fixed Inputs'!$K$15 -> 0 | I113: =I106*'Fixed Inputs'!$K$15 -> 0 | J113: =J106*'Fixed Inputs'!$K$15 -> 0 | K113: =K106*'Fixed Inputs'!$K$15 -> 0 | L113: =L106*'Fixed Inputs'!$K$15 -> 0 | M113: =M106*'Fixed Inputs'!$K$15 -> 0 | N113: =N106*'Fixed Inputs'!$K$15 -> 0 | O113: =O106*'Fixed Inputs'!$K$15 -> 0 | P113: =P106*'Fixed Inputs'!$K$15 -> 0 | Q113: =Q106*'Fixed Inputs'!$K$15 -> 0 | R113: =R106*'Fixed Inputs'!$K$15 -> 0 | S113: =S106*'Fixed Inputs'!$K$15 -> 0 | T113: =T106*'Fixed Inputs'!$K$15 -> 0 | U113: =U106*'Fixed Inputs'!$K$15 -> 0 | V113: =V106*'Fixed Inputs'!$K$15 -> 0 | W113: =W106*'Fixed Inputs'!$K$15 -> 0 | X113: =X106*'Fixed Inputs'!$K$15 -> 0 | Y113: =Y106*'Fixed Inputs'!$K$15 -> 0 | Z113: =Z106*'Fixed Inputs'!$K$15 -> 0 | AA113: =AA106*'Fixed Inputs'!$K$15 -> 0 | AB113: =AB106*'Fixed Inputs'!$K$15 -> 0 | AC113: =AC106*'Fixed Inputs'!$K$15 -> 0 | AD113: =AD106*'Fixed Inputs'!$K$15 -> 0 | AE113: =AE106*'Fixed Inputs'!$K$15 -> 0 | AF113: =AF106*'Fixed Inputs'!$K$15 -> 0 | AG113: =AG106*'Fixed Inputs'!$K$15 -> 0 | AH113: =AH106*'Fixed Inputs'!$K$15 -> 0 | AI113: =AI106*'Fixed Inputs'!$K$15 -> 0 | AJ113: =AJ106*'Fixed Inputs'!$K$15 -> 0 | AK113: =AK106*'Fixed Inputs'!$K$15 -> 0 | AL113: =AL106*'Fixed Inputs'!$K$15 -> 0 | AM113: =AM106*'Fixed Inputs'!$K$15 -> 0 | AN113: =AN106*'Fixed Inputs'!$K$15 -> 0 | AO113: =AO106*'Fixed Inputs'!$K$15 -> 0 | AP113: =AP106*'Fixed Inputs'!$K$15 -> 0 | AQ113: =AQ106*'Fixed Inputs'!$K$15 -> 0 | AR113: =AR106*'Fixed Inputs'!$K$15 -> 0 | AS113: =AS106*'Fixed Inputs'!$K$15 -> 0 | AT113: =AT106*'Fixed Inputs'!$K$15 -> 0 | AU113: =AU106*'Fixed Inputs'!$K$15 -> 0 | AV113: =AV106*'Fixed Inputs'!$K$15 -> 0 | AW113: =AW106*'Fixed Inputs'!$K$15 -> 0 | AX113: =AX106*'Fixed Inputs'!$K$15 -> 0 | AY113: =AY106*'Fixed Inputs'!$K$15 -> 0 | AZ113: =AZ106*'Fixed Inputs'!$K$15 -> 0 | BA113: =BA106*'Fixed Inputs'!$K$15 -> 0 | BB113: =BB106*'Fixed Inputs'!$K$15 -> 0 | BC113: =BC106*'Fixed Inputs'!$K$15 -> 0 | BD113: =BD106*'Fixed Inputs'!$K$15 -> 0 | BE113: =BE106*'Fixed Inputs'!$K$15 -> 0 | BF113: =BF106*'Fixed Inputs'!$K$15 -> 0 | BG113: =BG106*'Fixed Inputs'!$K$15 -> 0 | BH113: =BH106*'Fixed Inputs'!$K$15 -> 0 | BI113: =BI106*'Fixed Inputs'!$K$15 -> 0 | BJ113: =BJ106*'Fixed Inputs'!$K$15 -> 0 | BK113: =BK106*'Fixed Inputs'!$K$15 -> 0 | BL113: =BL106*'Fixed Inputs'!$K$15 -> 0 | BM113: =BM106*'Fixed Inputs'!$K$15 -> 0 | BN113: =BN106*'Fixed Inputs'!$K$15 -> 0 | BO113: =BO106*'Fixed Inputs'!$K$15 -> 0 | BP113: =BP106*'Fixed Inputs'!$K$15 -> 0 | BQ113: =BQ106*'Fixed Inputs'!$K$15 -> 0 | BR113: =BR106*'Fixed Inputs'!$K$15 -> 0 | BS113: =BS106*'Fixed Inputs'!$K$15 -> 0
D114: ='Flexibility Requirements'!$C$13 -> 0 | E114: =E107*'Fixed Inputs'!$K$15 -> 0 | F114: =F107*'Fixed Inputs'!$K$15 -> 0 | G114: =G107*'Fixed Inputs'!$K$15 -> 0 | H114: =H107*'Fixed Inputs'!$K$15 -> 0 | I114: =I107*'Fixed Inputs'!$K$15 -> 0 | J114: =J107*'Fixed Inputs'!$K$15 -> 0 | K114: =K107*'Fixed Inputs'!$K$15 -> 0 | L114: =L107*'Fixed Inputs'!$K$15 -> 0 | M114: =M107*'Fixed Inputs'!$K$15 -> 0 | N114: =N107*'Fixed Inputs'!$K$15 -> 0 | O114: =O107*'Fixed Inputs'!$K$15 -> 0 | P114: =P107*'Fixed Inputs'!$K$15 -> 0 | Q114: =Q107*'Fixed Inputs'!$K$15 -> 0 | R114: =R107*'Fixed Inputs'!$K$15 -> 0 | S114: =S107*'Fixed Inputs'!$K$15 -> 0 | T114: =T107*'Fixed Inputs'!$K$15 -> 0 | U114: =U107*'Fixed Inputs'!$K$15 -> 0 | V114: =V107*'Fixed Inputs'!$K$15 -> 0 | W114: =W107*'Fixed Inputs'!$K$15 -> 0 | X114: =X107*'Fixed Inputs'!$K$15 -> 0 | Y114: =Y107*'Fixed Inputs'!$K$15 -> 0 | Z114: =Z107*'Fixed Inputs'!$K$15 -> 0 | AA114: =AA107*'Fixed Inputs'!$K$15 -> 0 | AB114: =AB107*'Fixed Inputs'!$K$15 -> 0 | AC114: =AC107*'Fixed Inputs'!$K$15 -> 0 | AD114: =AD107*'Fixed Inputs'!$K$15 -> 0 | AE114: =AE107*'Fixed Inputs'!$K$15 -> 0 | AF114: =AF107*'Fixed Inputs'!$K$15 -> 0 | AG114: =AG107*'Fixed Inputs'!$K$15 -> 0 | AH114: =AH107*'Fixed Inputs'!$K$15 -> 0 | AI114: =AI107*'Fixed Inputs'!$K$15 -> 0 | AJ114: =AJ107*'Fixed Inputs'!$K$15 -> 0 | AK114: =AK107*'Fixed Inputs'!$K$15 -> 0 | AL114: =AL107*'Fixed Inputs'!$K$15 -> 0 | AM114: =AM107*'Fixed Inputs'!$K$15 -> 0 | AN114: =AN107*'Fixed Inputs'!$K$15 -> 0 | AO114: =AO107*'Fixed Inputs'!$K$15 -> 0 | AP114: =AP107*'Fixed Inputs'!$K$15 -> 0 | AQ114: =AQ107*'Fixed Inputs'!$K$15 -> 0 | AR114: =AR107*'Fixed Inputs'!$K$15 -> 0 | AS114: =AS107*'Fixed Inputs'!$K$15 -> 0 | AT114: =AT107*'Fixed Inputs'!$K$15 -> 0 | AU114: =AU107*'Fixed Inputs'!$K$15 -> 0 | AV114: =AV107*'Fixed Inputs'!$K$15 -> 0 | AW114: =AW107*'Fixed Inputs'!$K$15 -> 0 | AX114: =AX107*'Fixed Inputs'!$K$15 -> 0 | AY114: =AY107*'Fixed Inputs'!$K$15 -> 0 | AZ114: =AZ107*'Fixed Inputs'!$K$15 -> 0 | BA114: =BA107*'Fixed Inputs'!$K$15 -> 0 | BB114: =BB107*'Fixed Inputs'!$K$15 -> 0 | BC114: =BC107*'Fixed Inputs'!$K$15 -> 0 | BD114: =BD107*'Fixed Inputs'!$K$15 -> 0 | BE114: =BE107*'Fixed Inputs'!$K$15 -> 0 | BF114: =BF107*'Fixed Inputs'!$K$15 -> 0 | BG114: =BG107*'Fixed Inputs'!$K$15 -> 0 | BH114: =BH107*'Fixed Inputs'!$K$15 -> 0 | BI114: =BI107*'Fixed Inputs'!$K$15 -> 0 | BJ114: =BJ107*'Fixed Inputs'!$K$15 -> 0 | BK114: =BK107*'Fixed Inputs'!$K$15 -> 0 | BL114: =BL107*'Fixed Inputs'!$K$15 -> 0 | BM114: =BM107*'Fixed Inputs'!$K$15 -> 0 | BN114: =BN107*'Fixed Inputs'!$K$15 -> 0 | BO114: =BO107*'Fixed Inputs'!$K$15 -> 0 | BP114: =BP107*'Fixed Inputs'!$K$15 -> 0 | BQ114: =BQ107*'Fixed Inputs'!$K$15 -> 0 | BR114: =BR107*'Fixed Inputs'!$K$15 -> 0 | BS114: =BS107*'Fixed Inputs'!$K$15 -> 0
D115: ='Flexibility Requirements'!$C$14 -> 0 | E115: =E108*'Fixed Inputs'!$K$15 -> 0 | F115: =F108*'Fixed Inputs'!$K$15 -> 0 | G115: =G108*'Fixed Inputs'!$K$15 -> 0 | H115: =H108*'Fixed Inputs'!$K$15 -> 0 | I115: =I108*'Fixed Inputs'!$K$15 -> 0 | J115: =J108*'Fixed Inputs'!$K$15 -> 0 | K115: =K108*'Fixed Inputs'!$K$15 -> 0 | L115: =L108*'Fixed Inputs'!$K$15 -> 0 | M115: =M108*'Fixed Inputs'!$K$15 -> 0 | N115: =N108*'Fixed Inputs'!$K$15 -> 0 | O115: =O108*'Fixed Inputs'!$K$15 -> 0 | P115: =P108*'Fixed Inputs'!$K$15 -> 0 | Q115: =Q108*'Fixed Inputs'!$K$15 -> 0 | R115: =R108*'Fixed Inputs'!$K$15 -> 0 | S115: =S108*'Fixed Inputs'!$K$15 -> 0 | T115: =T108*'Fixed Inputs'!$K$15 -> 0 | U115: =U108*'Fixed Inputs'!$K$15 -> 0 | V115: =V108*'Fixed Inputs'!$K$15 -> 0 | W115: =W108*'Fixed Inputs'!$K$15 -> 0 | X115: =X108*'Fixed Inputs'!$K$15 -> 0 | Y115: =Y108*'Fixed Inputs'!$K$15 -> 0 | Z115: =Z108*'Fixed Inputs'!$K$15 -> 0 | AA115: =AA108*'Fixed Inputs'!$K$15 -> 0 | AB115: =AB108*'Fixed Inputs'!$K$15 -> 0 | AC115: =AC108*'Fixed Inputs'!$K$15 -> 0 | AD115: =AD108*'Fixed Inputs'!$K$15 -> 0 | AE115: =AE108*'Fixed Inputs'!$K$15 -> 0 | AF115: =AF108*'Fixed Inputs'!$K$15 -> 0 | AG115: =AG108*'Fixed Inputs'!$K$15 -> 0 | AH115: =AH108*'Fixed Inputs'!$K$15 -> 0 | AI115: =AI108*'Fixed Inputs'!$K$15 -> 0 | AJ115: =AJ108*'Fixed Inputs'!$K$15 -> 0 | AK115: =AK108*'Fixed Inputs'!$K$15 -> 0 | AL115: =AL108*'Fixed Inputs'!$K$15 -> 0 | AM115: =AM108*'Fixed Inputs'!$K$15 -> 0 | AN115: =AN108*'Fixed Inputs'!$K$15 -> 0 | AO115: =AO108*'Fixed Inputs'!$K$15 -> 0 | AP115: =AP108*'Fixed Inputs'!$K$15 -> 0 | AQ115: =AQ108*'Fixed Inputs'!$K$15 -> 0 | AR115: =AR108*'Fixed Inputs'!$K$15 -> 0 | AS115: =AS108*'Fixed Inputs'!$K$15 -> 0 | AT115: =AT108*'Fixed Inputs'!$K$15 -> 0 | AU115: =AU108*'Fixed Inputs'!$K$15 -> 0 | AV115: =AV108*'Fixed Inputs'!$K$15 -> 0 | AW115: =AW108*'Fixed Inputs'!$K$15 -> 0 | AX115: =AX108*'Fixed Inputs'!$K$15 -> 0 | AY115: =AY108*'Fixed Inputs'!$K$15 -> 0 | AZ115: =AZ108*'Fixed Inputs'!$K$15 -> 0 | BA115: =BA108*'Fixed Inputs'!$K$15 -> 0 | BB115: =BB108*'Fixed Inputs'!$K$15 -> 0 | BC115: =BC108*'Fixed Inputs'!$K$15 -> 0 | BD115: =BD108*'Fixed Inputs'!$K$15 -> 0 | BE115: =BE108*'Fixed Inputs'!$K$15 -> 0 | BF115: =BF108*'Fixed Inputs'!$K$15 -> 0 | BG115: =BG108*'Fixed Inputs'!$K$15 -> 0 | BH115: =BH108*'Fixed Inputs'!$K$15 -> 0 | BI115: =BI108*'Fixed Inputs'!$K$15 -> 0 | BJ115: =BJ108*'Fixed Inputs'!$K$15 -> 0 | BK115: =BK108*'Fixed Inputs'!$K$15 -> 0 | BL115: =BL108*'Fixed Inputs'!$K$15 -> 0 | BM115: =BM108*'Fixed Inputs'!$K$15 -> 0 | BN115: =BN108*'Fixed Inputs'!$K$15 -> 0 | BO115: =BO108*'Fixed Inputs'!$K$15 -> 0 | BP115: =BP108*'Fixed Inputs'!$K$15 -> 0 | BQ115: =BQ108*'Fixed Inputs'!$K$15 -> 0 | BR115: =BR108*'Fixed Inputs'!$K$15 -> 0 | BS115: =BS108*'Fixed Inputs'!$K$15 -> 0
D116: ='Flexibility Requirements'!$C$15 -> 0 | E116: =E109*'Fixed Inputs'!$K$15 -> 0 | F116: =F109*'Fixed Inputs'!$K$15 -> 0 | G116: =G109*'Fixed Inputs'!$K$15 -> 0 | H116: =H109*'Fixed Inputs'!$K$15 -> 0 | I116: =I109*'Fixed Inputs'!$K$15 -> 0 | J116: =J109*'Fixed Inputs'!$K$15 -> 0 | K116: =K109*'Fixed Inputs'!$K$15 -> 0 | L116: =L109*'Fixed Inputs'!$K$15 -> 0 | M116: =M109*'Fixed Inputs'!$K$15 -> 0 | N116: =N109*'Fixed Inputs'!$K$15 -> 0 | O116: =O109*'Fixed Inputs'!$K$15 -> 0 | P116: =P109*'Fixed Inputs'!$K$15 -> 0 | Q116: =Q109*'Fixed Inputs'!$K$15 -> 0 | R116: =R109*'Fixed Inputs'!$K$15 -> 0 | S116: =S109*'Fixed Inputs'!$K$15 -> 0 | T116: =T109*'Fixed Inputs'!$K$15 -> 0 | U116: =U109*'Fixed Inputs'!$K$15 -> 0 | V116: =V109*'Fixed Inputs'!$K$15 -> 0 | W116: =W109*'Fixed Inputs'!$K$15 -> 0 | X116: =X109*'Fixed Inputs'!$K$15 -> 0 | Y116: =Y109*'Fixed Inputs'!$K$15 -> 0 | Z116: =Z109*'Fixed Inputs'!$K$15 -> 0 | AA116: =AA109*'Fixed Inputs'!$K$15 -> 0 | AB116: =AB109*'Fixed Inputs'!$K$15 -> 0 | AC116: =AC109*'Fixed Inputs'!$K$15 -> 0 | AD116: =AD109*'Fixed Inputs'!$K$15 -> 0 | AE116: =AE109*'Fixed Inputs'!$K$15 -> 0 | AF116: =AF109*'Fixed Inputs'!$K$15 -> 0 | AG116: =AG109*'Fixed Inputs'!$K$15 -> 0 | AH116: =AH109*'Fixed Inputs'!$K$15 -> 0 | AI116: =AI109*'Fixed Inputs'!$K$15 -> 0 | AJ116: =AJ109*'Fixed Inputs'!$K$15 -> 0 | AK116: =AK109*'Fixed Inputs'!$K$15 -> 0 | AL116: =AL109*'Fixed Inputs'!$K$15 -> 0 | AM116: =AM109*'Fixed Inputs'!$K$15 -> 0 | AN116: =AN109*'Fixed Inputs'!$K$15 -> 0 | AO116: =AO109*'Fixed Inputs'!$K$15 -> 0 | AP116: =AP109*'Fixed Inputs'!$K$15 -> 0 | AQ116: =AQ109*'Fixed Inputs'!$K$15 -> 0 | AR116: =AR109*'Fixed Inputs'!$K$15 -> 0 | AS116: =AS109*'Fixed Inputs'!$K$15 -> 0 | AT116: =AT109*'Fixed Inputs'!$K$15 -> 0 | AU116: =AU109*'Fixed Inputs'!$K$15 -> 0 | AV116: =AV109*'Fixed Inputs'!$K$15 -> 0 | AW116: =AW109*'Fixed Inputs'!$K$15 -> 0 | AX116: =AX109*'Fixed Inputs'!$K$15 -> 0 | AY116: =AY109*'Fixed Inputs'!$K$15 -> 0 | AZ116: =AZ109*'Fixed Inputs'!$K$15 -> 0 | BA116: =BA109*'Fixed Inputs'!$K$15 -> 0 | BB116: =BB109*'Fixed Inputs'!$K$15 -> 0 | BC116: =BC109*'Fixed Inputs'!$K$15 -> 0 | BD116: =BD109*'Fixed Inputs'!$K$15 -> 0 | BE116: =BE109*'Fixed Inputs'!$K$15 -> 0 | BF116: =BF109*'Fixed Inputs'!$K$15 -> 0 | BG116: =BG109*'Fixed Inputs'!$K$15 -> 0 | BH116: =BH109*'Fixed Inputs'!$K$15 -> 0 | BI116: =BI109*'Fixed Inputs'!$K$15 -> 0 | BJ116: =BJ109*'Fixed Inputs'!$K$15 -> 0 | BK116: =BK109*'Fixed Inputs'!$K$15 -> 0 | BL116: =BL109*'Fixed Inputs'!$K$15 -> 0 | BM116: =BM109*'Fixed Inputs'!$K$15 -> 0 | BN116: =BN109*'Fixed Inputs'!$K$15 -> 0 | BO116: =BO109*'Fixed Inputs'!$K$15 -> 0 | BP116: =BP109*'Fixed Inputs'!$K$15 -> 0 | BQ116: =BQ109*'Fixed Inputs'!$K$15 -> 0 | BR116: =BR109*'Fixed Inputs'!$K$15 -> 0 | BS116: =BS109*'Fixed Inputs'!$K$15 -> 0
B118: Other societal impacts
C119: Reduced prob of Fatality (%)
D120: ='Reinforcement Deferral'!$C$39 -> Losses derogation calculation
D121: ='Flexibility Requirements'!$C$11 -> 0
D122: ='Flexibility Requirements'!$C$12 -> 0
D123: ='Flexibility Requirements'!$C$13 -> 0
D124: ='Flexibility Requirements'!$C$14 -> 0
D125: ='Flexibility Requirements'!$C$15 -> 0
C126: Reduced prob of Fatality, (£)
D127: ='Reinforcement Deferral'!$C$39 -> Losses derogation calculation | E127: =E120*'Fixed Inputs'!$D$16*1000000 -> 0 | F127: =F120*'Fixed Inputs'!$D$16*1000000 -> 0 | G127: =G120*'Fixed Inputs'!$D$16*1000000 -> 0 | H127: =H120*'Fixed Inputs'!$D$16*1000000 -> 0 | I127: =I120*'Fixed Inputs'!$D$16*1000000 -> 0 | J127: =J120*'Fixed Inputs'!$D$16*1000000 -> 0 | K127: =K120*'Fixed Inputs'!$D$16*1000000 -> 0 | L127: =L120*'Fixed Inputs'!$D$16*1000000 -> 0 | M127: =M120*'Fixed Inputs'!$D$16*1000000 -> 0 | N127: =N120*'Fixed Inputs'!$D$16*1000000 -> 0 | O127: =O120*'Fixed Inputs'!$D$16*1000000 -> 0 | P127: =P120*'Fixed Inputs'!$D$16*1000000 -> 0 | Q127: =Q120*'Fixed Inputs'!$D$16*1000000 -> 0 | R127: =R120*'Fixed Inputs'!$D$16*1000000 -> 0 | S127: =S120*'Fixed Inputs'!$D$16*1000000 -> 0 | T127: =T120*'Fixed Inputs'!$D$16*1000000 -> 0 | U127: =U120*'Fixed Inputs'!$D$16*1000000 -> 0 | V127: =V120*'Fixed Inputs'!$D$16*1000000 -> 0 | W127: =W120*'Fixed Inputs'!$D$16*1000000 -> 0 | X127: =X120*'Fixed Inputs'!$D$16*1000000 -> 0 | Y127: =Y120*'Fixed Inputs'!$D$16*1000000 -> 0 | Z127: =Z120*'Fixed Inputs'!$D$16*1000000 -> 0 | AA127: =AA120*'Fixed Inputs'!$D$16*1000000 -> 0 | AB127: =AB120*'Fixed Inputs'!$D$16*1000000 -> 0 | AC127: =AC120*'Fixed Inputs'!$D$16*1000000 -> 0 | AD127: =AD120*'Fixed Inputs'!$D$16*1000000 -> 0 | AE127: =AE120*'Fixed Inputs'!$D$16*1000000 -> 0 | AF127: =AF120*'Fixed Inputs'!$D$16*1000000 -> 0 | AG127: =AG120*'Fixed Inputs'!$D$16*1000000 -> 0 | AH127: =AH120*'Fixed Inputs'!$D$16*1000000 -> 0 | AI127: =AI120*'Fixed Inputs'!$D$16*1000000 -> 0 | AJ127: =AJ120*'Fixed Inputs'!$D$16*1000000 -> 0 | AK127: =AK120*'Fixed Inputs'!$D$16*1000000 -> 0 | AL127: =AL120*'Fixed Inputs'!$D$16*1000000 -> 0 | AM127: =AM120*'Fixed Inputs'!$D$16*1000000 -> 0 | AN127: =AN120*'Fixed Inputs'!$D$16*1000000 -> 0 | AO127: =AO120*'Fixed Inputs'!$D$16*1000000 -> 0 | AP127: =AP120*'Fixed Inputs'!$D$16*1000000 -> 0 | AQ127: =AQ120*'Fixed Inputs'!$D$16*1000000 -> 0 | AR127: =AR120*'Fixed Inputs'!$D$16*1000000 -> 0 | AS127: =AS120*'Fixed Inputs'!$D$16*1000000 -> 0 | AT127: =AT120*'Fixed Inputs'!$D$16*1000000 -> 0 | AU127: =AU120*'Fixed Inputs'!$D$16*1000000 -> 0 | AV127: =AV120*'Fixed Inputs'!$D$16*1000000 -> 0 | AW127: =AW120*'Fixed Inputs'!$D$16*1000000 -> 0 | AX127: =AX120*'Fixed Inputs'!$D$16*1000000 -> 0 | AY127: =AY120*'Fixed Inputs'!$D$16*1000000 -> 0 | AZ127: =AZ120*'Fixed Inputs'!$D$16*1000000 -> 0 | BA127: =BA120*'Fixed Inputs'!$D$16*1000000 -> 0 | BB127: =BB120*'Fixed Inputs'!$D$16*1000000 -> 0 | BC127: =BC120*'Fixed Inputs'!$D$16*1000000 -> 0 | BD127: =BD120*'Fixed Inputs'!$D$16*1000000 -> 0 | BE127: =BE120*'Fixed Inputs'!$D$16*1000000 -> 0 | BF127: =BF120*'Fixed Inputs'!$D$16*1000000 -> 0 | BG127: =BG120*'Fixed Inputs'!$D$16*1000000 -> 0 | BH127: =BH120*'Fixed Inputs'!$D$16*1000000 -> 0 | BI127: =BI120*'Fixed Inputs'!$D$16*1000000 -> 0 | BJ127: =BJ120*'Fixed Inputs'!$D$16*1000000 -> 0 | BK127: =BK120*'Fixed Inputs'!$D$16*1000000 -> 0 | BL127: =BL120*'Fixed Inputs'!$D$16*1000000 -> 0 | BM127: =BM120*'Fixed Inputs'!$D$16*1000000 -> 0 | BN127: =BN120*'Fixed Inputs'!$D$16*1000000 -> 0 | BO127: =BO120*'Fixed Inputs'!$D$16*1000000 -> 0 | BP127: =BP120*'Fixed Inputs'!$D$16*1000000 -> 0 | BQ127: =BQ120*'Fixed Inputs'!$D$16*1000000 -> 0 | BR127: =BR120*'Fixed Inputs'!$D$16*1000000 -> 0 | BS127: =BS120*'Fixed Inputs'!$D$16*1000000 -> 0
